Workbook

Sheet Description
B4: Purpose
B5: This model is based on Hunter, C., Penev, M., et al. (In Press) and enables techno-economic analysis of energy storage technologies in service of grid scale energy applications. It allows users to specify up to 15 parallel technology assessments which can span completely different storage types or focus on variants of a single technology. For example, a user can perform a parallel assessment of current and future technology performance outlooks by specifying different outlooks for costs and performance in each of the technology slots.
B7: Model Description
B8: Energy storage technologies in service of grid firming of renewable assets will compete with flexible power generators. Today’s grid achieves this function with use of flexible power generators such as natural gas combined cycle plants and combustion turbines. These generation plants can be assessed in StoreFAST to allow benchmarking between flexible power generation and energy storage. The model is pre-populated with sample energy storage and flexible power generators to illustrate how StoreFAST generates comparative assessments.
B9: The StoreFAST financial analysis methodology leverages the H2FAST framework, allowing for significant control over model inputs and generating a wide range of financial performance metrics, such as investor payback period, net present value, and first-year break-even sales price of electricity (LCOE). StoreFAST uses Generally Accepted Accounting Principles (GAAP) and provides full financial assessments (income statement, cash flow, and balance sheet) as well as simple graphical and numerical outputs. The model allows full customization of financing details such as taxation and capital structure. It further allows specification of resale value of any non-depreciable assets such as real-estate associated with some energy storage technologies (e.g. storage reservoirs, reusable geologic caverns). Annotation of key user inputs is provided when a column or row heading is selected. The StoreFAST model has been developed for compatibility with Excel for Windows computers. Full functionality for Mac isn't guaranteed, due to differences between Excel for Mac and Windows. Users need to enable macros for the model to function correctly. For more information, please see Hunter, Chad and Penev, Michael and Reznicek, Evan P. and Eichman, Joshua and Rustagi, Neha and Baldwin, Samuel F., Techno-Economic Analysis of Long-Duration Energy Storage and Flexible Power Generation Technologies to Support High Variable Renewable Energy Grids. (In Press.) Available at http://dx.doi.org/10.2139/ssrn.3720769.
B11: Model Color Code Legend:
B12: Basic user inputs
B13: Advanced user inputs
B14: Calculated values: DO NOT MODIFY
B15: Key results
B17: Users Startup Guide
B18: Tabs description • Technology Specifications: this tab lets users input technology parameters such as capital costs, operations & maintenance costs, feedstock use, and other operating parameters. • Sensitivity Parameters: here users can specify parameters which affect all energy storage technologies. For example, energy costs and storage duration rating. It also allows users to specify ranges for each parameter which are in turn used for built-in sensitivity analysis. • CF Definitions: displays the framework of annual system utilization in the form of capacity factors as derived by high renewables penetration grid models. • Interface: this is the default interface of the financial model H2FAST, which allows users access to financial parameters such as capital structure, incentives, taxation, etc. • Report tables: detailed financial reporting of currently selected technology in the Technology Specifications tab and under baseline conditions specified in the Sensitivity Parameters tab. • Overrides: Optional inputs which allow users to provide temporal profiles for select parameters found in the Interface tab. Any inputs for a parameter in this tab will override inputs of this parameter in the Interface tab.
B19: Model use walk-through • Step 1: In the Technology Specifications tab, populate desired technology specifications as per the pre-populated example inputs. Row and column descriptions are presented when header cells are selected. • Step 2: In the Sensitivity Parameters tab, modify any energy costs or hydrogen coproduction value. Uncertainty ranges for these parameters can also be specified here. Note: escalation rates for energy prices can be specified in the Interface sheet. • Step 3: Run baseline analysis from the Technology Specifications sheet by clicking the button in cell B20. This will update tornado sensitivity charts and LCOE vs. duration rating charts. • Step 4: Examine baseline results: In the Technology Specifications sheet, select a system to display in cell B2. This will load its results across the plots on the top of that sheet. The system financial details will also be loaded in the Interface and Report Tables sheets as well per the "Baseline" values in the Sensitivity Parameters tab. • Step 5: (Optional) - if the user desires to produce Monte-Carlo analysis, use the Sensitivity Parameters tab. Once all inputs are as desired, use the macro in cell C27 to update Monte Carlo runs. This is time consuming ~1h.
B21: Revision History (current version: 1.2)
B22: September 2019, update: - improved model robustness, which was causing issues with few rare cases - added a cost allocation table and chart in the interface tab (this table allows attribution of price to operating, financing, and co-product parameters)
B23: June 2017, Version 1.2 Highlights: - Added flexibility of analyzed commodity (e.g., miles travelled, hydrogen, others) - Added flexibility to modify feedstock and co-product names and units - Added ability to change capacity timeframe (e.g., per day, year, week) - Added ability to make individual installation entries for any model value - Enabled recording of individual installation financial performance - Added cost of goods sold graphic - Added a number of usability enhancements - Added numeric dollar contribution for relevant entries - Added more feedstocks, co-products, fixed operating costs - Modified risk analysis parameter specification to use ±% - Added annual override capability for key input parameters - Added user work sheet for customizing activities - Added capital cost break down capability for up to 10 subsystems
B24: September 2016, Version 1.1 Highlights: - Added risk analysis with triangular distribution for any input parameter (lowest, most likely, highest values) - Added quick visualization for any input or output stochastic distribution - Enabled reporting of 5th, 50th, and 95th percentile for each input or output parameter - Added ability to specify fixed hydrogen price or fixed internal rate of return (IRR) - Added profitability index (PI), a robust financial performance metric (unlike IRR, which sometimes does not yield a value) - Added consideration of byproducts such as grid service, waste heat, user-defined co-products (enabling combined heat hydrogen and power [CHHP] and other non-conventional system analysis) - Added per-kilogram ($/kg) revenue for modeling: Low Carbon Fuel Standard (LCFS), Renewable Identification Number (RIN) credits, others - Incorporated take-or-pay contract specifications - Added more feedstocks – allowing custom station modeling (e.g., half delivered, half produced hydrogen; H2A case implementation) - Added linear depreciation – enabling International Financial Reporting Standard (IFRS) analysis - Added consideration of non-depreciable assets (e.g., land) - Added salvage value and capital gains considerations (allowing land sale and equipment salvage considerations) - Expanded case count to 300 for larger portfolio analysis - Increased maximum project life to 100 years (allowing pipeline analysis)
B25: April 2015, Version 1.0 (initial release)
B27: Contact
B28: Author: Michael Penev Phone: 303-275-3880 Email: mike.penev@nrel.gov
B30: SOFTWARE USE AGREEMENT
B31: Access to H2FAST (“Software”) is provided by the National Renewable Energy Laboratory (“NREL”), which is operated by Alliance for Sustainable Energy, LLC (“ALLIANCE”), for the U.S. Department of Energy (“DOE”). Access to and use of this Software shall impose the following obligations on the user, and use of the Software constitutes user’s agreement to these terms. The Software is being provided, without any fee or cost, for internal, noncommercial purposes only and shall not be redistributed. Please contact the NREL Technology Transfer Office at technology.transfer@nrel.gov for information concerning obtaining a Software license.
B32: NREL is the developer of the original code, design and data of H2FAST Software. Users agree not to implement reverse engineering or back engineering for the purpose of reproducing anything based on the extracted information, including production of modifications or derivative works. The user agrees to credit DOE/NREL/ALLIANCE in any publication or public presentation that results from the use of this Software. The names DOE/NREL/ALLIANCE, however, may not be used in any advertising or publicity to endorse or promote any products or commercial entities unless specific written permission is obtained from DOE/NREL/ ALLIANCE. The user also understands that DOE/NREL/ALLIANCE is not obligated to provide the user with support, consulting, training or assistance of any kind with regard to the use of the Software or to provide the user with any updates, revisions or new versions of the Software.
B33: THE USER AGREES TO INDEMNIFY DOE/NREL/ALLIANCE AND THEIR SUBSIDIARIES, AFFILIATES, OFFICERS, AGENTS, AND EMPLOYEES AGAINST ANY CLAIM OR DEMAND, INCLUDING REASONABLE ATTORNEYS' FEES, RELATED TO THE USER’S USE OF THE SOFTWARE. THE SOFTWARE IS PROVIDED BY DOE/NREL/ALLIANCE "AS IS," AND ANY EXPRESS OR IMPLIED WARRANTIES, INCLUDING BUT NOT LIMITED TO THE IMPLIED WARRANTIES OF MERCHANTABILITY AND FITNESS FOR A PARTICULAR PURPOSE ARE DISCLAIMED. IN NO EVENT SHALL DOE/NREL/ALLIANCE BE LIABLE FOR ANY SPECIAL, INDIRECT OR CONSEQUENTIAL DAMAGES OR ANY DAMAGES WHATSOEVER, INCLUDING BUT NOT LIMITED TO CLAIMS ASSOCIATED WITH THE LOSS OF DATA OR PROFITS, THAT MAY RESULT FROM AN ACTION IN CONTRACT, NEGLIGENCE OR OTHER TORTIOUS CLAIM THAT ARISES OUT OF OR IN CONNECTION WITH THE ACCESS, USE OR PERFORMANCE OF THE SOFTWARE.
B34: Results generated by use of this Software are dependent on many variables, including the quality of the data entered by the user and any assumptions made by the user in relation to data inputs. Accordingly, DOE/NREL/ALLIANCE cannot guarantee any results generated by use of the Software, and the user is entirely responsible for the results and any reliance on the results. The user shall not claim that DOE/NREL/ALLIANCE authenticate or otherwise agree with the results generated by the Software.
A36: Ref# | B36: References list: main paper
A37: 1 | B37: Hunter, Chad and Penev, Michael and Reznicek, Evan P. and Eichman, Joshua and Rustagi, Neha and Baldwin, Samuel F., Techno-Economic Analysis of Long-Duration Energy Storage and Flexible Power Generation Technologies to Support High Variable Renewable Energy Grids. (In Press.) Available at http://dx.doi.org/10.2139/ssrn.3720769.
A38: =+A37+1 -> 2 | B38: Jiazi Zhang, Omar Jose Guerra Fernandez, Josh Eichman, and Matthew Pellow. Benefit Analysis of Long-Duration Energy Storage in Power Systems with High Renewable Energy Shares.Frontiers in Energy Research, 8:313, 2020.
A39: =+A38+1 -> 3 | B39: Ryan Wiser and Mark Bolinger. 2018 Wind Technologies Market Report. Technical report, U.S. Department of Energy, 2019.
A40: =+A39+1 -> 4 | B40: K Mongird, V Fotedar, V Viswanathan, V Koritarov, P Balducci, B Hadjerioua, and J Alam. EnergyStorage Technology and Cost Characterization Report. Technical report, 2019.
A41: 5 | B41: Abbas A. Akhil, Georgianne Huff, Aileen B. Currier, Benjamin C. Kaun, DanM. Rastler, Stella BingqingChen, Andrew L. Cotter, Dale T. Bradshaw, and William D. Gauntlett. DOE/EPRI Electricity Storage Handbook in Collaboration with NRECA. Technical report, Sandia National Laboratories, Albuquerque, NM. SAND2015-1002, 2015.
A42: 6 | B42: Black & Veatch. Cost and Performance Data for Power Generation Technologies. Technical report,Black & Veatch, Prepared for the National Renewable Energy Laboratory, 2012.
A43: 7 | B43: Y Huang, HS Chen, XJ Zhang, P Keatley, MJ Huang, I Vorushylo, YD Wang, and NJ Hewitt. Techno348economic modelling of large scale compressed air energy storage systems. Energy Procedia, 105:4034{4039, 2017.
A44: 8 | B44: Craig S. Turchi, Judith Vidal, and Matthew Bauer. Molten salt power towers operating at 600-650°C Salt selection and cost benefits. Solar Energy, 164:38{46, 2018.
A45: 9 | B45: Andrew Smallbone, Verena Julch, Robin Wardle, and Anthony Paul Roskilly. Levelised Cost of Stor363age for Pumped Heat Energy Storage in comparison with other energy storage technologies. Energy Conversion and Management, 152:221{228, 2017.
A46: 10 | B46: Mark Mehos, Craig Turchi, Judith Vidal, Michael Wagner, Zhiwen Ma, Clifford Ho, William Kolb, Charles Andraka, and Alan Kruizenga. Concentrating Solar Power Gen3 Demonstration Roadmap. Technical report, National Renewable Energy Laboratory, Golden, CO. NREL/TP-5500-67464, 2017.
A47: 11 | B47: Ming-Jia Li, Wei Zhao, Xi Chen, and Wen-Quan Tao. Economic analysis of a new class of vanadium redox-ow battery for medium-and large-scale energy storage in commercial applications with renewable energy. Applied Thermal Engineering, 114:802{814, 2017.
A48: 12 | B48: Energy Information Administration. Assumptions to the annual energy outlook 2020: Electricity market module. https://www.eia.gov/outlooks/aeo/assumptions/pdf/electricity.pdf, 2020.
A49: 13 | B49: Kris Bevill. GE powers turbines with ethanol in Brazil. Ethanol Producer Magazine, http://www.ethanolproducer.com/articles/7031/ge-powers-turbines-with-ethanol-in-brazil/, 2010.
A50: 14 | B50: United States Department of Agriculture. U.S. Bioenergy Statistics. https://www.ers.usda.gov/data-products/us-bioenergy-statistics/us-bioenergy-statistics/, 2020.
A51: 15 | B51: D. Humbird, R. Davis, L. Tao, C. Kinchin, D. Hsu, P. Aden, A.and Schoen, J. Lukas, B. Olthof, M. Worley, D. Sexton, and D. Dudgeon. Process Design and Economics for Biochemical Conversion of Lignocellulosic Biomass to Ethanol: Dilute-Acid Pretreatment and Enzymatic Hydrolysis of Corn Stover. Technical report, National Renewable Energy Lab, Golden, CO. NREL/TP-5100-47764, 2011.
A52: 16 | B52: Battelle Memorial Institute. Manufacturing Cost Analysis of 100 KW and 250 KW Fuel Cell Systems for Primary Power and Combined Heat and Power Applications. https://www.energy.gov/sites/prod/ files/2016/07/f33/fcto battelle mfg cost analysis pp chp fc systems.pdf, 2016.
A53: 17 | B53: Max Wei, Timothy Lipman, Ahmad Mayyas, Joshua Chien, Shuk Han Chan, David Gosselin, Hanna Breunig, Michael Stadler, Thomas McKone, Paul Beattie, Patricia Chong, Whitney G. Colella, and Brian D. James. A Total Cost of Ownership Model for Low Temperature PEM Fuel Cells in Combined Heat and Power and Backup Power Applications. Technical report, Lawrence Berkeley National Lab, Berkeley, CA. LBNL-6772E, 2014.
A54: 18 | B54: Brian D. James, Jennie M. Huya-Kouadio, Brian M. Murphy, Cassidy Houchins, and Daniel A. DeSantis. Mass Production Cost Estimation of Direct H2 PEM Fuel Cell Systems for Transportation Applications:2019 Update on Medium and Heavy-Duty Vehicles. Technical report, Strategic Analysis, Inc., 2019.
A55: 19 | B55: Jason Marcinkoski. DOE Advanced Truck Technologies: Technical Targets for Hydrogen-Fueled Long-Haul Tractor-Trailer Trucks. https://www.hydrogen.energy.gov/pdfs/19006 hydrogen class8 long haul truck targets.pdf, 2019.
A56: 20 | B56: E4tech. The fuel cell industry review. Technical report, E4tech, 2019.
A57: 21 | B57: Malte Schwoon. Learning by doing, learning spillovers and the diffusion of fuel cell vehicles. Simulation Modelling Practice and Theory, 16(9):1463{1476, 2008.
A58: 22 | B58: Eleonora Runi and Max Wei. Future costs of fuel cell electric vehicles in California using a learning rate approach. Energy, 150:329{341, 2018.
A59: 23 | B59: I. Staffell and R.J. Green. Estimating future prices for stationary fuel cells with empirically derived experience curves. International Journal of Hydrogen Energy, 34(14):5617{5628, 2009.
A60: 24 | B60: Hydrogen Council. Path to hydrogen competitiveness: A cost perspective. https://hydrogencouncil.com/wp-content/uploads/2020/01/Path-to-Hydrogen-Competitiveness Full-Study-1.pdf, 2020.
A61: 25 | B61: Hans Bohm, Andreas Zauner, Sebastian Goers, Robert Tichler, and Pieter Kroon. Innovative large-scale energy storage technologies and Power-to-Gas concepts after optimization: D7.5 Report on experience curves and economies of scale. Technical report, Store&Go, 2018.
A62: 26 | B62: Argonne National Laboratory. Hydrogen Delivery Scenario Analysis Model (HDSAM). https://hdsam.es.anl.gov/index.php?content=hdsam, 2019.
A63: 27 | B63: NREL and Strategic Analysis Inc. H2A 2020 Electrolysis Production Case Studies. https://www.nrel.gov/hydrogen/h2a-production-models.html, 2020.
A64: 28 | B64: Fraunhofer ISE. Current and future cost of photovoltaics. Technical report, Study on behalf of Agora Energiewende, 2015.
A65: 29 | B65: Ran Fu, David Feldman, Robert Margolis, Mike Woodhouse, and Kristen Ardani. U.S. Solar Photovoltaic System Cost Benchmark: Q1 2017. Technical report, National Renewable Energy Laboratory, Golden, CO. NREL/TP-6A20-68925, 2017.
A66: 30 | B66: R.K. Ahluwalia, D.D. Papadias, J-K Peng, and H.S. Roh. System Level Analysis of Hydrogen Storage Options. In U.S. Department of Energy 2019 Annual Merit Review and Peer Evaluation Meeting, 2019.
A67: 31 | B67: Brian D. James. Fuel Cell Systems Analysis. In 2019 DOE Hydrogen and Fuel Cells Annual Merit Review, 2019.
A68: 32 | B68: Leslie Eudy. Technology Acceleration: Fuel Cell Bus Evaluations. In U.S. Department of Energy 2019Annual Merit Review and Peer Evaluation Meeting, 2019.
A69: 33 | B69: Ryan Wiser and Mark Bolinger. 2018 Wind Technologies Market Report. Technical report, U.S. Department of Energy, 2019.
A70: 34 | B70: Grant, Timothy and Poe, Andrea and Valenstein, Jason and Guinan, Allison and Shih, Chung Yan and Lin, Shang Min. Quality Guidelines for Energy System Studies: Carbon Dioxide Transport and Storage Costs in NETL Studies. Technical report, National Energy Technology Laboratory. NETL-2019/2044,2019.
A71: 35 | B71: Timothy Grant, David Morgan, Jason Valenstein, Andrea Poe, Laura Demetrion, Chung Yan Shih, Allison Guinan, ShangMin Lin, and Derek Vikara. FE/NETL CO2 Saline Storage Cost Model: User's Manual. Technical report, National Energy Technology Laboratory, DOE/NETL-2018/1873, 2017.
A72: 36 | B72: David Morgan, Timothy Grant, James Simpson, Paul Myles, Andrew Poe, Jason Valenstein, Laura Demetrion, Allison Guinan, and Shang Min Lin. Fe/netl co2 transport cost model (2018): Descriptionand user's manual. Technical report, National Energy Technology Laboratory, DOE/NETL-2018/1877,2018.
A73: 37 | B73: Energy Information Administration. Assumptions to the Annual Energy Outlook 2019: Electricity Market Module. https://www.eia.gov/outlooks/aeo/assumptions/pdf/electricity.pdf, 2019.
A74: 38 | B74: ABB central inverters: PVS800 100 to 500 kW. ABB Solar Inverters, https://new.abb.com/docs/librariesprovider22/technical-documentation/pvs800-central-inverters-yer.pdf?sfvrsn=2, 2020.
A75: 39 | B75: U.S. Energy Information Administration. Annual Energy Outlook 2020: Electricity Generating Capacity. https://www.eia.gov/outlooks/aeo/data/browser/#/?id=9-AEO2020&cases=ref2020&sourcekey=0.AccessedJanuary2020, 2020.
A76: 40 | B76: Ling Tao, Dan Schell, Ryan Davis, Eric Tan, Rick Elander, and Adam Bratis. NREL 2012 Achievement of Ethanol Cost Targets: Biochemical Ethanol Fermentation via Dilute-Acid Pretreatment and Enzymatic Hydrolysis of Corn Stover. Technical report, National Renewable Energy Lab, Golden, CO.NREL/TP-5100-61563, 2014.
A77: 41 | B77: 2019 R&D State of Technology. Technical report, Bioenergy Technologies Office, 2019.
A78: 42 | B78: Baxter, R. 2020 Grid Energy Storage Cost and Performance Assessment, U.S. DOE. https://www.pnnl.gov/ESGC-cost-performance
A79: 43 | B79: U.S. DOE, Hydrogen and Fuel Cell Technologies Office Multi-Year Research, Development, and Demonstration Plan. 3.1 Hydrogen Production, June, 2015. https://www.energy.gov/sites/prod/files/2015/06/f23/fcto_myrdd_production.pdf
A80: 44 | B80: Chad Augustine and Nate Blair. Energy Storage Futures Study: Storage Technology Modeling Input Data Report. Technical report, National Renewable Energy Laboratory, Golden, CO., 2021
A81: 45 | B81: Oliver Schmidt, Sylvain Melchior, Adam Hawkes, and Iain Staffell. Projecting the Future Levelized Cost of Electricity Storage Technologies.Joule, 3(1):81–100, 2019.
A82: 46 | B82: Abbas A. Akhil, Georgianne Huff, Aileen B. Currier, Benjamin C. Kaun, Dan M. Rastler, Stella Bingqing Chen, Andrew L. Cotter, Dale T. Bradshaw, and William D. Gauntlett. DOE/EPRI Electricity Storage Handbook in Collaboration with NRECA. Technical report, Sandia National Laboratories, Albuquerque, NM. SAND2015-1002, 2015.
A83: 47 | B83: Kendall Mongird, Vilayanur Viswanathan, Jan Alam, Charlie Vartanian, Vincent Sprenkle, and Richard Baxter. 2020 Grid Energy Storage Technology Cost and Performance Assessment. Technical report, U.S. Depaartment of Energy, DOE/PA-0204, 2020.
A84: 48 | B84: Partha Pratim Mishra, Aadil Latif, Michael Emmanuel, Ying Shi, Killian McKenna, Kandler Smith, and Adarsh Nagarajan. Analysis of degradation in residential battery energy storage systems for rate-based use-cases.Applied Energy, 264:114632, 2020.
A85: 49 | B85: 2H 2020 Energy Storage Market Outlook. Bloomberg New Energy Finance (BNEF), 2020.
A86: 50 | B86: Electric Vehicle Outlook 2020. Bloomberg New Energy Finance (BNEF), 2020.

Sheet Technology Specifications
B4: Specify system to plot
B5: HDV-PEM|Salt
B7: =C11&"h "&B5&" LCOE " -> 120h HDV-PEM|Salt LCOE
B8: =+Interface!D11*1000 -> 331.3230466
B10: Global baseline values | D10: References
B11: Storage duration rating (h) | C11: 120 | D11: =+Description!A38 -> 2
B12: Electricity for energy storage ($/kWh) | C12: 0.02 | D12: =+Description!A39 -> 3
B13: Natural gas ($/MMBTU) | C13: 2.98 | D13: =+Description!A75 -> 39
B14: Ethanol ($/gal) | C14: 2.216701561 | D14: =Description!A50&", "&Description!A76&", "&Description!A77 -> 14, 40, 41
B15: CO₂ transportation and sequestration cost ($/m.tonne) | C15: 65 | D15: =+Description!A70&", "&Description!A71&", "&Description!A72 -> 34, 35, 36
B16: GHG emission shadow price ($/m.tonne) | C16: 0
D18: =Description!A37 -> 1
B22: Tech name | E22: HDV-PEM|Salt | F22: HDV-PEM|Pipes | G22: Stat-PEM|Salt | H22: H2-CC|Salt | I22: NG-CC | J22: NG-CC|CCS | K22: Eth-CC | L22: PHS | M22: A-CAES|Salt | N22: D-CAES|Salt | O22: VRB | P22: P-TES | Q22: Li-Ion
B24: Capital costs
B25: Charging ($/kW-AC-in) | E25: 1673 | F25: 1673 | G25: 1673 | H25: 1673 | I25: 0 | J25: 0 | K25: 0 | L25: 0 | M25: 507 | N25: 507 | O25: 0 | P25: 0 | Q25: 0 | R25: 0 | S25: 0
B26: Charging base capacity (kW) | E26: 1 | F26: 1 | G26: 1 | H26: 1 | I26: 0 | J26: 0 | K26: 0 | L26: 0 | M26: 1 | N26: 1 | O26: 0 | P26: 0 | Q26: 0 | R26: 0 | S26: 0
B27: Charging scaling factor | E27: 1 | F27: 1 | G27: 1 | H27: 1 | I27: 0 | J27: 0 | K27: 0 | L27: 0 | M27: 1 | N27: 1 | O27: 0 | P27: 0 | Q27: 0 | R27: 0 | S27: 0
B28: Effective storage ($/kWh-AC-out) | E28: 1.958047545 | F28: 29 | G28: 1.958047545 | H28: 1.89 | I28: 0 | J28: 0 | K28: 0.23 | L28: 103.1 | M28: 50.09 | N28: 17.5 | O28: 196 | P28: 37.11 | Q28: 320 | R28: 0 | S28: 0
B29: Storage base capacity (kWh) | E29: 7050314.952 | F29: 1 | G29: 7050315 | H29: 7050315 | I29: 0 | J29: 0 | K29: 1 | L29: 800000 | M29: 1 | N29: 1 | O29: 1 | P29: 1 | Q29: 1 | R29: 0 | S29: 0
B30: Storage scaling factor | E30: 0.48 | F30: 1 | G30: 0.48 | H30: 0.48 | I30: 0 | J30: 0 | K30: 1 | L30: 0.92 | M30: 1 | N30: 1 | O30: 1 | P30: 1 | Q30: 1 | R30: 0 | S30: 0
B31: Storage cost recovery at end of life (%) | E31: 1 | F31: 0 | G31: 1 | H31: 1 | I31: 0 | J31: 0 | K31: 0 | L31: 1 | M31: 0.35 | N31: 1 | O31: 0 | P31: 0 | Q31: 0 | R31: 0 | S31: 0
B32: Discharging ($/kW-AC-out) | E32: 464 | F32: 464 | G32: 1387 | H32: 1068 | I32: 1068 | J32: 2543 | K32: 1068 | L32: 1612 | M32: 759 | N32: 759 | O32: 1384 | P32: 1670 | Q32: 246 | R32: 0 | S32: 0
B33: Discharging base capacity (kW) | E33: 1 | F33: 1 | G33: 1 | H33: 1 | I33: 1 | J33: 1 | K33: 1 | L33: 1 | M33: 1 | N33: 1 | O33: 1 | P33: 1 | Q33: 1 | R33: 0 | S33: 0
B34: Discharging scaling factor | E34: 1 | F34: 1 | G34: 1 | H34: 1 | I34: 1 | J34: 1 | K34: 1 | L34: 1 | M34: 1 | N34: 1 | O34: 1 | P34: 1 | Q34: 1 | R34: 0 | S34: 0
B36: Operations & maintenance (O&M) costs
B37: Charging O&M
B38: Fixed
B39: O&M (labor, maintenance items) ($/kW_AC_in_y) | E39: 12.8 | F39: 12.8 | G39: 12.8 | H39: 12.8 | I39: 0 | J39: 0 | K39: 0 | L39: 0 | M39: 13.54 | N39: 13.54 | O39: 0 | P39: 0 | Q39: 0 | R39: 0 | S39: 0
B40: Property tax, insurance, licensing, permitting (% of cap cost) | E40: 0.015 | F40: 0.015 | G40: 0.015 | H40: 0.015 | I40: 0 | J40: 0 | K40: 0 | L40: 0 | M40: 0.015 | N40: 0.015 | O40: 0 | P40: 0 | Q40: 0 | R40: 0 | S40: 0
B41: Variable
B42: Other ($/kWh-AC-in) | E42: 0.0013 | F42: 0.0013 | G42: 0.0013 | H42: 0.0013 | I42: 0 | J42: 0 | K42: 0 | L42: 0 | M42: 0 | N42: 0 | O42: 0 | P42: 0 | Q42: 0 | R42: 0 | S42: 0
B43: Storage O&M
B44: Fixed
B45: Maintenance, property tax, insurance, licensing, permitting (% of cap cost) | E45: 0.015 | F45: 0.015 | G45: 0.015 | H45: 0.015 | I45: 0 | J45: 0.015 | K45: 0.015 | L45: 0.015 | M45: 0.015 | N45: 0.015 | O45: 0.015 | P45: 0.015 | Q45: 0.0424 | R45: 0 | S45: 0
B46: Discharging O&M
B47: Fixed
B48: O&M (labor, maintenance items) ($/kW_AC_out_y) | E48: 12.8 | F48: 12.8 | G48: 12.8 | H48: 13.9 | I48: 13.9 | J48: 27.2 | K48: 13.9 | L48: 12.5 | M48: 13.54 | N48: 13.54 | O48: 8.26 | P48: 13.6 | Q48: 8.3 | R48: 0 | S48: 0
B49: Property tax, insurance, licensing, permitting (% of cap cost) | E49: 0.015 | F49: 0.015 | G49: 0.015 | H49: 0.015 | I49: 0.015 | J49: 0.015 | K49: 0.015 | L49: 0.015 | M49: 0.015 | N49: 0.015 | O49: 0.015 | P49: 0.015 | Q49: 0.015 | R49: 0 | S49: 0
B50: Variable
B51: Other ($/kWh_AC_out) | E51: 0.0028 | F51: 0.0028 | G51: 0.0013 | H51: 0.00251 | I51: 0.00251 | J51: 0.00576 | K51: 0.00251 | L51: 0.0003 | M51: 0.0033 | N51: 0.0033 | O51: 0.026890866 | P51: 0.0033 | Q51: 0.0031 | R51: 0 | S51: 0
B53: System operations
B54: Primary energy use & streams
B55: Electricity use for power generation (kWh_AC_in/kWh_AC_out) | E55: 2.860644268 | F55: 2.860644268 | G55: 2.860644268 | H55: 2.76 | I55: 0 | J55: 0 | K55: 0 | L55: 1.234567901 | M55: 1.5385 | N55: 0.7 | O55: 1.333333333 | P55: 1.923076923 | Q55: 1.162790698 | R55: 0 | S55: 0
B56: Natural gas use for power generation (MMBTU/kWh_AC_out) | E56: 0 | F56: 0 | G56: 0 | H56: 0 | I56: 0.006431 | J56: 0.007124 | K56: 0 | L56: 0 | M56: 0 | N56: 0.00376 | O56: 0 | P56: 0 | Q56: 0 | R56: 0 | S56: 0
B57: Ethanol use for power generation (gal/kWh_AC_out) | E57: 0 | F57: 0 | G57: 0 | H57: 0 | I57: 0 | J57: 0 | K57: 0.07608 | L57: 0 | M57: 0 | N57: 0 | O57: 0 | P57: 0 | Q57: 0 | R57: 0 | S57: 0
B58: CO₂ to for sequestration (m.tonnes/kWh_AC_out) | E58: 0 | F58: 0 | G58: 0 | H58: 0 | I58: 0 | J58: 0.000374 | K58: 0 | L58: 0 | M58: 0 | N58: 0 | O58: 0 | P58: 0 | Q58: 0 | R58: 0 | S58: 0
B59: Net GHG to for emissions shadow pricing (m.tonnes/kWh_AC_out) | I59: 0.0004496 | J59: 4.155555556e-05
B60: Standing losses & auxiliaries
B61: Auxiliary power (kW/kW_power_generation) | E61: 0 | F61: 0 | G61: 0 | H61: 0 | I61: 0 | J61: 0 | K61: 0 | L61: 0 | M61: 0 | N61: 0 | O61: 0.0675 | P61: 0 | Q61: 0 | R61: 0 | S61: 0
B62: Adjustment for storage daily losses (kW/kWh_stored_energy) | E62: 0 | F62: 4.166666667e-05 | G62: 0 | H62: 0 | I62: 0 | J62: 0 | K62: 0 | L62: 0 | M62: 0.0003822070797 | N62: 0 | O62: 0 | P62: 0.000625 | Q62: 0 | R62: 0 | S62: 0
B63: Others
B64: Is sytem reversible? (1=yes,0=no) | E64: 0 | F64: 0 | G64: 0 | H64: 0 | I64: 0 | J64: 0 | K64: 0 | L64: 1 | M64: 0 | N64: 0 | O64: 1 | P64: 0 | Q64: 1 | R64: 0 | S64: 0
B65: Energy storage or flexible generator (1=e.store, 2=flex.gen.) | E65: 1 | F65: 1 | G65: 1 | H65: 1 | I65: 2 | J65: 2 | K65: 2 | L65: 1 | M65: 1 | N65: 1 | O65: 1 | P65: 1 | Q65: 1 | R65: 0 | S65: 0
B66: System life (years) | E66: 30 | F66: 30 | G66: 30 | H66: 30 | I66: 30 | J66: 30 | K66: 30 | L66: 30 | M66: 30 | N66: 30 | O66: 30 | P66: 30 | Q66: 30 | R66: 0 | S66: 0
B67: System power output rating (kW-AC) | E67: 100000 | F67: 100000 | G67: 100000 | H67: 100000 | I67: 100000 | J67: 100000 | K67: 100000 | L67: 100000 | M67: 100000 | N67: 100000 | O67: 100000 | P67: 100000 | Q67: 100000 | R67: 0 | S67: 0
B69: H₂ coproduction parameters
B70: Electricity use for H₂ co-production (kWh_AC_in/kg_H₂_out) | E70: 56.35549305 | F70: 56.35549305 | G70: 56.35549305 | H70: 56.35549305 | I70: 0 | J70: 0 | K70: 0 | L70: 0 | M70: 0 | N70: 0 | O70: 0 | P70: 0 | Q70: 0 | R70: 0 | S70: 0
B71: Allow H2 co-production? (1=yes, 0=no) | E71: 0 | F71: 0 | G71: 0 | H71: 0 | I71: 0 | J71: 0 | K71: 0 | L71: 0 | M71: 0 | N71: 0 | O71: 0 | P71: 0 | Q71: 0 | R71: 0 | S71: 0
B72: % system idle time allowance for co-production | E72: 0.05 | F72: 0.05 | G72: 0.05 | H72: 0.05 | I72: 0 | J72: 0 | K72: 0 | L72: 0 | M72: 0 | N72: 0 | O72: 0 | P72: 0 | Q72: 0 | R72: 0 | S72: 0
B73: Feedstock & product valuation | D73: References
B74: Electricity for H₂ co-production scenarios ($/kWh) | C74: 0.035 | D74: =+Description!A38&", "&Description!A39 -> 2, 3
B75: Hydrogen co-production value ($/kg) | C75: 2.5 | D75: =+Description!A63&", "&Description!A79 -> 27, 43
B77: Technology descriptions
E78: Hydrogen produced via proton exchange membrane (PEM) electrolyzer is compressed into a salt dome cavern for storage. Power is subsequently generated with a PEM fuel cell designed for heavy duty vehicles | F78: Hydrogen produced via proton exchange membrane (PEM) electrolyzer is compressed into "tanks" in the form of buried pipes with end caps. Power is subsequently generated with a PEM fuel cell designed for heavy duty vehicles | G78: Hydrogen produced via proton exchange membrane (PEM) electrolyzer is compressed into a salt dome cavern for storage. Power is subsequently generated with a PEM fuel cell designed for stationary power applications. | H78: Hydrogen produced via proton exchange membrane (PEM) electrolyzer is compressed into a salt dome cavern for storage. Power is subsequently generated with a combined-cycle plant designed to burn 100% hydrogen. | I78: Natural gas based combined cycle plant. | J78: Natural gas based combined cycle plant with carbon capture and sequestration. | K78: Combined cycle plant using ethanol for combustion instead of natural gas. | L78: Closed loop pumped hydro storage using upper and lower water reservoirs. | M78: Adiabatic compressed air energy storage in which air is compressed into a salt dome cavern. Heat of compression is stored in thermal energy storage. Power is generated by reheating air with stored thermal energy and spinning a turbine to drive a synchronous generator. | N78: Diabatic compressed air energy storage in which air is compressed into a salt dome cavern. Power is generated by using compressed air in a natural gas burner before feeding into a turbine which drives a synchronous generator. | O78: Vanadium flow redox battery. | P78: Pumped thermal energy storage. | Q78: LIthium ion battery energy storage
B80: ="Intercept of system LCOE with specified "&B5&" system (h)" -> Intercept of system LCOE with specified HDV-PEM|Salt system (h) | E80: =+'Time Duration Visuals'!C212 ->  | F80: =+'Time Duration Visuals'!D212 -> 0.6610967739 | G80: =+'Time Duration Visuals'!E212 ->  | H80: =+'Time Duration Visuals'!F212 ->  | I80: =+'Time Duration Visuals'!G212 ->  | J80: =+'Time Duration Visuals'!H212 ->  | K80: =+'Time Duration Visuals'!I212 ->  | L80: =+'Time Duration Visuals'!J212 -> 81.09608622 | M80: =+'Time Duration Visuals'!K212 -> 88.16492123 | N80: =+'Time Duration Visuals'!L212 ->  | O80: =+'Time Duration Visuals'!M212 -> 31.38548835 | P80: =+'Time Duration Visuals'!N212 -> 71.1086414 | Q80: =+'Time Duration Visuals'!O212 -> 26.27280957 | R80: =+'Time Duration Visuals'!P212 ->  | S80: =+'Time Duration Visuals'!Q212 -> 
B81: ="Technology LCOE at baseline "&C11&"h duration rating ($/MWh)" -> Technology LCOE at baseline 120h duration rating ($/MWh) | E81: =+'Stat Analysis'!$AI$22*1000*(E32>0) -> 331.3230466 | F81: =+'Stat Analysis'!$AI$51*1000*(F32>0) -> 642.2153282 | G81: =+'Stat Analysis'!$AI$80*1000*(G32>0) -> 417.6129276 | H81: =+'Stat Analysis'!$AI$109*1000*(H32>0) -> 373.5994296 | I81: =+'Stat Analysis'!$AI$138*1000*(I32>0) -> 68.98526471 | J81: =+'Stat Analysis'!$AI$167*1000*(J32>0) -> 253.4050314 | K81: =+'Stat Analysis'!$AI$196*1000*(K32>0) -> 559.656358 | L81: =+'Stat Analysis'!$AI$225*1000*(L32>0) -> 436.7208029 | M81: =+'Stat Analysis'!$AI$254*1000*(M32>0) -> 407.9194307 | N81: =+'Stat Analysis'!$AI$283*1000*(N32>0) -> 248.491558 | O81: =+'Stat Analysis'!$AI$312*1000*(O32>0) -> 915.0586268 | P81: =+'Stat Analysis'!$AI$341*1000*(P32>0) -> 443.1555708 | Q81: =+'Stat Analysis'!$AI$370*1000*(Q32>0) -> 1336.090036 | R81: =+'Stat Analysis'!$AI$399*1000*(R32>0) -> 0 | S81: =+'Stat Analysis'!$AI$428*1000*(S32>0) -> 0
B83: References | E83: =+Description!A54&", "&Description!A55&", "&Description!A60&", "&Description!A62&", "&Description!A61&", "&Description!A63&", "&Description!A64&", "&Description!A65&", "&Description!A66&", "&Description!A53&", "&Description!A41&", "&Description!A67&", "&Description!A68&", "&Description!A74 -> 18, 19, 24, 26, 25, 27, 28, 29, 30, 17, 5, 31, 32, 38 | F83: =+Description!A54&", "&Description!A55&", "&Description!A60&", "&Description!A62&", "&Description!A61&", "&Description!A63&", "&Description!A64&", "&Description!A65&", "&Description!A66&", "&Description!A53&", "&Description!A41&", "&Description!A67&", "&Description!A68&", "&Description!A74 -> 18, 19, 24, 26, 25, 27, 28, 29, 30, 17, 5, 31, 32, 38 | G83: =+Description!A52&", "&Description!A53&", "&Description!A60&", "&Description!A62&", "&Description!A61&", "&Description!A63&", "&Description!A64&", "&Description!A65&", "&Description!A66&", "&Description!A41&", "&Description!A55&", "&Description!A74 -> 16, 17, 24, 26, 25, 27, 28, 29, 30, 5, 19, 38 | H83: =Description!A48&", "&Description!A66&", "&Description!A60&", "&Description!A61&", "&Description!A62&", "&Description!A63&", "&Description!A53&", "&Description!A41 -> 12, 30, 24, 25, 26, 27, 17, 5 | I83: =Description!A48 -> 12 | J83: =Description!A48&", "&Description!A70&", "&Description!A71&", "&Description!A72 -> 12, 34, 35, 36 | K83: =+Description!A48&", "&Description!A51&", "&Description!A73&", "&Description!A49 -> 12, 15, 37, 13 | L83: =+Description!A41 -> 5 | M83: =Description!A40&", "&Description!A42&", "&Description!A43&", "&Description!A41&", "&Description!A44&", "&Description!A45&", "&Description!A46 -> 4, 6, 7, 5, 8, 9, 10 | N83: =Description!A40&", "&Description!A42&", "&Description!A43&", "&Description!A41 -> 4, 6, 7, 5 | O83: =+Description!A47&", "&Description!A41 -> 11, 5 | P83: =+Description!A45&", "&Description!A41 -> 9, 5 | Q83: =+Description!A80&", "&Description!A81&", "&Description!A82&", "&Description!A83&", "&Description!A84&", "&Description!A85&", "&Description!A86 -> 44, 45, 46, 47, 48, 49, 50

Sheet Stat Analysis (hidden)
Y5: Capacity factor calculations | AO5: System Sizing | AQ5: Augment RTE with MC% here | AS5: Cap costs | AT5: Storage cost MC%
B6: Case# | C6: Storage duration rating (h) | D6: Electricity for energy storage scenarios ($/kWh) | E6: Electricity for co-production scenarios ($/kWh) | F6: Natural gas ($/mmBTU) | G6: Ethanol ($/gal) | H6: Hydrogen co-production value ($/kg) | I6: CCS ($/tonne) | J6: ShadolPrice CCS ($/tonne) | K6: Power capital ±% | L6: Energy capital ±% | M6: Recharge capacity factor ±% | N6: Power generation capacity factor ±% | O6: Relative efficiency ±% | P6: System life ± years | Q6: Sys# | R6: Sys name | S6: Electricity cost ($/kWh) | T6: Use of electricity for energy storage scenarios (kWh/kWh) | U6: Use of natural gas (mmBTU/kWh) | V6: Use of ethanol (gal/kWh) | W6: Generation of sequestered CO₂ (tonne/kWh) | X6: Generation of CO₂ shadow (tonne/kWh) | Y6: Varo OpEx for CF of generator calculations $/kWh | Z6: CF for generators | AA6: Energy storage system RTE | AB6: Power generation CF for ESS | AC6: Recharging CF for ESS | AD6: Co-production? | AE6: Model used Charging CF | AF6: Model used power generation CF | AG6: Modeled co-production CF | AH6: Reversible system? | AI6: Power production (h/y) | AJ6: Charging (h/y) | AK6: Co-production (h/y) | AL6: Idle (h/y) | AM6: Production electricity (kWh/kg) | AN6: Discharging (kW) | AO6: Storage (kWh-AC) | AP6: Charging (kW) | AQ6: Aux load (kW/kW-AC-out) | AR6: Charging $ | AS6: Storage $ | AT6: Storage depreciable $ | AU6: Storage non-depreciable NOMINAL$ | AV6: Discharging $ | AW6: System Life | AX6: Co-production kg/y | AY6: Co-production kg/kWh | AZ6: Electricity use (kWh/y) | BA6: Power generated per year (kWh/y) | BB6: Electricity use (kWh-AC-in/kWh-AC-out) | BC6: Charging O&M $/y | BD6: Storage O&M $/y | BE6: Discharging O&M $/y
B7: 0 | C7: =INDEX(C22:C20041,IF(CurrentRun>0,$B$7,($Q7-1)*29+1),1) -> 120 | D7: =INDEX(D22:D20041,IF(CurrentRun>0,$B$7,($Q7-1)*29+1),1) -> 0.02 | E7: =INDEX(E22:E20041,IF(CurrentRun>0,$B$7,($Q7-1)*29+1),1) -> 0.035 | F7: =INDEX(F22:F20041,IF(CurrentRun>0,$B$7,($Q7-1)*29+1),1) -> 2.98 | G7: =INDEX(G22:G20041,IF(CurrentRun>0,$B$7,($Q7-1)*29+1),1) -> 2.216701561 | H7: =INDEX(H22:H20041,IF(CurrentRun>0,$B$7,($Q7-1)*29+1),1) -> 2.5 | I7: =INDEX(I22:I20041,IF(CurrentRun>0,$B$7,($Q7-1)*29+1),1) -> 65 | J7: =INDEX(J22:J20041,IF(CurrentRun>0,$B$7,($Q7-1)*29+1),1) -> 0 | K7: =INDEX(K22:K20041,IF(CurrentRun>0,$B$7,($Q7-1)*29+1),1) -> 0 | L7: =INDEX(L22:L20041,IF(CurrentRun>0,$B$7,($Q7-1)*29+1),1) -> 0 | M7: =INDEX(M22:M20041,IF(CurrentRun>0,$B$7,($Q7-1)*29+1),1) -> 0 | N7: =INDEX(N22:N20041,IF(CurrentRun>0,$B$7,($Q7-1)*29+1),1) -> 0 | O7: =INDEX(O22:O20041,IF(CurrentRun>0,$B$7,($Q7-1)*29+1),1) -> 0 | P7: =INDEX(P22:P20041,IF(CurrentRun>0,$B$7,($Q7-1)*29+1),1) -> 0 | Q7: =IF(CurrentRun>0,INDEX(Q22:Q20041,$B$7,1),'Time Duration Visuals'!$B$2) -> 1 | R7: =+INDEX('Technology Specifications'!$E$22:$S$22,1,$Q$7) -> HDV-PEM|Salt | S7: =IF(INDEX('Technology Specifications'!$E$71:$S$71,1,$Q$7), E7, D7) -> 0.02 | T7: =+INDEX('Technology Specifications'!$E$55:$S$55,1,$Q$7) -> 2.860644268 | U7: =+INDEX('Technology Specifications'!$E$56:$S$56,1,$Q$7) -> 0 | V7: =+INDEX('Technology Specifications'!$E$57:$S$57,1,$Q$7) -> 0 | W7: =+INDEX('Technology Specifications'!$E$58:$S$58,1,$Q$7) -> 0 | X7: =+INDEX('Technology Specifications'!$E$59:$S$59,1,$Q$7) -> 0 | Y7: =+INDEX('Technology Specifications'!$E$51:$S$51,1,$Q$7) +INDEX('Technology Specifications'!$E$55:$S$55,1,$Q$7)*S7+N("Electricity") +INDEX('Technology Specifications'!$E$56:$S$56,1,$Q$7)*F7+N("Natural gas") +INDEX('Technology Specifications'!$E$57:$S$57,1,$Q$7)*G7+N("Ethanol") +INDEX('Technology Specifications'!$E$58:$S$58,1,$Q$7)*I7*0+N("CCS") +INDEX('Technology Specifications'!$E$59:$S$59,1,$Q$7)*J7*0+N("Shadow") -> 0.06001288535 | Z7: =MAX('CF Definitions'!$C$14+'CF Definitions'!$C$15*Y7,'CF Definitions'!$C$16) -> 0.02828701245 | AA7: =1/(T7+U7*1000000/3412.142) -> 0.3495716022 | AB7: ='CF Definitions'!$C$9 +'CF Definitions'!$C$10*$AA$7 +'CF Definitions'!$C$11*$AA$7^2 +'CF Definitions'!$C$12*$AA$7^3 -> 0.0895373706 | AC7: ='CF Definitions'!$D$9 +'CF Definitions'!$D$10*$AA$7 +'CF Definitions'!$D$11*$AA$7^2 +'CF Definitions'!$D$12*$AA$7^3 -> 0.2433469791 | AD7: =+INDEX('Technology Specifications'!$E$71:$S$71,1,$Q$7) -> 0 | AE7: =_xlfn.SWITCH(INDEX('Technology Specifications'!$E$65:$S$65,1,$Q$7), 1,$AC$7, 2,0)*(1+M7) -> 0.2433469791 | AF7: =_xlfn.SWITCH(INDEX('Technology Specifications'!$E$65:$S$65,1,$Q$7), 1,$AB$7, 2,$Z$7)*(1+N7) -> 0.0895373706 | AG7: =IF(AD7,1-AE7-AF7-INDEX('Technology Specifications'!$E$72:$S$72,1,$Q$7),0) -> 0 | AH7: =+INDEX('Technology Specifications'!$E$64:$S$64,1,$Q$7) -> 0 | AI7: =+AF7*8760 -> 784.3473665 | AJ7: =AE7*8760 -> 2131.719537 | AK7: =AG7*8760 -> 0 | AL7: =8760-AI7-AJ7-AK7 -> 5843.933096 | AM7: =+INDEX('Technology Specifications'!$E$70:$S$70,1,$Q$7) -> 56.35549305 | AN7: =+INDEX('Technology Specifications'!$E$67:$S$67,1,$Q$7) -> 100000 | AO7: =+AN7*C7*(INDEX('Technology Specifications'!$E$65:$S$65,1,$Q$7)=1)*0 +AN7*C7 -> 12000000 | AP7: =IFERROR(AN7*T7/AE7*AF7,0)/(1+O7) -> 105254.878 | AQ7: =INDEX('Technology Specifications'!$E$61:$S$61,1,$Q$7) +INDEX('Technology Specifications'!$E$62:$S$62,1,$Q$7)*AO7/AN7 -> 0 | AR7: =IFERROR( INDEX('Technology Specifications'!$E$26:$S$26,1,$Q$7)*INDEX('Technology Specifications'!$E$25:$S$25,1,$Q$7) *(AP7/INDEX('Technology Specifications'!$E$26:$S$26,1,$Q$7))^INDEX('Technology Specifications'!$E$27:$S$27,1,$Q$7),0) -> 176091410.9 | AS7: =IFERROR( INDEX('Technology Specifications'!$E$29:$S$29,1,$Q$7)*INDEX('Technology Specifications'!$E$28:$S$28,1,$Q$7) *(AO7/INDEX('Technology Specifications'!$E$29:$S$29,1,$Q$7))^INDEX('Technology Specifications'!$E$30:$S$30,1,$Q$7),0)*(1+L7) -> 17819629.11 | AT7: =(1-INDEX('Technology Specifications'!$E$31:$S$31,1,$Q$7))*AS7 -> 0 | AU7: =INDEX('Technology Specifications'!$E$31:$S$31,1,$Q$7)*AS7 -> 17819629.11 | AV7: =IFERROR( INDEX('Technology Specifications'!$E$33:$S$33,1,$Q$7)*INDEX('Technology Specifications'!$E$32:$S$32,1,$Q$7) *(AN7/INDEX('Technology Specifications'!$E$33:$S$33,1,$Q$7))^INDEX('Technology Specifications'!$E$34:$S$34,1,$Q$7),0)*(1+K7) -> 46400000 | AW7: =INDEX('Technology Specifications'!$E$66:$S$66,1,$Q$7)+P7 -> 30 | AX7: =+AK7*AP7/56.3 -> 0 | AY7: =+AX7/(AN7*8760*AF7) -> 0 | AZ7: =8760*AP7*(AE7+AG7) +(INDEX('Technology Specifications'!$E$61:$S$61,1,$Q$7)*AN7)*8760 +(INDEX('Technology Specifications'!$E$62:$S$62,1,$Q$7)*AO7)*8760 -> 224373879.8 | BA7: =8760*AF7*AN7 -> 78434736.65 | BB7: =+AZ7/(AN7*8760*AF7) -> 2.860644268 | BC7: =INDEX('Technology Specifications'!$E$39:$S$39,1,$Q$7)*AP7 +AR7*INDEX('Technology Specifications'!$E$40:$S$40,1,$Q$7) +AZ7*INDEX('Technology Specifications'!$E$42:$S$42,1,$Q$7) -> 4280319.645 | BD7: =+AS7*INDEX('Technology Specifications'!$E$45:$S$45,1,$Q$7) -> 267294.4367 | BE7: =INDEX('Technology Specifications'!$E$48:$S$48,1,$Q$7)*AN7 +AV7*INDEX('Technology Specifications'!$E$49:$S$49,1,$Q$7) +BA7*INDEX('Technology Specifications'!$E$51:$S$51,1,$Q$7) -> 2195617.263
B10: Fresh rand | C10: =+RAND() -> 0.1096868102 | D10: =+RAND() -> 0.4643821149 | E10: 0.2825718196 | F10: 0.5623930658 | G10: 0.7611347471 | H10: 0.9881993985 | I10: 0.2012429544 | J10: 0.5091059211 | K10: 0.9281553862 | L10: 0.7222274885 | M10: 0.6494054051 | N10: 0.585366462 | O10: 0.1397263191 | P10: 0.1588832249
B11: Low | C11: =+'Sensitivity Parameters'!C5 -> 72 | D11: =+'Sensitivity Parameters'!C8 -> 0.01 | E11: =+'Sensitivity Parameters'!C15 -> 0.025 | F11: =+'Sensitivity Parameters'!C9 -> 2.383 | G11: =+'Sensitivity Parameters'!C10 -> 1.175833333 | H11: =+'Sensitivity Parameters'!C16 -> 1.74 | I11: =+'Sensitivity Parameters'!C11 -> 27 | J11: =+'Sensitivity Parameters'!C12 -> 0 | K11: =+'Sensitivity Parameters'!C19 -> -0.1 | L11: =+'Sensitivity Parameters'!C20 -> -0.1 | M11: =+'Sensitivity Parameters'!C23 -> -0.05 | N11: =+'Sensitivity Parameters'!C24 -> -0.05 | O11: =+'Sensitivity Parameters'!C25 -> -0.1 | P11: =+'Sensitivity Parameters'!C26 -> -5
B12: Mid | C12: =+'Sensitivity Parameters'!D5 -> 120 | D12: =+'Sensitivity Parameters'!D8 -> 0.02 | E12: =+'Sensitivity Parameters'!D15 -> 0.035 | F12: =+'Sensitivity Parameters'!D9 -> 2.98 | G12: =+'Sensitivity Parameters'!D10 -> 2.216701561 | H12: =+'Sensitivity Parameters'!D16 -> 2.5 | I12: =+'Sensitivity Parameters'!D11 -> 65 | J12: =+'Sensitivity Parameters'!D12 -> 0 | K12: =+'Sensitivity Parameters'!D19 -> 0 | L12: =+'Sensitivity Parameters'!D20 -> 0 | M12: =+'Sensitivity Parameters'!D23 -> 0 | N12: =+'Sensitivity Parameters'!D24 -> 0 | O12: =+'Sensitivity Parameters'!D25 -> 0 | P12: =+'Sensitivity Parameters'!D26 -> 0
B13: Max | C13: =+'Sensitivity Parameters'!E5 -> 168 | D13: =+'Sensitivity Parameters'!E8 -> 0.03 | E13: =+'Sensitivity Parameters'!E15 -> 0.045 | F13: =+'Sensitivity Parameters'!E9 -> 3.505 | G13: =+'Sensitivity Parameters'!E10 -> 2.660833333 | H13: =+'Sensitivity Parameters'!E16 -> 3 | I13: =+'Sensitivity Parameters'!E11 -> 125 | J13: =+'Sensitivity Parameters'!E12 -> 100 | K13: =+'Sensitivity Parameters'!E19 -> 0.1 | L13: =+'Sensitivity Parameters'!E20 -> 0.1 | M13: =+'Sensitivity Parameters'!E23 -> 0.05 | N13: =+'Sensitivity Parameters'!E24 -> 0.05 | O13: =+'Sensitivity Parameters'!E25 -> 0.1 | P13: =+'Sensitivity Parameters'!E26 -> 5
B14: Rand line | C14: =IF((C13<>C11),IF(C10<=(C12-C11)/(C13-C11),C11+SQRT(C10*(C13-C11)*(C12-C11)),C13-SQRT((1-C10)*(C13-C11)*(-C12+C13))),C12) -> 94.48192211 | D14: =IF((D13<>D11),IF(D10<=(D12-D11)/(D13-D11),D11+SQRT(D10*(D13-D11)*(D12-D11)),D13-SQRT((1-D10)*(D13-D11)*(-D12+D13))),D12) -> 0.01963724146 | E14: 0.0325176036 | F14: 2.997287124 | G14: 2.263920046 | H14: 2.913777155 | I14: 54.37569656 | J14: =IF((J13<>J11),IF(J10<=(J12-J11)/(J13-J11),J11+SQRT(J10*(J13-J11)*(J12-J11)),J13-SQRT((1-J10)*(J13-J11)*(-J12+J13))),J12) -> 29.93616633 | K14: 0.06209363805 | L14: 0.0254651073 | M14: 0.008131479913 | N14: 0.004467948759 | O14: -0.04713671992 | P14: -2.18146115
B15: N | C15: 14
B16: Min | C16: 1
B17: Max | C17: =+'Sensitivity Parameters'!E5 -> 168
B18: a | C18: =(C17/C16)^(1/C15) -> 1.441951533
B19: NTech | C19: =+COUNTIF('Technology Specifications'!E22:S22,"*") -> 13
B20: Sensitivity analysis scenarios | R20: Storage duration rating (h) | S20: Electricity for energy storage scenarios ($/kWh) | T20: Electricity for co-production scenarios ($/kWh) | U20: Natural gas ($/mmBTU) | V20: Ethanol ($/gal) | W20: Hydrogen co-production value ($/kg) | X20: CCS ($/tonne) | Y20: ShadolPrice CCS ($/tonne) | Z20: Power capital $/kW | AA20: Energy capital ($/kWh) | AB20: Recharge capacity factor ±% | AC20: Power generation capacity factor ±% | AD20: Relative efficiency ±% | AE20: System life ± years | AF20: Sys# | AH20: Outputs | AI20: Cost per kWh | AJ20: =+Interface!C183 -> Credit card fees | AK20: =+Interface!C184 -> Sales tax | AL20: =+Interface!C185 -> road tax | AM20: =+Interface!C186 -> electricity | AN20: =+Interface!C187 -> natural gas | AO20: =+Interface!C188 -> ethanol | AP20: =+Interface!C189 -> CO₂ sequestration | AQ20: =+Interface!C190 -> CO₂ shadow | AR20: =+Interface!C191 -> feedstock 6 | AS20: =+Interface!C192 -> feedstock 7 | AT20: =+Interface!C193 -> feedstock 8 | AU20: =+Interface!C194 -> feedstock 9 | AV20: =+Interface!C195 -> Labor | AW20: =+Interface!C196 -> Total annual maintenance | AX20: =+Interface!C197 -> Rent of land | AY20: =+Interface!C198 -> Property insurance | AZ20: =+Interface!C199 -> Licensing & permitting | BA20: =+Interface!C200 -> Administrative expense | BB20: =+Interface!C201 -> Charging O&M | BC20: =+Interface!C202 -> Storage O&M | BD20: =+Interface!C203 -> Discharging O&M | BE20: =+Interface!C204 -> User defined charges 4 | BF20: =+Interface!C205 -> User defined charges 5 | BG20: =+Interface!C206 -> Income taxes payable | BH20: =+Interface!C207 -> Capital gains taxes payable | BI20: =+Interface!C208 -> charging cap | BJ20: =+Interface!C209 -> storage cap | BK20: =+Interface!C210 -> discharging cap | BL20: =+Interface!C211 -> capital_item 4 | BM20: =+Interface!C212 -> capital_item 5 | BN20: =+Interface!C213 -> capital_item 6 | BO20: =+Interface!C214 -> capital_item 7 | BP20: =+Interface!C215 -> capital_item 8 | BQ20: =+Interface!C216 -> capital_item 9 | BR20: =+Interface!C217 -> capital_item 10 | BS20: =+Interface!C218 -> Installation cost | BT20: =+Interface!C219 -> Non-depreciable assets | BU20: =+Interface!C220 -> Net equity financing expense | BV20: =+Interface!C221 -> Net debt financing expense | BW20: =+Interface!C222 -> hydrogen sales | BX20: =+Interface!C223 -> coproduct 2 sales | BY20: =+Interface!C224 -> coproduct 3 sales | BZ20: =+Interface!C225 -> coproduct 4 sales | CA20: =+Interface!C226 -> coproduct 5 sales | CB20: =+Interface!C227 -> coproduct 6 sales | CC20: =+Interface!C228 -> Annual operating incentives | CD20: =+Interface!C229 -> LCFS | CE20: =+Interface!C230 -> RIN | CF20: =+Interface!C231 -> Incidental revenue | CG20: =+Interface!C232 -> One-time capital incentive | CH20: =+Interface!C233 -> Monetized tax losses | CI20: =+Interface!C234 -> Sale of non-depreciable assets | CJ20: =+Interface!C235 -> Take or pay revenue | CK20: RTE% | CL20: System Life (yrs)
R21: =+C7 -> 120 | S21: 0.02 | T21: 0.035 | U21: 2.98 | V21: 2.216701561 | W21: 2.5 | X21: 65 | Y21: 0 | Z21: =+(IFERROR(AR7/AP7,0)+AV7/AN7) -> 2137 | AA21: =+IFERROR(AS7/AO7,0) -> 1.484969093 | AB21: =+AE7 -> 0.2433469791 | AC21: =+AF7 -> 0.0895373706 | AD21: =+O7 -> 0 | AE21: =+P7 -> 0 | AF21: =+Q7 -> 1 | AI21: =+Interface!D11 -> 0.3313230466 | AJ21: =+Interface!D183 -> 0 | AK21: =+Interface!D184 -> 0 | AL21: =+Interface!D185 -> 0 | AM21: =+Interface!D186 -> 0.05247224507 | AN21: =+Interface!D187 -> 0 | AO21: =+Interface!D188 -> 0 | AP21: =+Interface!D189 -> 0 | AQ21: =+Interface!D190 -> 0 | AR21: =+Interface!D191 -> 0 | AS21: =+Interface!D192 -> 0 | AT21: =+Interface!D193 -> 0 | AU21: =+Interface!D194 -> 0 | AV21: =+Interface!D195 -> 0 | AW21: =+Interface!D196 -> 0 | AX21: =+Interface!D197 -> 0 | AY21: =+Interface!D198 -> 0 | AZ21: =+Interface!D199 -> 0 | BA21: =+Interface!D200 -> 0 | BB21: =+Interface!D201 -> 0.05004993933 | BC21: =+Interface!D202 -> 0.003125483947 | BD21: =+Interface!D203 -> 0.02567343561 | BE21: =+Interface!D204 -> 0 | BF21: =+Interface!D205 -> 0 | BG21: =+Interface!D206 -> 0.02833903051 | BH21: =+Interface!D207 -> 0.0004692834823 | BI21: =+Interface!D208 -> 0.06993884491 | BJ21: =+Interface!D209 -> 0 | BK21: =+Interface!D210 -> 0.01842885117 | BL21: =+Interface!D211 -> 0 | BM21: =+Interface!D212 -> 0 | BN21: =+Interface!D213 -> 0 | BO21: =+Interface!D214 -> 0 | BP21: =+Interface!D215 -> 0 | BQ21: =+Interface!D216 -> 0 | BR21: =+Interface!D217 -> 0 | BS21: =+Interface!D218 -> 0 | BT21: =+Interface!D219 -> 0.00707748476 | BU21: =+Interface!D220 -> 0.03725039281 | BV21: =+Interface!D221 -> 0.03849805496 | BW21: =+Interface!D222 -> 0 | BX21: =+Interface!D223 -> 0 | BY21: =+Interface!D224 -> 0 | BZ21: =+Interface!D225 -> 0 | CA21: =+Interface!D226 -> 0 | CB21: =+Interface!D227 -> 0 | CC21: =+Interface!D228 -> 0 | CD21: =+Interface!D229 -> 0 | CE21: =+Interface!D230 -> 0 | CF21: =+Interface!D231 -> 0 | CG21: =+Interface!D232 -> 0 | CH21: =+Interface!D233 -> -0.02221669867 | CI21: =+Interface!D234 -> -0.007716904882 | CJ21: =+Interface!D235 -> 0 | CK21: =+AA7*(1+O7) -> 0.3495716022 | CL21: =+AW7+P7 -> 30
A22: Tornado plots | B22: 1 | C22: =+C$12 -> 120 | D22: =+D$12 -> 0.02 | E22: 0.035 | F22: 2.98 | G22: 2.216701561 | H22: 2.5 | I22: 65 | J22: 0 | K22: 0 | L22: 0 | M22: 0 | N22: 0 | O22: 0 | P22: 0 | Q22: 1 | R22: 120 | S22: 0.02 | T22: 0.035 | U22: 2.98 | V22: 2.216701561 | W22: 2.5 | X22: 65 | Y22: 0 | Z22: 2137 | AA22: 1.484969093 | AB22: 0.2433469791 | AC22: 0.0895373706 | AD22: 0 | AE22: 0 | AF22: 1 | AI22: 0.3313230466 | AJ22: 0 | AK22: 0 | AL22: 0 | AM22: 0.05247224507 | AN22: 0 | AO22: 0 | AP22: 0 | AQ22: 0 | AR22: 0 | AS22: 0 | AT22: 0 | AU22: 0 | AV22: 0 | AW22: 0 | AX22: 0 | AY22: 0 | AZ22: 0 | BA22: 0 | BB22: 0.05004993933 | BC22: 0.003125483947 | BD22: 0.02567343561 | BE22: 0 | BF22: 0 | BG22: 0.02833903051 | BH22: 0.0004692834823 | BI22: 0.06993884491 | BJ22: 0 | BK22: 0.01842885117 | BL22: 0 | BM22: 0 | BN22: 0 | BO22: 0 | BP22: 0 | BQ22: 0 | BR22: 0 | BS22: 0 | BT22: 0.00707748476 | BU22: 0.03725039281 | BV22: 0.03849805496 | BW22: 0 | BX22: 0 | BY22: 0 | BZ22: 0 | CA22: 0 | CB22: 0 | CC22: 0 | CD22: 0 | CE22: 0 | CF22: 0 | CG22: 0 | CH22: -0.02221669867 | CI22: -0.007716904882 | CJ22: 0 | CK22: 0.3495716022 | CL22: 30
B23: =+B22+1 -> 2 | C23: =+C11 -> 72 | D23: 0.02 | E23: 0.035 | F23: 2.98 | G23: 2.216701561 | H23: 2.5 | I23: 65 | J23: 0 | K23: 0 | L23: 0 | M23: 0 | N23: 0 | O23: 0 | P23: 0 | Q23: 1 | R23: 72 | S23: 0.02 | T23: 0.035 | U23: 2.98 | V23: 2.216701561 | W23: 2.5 | X23: 65 | Y23: 0 | Z23: 2137 | AA23: 1.936773189 | AB23: 0.2433469791 | AC23: 0.0895373706 | AD23: 0 | AE23: 0 | AF23: 1 | AI23: 0.3266766405 | AJ23: 0 | AK23: 0 | AL23: 0 | AM23: 0.05264128981 | AN23: 0 | AO23: 0 | AP23: 0 | AQ23: 0 | AR23: 0 | AS23: 0 | AT23: 0 | AU23: 0 | AV23: 0 | AW23: 0 | AX23: 0 | AY23: 0 | AZ23: 0 | BA23: 0 | BB23: 0.05021118036 | BC23: 0.002453729862 | BD23: 0.02575614522 | BE23: 0 | BF23: 0 | BG23: 0.0277672884 | BH23: 0.0003684213113 | BI23: 0.0701641601 | BJ23: 0 | BK23: 0.01848822162 | BL23: 0 | BM23: 0 | BN23: 0 | BO23: 0 | BP23: 0 | BQ23: 0 | BR23: 0 | BS23: 0 | BT23: 0.005556334954 | BU23: 0.03527054482 | BV23: 0.03799932402 | BW23: 0 | BX23: 0 | BY23: 0 | BZ23: 0 | CA23: 0 | CB23: 0 | CC23: 0 | CD23: 0 | CE23: 0 | CF23: 0 | CG23: 0 | CH23: -0.02233113061 | CI23: -0.006038870929 | CJ23: 0 | CK23: 0.3495716022 | CL23: 30
B24: =+B23+1 -> 3 | C24: =+C13 -> 168 | D24: 0.02 | E24: 0.035 | F24: 2.98 | G24: 2.216701561 | H24: 2.5 | I24: 65 | J24: 0 | K24: 0 | L24: 0 | M24: 0 | N24: 0 | O24: 0 | P24: 0 | Q24: 1 | R24: 168 | S24: 0.02 | T24: 0.035 | U24: 2.98 | V24: 2.216701561 | W24: 2.5 | X24: 65 | Y24: 0 | Z24: 2137 | AA24: 1.246610659 | AB24: 0.2433469791 | AC24: 0.0895373706 | AD24: 0 | AE24: 0 | AF24: 1 | AI24: 0.3350683989 | AJ24: 0 | AK24: 0 | AL24: 0 | AM24: 0.05234015497 | AN24: 0 | AO24: 0 | AP24: 0 | AQ24: 0 | AR24: 0 | AS24: 0 | AT24: 0 | AU24: 0 | AV24: 0 | AW24: 0 | AX24: 0 | AY24: 0 | AZ24: 0 | BA24: 0 | BB24: 0.04992394697 | BC24: 0.003664072747 | BD24: 0.02560880703 | BE24: 0 | BF24: 0 | BG24: 0.02879909377 | BH24: 0.0005501512237 | BI24: 0.06976278556 | BJ24: 0 | BK24: 0.01838245962 | BL24: 0 | BM24: 0 | BN24: 0 | BO24: 0 | BP24: 0 | BQ24: 0 | BR24: 0 | BS24: 0 | BT24: 0.008297089177 | BU24: 0.03883957844 | BV24: 0.03890025936 | BW24: 0 | BX24: 0 | BY24: 0 | BZ24: 0 | CA24: 0 | CB24: 0 | CC24: 0 | CD24: 0 | CE24: 0 | CF24: 0 | CG24: 0 | CH24: -0.02212445793 | CI24: -0.009069526296 | CJ24: 0 | CK24: 0.3495716022 | CL24: 30
B25: 4 | C25: =+C$12 -> 120 | D25: =+D11 -> 0.01 | E25: 0.035 | F25: 2.98 | G25: 2.216701561 | H25: 2.5 | I25: 65 | J25: 0 | K25: 0 | L25: 0 | M25: 0 | N25: 0 | O25: 0 | P25: 0 | Q25: 1 | R25: 120 | S25: 0.01 | T25: 0.035 | U25: 2.98 | V25: 2.216701561 | W25: 2.5 | X25: 65 | Y25: 0 | Z25: 2137 | AA25: 1.484969093 | AB25: 0.2433469791 | AC25: 0.0895373706 | AD25: 0 | AE25: 0 | AF25: 1 | AI25: 0.3024023762 | AJ25: 0 | AK25: 0 | AL25: 0 | AM25: 0.02602862766 | AN25: 0 | AO25: 0 | AP25: 0 | AQ25: 0 | AR25: 0 | AS25: 0 | AT25: 0 | AU25: 0 | AV25: 0 | AW25: 0 | AX25: 0 | AY25: 0 | AZ25: 0 | BA25: 0 | BB25: 0.04965410698 | BC25: 0.003100765283 | BD25: 0.02547039088 | BE25: 0 | BF25: 0 | BG25: 0.02804380758 | BH25: 0.0004655720376 | BI25: 0.06938571623 | BJ25: 0 | BK25: 0.01828310204 | BL25: 0 | BM25: 0 | BN25: 0 | BO25: 0 | BP25: 0 | BQ25: 0 | BR25: 0 | BS25: 0 | BT25: 0.007021510719 | BU25: 0.03675519325 | BV25: 0.03819358356 | BW25: 0 | BX25: 0 | BY25: 0 | BZ25: 0 | CA25: 0 | CB25: 0 | CC25: 0 | CD25: 0 | CE25: 0 | CF25: 0 | CG25: 0 | CH25: -0.02223232626 | CI25: -0.007716904882 | CJ25: 0 | CK25: 0.3495716022 | CL25: 30
B26: 5 | C26: 120 | D26: =+D13 -> 0.03 | E26: 0.035 | F26: 2.98 | G26: 2.216701561 | H26: 2.5 | I26: 65 | J26: 0 | K26: 0 | L26: 0 | M26: 0 | N26: 0 | O26: 0 | P26: 0 | Q26: 1 | R26: 120 | S26: 0.03 | T26: 0.035 | U26: 2.98 | V26: 2.216701561 | W26: 2.5 | X26: 65 | Y26: 0 | Z26: 2137 | AA26: 1.484969093 | AB26: 0.2433469791 | AC26: 0.0895373706 | AD26: 0 | AE26: 0 | AF26: 1 | AI26: 0.3602437169 | AJ26: 0 | AK26: 0 | AL26: 0 | AM26: 0.07923861895 | AN26: 0 | AO26: 0 | AP26: 0 | AQ26: 0 | AR26: 0 | AS26: 0 | AT26: 0 | AU26: 0 | AV26: 0 | AW26: 0 | AX26: 0 | AY26: 0 | AZ26: 0 | BA26: 0 | BB26: 0.05038712137 | BC26: 0.003146540057 | BD26: 0.02584639528 | BE26: 0 | BF26: 0 | BG26: 0.02860209431 | BH26: 0.0004724450038 | BI26: 0.07041001675 | BJ26: 0 | BK26: 0.01855300472 | BL26: 0 | BM26: 0 | BN26: 0 | BO26: 0 | BP26: 0 | BQ26: 0 | BR26: 0 | BS26: 0 | BT26: 0.007125165152 | BU26: 0.0377049023 | BV26: 0.03875741297 | BW26: 0 | BX26: 0 | BY26: 0 | BZ26: 0 | CA26: 0 | CB26: 0 | CC26: 0 | CD26: 0 | CE26: 0 | CF26: 0 | CG26: 0 | CH26: -0.02220107108 | CI26: -0.007716904882 | CJ26: 0 | CK26: 0.3495716022 | CL26: 30
B27: 6 | C27: 120 | D27: 0.02 | E27: =+E11 -> 0.025 | F27: 2.98 | G27: 2.216701561 | H27: 2.5 | I27: 65 | J27: 0 | K27: 0 | L27: 0 | M27: 0 | N27: 0 | O27: 0 | P27: 0 | Q27: 1 | R27: 120 | S27: 0.02 | T27: 0.025 | U27: 2.98 | V27: 2.216701561 | W27: 2.5 | X27: 65 | Y27: 0 | Z27: 2137 | AA27: 1.484969093 | AB27: 0.2433469791 | AC27: 0.0895373706 | AD27: 0 | AE27: 0 | AF27: 1 | AI27: 0.3313230466 | AJ27: 0 | AK27: 0 | AL27: 0 | AM27: 0.05247224507 | AN27: 0 | AO27: 0 | AP27: 0 | AQ27: 0 | AR27: 0 | AS27: 0 | AT27: 0 | AU27: 0 | AV27: 0 | AW27: 0 | AX27: 0 | AY27: 0 | AZ27: 0 | BA27: 0 | BB27: 0.05004993933 | BC27: 0.003125483947 | BD27: 0.02567343561 | BE27: 0 | BF27: 0 | BG27: 0.02833903051 | BH27: 0.0004692834823 | BI27: 0.06993884491 | BJ27: 0 | BK27: 0.01842885117 | BL27: 0 | BM27: 0 | BN27: 0 | BO27: 0 | BP27: 0 | BQ27: 0 | BR27: 0 | BS27: 0 | BT27: 0.00707748476 | BU27: 0.03725039281 | BV27: 0.03849805496 | BW27: 0 | BX27: 0 | BY27: 0 | BZ27: 0 | CA27: 0 | CB27: 0 | CC27: 0 | CD27: 0 | CE27: 0 | CF27: 0 | CG27: 0 | CH27: -0.02221669867 | CI27: -0.007716904882 | CJ27: 0 | CK27: 0.3495716022 | CL27: 30
B28: 7 | C28: 120 | D28: 0.02 | E28: =+E13 -> 0.045 | F28: 2.98 | G28: 2.216701561 | H28: 2.5 | I28: 65 | J28: 0 | K28: 0 | L28: 0 | M28: 0 | N28: 0 | O28: 0 | P28: 0 | Q28: 1 | R28: 120 | S28: 0.02 | T28: 0.045 | U28: 2.98 | V28: 2.216701561 | W28: 2.5 | X28: 65 | Y28: 0 | Z28: 2137 | AA28: 1.484969093 | AB28: 0.2433469791 | AC28: 0.0895373706 | AD28: 0 | AE28: 0 | AF28: 1 | AI28: 0.3313230466 | AJ28: 0 | AK28: 0 | AL28: 0 | AM28: 0.05247224507 | AN28: 0 | AO28: 0 | AP28: 0 | AQ28: 0 | AR28: 0 | AS28: 0 | AT28: 0 | AU28: 0 | AV28: 0 | AW28: 0 | AX28: 0 | AY28: 0 | AZ28: 0 | BA28: 0 | BB28: 0.05004993933 | BC28: 0.003125483947 | BD28: 0.02567343561 | BE28: 0 | BF28: 0 | BG28: 0.02833903051 | BH28: 0.0004692834823 | BI28: 0.06993884491 | BJ28: 0 | BK28: 0.01842885117 | BL28: 0 | BM28: 0 | BN28: 0 | BO28: 0 | BP28: 0 | BQ28: 0 | BR28: 0 | BS28: 0 | BT28: 0.00707748476 | BU28: 0.03725039281 | BV28: 0.03849805496 | BW28: 0 | BX28: 0 | BY28: 0 | BZ28: 0 | CA28: 0 | CB28: 0 | CC28: 0 | CD28: 0 | CE28: 0 | CF28: 0 | CG28: 0 | CH28: -0.02221669867 | CI28: -0.007716904882 | CJ28: 0 | CK28: 0.3495716022 | CL28: 30
B29: 8 | C29: 120 | D29: 0.02 | E29: 0.035 | F29: =+F11 -> 2.383 | G29: 2.216701561 | H29: 2.5 | I29: 65 | J29: 0 | K29: 0 | L29: 0 | M29: 0 | N29: 0 | O29: 0 | P29: 0 | Q29: 1 | R29: 120 | S29: 0.02 | T29: 0.035 | U29: 2.383 | V29: 2.216701561 | W29: 2.5 | X29: 65 | Y29: 0 | Z29: 2137 | AA29: 1.484969093 | AB29: 0.2433469791 | AC29: 0.0895373706 | AD29: 0 | AE29: 0 | AF29: 1 | AI29: 0.3313230466 | AJ29: 0 | AK29: 0 | AL29: 0 | AM29: 0.05247224507 | AN29: 0 | AO29: 0 | AP29: 0 | AQ29: 0 | AR29: 0 | AS29: 0 | AT29: 0 | AU29: 0 | AV29: 0 | AW29: 0 | AX29: 0 | AY29: 0 | AZ29: 0 | BA29: 0 | BB29: 0.05004993933 | BC29: 0.003125483947 | BD29: 0.02567343561 | BE29: 0 | BF29: 0 | BG29: 0.02833903051 | BH29: 0.0004692834823 | BI29: 0.06993884491 | BJ29: 0 | BK29: 0.01842885117 | BL29: 0 | BM29: 0 | BN29: 0 | BO29: 0 | BP29: 0 | BQ29: 0 | BR29: 0 | BS29: 0 | BT29: 0.00707748476 | BU29: 0.03725039281 | BV29: 0.03849805496 | BW29: 0 | BX29: 0 | BY29: 0 | BZ29: 0 | CA29: 0 | CB29: 0 | CC29: 0 | CD29: 0 | CE29: 0 | CF29: 0 | CG29: 0 | CH29: -0.02221669867 | CI29: -0.007716904882 | CJ29: 0 | CK29: 0.3495716022 | CL29: 30
B30: 9 | C30: 120 | D30: 0.02 | E30: 0.035 | F30: =+F13 -> 3.505 | G30: 2.216701561 | H30: 2.5 | I30: 65 | J30: 0 | K30: 0 | L30: 0 | M30: 0 | N30: 0 | O30: 0 | P30: 0 | Q30: 1 | R30: 120 | S30: 0.02 | T30: 0.035 | U30: 3.505 | V30: 2.216701561 | W30: 2.5 | X30: 65 | Y30: 0 | Z30: 2137 | AA30: 1.484969093 | AB30: 0.2433469791 | AC30: 0.0895373706 | AD30: 0 | AE30: 0 | AF30: 1 | AI30: 0.3313230466 | AJ30: 0 | AK30: 0 | AL30: 0 | AM30: 0.05247224507 | AN30: 0 | AO30: 0 | AP30: 0 | AQ30: 0 | AR30: 0 | AS30: 0 | AT30: 0 | AU30: 0 | AV30: 0 | AW30: 0 | AX30: 0 | AY30: 0 | AZ30: 0 | BA30: 0 | BB30: 0.05004993933 | BC30: 0.003125483947 | BD30: 0.02567343561 | BE30: 0 | BF30: 0 | BG30: 0.02833903051 | BH30: 0.0004692834823 | BI30: 0.06993884491 | BJ30: 0 | BK30: 0.01842885117 | BL30: 0 | BM30: 0 | BN30: 0 | BO30: 0 | BP30: 0 | BQ30: 0 | BR30: 0 | BS30: 0 | BT30: 0.00707748476 | BU30: 0.03725039281 | BV30: 0.03849805496 | BW30: 0 | BX30: 0 | BY30: 0 | BZ30: 0 | CA30: 0 | CB30: 0 | CC30: 0 | CD30: 0 | CE30: 0 | CF30: 0 | CG30: 0 | CH30: -0.02221669867 | CI30: -0.007716904882 | CJ30: 0 | CK30: 0.3495716022 | CL30: 30
B31: 10 | C31: 120 | D31: 0.02 | E31: 0.035 | F31: 2.98 | G31: =+G11 -> 1.175833333 | H31: 2.5 | I31: 65 | J31: 0 | K31: 0 | L31: 0 | M31: 0 | N31: 0 | O31: 0 | P31: 0 | Q31: 1 | R31: 120 | S31: 0.02 | T31: 0.035 | U31: 2.98 | V31: 1.175833333 | W31: 2.5 | X31: 65 | Y31: 0 | Z31: 2137 | AA31: 1.484969093 | AB31: 0.2433469791 | AC31: 0.0895373706 | AD31: 0 | AE31: 0 | AF31: 1 | AI31: 0.3313230466 | AJ31: 0 | AK31: 0 | AL31: 0 | AM31: 0.05247224507 | AN31: 0 | AO31: 0 | AP31: 0 | AQ31: 0 | AR31: 0 | AS31: 0 | AT31: 0 | AU31: 0 | AV31: 0 | AW31: 0 | AX31: 0 | AY31: 0 | AZ31: 0 | BA31: 0 | BB31: 0.05004993933 | BC31: 0.003125483947 | BD31: 0.02567343561 | BE31: 0 | BF31: 0 | BG31: 0.02833903051 | BH31: 0.0004692834823 | BI31: 0.06993884491 | BJ31: 0 | BK31: 0.01842885117 | BL31: 0 | BM31: 0 | BN31: 0 | BO31: 0 | BP31: 0 | BQ31: 0 | BR31: 0 | BS31: 0 | BT31: 0.00707748476 | BU31: 0.03725039281 | BV31: 0.03849805496 | BW31: 0 | BX31: 0 | BY31: 0 | BZ31: 0 | CA31: 0 | CB31: 0 | CC31: 0 | CD31: 0 | CE31: 0 | CF31: 0 | CG31: 0 | CH31: -0.02221669867 | CI31: -0.007716904882 | CJ31: 0 | CK31: 0.3495716022 | CL31: 30
B32: 11 | C32: 120 | D32: 0.02 | E32: 0.035 | F32: 2.98 | G32: =+G13 -> 2.660833333 | H32: 2.5 | I32: 65 | J32: 0 | K32: 0 | L32: 0 | M32: 0 | N32: 0 | O32: 0 | P32: 0 | Q32: 1 | R32: 120 | S32: 0.02 | T32: 0.035 | U32: 2.98 | V32: 2.660833333 | W32: 2.5 | X32: 65 | Y32: 0 | Z32: 2137 | AA32: 1.484969093 | AB32: 0.2433469791 | AC32: 0.0895373706 | AD32: 0 | AE32: 0 | AF32: 1 | AI32: 0.3313230466 | AJ32: 0 | AK32: 0 | AL32: 0 | AM32: 0.05247224507 | AN32: 0 | AO32: 0 | AP32: 0 | AQ32: 0 | AR32: 0 | AS32: 0 | AT32: 0 | AU32: 0 | AV32: 0 | AW32: 0 | AX32: 0 | AY32: 0 | AZ32: 0 | BA32: 0 | BB32: 0.05004993933 | BC32: 0.003125483947 | BD32: 0.02567343561 | BE32: 0 | BF32: 0 | BG32: 0.02833903051 | BH32: 0.0004692834823 | BI32: 0.06993884491 | BJ32: 0 | BK32: 0.01842885117 | BL32: 0 | BM32: 0 | BN32: 0 | BO32: 0 | BP32: 0 | BQ32: 0 | BR32: 0 | BS32: 0 | BT32: 0.00707748476 | BU32: 0.03725039281 | BV32: 0.03849805496 | BW32: 0 | BX32: 0 | BY32: 0 | BZ32: 0 | CA32: 0 | CB32: 0 | CC32: 0 | CD32: 0 | CE32: 0 | CF32: 0 | CG32: 0 | CH32: -0.02221669867 | CI32: -0.007716904882 | CJ32: 0 | CK32: 0.3495716022 | CL32: 30
B33: 12 | C33: 120 | D33: 0.02 | E33: 0.035 | F33: 2.98 | G33: 2.216701561 | H33: =+H11 -> 1.74 | I33: 65 | J33: 0 | K33: 0 | L33: 0 | M33: 0 | N33: 0 | O33: 0 | P33: 0 | Q33: 1 | R33: 120 | S33: 0.02 | T33: 0.035 | U33: 2.98 | V33: 2.216701561 | W33: 1.74 | X33: 65 | Y33: 0 | Z33: 2137 | AA33: 1.484969093 | AB33: 0.2433469791 | AC33: 0.0895373706 | AD33: 0 | AE33: 0 | AF33: 1 | AI33: 0.3313230466 | AJ33: 0 | AK33: 0 | AL33: 0 | AM33: 0.05247224507 | AN33: 0 | AO33: 0 | AP33: 0 | AQ33: 0 | AR33: 0 | AS33: 0 | AT33: 0 | AU33: 0 | AV33: 0 | AW33: 0 | AX33: 0 | AY33: 0 | AZ33: 0 | BA33: 0 | BB33: 0.05004993933 | BC33: 0.003125483947 | BD33: 0.02567343561 | BE33: 0 | BF33: 0 | BG33: 0.02833903051 | BH33: 0.0004692834823 | BI33: 0.06993884491 | BJ33: 0 | BK33: 0.01842885117 | BL33: 0 | BM33: 0 | BN33: 0 | BO33: 0 | BP33: 0 | BQ33: 0 | BR33: 0 | BS33: 0 | BT33: 0.00707748476 | BU33: 0.03725039281 | BV33: 0.03849805496 | BW33: 0 | BX33: 0 | BY33: 0 | BZ33: 0 | CA33: 0 | CB33: 0 | CC33: 0 | CD33: 0 | CE33: 0 | CF33: 0 | CG33: 0 | CH33: -0.02221669867 | CI33: -0.007716904882 | CJ33: 0 | CK33: 0.3495716022 | CL33: 30
B34: 13 | C34: 120 | D34: 0.02 | E34: 0.035 | F34: 2.98 | G34: 2.216701561 | H34: =+H13 -> 3 | I34: 65 | J34: 0 | K34: 0 | L34: 0 | M34: 0 | N34: 0 | O34: 0 | P34: 0 | Q34: 1 | R34: 120 | S34: 0.02 | T34: 0.035 | U34: 2.98 | V34: 2.216701561 | W34: 3 | X34: 65 | Y34: 0 | Z34: 2137 | AA34: 1.484969093 | AB34: 0.2433469791 | AC34: 0.0895373706 | AD34: 0 | AE34: 0 | AF34: 1 | AI34: 0.3313230466 | AJ34: 0 | AK34: 0 | AL34: 0 | AM34: 0.05247224507 | AN34: 0 | AO34: 0 | AP34: 0 | AQ34: 0 | AR34: 0 | AS34: 0 | AT34: 0 | AU34: 0 | AV34: 0 | AW34: 0 | AX34: 0 | AY34: 0 | AZ34: 0 | BA34: 0 | BB34: 0.05004993933 | BC34: 0.003125483947 | BD34: 0.02567343561 | BE34: 0 | BF34: 0 | BG34: 0.02833903051 | BH34: 0.0004692834823 | BI34: 0.06993884491 | BJ34: 0 | BK34: 0.01842885117 | BL34: 0 | BM34: 0 | BN34: 0 | BO34: 0 | BP34: 0 | BQ34: 0 | BR34: 0 | BS34: 0 | BT34: 0.00707748476 | BU34: 0.03725039281 | BV34: 0.03849805496 | BW34: 0 | BX34: 0 | BY34: 0 | BZ34: 0 | CA34: 0 | CB34: 0 | CC34: 0 | CD34: 0 | CE34: 0 | CF34: 0 | CG34: 0 | CH34: -0.02221669867 | CI34: -0.007716904882 | CJ34: 0 | CK34: 0.3495716022 | CL34: 30
B35: 14 | C35: 120 | D35: 0.02 | E35: 0.035 | F35: 2.98 | G35: 2.216701561 | H35: 2.5 | I35: =+I11 -> 27 | J35: 0 | K35: 0 | L35: 0 | M35: 0 | N35: 0 | O35: 0 | P35: 0 | Q35: 1 | R35: 120 | S35: 0.02 | T35: 0.035 | U35: 2.98 | V35: 2.216701561 | W35: 2.5 | X35: 27 | Y35: 0 | Z35: 2137 | AA35: 1.484969093 | AB35: 0.2433469791 | AC35: 0.0895373706 | AD35: 0 | AE35: 0 | AF35: 1 | AI35: 0.3313230466 | AJ35: 0 | AK35: 0 | AL35: 0 | AM35: 0.05247224507 | AN35: 0 | AO35: 0 | AP35: 0 | AQ35: 0 | AR35: 0 | AS35: 0 | AT35: 0 | AU35: 0 | AV35: 0 | AW35: 0 | AX35: 0 | AY35: 0 | AZ35: 0 | BA35: 0 | BB35: 0.05004993933 | BC35: 0.003125483947 | BD35: 0.02567343561 | BE35: 0 | BF35: 0 | BG35: 0.02833903051 | BH35: 0.0004692834823 | BI35: 0.06993884491 | BJ35: 0 | BK35: 0.01842885117 | BL35: 0 | BM35: 0 | BN35: 0 | BO35: 0 | BP35: 0 | BQ35: 0 | BR35: 0 | BS35: 0 | BT35: 0.00707748476 | BU35: 0.03725039281 | BV35: 0.03849805496 | BW35: 0 | BX35: 0 | BY35: 0 | BZ35: 0 | CA35: 0 | CB35: 0 | CC35: 0 | CD35: 0 | CE35: 0 | CF35: 0 | CG35: 0 | CH35: -0.02221669867 | CI35: -0.007716904882 | CJ35: 0 | CK35: 0.3495716022 | CL35: 30
B36: 15 | C36: 120 | D36: 0.02 | E36: 0.035 | F36: 2.98 | G36: 2.216701561 | H36: 2.5 | I36: =+I13 -> 125 | J36: 0 | K36: 0 | L36: 0 | M36: 0 | N36: 0 | O36: 0 | P36: 0 | Q36: 1 | R36: 120 | S36: 0.02 | T36: 0.035 | U36: 2.98 | V36: 2.216701561 | W36: 2.5 | X36: 125 | Y36: 0 | Z36: 2137 | AA36: 1.484969093 | AB36: 0.2433469791 | AC36: 0.0895373706 | AD36: 0 | AE36: 0 | AF36: 1 | AI36: 0.3313230466 | AJ36: 0 | AK36: 0 | AL36: 0 | AM36: 0.05247224507 | AN36: 0 | AO36: 0 | AP36: 0 | AQ36: 0 | AR36: 0 | AS36: 0 | AT36: 0 | AU36: 0 | AV36: 0 | AW36: 0 | AX36: 0 | AY36: 0 | AZ36: 0 | BA36: 0 | BB36: 0.05004993933 | BC36: 0.003125483947 | BD36: 0.02567343561 | BE36: 0 | BF36: 0 | BG36: 0.02833903051 | BH36: 0.0004692834823 | BI36: 0.06993884491 | BJ36: 0 | BK36: 0.01842885117 | BL36: 0 | BM36: 0 | BN36: 0 | BO36: 0 | BP36: 0 | BQ36: 0 | BR36: 0 | BS36: 0 | BT36: 0.00707748476 | BU36: 0.03725039281 | BV36: 0.03849805496 | BW36: 0 | BX36: 0 | BY36: 0 | BZ36: 0 | CA36: 0 | CB36: 0 | CC36: 0 | CD36: 0 | CE36: 0 | CF36: 0 | CG36: 0 | CH36: -0.02221669867 | CI36: -0.007716904882 | CJ36: 0 | CK36: 0.3495716022 | CL36: 30
B37: 16 | C37: 120 | D37: 0.02 | E37: 0.035 | F37: 2.98 | G37: 2.216701561 | H37: 2.5 | I37: 65 | J37: =+J11 -> 0 | K37: 0 | L37: 0 | M37: 0 | N37: 0 | O37: 0 | P37: 0 | Q37: 1 | R37: 120 | S37: 0.02 | T37: 0.035 | U37: 2.98 | V37: 2.216701561 | W37: 2.5 | X37: 65 | Y37: 0 | Z37: 2137 | AA37: 1.484969093 | AB37: 0.2433469791 | AC37: 0.0895373706 | AD37: 0 | AE37: 0 | AF37: 1 | AI37: 0.3313230466 | AJ37: 0 | AK37: 0 | AL37: 0 | AM37: 0.05247224507 | AN37: 0 | AO37: 0 | AP37: 0 | AQ37: 0 | AR37: 0 | AS37: 0 | AT37: 0 | AU37: 0 | AV37: 0 | AW37: 0 | AX37: 0 | AY37: 0 | AZ37: 0 | BA37: 0 | BB37: 0.05004993933 | BC37: 0.003125483947 | BD37: 0.02567343561 | BE37: 0 | BF37: 0 | BG37: 0.02833903051 | BH37: 0.0004692834823 | BI37: 0.06993884491 | BJ37: 0 | BK37: 0.01842885117 | BL37: 0 | BM37: 0 | BN37: 0 | BO37: 0 | BP37: 0 | BQ37: 0 | BR37: 0 | BS37: 0 | BT37: 0.00707748476 | BU37: 0.03725039281 | BV37: 0.03849805496 | BW37: 0 | BX37: 0 | BY37: 0 | BZ37: 0 | CA37: 0 | CB37: 0 | CC37: 0 | CD37: 0 | CE37: 0 | CF37: 0 | CG37: 0 | CH37: -0.02221669867 | CI37: -0.007716904882 | CJ37: 0 | CK37: 0.3495716022 | CL37: 30
B38: 17 | C38: 120 | D38: 0.02 | E38: 0.035 | F38: 2.98 | G38: 2.216701561 | H38: 2.5 | I38: 65 | J38: =+J13 -> 100 | K38: 0 | L38: 0 | M38: 0 | N38: 0 | O38: 0 | P38: 0 | Q38: 1 | R38: 120 | S38: 0.02 | T38: 0.035 | U38: 2.98 | V38: 2.216701561 | W38: 2.5 | X38: 65 | Y38: 100 | Z38: 2137 | AA38: 1.484969093 | AB38: 0.2433469791 | AC38: 0.0895373706 | AD38: 0 | AE38: 0 | AF38: 1 | AI38: 0.3313230466 | AJ38: 0 | AK38: 0 | AL38: 0 | AM38: 0.05247224507 | AN38: 0 | AO38: 0 | AP38: 0 | AQ38: 0 | AR38: 0 | AS38: 0 | AT38: 0 | AU38: 0 | AV38: 0 | AW38: 0 | AX38: 0 | AY38: 0 | AZ38: 0 | BA38: 0 | BB38: 0.05004993933 | BC38: 0.003125483947 | BD38: 0.02567343561 | BE38: 0 | BF38: 0 | BG38: 0.02833903051 | BH38: 0.0004692834823 | BI38: 0.06993884491 | BJ38: 0 | BK38: 0.01842885117 | BL38: 0 | BM38: 0 | BN38: 0 | BO38: 0 | BP38: 0 | BQ38: 0 | BR38: 0 | BS38: 0 | BT38: 0.00707748476 | BU38: 0.03725039281 | BV38: 0.03849805496 | BW38: 0 | BX38: 0 | BY38: 0 | BZ38: 0 | CA38: 0 | CB38: 0 | CC38: 0 | CD38: 0 | CE38: 0 | CF38: 0 | CG38: 0 | CH38: -0.02221669867 | CI38: -0.007716904882 | CJ38: 0 | CK38: 0.3495716022 | CL38: 30
B39: 18 | C39: 120 | D39: 0.02 | E39: 0.035 | F39: 2.98 | G39: 2.216701561 | H39: 2.5 | I39: 65 | J39: 0 | K39: =+K11 -> -0.1 | L39: 0 | M39: 0 | N39: 0 | O39: 0 | P39: 0 | Q39: 1 | R39: 120 | S39: 0.02 | T39: 0.035 | U39: 2.98 | V39: 2.216701561 | W39: 2.5 | X39: 65 | Y39: 0 | Z39: 2090.6 | AA39: 1.484969093 | AB39: 0.2433469791 | AC39: 0.0895373706 | AD39: 0 | AE39: 0 | AF39: 1 | AI39: 0.3269089458 | AJ39: 0 | AK39: 0 | AL39: 0 | AM39: 0.05248352543 | AN39: 0 | AO39: 0 | AP39: 0 | AQ39: 0 | AR39: 0 | AS39: 0 | AT39: 0 | AU39: 0 | AV39: 0 | AW39: 0 | AX39: 0 | AY39: 0 | AZ39: 0 | BA39: 0 | BB39: 0.05006069894 | BC39: 0.003126155856 | BD39: 0.02486494443 | BE39: 0 | BF39: 0 | BG39: 0.02782247242 | BH39: 0.0004693843677 | BI39: 0.06995388019 | BJ39: 0 | BK39: 0.01658953167 | BL39: 0 | BM39: 0 | BN39: 0 | BO39: 0 | BP39: 0 | BQ39: 0 | BR39: 0 | BS39: 0 | BT39: 0.007079006261 | BU39: 0.03669650721 | BV39: 0.03776283902 | BW39: 0 | BX39: 0 | BY39: 0 | BZ39: 0 | CA39: 0 | CB39: 0 | CC39: 0 | CD39: 0 | CE39: 0 | CF39: 0 | CG39: 0 | CH39: -0.0217412928 | CI39: -0.007716904882 | CJ39: 0 | CK39: 0.3495716022 | CL39: 30
B40: 19 | C40: 120 | D40: 0.02 | E40: 0.035 | F40: 2.98 | G40: 2.216701561 | H40: 2.5 | I40: 65 | J40: 0 | K40: =+K13 -> 0.1 | L40: 0 | M40: 0 | N40: 0 | O40: 0 | P40: 0 | Q40: 1 | R40: 120 | S40: 0.02 | T40: 0.035 | U40: 2.98 | V40: 2.216701561 | W40: 2.5 | X40: 65 | Y40: 0 | Z40: 2183.4 | AA40: 1.484969093 | AB40: 0.2433469791 | AC40: 0.0895373706 | AD40: 0 | AE40: 0 | AF40: 1 | AI40: 0.3357371473 | AJ40: 0 | AK40: 0 | AL40: 0 | AM40: 0.05246126599 | AN40: 0 | AO40: 0 | AP40: 0 | AQ40: 0 | AR40: 0 | AS40: 0 | AT40: 0 | AU40: 0 | AV40: 0 | AW40: 0 | AX40: 0 | AY40: 0 | AZ40: 0 | BA40: 0 | BB40: 0.05003946708 | BC40: 0.003124829983 | BD40: 0.02648172894 | BE40: 0 | BF40: 0 | BG40: 0.02885552964 | BH40: 0.0004691852912 | BI40: 0.06992421118 | BJ40: 0 | BK40: 0.02026749471 | BL40: 0 | BM40: 0 | BN40: 0 | BO40: 0 | BP40: 0 | BQ40: 0 | BR40: 0 | BS40: 0 | BT40: 0.007076003895 | BU40: 0.03780425397 | BV40: 0.03923317662 | BW40: 0 | BX40: 0 | BY40: 0 | BZ40: 0 | CA40: 0 | CB40: 0 | CC40: 0 | CD40: 0 | CE40: 0 | CF40: 0 | CG40: 0 | CH40: -0.02269210454 | CI40: -0.007716904882 | CJ40: 0 | CK40: 0.3495716022 | CL40: 30
B41: 20 | C41: 120 | D41: 0.02 | E41: 0.035 | F41: 2.98 | G41: 2.216701561 | H41: 2.5 | I41: 65 | J41: 0 | K41: 0 | L41: =+L11 -> -0.1 | M41: 0 | N41: 0 | O41: 0 | P41: 0 | Q41: 1 | R41: 120 | S41: 0.02 | T41: 0.035 | U41: 2.98 | V41: 2.216701561 | W41: 2.5 | X41: 65 | Y41: 0 | Z41: 2137 | AA41: 1.336472183 | AB41: 0.2433469791 | AC41: 0.0895373706 | AD41: 0 | AE41: 0 | AF41: 1 | AI41: 0.3291862678 | AJ41: 0 | AK41: 0 | AL41: 0 | AM41: 0.05254925744 | AN41: 0 | AO41: 0 | AP41: 0 | AQ41: 0 | AR41: 0 | AS41: 0 | AT41: 0 | AU41: 0 | AV41: 0 | AW41: 0 | AX41: 0 | AY41: 0 | AZ41: 0 | BA41: 0 | BB41: 0.05012339653 | BC41: 0.002817064037 | BD41: 0.02571111595 | BE41: 0 | BF41: 0 | BG41: 0.02807623919 | BH41: 0.0004229750155 | BI41: 0.07004149263 | BJ41: 0 | BK41: 0.0184558988 | BL41: 0 | BM41: 0 | BN41: 0 | BO41: 0 | BP41: 0 | BQ41: 0 | BR41: 0 | BS41: 0 | BT41: 0.006379085007 | BU41: 0.03634107655 | BV41: 0.0382686666 | BW41: 0 | BX41: 0 | BY41: 0 | BZ41: 0 | CA41: 0 | CB41: 0 | CC41: 0 | CD41: 0 | CE41: 0 | CF41: 0 | CG41: 0 | CH41: -0.02226932337 | CI41: -0.006945214394 | CJ41: 0 | CK41: 0.3495716022 | CL41: 30
B42: 21 | C42: 120 | D42: 0.02 | E42: 0.035 | F42: 2.98 | G42: 2.216701561 | H42: 2.5 | I42: 65 | J42: 0 | K42: 0 | L42: =+L13 -> 0.1 | M42: 0 | N42: 0 | O42: 0 | P42: 0 | Q42: 1 | R42: 120 | S42: 0.02 | T42: 0.035 | U42: 2.98 | V42: 2.216701561 | W42: 2.5 | X42: 65 | Y42: 0 | Z42: 2137 | AA42: 1.633466002 | AB42: 0.2433469791 | AC42: 0.0895373706 | AD42: 0 | AE42: 0 | AF42: 1 | AI42: 0.3334598253 | AJ42: 0 | AK42: 0 | AL42: 0 | AM42: 0.05239644076 | AN42: 0 | AO42: 0 | AP42: 0 | AQ42: 0 | AR42: 0 | AS42: 0 | AT42: 0 | AU42: 0 | AV42: 0 | AW42: 0 | AX42: 0 | AY42: 0 | AZ42: 0 | BA42: 0 | BB42: 0.04997763441 | BC42: 0.00343306557 | BD42: 0.02563634634 | BE42: 0 | BF42: 0 | BG42: 0.02860158911 | BH42: 0.0005154660823 | BI42: 0.06983780738 | BJ42: 0 | BK42: 0.01840222783 | BL42: 0 | BM42: 0 | BN42: 0 | BO42: 0 | BP42: 0 | BQ42: 0 | BR42: 0 | BS42: 0 | BT42: 0.007773986257 | BU42: 0.03815776333 | BV42: 0.03872749827 | BW42: 0 | BX42: 0 | BY42: 0 | BZ42: 0 | CA42: 0 | CB42: 0 | CC42: 0 | CD42: 0 | CE42: 0 | CF42: 0 | CG42: 0 | CH42: -0.02216407396 | CI42: -0.00848859537 | CJ42: 0 | CK42: 0.3495716022 | CL42: 30
B43: 22 | C43: 120 | D43: 0.02 | E43: 0.035 | F43: 2.98 | G43: 2.216701561 | H43: 2.5 | I43: 65 | J43: 0 | K43: 0 | L43: 0 | M43: =+M11 -> -0.05 | N43: 0 | O43: 0 | P43: 0 | Q43: 1 | R43: 120 | S43: 0.02 | T43: 0.035 | U43: 2.98 | V43: 2.216701561 | W43: 2.5 | X43: 65 | Y43: 0 | Z43: 2137 | AA43: 1.484969093 | AB43: 0.2311796302 | AC43: 0.0895373706 | AD43: 0 | AE43: 0 | AF43: 1 | AI43: 0.3410537785 | AJ43: 0 | AK43: 0 | AL43: 0 | AM43: 0.05246237583 | AN43: 0 | AO43: 0 | AP43: 0 | AQ43: 0 | AR43: 0 | AS43: 0 | AT43: 0 | AU43: 0 | AV43: 0 | AW43: 0 | AX43: 0 | AY43: 0 | AZ43: 0 | BA43: 0 | BB43: 0.05249476101 | BC43: 0.00312489609 | BD43: 0.02566860682 | BE43: 0 | BF43: 0 | BG43: 0.02937948954 | BH43: 0.0004691952171 | BI43: 0.07360598996 | BJ43: 0 | BK43: 0.01842538498 | BL43: 0 | BM43: 0 | BN43: 0 | BO43: 0 | BP43: 0 | BQ43: 0 | BR43: 0 | BS43: 0 | BT43: 0.007076153591 | BU43: 0.0383716533 | BV43: 0.03997527216 | BW43: 0 | BX43: 0 | BY43: 0 | BZ43: 0 | CA43: 0 | CB43: 0 | CC43: 0 | CD43: 0 | CE43: 0 | CF43: 0 | CG43: 0 | CH43: -0.02316578386 | CI43: -0.007716904882 | CJ43: 0 | CK43: 0.3495716022 | CL43: 30
B44: 23 | C44: 120 | D44: 0.02 | E44: 0.035 | F44: 2.98 | G44: 2.216701561 | H44: 2.5 | I44: 65 | J44: 0 | K44: 0 | L44: 0 | M44: =+M13 -> 0.05 | N44: 0 | O44: 0 | P44: 0 | Q44: 1 | R44: 120 | S44: 0.02 | T44: 0.035 | U44: 2.98 | V44: 2.216701561 | W44: 2.5 | X44: 65 | Y44: 0 | Z44: 2137 | AA44: 1.484969093 | AB44: 0.2555143281 | AC44: 0.0895373706 | AD44: 0 | AE44: 0 | AF44: 1 | AI44: 0.322519051 | AJ44: 0 | AK44: 0 | AL44: 0 | AM44: 0.05248169102 | AN44: 0 | AO44: 0 | AP44: 0 | AQ44: 0 | AR44: 0 | AS44: 0 | AT44: 0 | AU44: 0 | AV44: 0 | AW44: 0 | AX44: 0 | AY44: 0 | AZ44: 0 | BA44: 0 | BB44: 0.04783763306 | BC44: 0.00312604659 | BD44: 0.02567805728 | BE44: 0 | BF44: 0 | BG44: 0.02739759347 | BH44: 0.0004693679617 | BI44: 0.06662041443 | BJ44: 0 | BK44: 0.0184321687 | BL44: 0 | BM44: 0 | BN44: 0 | BO44: 0 | BP44: 0 | BQ44: 0 | BR44: 0 | BS44: 0 | BT44: 0.007078758834 | BU44: 0.03623590995 | BV44: 0.03716140968 | BW44: 0 | BX44: 0 | BY44: 0 | BZ44: 0 | CA44: 0 | CB44: 0 | CC44: 0 | CD44: 0 | CE44: 0 | CF44: 0 | CG44: 0 | CH44: -0.02135800255 | CI44: -0.007716904882 | CJ44: 0 | CK44: 0.3495716022 | CL44: 30
B45: 24 | C45: 120 | D45: 0.02 | E45: 0.035 | F45: 2.98 | G45: 2.216701561 | H45: 2.5 | I45: 65 | J45: 0 | K45: 0 | L45: 0 | M45: 0 | N45: =+N11 -> -0.05 | O45: 0 | P45: 0 | Q45: 1 | R45: 120 | S45: 0.02 | T45: 0.035 | U45: 2.98 | V45: 2.216701561 | W45: 2.5 | X45: 65 | Y45: 0 | Z45: 2137 | AA45: 1.484969093 | AB45: 0.2433469791 | AC45: 0.08506050207 | AD45: 0 | AE45: 0 | AF45: 1 | AI45: 0.3356392231 | AJ45: 0 | AK45: 0 | AL45: 0 | AM45: 0.05243810637 | AN45: 0 | AO45: 0 | AP45: 0 | AQ45: 0 | AR45: 0 | AS45: 0 | AT45: 0 | AU45: 0 | AV45: 0 | AW45: 0 | AX45: 0 | AY45: 0 | AZ45: 0 | BA45: 0 | BB45: 0.05001737659 | BC45: 0.003287842623 | BD45: 0.02687201709 | BE45: 0 | BF45: 0 | BG45: 0.02875744757 | BH45: 0.0004936612254 | BI45: 0.06989334235 | BJ45: 0 | BK45: 0.01938616976 | BL45: 0 | BM45: 0 | BN45: 0 | BO45: 0 | BP45: 0 | BQ45: 0 | BR45: 0 | BS45: 0 | BT45: 0.007445136961 | BU45: 0.03803399089 | BV45: 0.03901413171 | BW45: 0 | BX45: 0 | BY45: 0 | BZ45: 0 | CA45: 0 | CB45: 0 | CC45: 0 | CD45: 0 | CE45: 0 | CF45: 0 | CG45: 0 | CH45: -0.02243874585 | CI45: -0.008123057771 | CJ45: 0 | CK45: 0.3495716022 | CL45: 30
B46: 25 | C46: 120 | D46: 0.02 | E46: 0.035 | F46: 2.98 | G46: 2.216701561 | H46: 2.5 | I46: 65 | J46: 0 | K46: 0 | L46: 0 | M46: 0 | N46: =+N13 -> 0.05 | O46: 0 | P46: 0 | Q46: 1 | R46: 120 | S46: 0.02 | T46: 0.035 | U46: 2.98 | V46: 2.216701561 | W46: 2.5 | X46: 65 | Y46: 0 | Z46: 2137 | AA46: 1.484969093 | AB46: 0.2433469791 | AC46: 0.09401423913 | AD46: 0 | AE46: 0 | AF46: 1 | AI46: 0.3274179344 | AJ46: 0 | AK46: 0 | AL46: 0 | AM46: 0.05250394779 | AN46: 0 | AO46: 0 | AP46: 0 | AQ46: 0 | AR46: 0 | AS46: 0 | AT46: 0 | AU46: 0 | AV46: 0 | AW46: 0 | AX46: 0 | AY46: 0 | AZ46: 0 | BA46: 0 | BB46: 0.05008017853 | BC46: 0.002978449813 | BD46: 0.02458802307 | BE46: 0 | BF46: 0 | BG46: 0.02796040675 | BH46: 0.0004472066803 | BI46: 0.06998110061 | BJ46: 0 | BK46: 0.01756189098 | BL46: 0 | BM46: 0 | BN46: 0 | BO46: 0 | BP46: 0 | BQ46: 0 | BR46: 0 | BS46: 0 | BT46: 0.006744534133 | BU46: 0.0365410842 | BV46: 0.03803111185 | BW46: 0 | BX46: 0 | BY46: 0 | BZ46: 0 | CA46: 0 | CB46: 0 | CC46: 0 | CD46: 0 | CE46: 0 | CF46: 0 | CG46: 0 | CH46: -0.02201579883 | CI46: -0.007349433221 | CJ46: 0 | CK46: 0.3495716022 | CL46: 30
B47: 26 | C47: 120 | D47: 0.02 | E47: 0.035 | F47: 2.98 | G47: 2.216701561 | H47: 2.5 | I47: 65 | J47: 0 | K47: 0 | L47: 0 | M47: 0 | N47: 0 | O47: =+O11 -> -0.1 | P47: 0 | Q47: 1 | R47: 120 | S47: 0.02 | T47: 0.035 | U47: 2.98 | V47: 2.216701561 | W47: 2.5 | X47: 65 | Y47: 0 | Z47: 2137 | AA47: 1.484969093 | AB47: 0.2433469791 | AC47: 0.0895373706 | AD47: -0.1 | AE47: 0 | AF47: 1 | AI47: 0.3587102615 | AJ47: 0 | AK47: 0 | AL47: 0 | AM47: 0.058373296 | AN47: 0 | AO47: 0 | AP47: 0 | AQ47: 0 | AR47: 0 | AS47: 0 | AT47: 0 | AU47: 0 | AV47: 0 | AW47: 0 | AX47: 0 | AY47: 0 | AZ47: 0 | BA47: 0 | BB47: 0.05567857672 | BC47: 0.003129279477 | BD47: 0.02570461295 | BE47: 0 | BF47: 0 | BG47: 0.03060129992 | BH47: 0.0004698533715 | BI47: 0.07780419705 | BJ47: 0 | BK47: 0.01845123083 | BL47: 0 | BM47: 0 | BN47: 0 | BO47: 0 | BP47: 0 | BQ47: 0 | BR47: 0 | BS47: 0 | BT47: 0.007086079527 | BU47: 0.03972877745 | BV47: 0.04168305825 | BW47: 0 | BX47: 0 | BY47: 0 | BZ47: 0 | CA47: 0 | CB47: 0 | CC47: 0 | CD47: 0 | CE47: 0 | CF47: 0 | CG47: 0 | CH47: -0.02421662442 | CI47: -0.007716904882 | CJ47: 0 | CK47: 0.314614442 | CL47: 30
B48: 27 | C48: 120 | D48: 0.02 | E48: 0.035 | F48: 2.98 | G48: 2.216701561 | H48: 2.5 | I48: 65 | J48: 0 | K48: 0 | L48: 0 | M48: 0 | N48: 0 | O48: =+O13 -> 0.1 | P48: 0 | Q48: 1 | R48: 120 | S48: 0.02 | T48: 0.035 | U48: 2.98 | V48: 2.216701561 | W48: 2.5 | X48: 65 | Y48: 0 | Z48: 2137 | AA48: 1.484969093 | AB48: 0.2433469791 | AC48: 0.0895373706 | AD48: 0.1 | AE48: 0 | AF48: 1 | AI48: 0.3089153252 | AJ48: 0 | AK48: 0 | AL48: 0 | AM48: 0.04764713507 | AN48: 0 | AO48: 0 | AP48: 0 | AQ48: 0 | AR48: 0 | AS48: 0 | AT48: 0 | AU48: 0 | AV48: 0 | AW48: 0 | AX48: 0 | AY48: 0 | AZ48: 0 | BA48: 0 | BB48: 0.04544757359 | BC48: 0.003121886459 | BD48: 0.02564388502 | BE48: 0 | BF48: 0 | BG48: 0.02648792771 | BH48: 0.0004687433286 | BI48: 0.06350758549 | BJ48: 0 | BK48: 0.01840763924 | BL48: 0 | BM48: 0 | BN48: 0 | BO48: 0 | BP48: 0 | BQ48: 0 | BR48: 0 | BS48: 0 | BT48: 0.007069338448 | BU48: 0.03522146234 | BV48: 0.0358921485 | BW48: 0 | BX48: 0 | BY48: 0 | BZ48: 0 | CA48: 0 | CB48: 0 | CC48: 0 | CD48: 0 | CE48: 0 | CF48: 0 | CG48: 0 | CH48: -0.02058039578 | CI48: -0.007716904882 | CJ48: 0 | CK48: 0.3845287624 | CL48: 30
B49: 28 | C49: 120 | D49: 0.02 | E49: 0.035 | F49: 2.98 | G49: 2.216701561 | H49: 2.5 | I49: 65 | J49: 0 | K49: 0 | L49: 0 | M49: 0 | N49: 0 | O49: 0 | P49: =+P11 -> -5 | Q49: 1 | R49: 120 | S49: 0.02 | T49: 0.035 | U49: 2.98 | V49: 2.216701561 | W49: 2.5 | X49: 65 | Y49: 0 | Z49: 2137 | AA49: 1.484969093 | AB49: 0.2433469791 | AC49: 0.0895373706 | AD49: 0 | AE49: -5 | AF49: 1 | AI49: 0.3451874218 | AJ49: 0 | AK49: 0 | AL49: 0 | AM49: 0.05193318545 | AN49: 0 | AO49: 0 | AP49: 0 | AQ49: 0 | AR49: 0 | AS49: 0 | AT49: 0 | AU49: 0 | AV49: 0 | AW49: 0 | AX49: 0 | AY49: 0 | AZ49: 0 | BA49: 0 | BB49: 0.04953576462 | BC49: 0.003093375121 | BD49: 0.02540968641 | BE49: 0 | BF49: 0 | BG49: 0.02924912751 | BH49: 0.0004879335872 | BI49: 0.0830644162 | BJ49: 0 | BK49: 0.02188743274 | BL49: 0 | BM49: 0 | BN49: 0 | BO49: 0 | BP49: 0 | BQ49: 0 | BR49: 0 | BS49: 0 | BT49: 0.008405731329 | BU49: 0.03209273728 | BV49: 0.04002803161 | BW49: 0 | BX49: 0 | BY49: 0 | BZ49: 0 | CA49: 0 | CB49: 0 | CC49: 0 | CD49: 0 | CE49: 0 | CF49: 0 | CG49: 0 | CH49: -0.02583261248 | CI49: -0.009260285858 | CJ49: 0 | CK49: 0.3495716022 | CL49: 20
B50: 29 | C50: 120 | D50: 0.02 | E50: 0.035 | F50: 2.98 | G50: 2.216701561 | H50: 2.5 | I50: 65 | J50: 0 | K50: 0 | L50: 0 | M50: 0 | N50: 0 | O50: 0 | P50: =+P13 -> 5 | Q50: 1 | R50: 120 | S50: 0.02 | T50: 0.035 | U50: 2.98 | V50: 2.216701561 | W50: 2.5 | X50: 65 | Y50: 0 | Z50: 2137 | AA50: 1.484969093 | AB50: 0.2433469791 | AC50: 0.0895373706 | AD50: 0 | AE50: 5 | AF50: 1 | AI50: 0.323022843 | AJ50: 0 | AK50: 0 | AL50: 0 | AM50: 0.05294918716 | AN50: 0 | AO50: 0 | AP50: 0 | AQ50: 0 | AR50: 0 | AS50: 0 | AT50: 0 | AU50: 0 | AV50: 0 | AW50: 0 | AX50: 0 | AY50: 0 | AZ50: 0 | BA50: 0 | BB50: 0.05050486407 | BC50: 0.003153892772 | BD50: 0.02590679216 | BE50: 0 | BF50: 0 | BG50: 0.02812674981 | BH50: 0.0004519150741 | BI50: 0.06049246988 | BJ50: 0 | BK50: 0.01593973601 | BL50: 0 | BM50: 0 | BN50: 0 | BO50: 0 | BP50: 0 | BQ50: 0 | BR50: 0 | BS50: 0 | BT50: 0.006121555686 | BU50: 0.04230245706 | BV50: 0.03707322337 | BW50: 0 | BX50: 0 | BY50: 0 | BZ50: 0 | CA50: 0 | CB50: 0 | CC50: 0 | CD50: 0 | CE50: 0 | CF50: 0 | CG50: 0 | CH50: -0.01939671039 | CI50: -0.006614489899 | CJ50: 0 | CK50: 0.3495716022 | CL50: 40
B51: 30 | C51: =+C22 -> 120 | D51: =+D22 -> 0.02 | E51: 0.035 | F51: 2.98 | G51: 2.216701561 | H51: 2.5 | I51: 65 | J51: =+J22 -> 0 | K51: 0 | L51: 0 | M51: 0 | N51: 0 | O51: 0 | P51: 0 | Q51: =+Q22+1 -> 2 | R51: 120 | S51: 0.02 | T51: 0.035 | U51: 2.98 | V51: 2.216701561 | W51: 2.5 | X51: 65 | Y51: 0 | Z51: 2137 | AA51: 29 | AB51: 0.2433469791 | AC51: 0.0895373706 | AD51: 0 | AE51: 0 | AF51: 2 | AI51: 0.6422153282 | AJ51: 0 | AK51: 0 | AL51: 0 | AM51: 0.05346781752 | AN51: 0 | AO51: 0 | AP51: 0 | AQ51: 0 | AR51: 0 | AS51: 0 | AT51: 0 | AU51: 0 | AV51: 0 | AW51: 0 | AX51: 0 | AY51: 0 | AZ51: 0 | BA51: 0 | BB51: 0.05008959754 | BC51: 0.06100486858 | BD51: 0.02565964417 | BE51: 0 | BF51: 0 | BG51: 0.06445833818 | BH51: 0 | BI51: 0.06990127467 | BJ51: 0.1381421357 | BK51: 0.01841895143 | BL51: 0 | BM51: 0 | BN51: 0 | BO51: 0 | BP51: 0 | BQ51: 0 | BR51: 0 | BS51: 0 | BT51: 0 | BU51: 0.06972853424 | BV51: 0.09134416612 | BW51: 0 | BX51: 0 | BY51: 0 | BZ51: 0 | CA51: 0 | CB51: 0 | CC51: 0 | CD51: 0 | CE51: 0 | CF51: 0 | CG51: 0 | CH51: -0.05839773614 | CI51: 0 | CJ51: 0 | CK51: 0.3495716022 | CL51: 30
B52: 31 | C52: =+C23 -> 72 | D52: 0.02 | E52: 0.035 | F52: 2.98 | G52: 2.216701561 | H52: 2.5 | I52: 65 | J52: 0 | K52: =+K23 -> 0 | L52: 0 | M52: 0 | N52: 0 | O52: 0 | P52: 0 | Q52: =+Q23+1 -> 2 | R52: 72 | S52: 0.02 | T52: 0.035 | U52: 2.98 | V52: 2.216701561 | W52: 2.5 | X52: 65 | Y52: 0 | Z52: 2137 | AA52: 29 | AB52: 0.2433469791 | AC52: 0.0895373706 | AD52: 0 | AE52: 0 | AF52: 2 | AI52: 0.5093113004 | AJ52: 0 | AK52: 0 | AL52: 0 | AM52: 0.0532669937 | AN52: 0 | AO52: 0 | AP52: 0 | AQ52: 0 | AR52: 0 | AS52: 0 | AT52: 0 | AU52: 0 | AV52: 0 | AW52: 0 | AX52: 0 | AY52: 0 | AZ52: 0 | BA52: 0 | BB52: 0.05025987916 | BC52: 0.03674688166 | BD52: 0.02576056441 | BE52: 0 | BF52: 0 | BG52: 0.04898131803 | BH52: 0 | BI52: 0.07017619872 | BJ52: 0.08321127203 | BK52: 0.01849139379 | BL52: 0 | BM52: 0 | BN52: 0 | BO52: 0 | BP52: 0 | BQ52: 0 | BR52: 0 | BS52: 0 | BT52: 0 | BU52: 0.05308902436 | BV52: 0.0693277745 | BW52: 0 | BX52: 0 | BY52: 0 | BZ52: 0 | CA52: 0 | CB52: 0 | CC52: 0 | CD52: 0 | CE52: 0 | CF52: 0 | CG52: 0 | CH52: -0.04413581997 | CI52: 0 | CJ52: 0 | CK52: 0.3495716022 | CL52: 30
B53: 32 | C53: =+C24 -> 168 | D53: 0.02 | E53: 0.035 | F53: 2.98 | G53: 2.216701561 | H53: 2.5 | I53: 65 | J53: 0 | K53: =+K24 -> 0 | L53: 0 | M53: 0 | N53: 0 | O53: 0 | P53: 0 | Q53: 2 | R53: 168 | S53: 0.02 | T53: 0.035 | U53: 2.98 | V53: 2.216701561 | W53: 2.5 | X53: 65 | Y53: 0 | Z53: 2137 | AA53: 29 | AB53: 0.2433469791 | AC53: 0.0895373706 | AD53: 0 | AE53: 0 | AF53: 2 | AI53: 0.7751193561 | AJ53: 0 | AK53: 0 | AL53: 0 | AM53: 0.05373898805 | AN53: 0 | AO53: 0 | AP53: 0 | AQ53: 0 | AR53: 0 | AS53: 0 | AT53: 0 | AU53: 0 | AV53: 0 | AW53: 0 | AX53: 0 | AY53: 0 | AZ53: 0 | BA53: 0 | BB53: 0.04998753875 | BC53: 0.08518752863 | BD53: 0.02559376142 | BE53: 0 | BF53: 0 | BG53: 0.07992151702 | BH53: 0 | BI53: 0.06972179874 | BJ53: 0.192902426 | BK53: 0.01837165961 | BL53: 0 | BM53: 0 | BN53: 0 | BO53: 0 | BP53: 0 | BQ53: 0 | BR53: 0 | BS53: 0 | BT53: 0 | BU53: 0.08635373761 | BV53: 0.1133404003 | BW53: 0 | BX53: 0 | BY53: 0 | BZ53: 0 | CA53: 0 | CB53: 0 | CC53: 0 | CD53: 0 | CE53: 0 | CF53: 0 | CG53: 0 | CH53: -0.07265965231 | CI53: 0 | CJ53: 0 | CK53: 0.3495716022 | CL53: 30
B54: 33 | C54: =+C25 -> 120 | D54: 0.01 | E54: 0.035 | F54: 2.98 | G54: 2.216701561 | H54: 2.5 | I54: 65 | J54: 0 | K54: =+K25 -> 0 | L54: 0 | M54: 0 | N54: 0 | O54: 0 | P54: 0 | Q54: 2 | R54: 120 | S54: 0.01 | T54: 0.035 | U54: 2.98 | V54: 2.216701561 | W54: 2.5 | X54: 65 | Y54: 0 | Z54: 2137 | AA54: 29 | AB54: 0.2433469791 | AC54: 0.0895373706 | AD54: 0 | AE54: 0 | AF54: 2 | AI54: 0.6127300978 | AJ54: 0 | AK54: 0 | AL54: 0 | AM54: 0.02662647521 | AN54: 0 | AO54: 0 | AP54: 0 | AQ54: 0 | AR54: 0 | AS54: 0 | AT54: 0 | AU54: 0 | AV54: 0 | AW54: 0 | AX54: 0 | AY54: 0 | AZ54: 0 | BA54: 0 | BB54: 0.04988830624 | BC54: 0.06075971291 | BD54: 0.02555652769 | BE54: 0 | BF54: 0 | BG54: 0.06412657461 | BH54: 0 | BI54: 0.06962036767 | BJ54: 0.1375869943 | BK54: 0.01834493258 | BL54: 0 | BM54: 0 | BN54: 0 | BO54: 0 | BP54: 0 | BQ54: 0 | BR54: 0 | BS54: 0 | BT54: 0 | BU54: 0.06924311837 | BV54: 0.09097708819 | BW54: 0 | BX54: 0 | BY54: 0 | BZ54: 0 | CA54: 0 | CB54: 0 | CC54: 0 | CD54: 0 | CE54: 0 | CF54: 0 | CG54: 0 | CH54: -0.05841366879 | CI54: 0 | CJ54: 0 | CK54: 0.3495716022 | CL54: 30
B55: 34 | C55: =+C26 -> 120 | D55: 0.03 | E55: 0.035 | F55: 2.98 | G55: 2.216701561 | H55: 2.5 | I55: 65 | J55: 0 | K55: =+K26 -> 0 | L55: 0 | M55: 0 | N55: 0 | O55: 0 | P55: 0 | Q55: 2 | R55: 120 | S55: 0.03 | T55: 0.035 | U55: 2.98 | V55: 2.216701561 | W55: 2.5 | X55: 65 | Y55: 0 | Z55: 2137 | AA55: 29 | AB55: 0.2433469791 | AC55: 0.0895373706 | AD55: 0 | AE55: 0 | AF55: 2 | AI55: 0.6717005586 | AJ55: 0 | AK55: 0 | AL55: 0 | AM55: 0.08049800802 | AN55: 0 | AO55: 0 | AP55: 0 | AQ55: 0 | AR55: 0 | AS55: 0 | AT55: 0 | AU55: 0 | AV55: 0 | AW55: 0 | AX55: 0 | AY55: 0 | AZ55: 0 | BA55: 0 | BB55: 0.05027463886 | BC55: 0.06123023316 | BD55: 0.02575443619 | BE55: 0 | BF55: 0 | BG55: 0.06476975351 | BH55: 0 | BI55: 0.07015950441 | BJ55: 0.1386524613 | BK55: 0.01848699484 | BL55: 0 | BM55: 0 | BN55: 0 | BO55: 0 | BP55: 0 | BQ55: 0 | BR55: 0 | BS55: 0 | BT55: 0 | BU55: 0.07019291797 | BV55: 0.09168161033 | BW55: 0 | BX55: 0 | BY55: 0 | BZ55: 0 | CA55: 0 | CB55: 0 | CC55: 0 | CD55: 0 | CE55: 0 | CF55: 0 | CG55: 0 | CH55: -0.05838180349 | CI55: 0 | CJ55: 0 | CK55: 0.3495716022 | CL55: 30
B56: 35 | C56: =+C27 -> 120 | D56: 0.02 | E56: 0.025 | F56: 2.98 | G56: 2.216701561 | H56: 2.5 | I56: 65 | J56: 0 | K56: =+K27 -> 0 | L56: 0 | M56: 0 | N56: 0 | O56: 0 | P56: 0 | Q56: 2 | R56: 120 | S56: 0.02 | T56: 0.025 | U56: 2.98 | V56: 2.216701561 | W56: 2.5 | X56: 65 | Y56: 0 | Z56: 2137 | AA56: 29 | AB56: 0.2433469791 | AC56: 0.0895373706 | AD56: 0 | AE56: 0 | AF56: 2 | AI56: 0.6422153282 | AJ56: 0 | AK56: 0 | AL56: 0 | AM56: 0.05346781752 | AN56: 0 | AO56: 0 | AP56: 0 | AQ56: 0 | AR56: 0 | AS56: 0 | AT56: 0 | AU56: 0 | AV56: 0 | AW56: 0 | AX56: 0 | AY56: 0 | AZ56: 0 | BA56: 0 | BB56: 0.05008959754 | BC56: 0.06100486858 | BD56: 0.02565964417 | BE56: 0 | BF56: 0 | BG56: 0.06445833818 | BH56: 0 | BI56: 0.06990127467 | BJ56: 0.1381421357 | BK56: 0.01841895143 | BL56: 0 | BM56: 0 | BN56: 0 | BO56: 0 | BP56: 0 | BQ56: 0 | BR56: 0 | BS56: 0 | BT56: 0 | BU56: 0.06972853424 | BV56: 0.09134416612 | BW56: 0 | BX56: 0 | BY56: 0 | BZ56: 0 | CA56: 0 | CB56: 0 | CC56: 0 | CD56: 0 | CE56: 0 | CF56: 0 | CG56: 0 | CH56: -0.05839773614 | CI56: 0 | CJ56: 0 | CK56: 0.3495716022 | CL56: 30
B57: 36 | C57: =+C28 -> 120 | D57: 0.02 | E57: 0.045 | F57: 2.98 | G57: 2.216701561 | H57: 2.5 | I57: 65 | J57: 0 | K57: =+K28 -> 0 | L57: 0 | M57: 0 | N57: 0 | O57: 0 | P57: 0 | Q57: 2 | R57: 120 | S57: 0.02 | T57: 0.045 | U57: 2.98 | V57: 2.216701561 | W57: 2.5 | X57: 65 | Y57: 0 | Z57: 2137 | AA57: 29 | AB57: 0.2433469791 | AC57: 0.0895373706 | AD57: 0 | AE57: 0 | AF57: 2 | AI57: 0.6422153282 | AJ57: 0 | AK57: 0 | AL57: 0 | AM57: 0.05346781752 | AN57: 0 | AO57: 0 | AP57: 0 | AQ57: 0 | AR57: 0 | AS57: 0 | AT57: 0 | AU57: 0 | AV57: 0 | AW57: 0 | AX57: 0 | AY57: 0 | AZ57: 0 | BA57: 0 | BB57: 0.05008959754 | BC57: 0.06100486858 | BD57: 0.02565964417 | BE57: 0 | BF57: 0 | BG57: 0.06445833818 | BH57: 0 | BI57: 0.06990127467 | BJ57: 0.1381421357 | BK57: 0.01841895143 | BL57: 0 | BM57: 0 | BN57: 0 | BO57: 0 | BP57: 0 | BQ57: 0 | BR57: 0 | BS57: 0 | BT57: 0 | BU57: 0.06972853424 | BV57: 0.09134416612 | BW57: 0 | BX57: 0 | BY57: 0 | BZ57: 0 | CA57: 0 | CB57: 0 | CC57: 0 | CD57: 0 | CE57: 0 | CF57: 0 | CG57: 0 | CH57: -0.05839773614 | CI57: 0 | CJ57: 0 | CK57: 0.3495716022 | CL57: 30
B58: 37 | C58: =+C29 -> 120 | D58: 0.02 | E58: 0.035 | F58: 2.383 | G58: 2.216701561 | H58: 2.5 | I58: 65 | J58: 0 | K58: =+K29 -> 0 | L58: 0 | M58: 0 | N58: 0 | O58: 0 | P58: 0 | Q58: 2 | R58: 120 | S58: 0.02 | T58: 0.035 | U58: 2.383 | V58: 2.216701561 | W58: 2.5 | X58: 65 | Y58: 0 | Z58: 2137 | AA58: 29 | AB58: 0.2433469791 | AC58: 0.0895373706 | AD58: 0 | AE58: 0 | AF58: 2 | AI58: 0.6422153282 | AJ58: 0 | AK58: 0 | AL58: 0 | AM58: 0.05346781752 | AN58: 0 | AO58: 0 | AP58: 0 | AQ58: 0 | AR58: 0 | AS58: 0 | AT58: 0 | AU58: 0 | AV58: 0 | AW58: 0 | AX58: 0 | AY58: 0 | AZ58: 0 | BA58: 0 | BB58: 0.05008959754 | BC58: 0.06100486858 | BD58: 0.02565964417 | BE58: 0 | BF58: 0 | BG58: 0.06445833818 | BH58: 0 | BI58: 0.06990127467 | BJ58: 0.1381421357 | BK58: 0.01841895143 | BL58: 0 | BM58: 0 | BN58: 0 | BO58: 0 | BP58: 0 | BQ58: 0 | BR58: 0 | BS58: 0 | BT58: 0 | BU58: 0.06972853424 | BV58: 0.09134416612 | BW58: 0 | BX58: 0 | BY58: 0 | BZ58: 0 | CA58: 0 | CB58: 0 | CC58: 0 | CD58: 0 | CE58: 0 | CF58: 0 | CG58: 0 | CH58: -0.05839773614 | CI58: 0 | CJ58: 0 | CK58: 0.3495716022 | CL58: 30
B59: 38 | C59: =+C30 -> 120 | D59: 0.02 | E59: 0.035 | F59: 3.505 | G59: 2.216701561 | H59: 2.5 | I59: 65 | J59: 0 | K59: =+K30 -> 0 | L59: 0 | M59: 0 | N59: 0 | O59: 0 | P59: 0 | Q59: 2 | R59: 120 | S59: 0.02 | T59: 0.035 | U59: 3.505 | V59: 2.216701561 | W59: 2.5 | X59: 65 | Y59: 0 | Z59: 2137 | AA59: 29 | AB59: 0.2433469791 | AC59: 0.0895373706 | AD59: 0 | AE59: 0 | AF59: 2 | AI59: 0.6422153282 | AJ59: 0 | AK59: 0 | AL59: 0 | AM59: 0.05346781752 | AN59: 0 | AO59: 0 | AP59: 0 | AQ59: 0 | AR59: 0 | AS59: 0 | AT59: 0 | AU59: 0 | AV59: 0 | AW59: 0 | AX59: 0 | AY59: 0 | AZ59: 0 | BA59: 0 | BB59: 0.05008959754 | BC59: 0.06100486858 | BD59: 0.02565964417 | BE59: 0 | BF59: 0 | BG59: 0.06445833818 | BH59: 0 | BI59: 0.06990127467 | BJ59: 0.1381421357 | BK59: 0.01841895143 | BL59: 0 | BM59: 0 | BN59: 0 | BO59: 0 | BP59: 0 | BQ59: 0 | BR59: 0 | BS59: 0 | BT59: 0 | BU59: 0.06972853424 | BV59: 0.09134416612 | BW59: 0 | BX59: 0 | BY59: 0 | BZ59: 0 | CA59: 0 | CB59: 0 | CC59: 0 | CD59: 0 | CE59: 0 | CF59: 0 | CG59: 0 | CH59: -0.05839773614 | CI59: 0 | CJ59: 0 | CK59: 0.3495716022 | CL59: 30
B60: 39 | C60: =+C31 -> 120 | D60: 0.02 | E60: 0.035 | F60: 2.98 | G60: 1.175833333 | H60: 2.5 | I60: 65 | J60: 0 | K60: =+K31 -> 0 | L60: 0 | M60: 0 | N60: 0 | O60: 0 | P60: 0 | Q60: 2 | R60: 120 | S60: 0.02 | T60: 0.035 | U60: 2.98 | V60: 1.175833333 | W60: 2.5 | X60: 65 | Y60: 0 | Z60: 2137 | AA60: 29 | AB60: 0.2433469791 | AC60: 0.0895373706 | AD60: 0 | AE60: 0 | AF60: 2 | AI60: 0.6422153282 | AJ60: 0 | AK60: 0 | AL60: 0 | AM60: 0.05346781752 | AN60: 0 | AO60: 0 | AP60: 0 | AQ60: 0 | AR60: 0 | AS60: 0 | AT60: 0 | AU60: 0 | AV60: 0 | AW60: 0 | AX60: 0 | AY60: 0 | AZ60: 0 | BA60: 0 | BB60: 0.05008959754 | BC60: 0.06100486858 | BD60: 0.02565964417 | BE60: 0 | BF60: 0 | BG60: 0.06445833818 | BH60: 0 | BI60: 0.06990127467 | BJ60: 0.1381421357 | BK60: 0.01841895143 | BL60: 0 | BM60: 0 | BN60: 0 | BO60: 0 | BP60: 0 | BQ60: 0 | BR60: 0 | BS60: 0 | BT60: 0 | BU60: 0.06972853424 | BV60: 0.09134416612 | BW60: 0 | BX60: 0 | BY60: 0 | BZ60: 0 | CA60: 0 | CB60: 0 | CC60: 0 | CD60: 0 | CE60: 0 | CF60: 0 | CG60: 0 | CH60: -0.05839773614 | CI60: 0 | CJ60: 0 | CK60: 0.3495716022 | CL60: 30
B61: 40 | C61: =+C32 -> 120 | D61: 0.02 | E61: 0.035 | F61: 2.98 | G61: 2.660833333 | H61: 2.5 | I61: 65 | J61: 0 | K61: =+K32 -> 0 | L61: 0 | M61: 0 | N61: 0 | O61: 0 | P61: 0 | Q61: 2 | R61: 120 | S61: 0.02 | T61: 0.035 | U61: 2.98 | V61: 2.660833333 | W61: 2.5 | X61: 65 | Y61: 0 | Z61: 2137 | AA61: 29 | AB61: 0.2433469791 | AC61: 0.0895373706 | AD61: 0 | AE61: 0 | AF61: 2 | AI61: 0.6422153282 | AJ61: 0 | AK61: 0 | AL61: 0 | AM61: 0.05346781752 | AN61: 0 | AO61: 0 | AP61: 0 | AQ61: 0 | AR61: 0 | AS61: 0 | AT61: 0 | AU61: 0 | AV61: 0 | AW61: 0 | AX61: 0 | AY61: 0 | AZ61: 0 | BA61: 0 | BB61: 0.05008959754 | BC61: 0.06100486858 | BD61: 0.02565964417 | BE61: 0 | BF61: 0 | BG61: 0.06445833818 | BH61: 0 | BI61: 0.06990127467 | BJ61: 0.1381421357 | BK61: 0.01841895143 | BL61: 0 | BM61: 0 | BN61: 0 | BO61: 0 | BP61: 0 | BQ61: 0 | BR61: 0 | BS61: 0 | BT61: 0 | BU61: 0.06972853424 | BV61: 0.09134416612 | BW61: 0 | BX61: 0 | BY61: 0 | BZ61: 0 | CA61: 0 | CB61: 0 | CC61: 0 | CD61: 0 | CE61: 0 | CF61: 0 | CG61: 0 | CH61: -0.05839773614 | CI61: 0 | CJ61: 0 | CK61: 0.3495716022 | CL61: 30
B62: 41 | C62: =+C33 -> 120 | D62: 0.02 | E62: 0.035 | F62: 2.98 | G62: 2.216701561 | H62: 1.74 | I62: 65 | J62: 0 | K62: =+K33 -> 0 | L62: 0 | M62: 0 | N62: 0 | O62: 0 | P62: 0 | Q62: 2 | R62: 120 | S62: 0.02 | T62: 0.035 | U62: 2.98 | V62: 2.216701561 | W62: 1.74 | X62: 65 | Y62: 0 | Z62: 2137 | AA62: 29 | AB62: 0.2433469791 | AC62: 0.0895373706 | AD62: 0 | AE62: 0 | AF62: 2 | AI62: 0.6422153282 | AJ62: 0 | AK62: 0 | AL62: 0 | AM62: 0.05346781752 | AN62: 0 | AO62: 0 | AP62: 0 | AQ62: 0 | AR62: 0 | AS62: 0 | AT62: 0 | AU62: 0 | AV62: 0 | AW62: 0 | AX62: 0 | AY62: 0 | AZ62: 0 | BA62: 0 | BB62: 0.05008959754 | BC62: 0.06100486858 | BD62: 0.02565964417 | BE62: 0 | BF62: 0 | BG62: 0.06445833818 | BH62: 0 | BI62: 0.06990127467 | BJ62: 0.1381421357 | BK62: 0.01841895143 | BL62: 0 | BM62: 0 | BN62: 0 | BO62: 0 | BP62: 0 | BQ62: 0 | BR62: 0 | BS62: 0 | BT62: 0 | BU62: 0.06972853424 | BV62: 0.09134416612 | BW62: 0 | BX62: 0 | BY62: 0 | BZ62: 0 | CA62: 0 | CB62: 0 | CC62: 0 | CD62: 0 | CE62: 0 | CF62: 0 | CG62: 0 | CH62: -0.05839773614 | CI62: 0 | CJ62: 0 | CK62: 0.3495716022 | CL62: 30
... 77 more rows

Sheet Sensitivity Parameters
C4: Min | D4: Baseline | E4: Max | F4: References
B5: Storage duration rating (h) | C5: 72 | D5: =+'Technology Specifications'!C11 -> 120 | E5: 168 | F5: =+Description!A38 -> 2
B7: Energy costs
B8: Electricity for energy storage scenarios ($/kWh) | C8: 0.01 | D8: =+'Technology Specifications'!C12 -> 0.02 | E8: 0.03 | F8: =+Description!A39 -> 3
B9: Natural gas ($/MMBTU) | C9: 2.383 | D9: =+'Technology Specifications'!C13 -> 2.98 | E9: 3.505 | F9: =+Description!A75 -> 39
B10: Ethanol ($/gal) | C10: 1.175833333 | D10: =+'Technology Specifications'!C14 -> 2.216701561 | E10: 2.660833333 | F10: =Description!A50&", "&Description!A76&", "&Description!A77 -> 14, 40, 41
B11: CO₂ transportation and sequestration cost ($/tonne) | C11: 27 | D11: =+'Technology Specifications'!C15 -> 65 | E11: 125 | F11: =+Description!A70&", "&Description!A71&", "&Description!A72 -> 34, 35, 36
B12: GHG emission shadow price ($/m.tonne) | C12: 0 | D12: =+'Technology Specifications'!C16 -> 0 | E12: 100
B14: Hydrogen coproduction related
B15: Electricity for coproduction scenarios ($/kWh) | C15: 0.025 | D15: =+'Technology Specifications'!C74 -> 0.035 | E15: 0.045 | F15: =+Description!A38&", "&Description!A39 -> 2, 3
B16: Hydrogen coproduction value ($/kg) | C16: 1.74 | D16: =+'Technology Specifications'!C75 -> 2.5 | E16: 3 | F16: =+Description!A63&", "&Description!A79 -> 27, 43
B18: Capital related
B19: Power capital ±% | C19: -0.1 | D19: 0 | E19: 0.1
B20: Energy capital ±% | C20: -0.1 | D20: 0 | E20: 0.1
B22: Other parameter sensitivities
B23: Recharge capacity factor ±% | C23: -0.05 | D23: 0 | E23: 0.05
B24: Power generation capacity factor ±% | C24: -0.05 | D24: 0 | E24: 0.05
B25: Relative efficiency ±% | C25: -0.1 | D25: 0 | E25: 0.1
B26: System life ± years | C26: -5 | D26: 0 | E26: 5

Sheet Basic Sheets Change Detection (hidden)
AP19: =+IF(AQ23,"Inputs have changed. Rerun to update.","") -> 
B23: Current values | V23: Values for updated results | AP23: #Input differences | AQ23: =+SUM(AQ27:AQ32,AS41:BG50,AS55:BG56,AS58:BG58,AS61:BG61,AS64:BG65,AS67:BG67,AS71:BG75,AS77:BG78,AS80:BG83,AS86:BG89,AQ104:AS104,AQ107:AS111,AQ114:AS115,AQ118:AS119,AQ122:AS125,AQ131:AR134,AQ136:AQ138,AQ151:AQ157,AQ159,AQ161,AQ170:AQ173,AQ177:AQ181,AQ184:AQ185,AQ188,AQ191,AQ194,AQ199:AQ200,AQ216:AQ224,AQ229:AQ238,AQ241:AQ244,AQ247:AQ259,AQ266:AQ269,AQ272:AQ283,AQ287) -> 0
BJ24: RESTORE VALUES CURRENT TECH | CD24: RESTORE VALUES FUTURE TECH
B26: =+'Technology Specifications'!B10 -> Global baseline values | C26: =+'Technology Specifications'!C10 -> 0 | D26: =+'Technology Specifications'!D10 -> References | V26: Global baseline values | W26: 0 | X26: References | AP26: Global baseline values | AQ26: 0 | AR26: References | BI26: =+ROW() -> 26 | BJ26: Global baseline values | BK26: 0 | BL26: References | CD26: Global baseline values | CE26: 0 | CF26: References
B27: =+'Technology Specifications'!B11 -> Storage duration rating (h) | C27: =+'Technology Specifications'!C11 -> 120 | V27: Storage duration rating (h) | W27: 120 | AP27: Storage duration rating (h) | AQ27: =1-(C27=W27) -> 0 | BI27: =+ROW() -> 27 | BJ27: Storage duration rating (h) | BK27: 120 | CD27: Storage duration rating (h) | CE27: 120
B28: =+'Technology Specifications'!B12 -> Electricity for energy storage ($/kWh) | C28: =+'Technology Specifications'!C12 -> 0.02 | V28: Electricity for energy storage ($/kWh) | W28: 0.02 | AP28: Electricity for energy storage ($/kWh) | AQ28: =1-(C28=W28) -> 0 | BI28: 28 | BJ28: Electricity for energy storage ($/kWh) | BK28: 0.02 | CD28: Electricity for energy storage ($/kWh) | CE28: 0.02
B29: =+'Technology Specifications'!B13 -> Natural gas ($/MMBTU) | C29: =+'Technology Specifications'!C13 -> 2.98 | V29: Natural gas ($/MMBTU) | W29: 2.98 | AP29: Natural gas ($/MMBTU) | AQ29: 0 | BI29: 29 | BJ29: Natural gas ($/MMBTU) | BK29: 2.98 | CD29: Natural gas ($/MMBTU) | CE29: 2.98
B30: =+'Technology Specifications'!B14 -> Ethanol ($/gal) | C30: =+'Technology Specifications'!C14 -> 2.216701561 | V30: Ethanol ($/gal) | W30: 2.216701561 | AP30: Ethanol ($/gal) | AQ30: 0 | BI30: 30 | BJ30: Ethanol ($/gal) | BK30: 2.216701561 | CD30: Ethanol ($/gal) | CE30: 2.216701561
B31: =+'Technology Specifications'!B15 -> CO₂ transportation and sequestration cost ($/m.tonne) | C31: =+'Technology Specifications'!C15 -> 65 | V31: CO₂ transportation and sequestration cost ($/m.tonne) | W31: 65 | AP31: CO₂ transportation and sequestration cost ($/tonne) | AQ31: 0 | BI31: 31 | BJ31: CO₂ transportation and sequestration cost ($/tonne) | BK31: 65 | CD31: CO₂ transportation and sequestration cost ($/tonne) | CE31: 65
B32: =+'Technology Specifications'!B16 -> GHG emission shadow price ($/m.tonne) | C32: =+'Technology Specifications'!C16 -> 0 | V32: GHG emission shadow price ($/m.tonne) | W32: 0 | AP32: CO₂ emission shadow price ($/m.tonne) | AQ32: =1-(C32=W32) -> 0 | BI32: 32 | BJ32: CO₂ emission shadow price ($/m.tonne) | BK32: 0 | CD32: CO₂ emission shadow price ($/m.tonne) | CE32: 0
BI33: 33
BI34: 34
BI35: 35
BI36: 36
BI37: 37
E38: =+'Technology Specifications'!E22 -> HDV-PEM|Salt | F38: =+'Technology Specifications'!F22 -> HDV-PEM|Pipes | G38: =+'Technology Specifications'!G22 -> Stat-PEM|Salt | H38: =+'Technology Specifications'!H22 -> H2-CC|Salt | I38: =+'Technology Specifications'!I22 -> NG-CC | J38: =+'Technology Specifications'!J22 -> NG-CC|CCS | K38: =+'Technology Specifications'!K22 -> Eth-CC | L38: =+'Technology Specifications'!L22 -> PHS | M38: =+'Technology Specifications'!M22 -> A-CAES|Salt | N38: =+'Technology Specifications'!N22 -> D-CAES|Salt | O38: =+'Technology Specifications'!O22 -> VRB | P38: =+'Technology Specifications'!P22 -> P-TES | Q38: =+'Technology Specifications'!Q22 -> Li-Ion | R38: =+'Technology Specifications'!R22 -> 0 | S38: =+'Technology Specifications'!S22 -> 0 | Y38: HDV-PEM|Salt | Z38: HDV-PEM|Pipes | AA38: Stat-PEM|Salt | AB38: H2-CC|Salt | AC38: NG-CC | AD38: NG-CC|CCS | AE38: Eth-CC | AF38: PHS | AG38: A-CAES|Salt | AH38: D-CAES|Salt | AI38: VRB | AJ38: P-TES | AK38: Li-Ion | AL38: 0 | AM38: 0 | AS38: HDV-PEM|Salt | AT38: HDV-PEM|Pipes | AU38: Stat-PEM|Salt | AV38: H2-CC|Salt | AW38: NG-CC | AX38: NG-CC|CCS | AY38: Eth-CC | AZ38: PHS | BA38: A-CAES|Salt | BB38: D-CAES|Salt | BC38: VRB | BD38: P-TES | BE38: Li-Ion | BF38: 0 | BG38: 0 | BI38: 38 | BM38: HDV-PEM|Salt | BN38: HDV-PEM|Pipes | BO38: Stat-PEM|Salt | BP38: H2-CC|Salt | BQ38: NG-CC | BR38: NG-CC|CCS | BS38: Eth-CC | BT38: PHS | BU38: A-CAES|Salt | BV38: D-CAES|Salt | BW38: VRB | BX38: P-TES | BY38: Li-Ion | BZ38: 0 | CA38: 0 | CG38: HDV-PEM|Salt | CH38: HDV-PEM|Pipes | CI38: Stat-PEM|Salt | CJ38: H2-CC|Salt | CK38: NG-CC | CL38: NG-CC|CCS | CM38: Eth-CC | CN38: PHS | CO38: A-CAES|Salt | CP38: D-CAES|Salt | CQ38: VRB | CR38: P-TES | CS38: Li-Ion | CT38: 0 | CU38: 0
BI39: 39
B40: =+'Technology Specifications'!B24 -> Capital costs | C40: =+'Technology Specifications'!C24 -> 0 | V40: Capital costs | W40: 0 | AP40: Capital costs | AQ40: 0 | BI40: 40 | BJ40: Capital costs | BK40: 0 | CD40: Capital costs | CE40: 0
B41: =+'Technology Specifications'!B25 -> Charging ($/kW-AC-in) | C41: =+'Technology Specifications'!C25 -> 0 | D41: =+'Technology Specifications'!D25 -> 0 | E41: =+'Technology Specifications'!E25 -> 1673 | F41: =+'Technology Specifications'!F25 -> 1673 | G41: =+'Technology Specifications'!G25 -> 1673 | H41: =+'Technology Specifications'!H25 -> 1673 | I41: =+'Technology Specifications'!I25 -> 0 | J41: =+'Technology Specifications'!J25 -> 0 | K41: =+'Technology Specifications'!K25 -> 0 | L41: =+'Technology Specifications'!L25 -> 0 | M41: =+'Technology Specifications'!M25 -> 507 | N41: =+'Technology Specifications'!N25 -> 507 | O41: =+'Technology Specifications'!O25 -> 0 | P41: =+'Technology Specifications'!P25 -> 0 | Q41: =+'Technology Specifications'!Q25 -> 0 | R41: =+'Technology Specifications'!R25 -> 0 | S41: =+'Technology Specifications'!S25 -> 0 | V41: Charging ($/kW-AC-in) | W41: 0 | X41: 0 | Y41: 1673 | Z41: 1673 | AA41: 1673 | AB41: 1673 | AC41: 0 | AD41: 0 | AE41: 0 | AF41: 0 | AG41: 507 | AH41: 507 | AI41: 0 | AJ41: 0 | AK41: 0 | AL41: 0 | AM41: 0 | AP41: Charging ($/kW-AC-in) | AQ41: 0 | AR41: 0 | AS41: =1-(E41=Y41) -> 0 | AT41: =1-(F41=Z41) -> 0 | AU41: =1-(G41=AA41) -> 0 | AV41: =1-(H41=AB41) -> 0 | AW41: =1-(I41=AC41) -> 0 | AX41: =1-(J41=AD41) -> 0 | AY41: =1-(K41=AE41) -> 0 | AZ41: =1-(L41=AF41) -> 0 | BA41: =1-(M41=AG41) -> 0 | BB41: =1-(N41=AH41) -> 0 | BC41: =1-(O41=AI41) -> 0 | BD41: =1-(P41=AJ41) -> 0 | BE41: =1-(Q41=AK41) -> 0 | BF41: =1-(R41=AL41) -> 0 | BG41: =1-(S41=AM41) -> 0 | BI41: 41 | BJ41: Charging ($/kW-AC-in) | BK41: 0 | BL41: 0 | BM41: 1673 | BN41: 1673 | BO41: 1673 | BP41: 1673 | BQ41: 0 | BR41: 0 | BS41: 0 | BT41: 0 | BU41: 507 | BV41: 507 | BW41: 0 | BX41: 0 | BY41: 0 | BZ41: 0 | CA41: 0 | CD41: Charging ($/kW-AC-in) | CE41: 0 | CF41: 0 | CG41: 446 | CH41: 446 | CI41: 446 | CJ41: 446 | CK41: 0 | CL41: 0 | CM41: 0 | CN41: 0 | CO41: 485.27888 | CP41: 485.27888 | CQ41: 0 | CR41: 0 | CS41: 0 | CT41: 0 | CU41: 0
B42: =+'Technology Specifications'!B26 -> Charging base capacity (kW) | C42: =+'Technology Specifications'!C26 -> 0 | D42: =+'Technology Specifications'!D26 -> 0 | E42: =+'Technology Specifications'!E26 -> 1 | F42: =+'Technology Specifications'!F26 -> 1 | G42: =+'Technology Specifications'!G26 -> 1 | H42: =+'Technology Specifications'!H26 -> 1 | I42: =+'Technology Specifications'!I26 -> 0 | J42: =+'Technology Specifications'!J26 -> 0 | K42: =+'Technology Specifications'!K26 -> 0 | L42: =+'Technology Specifications'!L26 -> 0 | M42: =+'Technology Specifications'!M26 -> 1 | N42: =+'Technology Specifications'!N26 -> 1 | O42: =+'Technology Specifications'!O26 -> 0 | P42: =+'Technology Specifications'!P26 -> 0 | Q42: =+'Technology Specifications'!Q26 -> 0 | R42: =+'Technology Specifications'!R26 -> 0 | S42: =+'Technology Specifications'!S26 -> 0 | V42: Charging base capacity (kW) | W42: 0 | X42: 0 | Y42: 1 | Z42: 1 | AA42: 1 | AB42: 1 | AC42: 0 | AD42: 0 | AE42: 0 | AF42: 0 | AG42: 1 | AH42: 1 | AI42: 0 | AJ42: 0 | AK42: 0 | AL42: 0 | AM42: 0 | AP42: Charging base capacity (kW) | AQ42: 0 | AR42: 0 | AS42: 0 | AT42: 0 | AU42: 0 | AV42: 0 | AW42: 0 | AX42: 0 | AY42: 0 | AZ42: 0 | BA42: 0 | BB42: 0 | BC42: 0 | BD42: 0 | BE42: 0 | BF42: 0 | BG42: 0 | BI42: 42 | BJ42: Charging base capacity (kW) | BK42: 0 | BL42: 0 | BM42: 1 | BN42: 1 | BO42: 1 | BP42: 1 | BQ42: 0 | BR42: 0 | BS42: 0 | BT42: 0 | BU42: 1 | BV42: 1 | BW42: 0 | BX42: 0 | BY42: 0 | BZ42: 0 | CA42: 0 | CD42: Charging base capacity (kW) | CE42: 0 | CF42: 0 | CG42: 1 | CH42: 1 | CI42: 1 | CJ42: 1 | CK42: 0 | CL42: 0 | CM42: 0 | CN42: 0 | CO42: 1 | CP42: 1 | CQ42: 0 | CR42: 0 | CS42: 0 | CT42: 0 | CU42: 0
B43: =+'Technology Specifications'!B27 -> Charging scaling factor | C43: =+'Technology Specifications'!C27 -> 0 | D43: =+'Technology Specifications'!D27 -> 0 | E43: =+'Technology Specifications'!E27 -> 1 | F43: =+'Technology Specifications'!F27 -> 1 | G43: =+'Technology Specifications'!G27 -> 1 | H43: =+'Technology Specifications'!H27 -> 1 | I43: =+'Technology Specifications'!I27 -> 0 | J43: =+'Technology Specifications'!J27 -> 0 | K43: =+'Technology Specifications'!K27 -> 0 | L43: =+'Technology Specifications'!L27 -> 0 | M43: =+'Technology Specifications'!M27 -> 1 | N43: =+'Technology Specifications'!N27 -> 1 | O43: =+'Technology Specifications'!O27 -> 0 | P43: =+'Technology Specifications'!P27 -> 0 | Q43: =+'Technology Specifications'!Q27 -> 0 | R43: =+'Technology Specifications'!R27 -> 0 | S43: =+'Technology Specifications'!S27 -> 0 | V43: Charging scaling factor | W43: 0 | X43: 0 | Y43: 1 | Z43: 1 | AA43: 1 | AB43: 1 | AC43: 0 | AD43: 0 | AE43: 0 | AF43: 0 | AG43: 1 | AH43: 1 | AI43: 0 | AJ43: 0 | AK43: 0 | AL43: 0 | AM43: 0 | AP43: Charging scaling factor | AQ43: 0 | AR43: 0 | AS43: 0 | AT43: 0 | AU43: 0 | AV43: 0 | AW43: 0 | AX43: 0 | AY43: 0 | AZ43: 0 | BA43: 0 | BB43: 0 | BC43: 0 | BD43: 0 | BE43: 0 | BF43: 0 | BG43: 0 | BI43: 43 | BJ43: Charging scaling factor | BK43: 0 | BL43: 0 | BM43: 1 | BN43: 1 | BO43: 1 | BP43: 1 | BQ43: 0 | BR43: 0 | BS43: 0 | BT43: 0 | BU43: 1 | BV43: 1 | BW43: 0 | BX43: 0 | BY43: 0 | BZ43: 0 | CA43: 0 | CD43: Charging scaling factor | CE43: 0 | CF43: 0 | CG43: 1 | CH43: 1 | CI43: 1 | CJ43: 1 | CK43: 0 | CL43: 0 | CM43: 0 | CN43: 0 | CO43: 1 | CP43: 1 | CQ43: 0 | CR43: 0 | CS43: 0 | CT43: 0 | CU43: 0
B44: =+'Technology Specifications'!B28 -> Effective storage ($/kWh-AC-out) | C44: =+'Technology Specifications'!C28 -> 0 | D44: =+'Technology Specifications'!D28 -> 0 | E44: =+'Technology Specifications'!E28 -> 1.958047545 | F44: =+'Technology Specifications'!F28 -> 29 | G44: =+'Technology Specifications'!G28 -> 1.958047545 | H44: =+'Technology Specifications'!H28 -> 1.89 | I44: =+'Technology Specifications'!I28 -> 0 | J44: =+'Technology Specifications'!J28 -> 0 | K44: =+'Technology Specifications'!K28 -> 0.23 | L44: =+'Technology Specifications'!L28 -> 103.1 | M44: =+'Technology Specifications'!M28 -> 50.09 | N44: =+'Technology Specifications'!N28 -> 17.5 | O44: =+'Technology Specifications'!O28 -> 196 | P44: =+'Technology Specifications'!P28 -> 37.11 | Q44: =+'Technology Specifications'!Q28 -> 320 | R44: =+'Technology Specifications'!R28 -> 0 | S44: =+'Technology Specifications'!S28 -> 0 | V44: Effective storage ($/kWh-AC-out) | W44: 0 | X44: 0 | Y44: 1.958047545 | Z44: 29 | AA44: 1.958047545 | AB44: 1.89 | AC44: 0 | AD44: 0 | AE44: 0.23 | AF44: 103.1 | AG44: 50.09 | AH44: 17.5 | AI44: 196 | AJ44: 37.11 | AK44: 320 | AL44: 0 | AM44: 0 | AP44: Effective storage ($/kWh-AC-out) | AQ44: 0 | AR44: 0 | AS44: 0 | AT44: 0 | AU44: 0 | AV44: 0 | AW44: 0 | AX44: 0 | AY44: 0 | AZ44: 0 | BA44: 0 | BB44: 0 | BC44: 0 | BD44: 0 | BE44: 0 | BF44: 0 | BG44: 0 | BI44: 44 | BJ44: Effective storage ($/kWh-AC-out) | BK44: 0 | BL44: 0 | BM44: 1.958047545 | BN44: 29 | BO44: 1.958047545 | BP44: 1.89 | BQ44: 0 | BR44: 0 | BS44: 0.23 | BT44: 103.1 | BU44: 50.09 | BV44: 17.5 | BW44: 196 | BX44: 37.11 | BY44: 320 | BZ44: 0 | CA44: 0 | CD44: Effective storage ($/kWh-AC-out) | CE44: 0 | CF44: 0 | CG44: 1.958047545 | CH44: 29 | CI44: 1.958047545 | CJ44: 1.89 | CK44: 0 | CL44: 0 | CM44: 0.23 | CN44: 103.1 | CO44: 43.083101 | CP44: 17.5 | CQ44: 149.435238 | CR44: 29.14 | CS44: 122 | CT44: 0 | CU44: 0
B45: =+'Technology Specifications'!B29 -> Storage base capacity (kWh) | C45: =+'Technology Specifications'!C29 -> 0 | D45: =+'Technology Specifications'!D29 -> 0 | E45: =+'Technology Specifications'!E29 -> 7050314.952 | F45: =+'Technology Specifications'!F29 -> 1 | G45: =+'Technology Specifications'!G29 -> 7050315 | H45: =+'Technology Specifications'!H29 -> 7050315 | I45: =+'Technology Specifications'!I29 -> 0 | J45: =+'Technology Specifications'!J29 -> 0 | K45: =+'Technology Specifications'!K29 -> 1 | L45: =+'Technology Specifications'!L29 -> 800000 | M45: =+'Technology Specifications'!M29 -> 1 | N45: =+'Technology Specifications'!N29 -> 1 | O45: =+'Technology Specifications'!O29 -> 1 | P45: =+'Technology Specifications'!P29 -> 1 | Q45: =+'Technology Specifications'!Q29 -> 1 | R45: =+'Technology Specifications'!R29 -> 0 | S45: =+'Technology Specifications'!S29 -> 0 | V45: Storage base capacity (kWh) | W45: 0 | X45: 0 | Y45: 7050314.952 | Z45: 1 | AA45: 7050315 | AB45: 7050315 | AC45: 0 | AD45: 0 | AE45: 1 | AF45: 800000 | AG45: 1 | AH45: 1 | AI45: 1 | AJ45: 1 | AK45: 1 | AL45: 0 | AM45: 0 | AP45: Storage base capacity (kWh) | AQ45: 0 | AR45: 0 | AS45: 0 | AT45: 0 | AU45: 0 | AV45: 0 | AW45: 0 | AX45: 0 | AY45: 0 | AZ45: 0 | BA45: 0 | BB45: 0 | BC45: 0 | BD45: 0 | BE45: 0 | BF45: 0 | BG45: 0 | BI45: 45 | BJ45: Storage base capacity (kWh) | BK45: 0 | BL45: 0 | BM45: 7050314.952 | BN45: 1 | BO45: 7050315 | BP45: 7050315 | BQ45: 0 | BR45: 0 | BS45: 1 | BT45: 800000 | BU45: 1 | BV45: 1 | BW45: 1 | BX45: 1 | BY45: 1 | BZ45: 0 | CA45: 0 | CD45: Storage base capacity (kWh) | CE45: 0 | CF45: 0 | CG45: 7050314.952 | CH45: 1 | CI45: 7050315 | CJ45: 7050315 | CK45: 0 | CL45: 0 | CM45: 1 | CN45: 800000 | CO45: 1 | CP45: 1 | CQ45: 1 | CR45: 1 | CS45: 1 | CT45: 0 | CU45: 0
B46: =+'Technology Specifications'!B30 -> Storage scaling factor | C46: =+'Technology Specifications'!C30 -> 0 | D46: =+'Technology Specifications'!D30 -> 0 | E46: =+'Technology Specifications'!E30 -> 0.48 | F46: =+'Technology Specifications'!F30 -> 1 | G46: =+'Technology Specifications'!G30 -> 0.48 | H46: =+'Technology Specifications'!H30 -> 0.48 | I46: =+'Technology Specifications'!I30 -> 0 | J46: =+'Technology Specifications'!J30 -> 0 | K46: =+'Technology Specifications'!K30 -> 1 | L46: =+'Technology Specifications'!L30 -> 0.92 | M46: =+'Technology Specifications'!M30 -> 1 | N46: =+'Technology Specifications'!N30 -> 1 | O46: =+'Technology Specifications'!O30 -> 1 | P46: =+'Technology Specifications'!P30 -> 1 | Q46: =+'Technology Specifications'!Q30 -> 1 | R46: =+'Technology Specifications'!R30 -> 0 | S46: =+'Technology Specifications'!S30 -> 0 | V46: Storage scaling factor | W46: 0 | X46: 0 | Y46: 0.48 | Z46: 1 | AA46: 0.48 | AB46: 0.48 | AC46: 0 | AD46: 0 | AE46: 1 | AF46: 0.92 | AG46: 1 | AH46: 1 | AI46: 1 | AJ46: 1 | AK46: 1 | AL46: 0 | AM46: 0 | AP46: Storage scaling factor | AQ46: 0 | AR46: 0 | AS46: 0 | AT46: 0 | AU46: 0 | AV46: 0 | AW46: 0 | AX46: 0 | AY46: 0 | AZ46: 0 | BA46: 0 | BB46: 0 | BC46: 0 | BD46: 0 | BE46: 0 | BF46: 0 | BG46: 0 | BI46: 46 | BJ46: Storage scaling factor | BK46: 0 | BL46: 0 | BM46: 0.48 | BN46: 1 | BO46: 0.48 | BP46: 0.48 | BQ46: 0 | BR46: 0 | BS46: 1 | BT46: 0.92 | BU46: 1 | BV46: 1 | BW46: 1 | BX46: 1 | BY46: 1 | BZ46: 0 | CA46: 0 | CD46: Storage scaling factor | CE46: 0 | CF46: 0 | CG46: 0.48 | CH46: 1 | CI46: 0.48 | CJ46: 0.48 | CK46: 0 | CL46: 0 | CM46: 1 | CN46: 0.92 | CO46: 1 | CP46: 1 | CQ46: 1 | CR46: 1 | CS46: 1 | CT46: 0 | CU46: 0
B47: =+'Technology Specifications'!B31 -> Storage cost recovery at end of life (%) | C47: =+'Technology Specifications'!C31 -> 0 | D47: =+'Technology Specifications'!D31 -> 0 | E47: =+'Technology Specifications'!E31 -> 1 | F47: =+'Technology Specifications'!F31 -> 0 | G47: =+'Technology Specifications'!G31 -> 1 | H47: =+'Technology Specifications'!H31 -> 1 | I47: =+'Technology Specifications'!I31 -> 0 | J47: =+'Technology Specifications'!J31 -> 0 | K47: =+'Technology Specifications'!K31 -> 0 | L47: =+'Technology Specifications'!L31 -> 1 | M47: =+'Technology Specifications'!M31 -> 0.35 | N47: =+'Technology Specifications'!N31 -> 1 | O47: =+'Technology Specifications'!O31 -> 0 | P47: =+'Technology Specifications'!P31 -> 0 | Q47: =+'Technology Specifications'!Q31 -> 0 | R47: =+'Technology Specifications'!R31 -> 0 | S47: =+'Technology Specifications'!S31 -> 0 | V47: Storage cost recovery at end of life (%) | W47: 0 | X47: 0 | Y47: 1 | Z47: 0 | AA47: 1 | AB47: 1 | AC47: 0 | AD47: 0 | AE47: 0 | AF47: 1 | AG47: 0.35 | AH47: 1 | AI47: 0 | AJ47: 0 | AK47: 0 | AL47: 0 | AM47: 0 | AP47: Storage cost recovery at end of life (%) | AQ47: 0 | AR47: 0 | AS47: 0 | AT47: 0 | AU47: 0 | AV47: 0 | AW47: 0 | AX47: 0 | AY47: 0 | AZ47: 0 | BA47: 0 | BB47: 0 | BC47: 0 | BD47: 0 | BE47: 0 | BF47: 0 | BG47: 0 | BI47: 47 | BJ47: Storage cost recovery at end of life (%) | BK47: 0 | BL47: 0 | BM47: 1 | BN47: 0 | BO47: 1 | BP47: 1 | BQ47: 0 | BR47: 0 | BS47: 0 | BT47: 1 | BU47: 0.35 | BV47: 1 | BW47: 0 | BX47: 0 | BY47: 0 | BZ47: 0 | CA47: 0 | CD47: Storage cost recovery at end of life (%) | CE47: 0 | CF47: 0 | CG47: 1 | CI47: 1 | CJ47: 1 | CK47: 0 | CL47: 0 | CM47: 0 | CN47: 1 | CO47: 0.40619 | CP47: 1 | CQ47: 0 | CR47: 0 | CS47: 0 | CT47: 0 | CU47: 0
B48: =+'Technology Specifications'!B32 -> Discharging ($/kW-AC-out) | C48: =+'Technology Specifications'!C32 -> 0 | D48: =+'Technology Specifications'!D32 -> 0 | E48: =+'Technology Specifications'!E32 -> 464 | F48: =+'Technology Specifications'!F32 -> 464 | G48: =+'Technology Specifications'!G32 -> 1387 | H48: =+'Technology Specifications'!H32 -> 1068 | I48: =+'Technology Specifications'!I32 -> 1068 | J48: =+'Technology Specifications'!J32 -> 2543 | K48: =+'Technology Specifications'!K32 -> 1068 | L48: =+'Technology Specifications'!L32 -> 1612 | M48: =+'Technology Specifications'!M32 -> 759 | N48: =+'Technology Specifications'!N32 -> 759 | O48: =+'Technology Specifications'!O32 -> 1384 | P48: =+'Technology Specifications'!P32 -> 1670 | Q48: =+'Technology Specifications'!Q32 -> 246 | R48: =+'Technology Specifications'!R32 -> 0 | S48: =+'Technology Specifications'!S32 -> 0 | V48: Discharging ($/kW-AC-out) | W48: 0 | X48: 0 | Y48: 464 | Z48: 464 | AA48: 1387 | AB48: 1068 | AC48: 1068 | AD48: 2543 | AE48: 1068 | AF48: 1612 | AG48: 759 | AH48: 759 | AI48: 1384 | AJ48: 1670 | AK48: 246 | AL48: 0 | AM48: 0 | AP48: Discharging ($/kW-AC-out) | AQ48: 0 | AR48: 0 | AS48: 0 | AT48: 0 | AU48: 0 | AV48: 0 | AW48: 0 | AX48: 0 | AY48: 0 | AZ48: 0 | BA48: 0 | BB48: 0 | BC48: 0 | BD48: 0 | BE48: 0 | BF48: 0 | BG48: 0 | BI48: 48 | BJ48: Discharging ($/kW-AC-out) | BK48: 0 | BL48: 0 | BM48: 464 | BN48: 464 | BO48: 1387 | BP48: 1068 | BQ48: 1068 | BR48: 2543 | BS48: 1068 | BT48: 1612 | BU48: 759 | BV48: 759 | BW48: 1384 | BX48: 1670 | BY48: 246 | BZ48: 0 | CA48: 0 | CD48: Discharging ($/kW-AC-out) | CE48: 0 | CF48: 0 | CG48: 167 | CH48: 167 | CI48: 464 | CJ48: 1035 | CK48: 1035 | CL48: 1668 | CM48: 1035 | CN48: 1612 | CO48: 727 | CP48: 727 | CQ48: 371 | CR48: 1600 | CS48: 125 | CT48: 0 | CU48: 0
B49: =+'Technology Specifications'!B33 -> Discharging base capacity (kW) | C49: =+'Technology Specifications'!C33 -> 0 | D49: =+'Technology Specifications'!D33 -> 0 | E49: =+'Technology Specifications'!E33 -> 1 | F49: =+'Technology Specifications'!F33 -> 1 | G49: =+'Technology Specifications'!G33 -> 1 | H49: =+'Technology Specifications'!H33 -> 1 | I49: =+'Technology Specifications'!I33 -> 1 | J49: =+'Technology Specifications'!J33 -> 1 | K49: =+'Technology Specifications'!K33 -> 1 | L49: =+'Technology Specifications'!L33 -> 1 | M49: =+'Technology Specifications'!M33 -> 1 | N49: =+'Technology Specifications'!N33 -> 1 | O49: =+'Technology Specifications'!O33 -> 1 | P49: =+'Technology Specifications'!P33 -> 1 | Q49: =+'Technology Specifications'!Q33 -> 1 | R49: =+'Technology Specifications'!R33 -> 0 | S49: =+'Technology Specifications'!S33 -> 0 | V49: Discharging base capacity (kW) | W49: 0 | X49: 0 | Y49: 1 | Z49: 1 | AA49: 1 | AB49: 1 | AC49: 1 | AD49: 1 | AE49: 1 | AF49: 1 | AG49: 1 | AH49: 1 | AI49: 1 | AJ49: 1 | AK49: 1 | AL49: 0 | AM49: 0 | AP49: Discharging base capacity (kW) | AQ49: 0 | AR49: 0 | AS49: 0 | AT49: 0 | AU49: 0 | AV49: 0 | AW49: 0 | AX49: 0 | AY49: 0 | AZ49: 0 | BA49: 0 | BB49: 0 | BC49: 0 | BD49: 0 | BE49: 0 | BF49: 0 | BG49: 0 | BI49: 49 | BJ49: Discharging base capacity (kW) | BK49: 0 | BL49: 0 | BM49: 1 | BN49: 1 | BO49: 1 | BP49: 1 | BQ49: 1 | BR49: 1 | BS49: 1 | BT49: 1 | BU49: 1 | BV49: 1 | BW49: 1 | BX49: 1 | BY49: 1 | BZ49: 0 | CA49: 0 | CD49: Discharging base capacity (kW) | CE49: 0 | CF49: 0 | CG49: 1 | CH49: 1 | CI49: 1 | CJ49: 1 | CK49: 1 | CL49: 1 | CM49: 1 | CN49: 1 | CO49: 1 | CP49: 1 | CQ49: 1 | CR49: 1 | CS49: 1 | CT49: 0 | CU49: 0
B50: =+'Technology Specifications'!B34 -> Discharging scaling factor | C50: =+'Technology Specifications'!C34 -> 0 | D50: =+'Technology Specifications'!D34 -> 0 | E50: =+'Technology Specifications'!E34 -> 1 | F50: =+'Technology Specifications'!F34 -> 1 | G50: =+'Technology Specifications'!G34 -> 1 | H50: =+'Technology Specifications'!H34 -> 1 | I50: =+'Technology Specifications'!I34 -> 1 | J50: =+'Technology Specifications'!J34 -> 1 | K50: =+'Technology Specifications'!K34 -> 1 | L50: =+'Technology Specifications'!L34 -> 1 | M50: =+'Technology Specifications'!M34 -> 1 | N50: =+'Technology Specifications'!N34 -> 1 | O50: =+'Technology Specifications'!O34 -> 1 | P50: =+'Technology Specifications'!P34 -> 1 | Q50: =+'Technology Specifications'!Q34 -> 1 | R50: =+'Technology Specifications'!R34 -> 0 | S50: =+'Technology Specifications'!S34 -> 0 | V50: Discharging scaling factor | W50: 0 | X50: 0 | Y50: 1 | Z50: 1 | AA50: 1 | AB50: 1 | AC50: 1 | AD50: 1 | AE50: 1 | AF50: 1 | AG50: 1 | AH50: 1 | AI50: 1 | AJ50: 1 | AK50: 1 | AL50: 0 | AM50: 0 | AP50: Discharging scaling factor | AQ50: 0 | AR50: 0 | AS50: 0 | AT50: 0 | AU50: 0 | AV50: 0 | AW50: 0 | AX50: 0 | AY50: 0 | AZ50: 0 | BA50: 0 | BB50: 0 | BC50: 0 | BD50: 0 | BE50: 0 | BF50: 0 | BG50: 0 | BI50: 50 | BJ50: Discharging scaling factor | BK50: 0 | BL50: 0 | BM50: 1 | BN50: 1 | BO50: 1 | BP50: 1 | BQ50: 1 | BR50: 1 | BS50: 1 | BT50: 1 | BU50: 1 | BV50: 1 | BW50: 1 | BX50: 1 | BY50: 1 | BZ50: 0 | CA50: 0 | CD50: Discharging scaling factor | CE50: 0 | CF50: 0 | CG50: 1 | CH50: 1 | CI50: 1 | CJ50: 1 | CK50: 1 | CL50: 1 | CM50: 1 | CN50: 1 | CO50: 1 | CP50: 1 | CQ50: 1 | CR50: 1 | CS50: 1 | CT50: 0 | CU50: 0
BI51: 51
BI52: 52
BI53: 53
BI54: 54
B55: =+'Technology Specifications'!B39 -> O&M (labor, maintenance items) ($/kW_AC_in_y) | C55: =+'Technology Specifications'!C39 -> 0 | D55: =+'Technology Specifications'!D39 -> 0 | E55: =+'Technology Specifications'!E39 -> 12.8 | F55: =+'Technology Specifications'!F39 -> 12.8 | G55: =+'Technology Specifications'!G39 -> 12.8 | H55: =+'Technology Specifications'!H39 -> 12.8 | I55: =+'Technology Specifications'!I39 -> 0 | J55: =+'Technology Specifications'!J39 -> 0 | K55: =+'Technology Specifications'!K39 -> 0 | L55: =+'Technology Specifications'!L39 -> 0 | M55: =+'Technology Specifications'!M39 -> 13.54 | N55: =+'Technology Specifications'!N39 -> 13.54 | O55: =+'Technology Specifications'!O39 -> 0 | P55: =+'Technology Specifications'!P39 -> 0 | Q55: =+'Technology Specifications'!Q39 -> 0 | R55: =+'Technology Specifications'!R39 -> 0 | S55: =+'Technology Specifications'!S39 -> 0 | V55: O&M (labor, maintenance items) ($/kW_AC_in_y) | W55: 0 | X55: 0 | Y55: 12.8 | Z55: 12.8 | AA55: 12.8 | AB55: 12.8 | AC55: 0 | AD55: 0 | AE55: 0 | AF55: 0 | AG55: 13.54 | AH55: 13.54 | AI55: 0 | AJ55: 0 | AK55: 0 | AL55: 0 | AM55: 0 | AP55: O&M (labor, maintenance items) ($/kW_AC_in_y) | AQ55: 0 | AR55: 0 | AS55: =1-(E55=Y55) -> 0 | AT55: =1-(F55=Z55) -> 0 | AU55: =1-(G55=AA55) -> 0 | AV55: =1-(H55=AB55) -> 0 | AW55: =1-(I55=AC55) -> 0 | AX55: =1-(J55=AD55) -> 0 | AY55: =1-(K55=AE55) -> 0 | AZ55: =1-(L55=AF55) -> 0 | BA55: =1-(M55=AG55) -> 0 | BB55: =1-(N55=AH55) -> 0 | BC55: =1-(O55=AI55) -> 0 | BD55: =1-(P55=AJ55) -> 0 | BE55: =1-(Q55=AK55) -> 0 | BF55: =1-(R55=AL55) -> 0 | BG55: =1-(S55=AM55) -> 0 | BI55: 55 | BJ55: O&M (labor, maintenance items) ($/kW_AC_in_y) | BK55: 0 | BL55: 0 | BM55: 12.8 | BN55: 12.8 | BO55: 12.8 | BP55: 12.8 | BQ55: 0 | BR55: 0 | BS55: 0 | BT55: 0 | BU55: 13.54 | BV55: 13.54 | BW55: 0 | BX55: 0 | BY55: 0 | BZ55: 0 | CA55: 0 | CD55: O&M (labor, maintenance items) ($/kW_AC_in_y) | CE55: 0 | CF55: 0 | CG55: 12.8 | CH55: 12.8 | CI55: 12.8 | CJ55: 12.8 | CK55: 0 | CL55: 0 | CM55: 0 | CN55: 0 | CO55: 13.54 | CP55: 13.54 | CQ55: 0 | CR55: 0 | CS55: 0 | CT55: 0 | CU55: 0
B56: =+'Technology Specifications'!B40 -> Property tax, insurance, licensing, permitting (% of cap cost) | C56: =+'Technology Specifications'!C40 -> 0 | D56: =+'Technology Specifications'!D40 -> 0 | E56: =+'Technology Specifications'!E40 -> 0.015 | F56: =+'Technology Specifications'!F40 -> 0.015 | G56: =+'Technology Specifications'!G40 -> 0.015 | H56: =+'Technology Specifications'!H40 -> 0.015 | I56: =+'Technology Specifications'!I40 -> 0 | J56: =+'Technology Specifications'!J40 -> 0 | K56: =+'Technology Specifications'!K40 -> 0 | L56: =+'Technology Specifications'!L40 -> 0 | M56: =+'Technology Specifications'!M40 -> 0.015 | N56: =+'Technology Specifications'!N40 -> 0.015 | O56: =+'Technology Specifications'!O40 -> 0 | P56: =+'Technology Specifications'!P40 -> 0 | Q56: =+'Technology Specifications'!Q40 -> 0 | R56: =+'Technology Specifications'!R40 -> 0 | S56: =+'Technology Specifications'!S40 -> 0 | V56: Property tax, insurance, licensing, permitting (% of cap cost) | W56: 0 | X56: 0 | Y56: 0.015 | Z56: 0.015 | AA56: 0.015 | AB56: 0.015 | AC56: 0 | AD56: 0 | AE56: 0 | AF56: 0 | AG56: 0.015 | AH56: 0.015 | AI56: 0 | AJ56: 0 | AK56: 0 | AL56: 0 | AM56: 0 | AP56: Property tax, insurance, licensing, permitting (% of cap cost) | AQ56: 0 | AR56: 0 | AS56: 0 | AT56: 0 | AU56: 0 | AV56: 0 | AW56: 0 | AX56: 0 | AY56: 0 | AZ56: 0 | BA56: 0 | BB56: 0 | BC56: 0 | BD56: 0 | BE56: 0 | BF56: 0 | BG56: 0 | BI56: 56 | BJ56: Property tax, insurance, licensing, permitting (% of cap cost) | BK56: 0 | BL56: 0 | BM56: 0.015 | BN56: 0.015 | BO56: 0.015 | BP56: 0.015 | BQ56: 0 | BR56: 0 | BS56: 0 | BT56: 0 | BU56: 0.015 | BV56: 0.015 | BW56: 0 | BX56: 0 | BY56: 0 | BZ56: 0 | CA56: 0 | CD56: Property tax, insurance, licensing, permitting (% of cap cost) | CE56: 0 | CF56: 0 | CG56: 0.015 | CH56: 0.015 | CI56: 0.015 | CJ56: 0.015 | CK56: 0 | CL56: 0 | CM56: 0 | CN56: 0 | CO56: 0.015 | CP56: 0.015 | CQ56: 0 | CR56: 0 | CS56: 0 | CT56: 0 | CU56: 0
B57: =+'Technology Specifications'!B41 -> Variable | C57: =+'Technology Specifications'!C41 -> 0 | V57: Variable | W57: 0 | AP57: Variable | AQ57: 0 | BI57: 57 | BJ57: Variable | BK57: 0 | CD57: Variable | CE57: 0
B58: =+'Technology Specifications'!B42 -> Other ($/kWh-AC-in) | C58: =+'Technology Specifications'!C42 -> 0 | D58: =+'Technology Specifications'!D42 -> 0 | E58: =+'Technology Specifications'!E42 -> 0.0013 | F58: =+'Technology Specifications'!F42 -> 0.0013 | G58: =+'Technology Specifications'!G42 -> 0.0013 | H58: =+'Technology Specifications'!H42 -> 0.0013 | I58: =+'Technology Specifications'!I42 -> 0 | J58: =+'Technology Specifications'!J42 -> 0 | K58: =+'Technology Specifications'!K42 -> 0 | L58: =+'Technology Specifications'!L42 -> 0 | M58: =+'Technology Specifications'!M42 -> 0 | N58: =+'Technology Specifications'!N42 -> 0 | O58: =+'Technology Specifications'!O42 -> 0 | P58: =+'Technology Specifications'!P42 -> 0 | Q58: =+'Technology Specifications'!Q42 -> 0 | R58: =+'Technology Specifications'!R42 -> 0 | S58: =+'Technology Specifications'!S42 -> 0 | V58: Other ($/kWh-AC-in) | W58: 0 | X58: 0 | Y58: 0.0013 | Z58: 0.0013 | AA58: 0.0013 | AB58: 0.0013 | AC58: 0 | AD58: 0 | AE58: 0 | AF58: 0 | AG58: 0 | AH58: 0 | AI58: 0 | AJ58: 0 | AK58: 0 | AL58: 0 | AM58: 0 | AP58: Other ($/kWh-AC-in) | AQ58: 0 | AR58: 0 | AS58: =1-(E58=Y58) -> 0 | AT58: 0 | AU58: 0 | AV58: 0 | AW58: 0 | AX58: 0 | AY58: 0 | AZ58: 0 | BA58: 0 | BB58: 0 | BC58: 0 | BD58: 0 | BE58: 0 | BF58: 0 | BG58: 0 | BI58: 58 | BJ58: Other ($/kWh-AC-in) | BK58: 0 | BL58: 0 | BM58: 0.0013 | BN58: 0.0013 | BO58: 0.0013 | BP58: 0.0013 | BQ58: 0 | BR58: 0 | BS58: 0 | BT58: 0 | BU58: 0 | BV58: 0 | BW58: 0 | BX58: 0 | BY58: 0 | BZ58: 0 | CA58: 0 | CD58: Other ($/kWh-AC-in) | CE58: 0 | CF58: 0 | CG58: 0.0013 | CH58: 0.0013 | CI58: 0.0013 | CJ58: 0.0013 | CK58: 0 | CL58: 0 | CM58: 0 | CN58: 0 | CO58: 0 | CP58: 0 | CQ58: 0 | CR58: 0 | CS58: 0 | CT58: 0 | CU58: 0
B59: =+'Technology Specifications'!B43 -> Storage O&M | C59: =+'Technology Specifications'!C43 -> 0 | D59: =+'Technology Specifications'!D43 -> 0 | V59: Storage O&M | W59: 0 | X59: 0 | AP59: Storage O&M | AQ59: 0 | AR59: 0 | BI59: 59 | BJ59: Storage O&M | BK59: 0 | BL59: 0 | CD59: Storage O&M | CE59: 0 | CF59: 0
B60: =+'Technology Specifications'!B44 -> Fixed | C60: =+'Technology Specifications'!C44 -> 0 | D60: =+'Technology Specifications'!D44 -> 0 | V60: Fixed | W60: 0 | X60: 0 | AP60: Fixed | AQ60: 0 | AR60: 0 | BI60: 60 | BJ60: Fixed | BK60: 0 | BL60: 0 | CD60: Fixed | CE60: 0 | CF60: 0
B61: =+'Technology Specifications'!B45 -> Maintenance, property tax, insurance, licensing, permitting (% of cap cost) | C61: =+'Technology Specifications'!C45 -> 0 | D61: =+'Technology Specifications'!D45 -> 0 | E61: =+'Technology Specifications'!E45 -> 0.015 | F61: =+'Technology Specifications'!F45 -> 0.015 | G61: =+'Technology Specifications'!G45 -> 0.015 | H61: =+'Technology Specifications'!H45 -> 0.015 | I61: =+'Technology Specifications'!I45 -> 0 | J61: =+'Technology Specifications'!J45 -> 0.015 | K61: =+'Technology Specifications'!K45 -> 0.015 | L61: =+'Technology Specifications'!L45 -> 0.015 | M61: =+'Technology Specifications'!M45 -> 0.015 | N61: =+'Technology Specifications'!N45 -> 0.015 | O61: =+'Technology Specifications'!O45 -> 0.015 | P61: =+'Technology Specifications'!P45 -> 0.015 | Q61: =+'Technology Specifications'!Q45 -> 0.0424 | R61: =+'Technology Specifications'!R45 -> 0 | S61: =+'Technology Specifications'!S45 -> 0 | V61: Maintenance, property tax, insurance, licensing, permitting (% of cap cost) | W61: 0 | X61: 0 | Y61: 0.015 | Z61: 0.015 | AA61: 0.015 | AB61: 0.015 | AC61: 0 | AD61: 0.015 | AE61: 0.015 | AF61: 0.015 | AG61: 0.015 | AH61: 0.015 | AI61: 0.015 | AJ61: 0.015 | AK61: 0.0424 | AL61: 0 | AM61: 0 | AP61: Maintenance, property tax, insurance, licensing, permitting (% of cap cost) | AQ61: 0 | AR61: 0 | AS61: =1-(E61=Y61) -> 0 | AT61: 0 | AU61: 0 | AV61: 0 | AW61: 0 | AX61: 0 | AY61: 0 | AZ61: 0 | BA61: 0 | BB61: 0 | BC61: 0 | BD61: 0 | BE61: 0 | BF61: 0 | BG61: 0 | BI61: 61 | BJ61: Maintenance, property tax, insurance, licensing, permitting (% of cap cost) | BK61: 0 | BL61: 0 | BM61: 0.015 | BN61: 0.015 | BO61: 0.015 | BP61: 0.015 | BQ61: 0 | BR61: 0.015 | BS61: 0.015 | BT61: 0.015 | BU61: 0.015 | BV61: 0.015 | BW61: 0.015 | BX61: 0.015 | BY61: 0.0424 | BZ61: 0 | CA61: 0 | CD61: Maintenance, property tax, insurance, licensing, permitting (% of cap cost) | CE61: 0 | CF61: 0 | CG61: 0.015 | CH61: 0.015 | CI61: 0.015 | CJ61: 0.015 | CK61: 0 | CL61: 0.015 | CM61: 0.015 | CN61: 0.015 | CO61: 0.015 | CP61: 0.015 | CQ61: 0.015 | CR61: 0.015 | CS61: 0.0341 | CT61: 0 | CU61: 0
B62: =+'Technology Specifications'!B46 -> Discharging O&M | C62: =+'Technology Specifications'!C46 -> 0 | D62: =+'Technology Specifications'!D46 -> 0 | V62: Discharging O&M | W62: 0 | X62: 0 | AP62: Discharging O&M | AQ62: 0 | AR62: 0 | BI62: 62 | BJ62: Discharging O&M | BK62: 0 | BL62: 0 | CD62: Discharging O&M | CE62: 0 | CF62: 0
... 75 more rows

Sheet MC Sheets Change Detection (hidden)
AP19: =+IF(AQ23,"Inputs have changed. Rerun to update.","") -> Inputs have changed. Rerun to update.
B23: Current values | V23: Values for updated results | AP23: #Input differences | AQ23: =+SUM(AQ27:AQ31,AS41:BG50,AS55:BG56,AS58:BG58,AS61:BG61,AS64:BG65,AS67:BG67,AS71:BG74,AS76:BG77,AS79:BG82,AS85:BG88,AQ103:AS103,AQ106:AS109,AQ112:AS113,AQ116:AS117,AQ120:AS123) -> 19
B26: =+'Technology Specifications'!B10 -> Global baseline values | C26: =+'Technology Specifications'!C10 -> 0 | D26: =+'Technology Specifications'!D10 -> References | V26: Global baseline values | W26: 0 | X26: References | AP26: Global baseline values | AQ26: 0 | AR26: References
B27: =+'Technology Specifications'!B11 -> Storage duration rating (h) | C27: =+'Technology Specifications'!C11 -> 120 | V27: Storage duration rating (h) | W27: 120 | AP27: Storage duration rating (h) | AQ27: =1-(C27=W27) -> 0
B28: =+'Technology Specifications'!B12 -> Electricity for energy storage ($/kWh) | C28: =+'Technology Specifications'!C12 -> 0.02 | V28: Electricity for energy storage ($/kWh) | W28: 0.02 | AP28: Electricity for energy storage ($/kWh) | AQ28: =1-(C28=W28) -> 0
B29: =+'Technology Specifications'!B13 -> Natural gas ($/MMBTU) | C29: =+'Technology Specifications'!C13 -> 2.98 | V29: Natural gas ($/MMBTU) | W29: 2.98 | AP29: Natural gas ($/MMBTU) | AQ29: 0
B30: =+'Technology Specifications'!B14 -> Ethanol ($/gal) | C30: =+'Technology Specifications'!C14 -> 2.216701561 | V30: Ethanol ($/gal) | W30: 2.216701561 | AP30: Ethanol ($/gal) | AQ30: 0
B31: =+'Technology Specifications'!B15 -> CO₂ transportation and sequestration cost ($/m.tonne) | C31: =+'Technology Specifications'!C15 -> 65 | V31: CO₂ transportation and sequestration cost ($/m.tonne) | W31: 65 | AP31: CO₂ transportation and sequestration cost ($/tonne) | AQ31: 0
E38: =+'Technology Specifications'!E22 -> HDV-PEM|Salt | F38: =+'Technology Specifications'!F22 -> HDV-PEM|Pipes | G38: =+'Technology Specifications'!G22 -> Stat-PEM|Salt | H38: =+'Technology Specifications'!H22 -> H2-CC|Salt | I38: =+'Technology Specifications'!I22 -> NG-CC | J38: =+'Technology Specifications'!J22 -> NG-CC|CCS | K38: =+'Technology Specifications'!K22 -> Eth-CC | L38: =+'Technology Specifications'!L22 -> PHS | M38: =+'Technology Specifications'!M22 -> A-CAES|Salt | N38: =+'Technology Specifications'!N22 -> D-CAES|Salt | O38: =+'Technology Specifications'!O22 -> VRB | P38: =+'Technology Specifications'!P22 -> P-TES | Q38: =+'Technology Specifications'!Q22 -> Li-Ion | R38: =+'Technology Specifications'!R22 -> 0 | S38: =+'Technology Specifications'!S22 -> 0 | Y38: HDV-PEM|Salt | Z38: HDV-PEM|Pipes | AA38: Stat-PEM|Salt | AB38: H2-CC|Salt | AC38: NG-CC | AD38: NG-CC|CCS | AE38: Eth-CC | AF38: PHS | AG38: A-CAES|Salt | AH38: D-CAES|Salt | AI38: VRB | AJ38: P-TES | AK38: 0 | AL38: 0 | AM38: 0 | AS38: HDV-PEM|Salt | AT38: HDV-PEM|Pipes | AU38: Stat-PEM|Salt | AV38: H2-CC|Salt | AW38: NG-CC | AX38: NG-CC|CCS | AY38: Eth-CC | AZ38: PHS | BA38: A-CAES|Salt | BB38: D-CAES|Salt | BC38: VRB | BD38: P-TES | BE38: Li-Ion | BF38: 0 | BG38: 0
B40: =+'Technology Specifications'!B24 -> Capital costs | C40: =+'Technology Specifications'!C24 -> 0 | V40: Capital costs | W40: 0 | AP40: Capital costs | AQ40: 0
B41: =+'Technology Specifications'!B25 -> Charging ($/kW-AC-in) | C41: =+'Technology Specifications'!C25 -> 0 | D41: =+'Technology Specifications'!D25 -> 0 | E41: =+'Technology Specifications'!E25 -> 1673 | F41: =+'Technology Specifications'!F25 -> 1673 | G41: =+'Technology Specifications'!G25 -> 1673 | H41: =+'Technology Specifications'!H25 -> 1673 | I41: =+'Technology Specifications'!I25 -> 0 | J41: =+'Technology Specifications'!J25 -> 0 | K41: =+'Technology Specifications'!K25 -> 0 | L41: =+'Technology Specifications'!L25 -> 0 | M41: =+'Technology Specifications'!M25 -> 507 | N41: =+'Technology Specifications'!N25 -> 507 | O41: =+'Technology Specifications'!O25 -> 0 | P41: =+'Technology Specifications'!P25 -> 0 | Q41: =+'Technology Specifications'!Q25 -> 0 | R41: =+'Technology Specifications'!R25 -> 0 | S41: =+'Technology Specifications'!S25 -> 0 | V41: Charging ($/kW-AC-in) | W41: 0 | X41: 0 | Y41: 1673 | Z41: 1673 | AA41: 1673 | AB41: 1673 | AC41: 0 | AD41: 0 | AE41: 0 | AF41: 0 | AG41: 507 | AH41: 507 | AI41: 0 | AJ41: 0 | AK41: 0 | AL41: 0 | AM41: 0 | AP41: Charging ($/kW-AC-in) | AQ41: 0 | AR41: 0 | AS41: =1-(E41=Y41) -> 0 | AT41: 0 | AU41: 0 | AV41: 0 | AW41: 0 | AX41: 0 | AY41: 0 | AZ41: 0 | BA41: 0 | BB41: 0 | BC41: 0 | BD41: 0 | BE41: 0 | BF41: 0 | BG41: 0
B42: =+'Technology Specifications'!B26 -> Charging base capacity (kW) | C42: =+'Technology Specifications'!C26 -> 0 | D42: =+'Technology Specifications'!D26 -> 0 | E42: =+'Technology Specifications'!E26 -> 1 | F42: =+'Technology Specifications'!F26 -> 1 | G42: =+'Technology Specifications'!G26 -> 1 | H42: =+'Technology Specifications'!H26 -> 1 | I42: =+'Technology Specifications'!I26 -> 0 | J42: =+'Technology Specifications'!J26 -> 0 | K42: =+'Technology Specifications'!K26 -> 0 | L42: =+'Technology Specifications'!L26 -> 0 | M42: =+'Technology Specifications'!M26 -> 1 | N42: =+'Technology Specifications'!N26 -> 1 | O42: =+'Technology Specifications'!O26 -> 0 | P42: =+'Technology Specifications'!P26 -> 0 | Q42: =+'Technology Specifications'!Q26 -> 0 | R42: =+'Technology Specifications'!R26 -> 0 | S42: =+'Technology Specifications'!S26 -> 0 | V42: Charging base capacity (kW) | W42: 0 | X42: 0 | Y42: 1 | Z42: 1 | AA42: 1 | AB42: 1 | AC42: 0 | AD42: 0 | AE42: 0 | AF42: 0 | AG42: 1 | AH42: 1 | AI42: 0 | AJ42: 0 | AK42: 0 | AL42: 0 | AM42: 0 | AP42: Charging base capacity (kW) | AQ42: 0 | AR42: 0 | AS42: 0 | AT42: 0 | AU42: 0 | AV42: 0 | AW42: 0 | AX42: 0 | AY42: 0 | AZ42: 0 | BA42: 0 | BB42: 0 | BC42: 0 | BD42: 0 | BE42: 0 | BF42: 0 | BG42: 0
B43: =+'Technology Specifications'!B27 -> Charging scaling factor | C43: =+'Technology Specifications'!C27 -> 0 | D43: =+'Technology Specifications'!D27 -> 0 | E43: =+'Technology Specifications'!E27 -> 1 | F43: =+'Technology Specifications'!F27 -> 1 | G43: =+'Technology Specifications'!G27 -> 1 | H43: =+'Technology Specifications'!H27 -> 1 | I43: =+'Technology Specifications'!I27 -> 0 | J43: =+'Technology Specifications'!J27 -> 0 | K43: =+'Technology Specifications'!K27 -> 0 | L43: =+'Technology Specifications'!L27 -> 0 | M43: =+'Technology Specifications'!M27 -> 1 | N43: =+'Technology Specifications'!N27 -> 1 | O43: =+'Technology Specifications'!O27 -> 0 | P43: =+'Technology Specifications'!P27 -> 0 | Q43: =+'Technology Specifications'!Q27 -> 0 | R43: =+'Technology Specifications'!R27 -> 0 | S43: =+'Technology Specifications'!S27 -> 0 | V43: Charging scaling factor | W43: 0 | X43: 0 | Y43: 1 | Z43: 1 | AA43: 1 | AB43: 1 | AC43: 0 | AD43: 0 | AE43: 0 | AF43: 0 | AG43: 1 | AH43: 1 | AI43: 0 | AJ43: 0 | AK43: 0 | AL43: 0 | AM43: 0 | AP43: Charging scaling factor | AQ43: 0 | AR43: 0 | AS43: 0 | AT43: 0 | AU43: 0 | AV43: 0 | AW43: 0 | AX43: 0 | AY43: 0 | AZ43: 0 | BA43: 0 | BB43: 0 | BC43: 0 | BD43: 0 | BE43: 0 | BF43: 0 | BG43: 0
B44: =+'Technology Specifications'!B28 -> Effective storage ($/kWh-AC-out) | C44: =+'Technology Specifications'!C28 -> 0 | D44: =+'Technology Specifications'!D28 -> 0 | E44: =+'Technology Specifications'!E28 -> 1.958047545 | F44: =+'Technology Specifications'!F28 -> 29 | G44: =+'Technology Specifications'!G28 -> 1.958047545 | H44: =+'Technology Specifications'!H28 -> 1.89 | I44: =+'Technology Specifications'!I28 -> 0 | J44: =+'Technology Specifications'!J28 -> 0 | K44: =+'Technology Specifications'!K28 -> 0.23 | L44: =+'Technology Specifications'!L28 -> 103.1 | M44: =+'Technology Specifications'!M28 -> 50.09 | N44: =+'Technology Specifications'!N28 -> 17.5 | O44: =+'Technology Specifications'!O28 -> 196 | P44: =+'Technology Specifications'!P28 -> 37.11 | Q44: =+'Technology Specifications'!Q28 -> 320 | R44: =+'Technology Specifications'!R28 -> 0 | S44: =+'Technology Specifications'!S28 -> 0 | V44: Effective storage ($/kWh-AC-out) | W44: 0 | X44: 0 | Y44: 1.958047545 | Z44: 29 | AA44: 1.958047545 | AB44: 1.89 | AC44: 0 | AD44: 0 | AE44: 0.23 | AF44: 121.3 | AG44: 50.09 | AH44: 17.5 | AI44: 196 | AJ44: 37.11 | AK44: 0 | AL44: 0 | AM44: 0 | AP44: Effective storage ($/kWh-AC-out) | AQ44: 0 | AR44: 0 | AS44: 0 | AT44: 0 | AU44: 0 | AV44: 0 | AW44: 0 | AX44: 0 | AY44: 0 | AZ44: 1 | BA44: 0 | BB44: 0 | BC44: 0 | BD44: 0 | BE44: 1 | BF44: 0 | BG44: 0
B45: =+'Technology Specifications'!B29 -> Storage base capacity (kWh) | C45: =+'Technology Specifications'!C29 -> 0 | D45: =+'Technology Specifications'!D29 -> 0 | E45: =+'Technology Specifications'!E29 -> 7050314.952 | F45: =+'Technology Specifications'!F29 -> 1 | G45: =+'Technology Specifications'!G29 -> 7050315 | H45: =+'Technology Specifications'!H29 -> 7050315 | I45: =+'Technology Specifications'!I29 -> 0 | J45: =+'Technology Specifications'!J29 -> 0 | K45: =+'Technology Specifications'!K29 -> 1 | L45: =+'Technology Specifications'!L29 -> 800000 | M45: =+'Technology Specifications'!M29 -> 1 | N45: =+'Technology Specifications'!N29 -> 1 | O45: =+'Technology Specifications'!O29 -> 1 | P45: =+'Technology Specifications'!P29 -> 1 | Q45: =+'Technology Specifications'!Q29 -> 1 | R45: =+'Technology Specifications'!R29 -> 0 | S45: =+'Technology Specifications'!S29 -> 0 | V45: Storage base capacity (kWh) | W45: 0 | X45: 0 | Y45: 7050314.952 | Z45: 1 | AA45: 7050315 | AB45: 7050315 | AC45: 0 | AD45: 0 | AE45: 1 | AF45: 12000000 | AG45: 1 | AH45: 1 | AI45: 1 | AJ45: 1 | AK45: 0 | AL45: 0 | AM45: 0 | AP45: Storage base capacity (kWh) | AQ45: 0 | AR45: 0 | AS45: 0 | AT45: 0 | AU45: 0 | AV45: 0 | AW45: 0 | AX45: 0 | AY45: 0 | AZ45: 1 | BA45: 0 | BB45: 0 | BC45: 0 | BD45: 0 | BE45: 1 | BF45: 0 | BG45: 0
B46: =+'Technology Specifications'!B30 -> Storage scaling factor | C46: =+'Technology Specifications'!C30 -> 0 | D46: =+'Technology Specifications'!D30 -> 0 | E46: =+'Technology Specifications'!E30 -> 0.48 | F46: =+'Technology Specifications'!F30 -> 1 | G46: =+'Technology Specifications'!G30 -> 0.48 | H46: =+'Technology Specifications'!H30 -> 0.48 | I46: =+'Technology Specifications'!I30 -> 0 | J46: =+'Technology Specifications'!J30 -> 0 | K46: =+'Technology Specifications'!K30 -> 1 | L46: =+'Technology Specifications'!L30 -> 0.92 | M46: =+'Technology Specifications'!M30 -> 1 | N46: =+'Technology Specifications'!N30 -> 1 | O46: =+'Technology Specifications'!O30 -> 1 | P46: =+'Technology Specifications'!P30 -> 1 | Q46: =+'Technology Specifications'!Q30 -> 1 | R46: =+'Technology Specifications'!R30 -> 0 | S46: =+'Technology Specifications'!S30 -> 0 | V46: Storage scaling factor | W46: 0 | X46: 0 | Y46: 0.48 | Z46: 1 | AA46: 0.48 | AB46: 0.48 | AC46: 0 | AD46: 0 | AE46: 1 | AF46: 0.77 | AG46: 1 | AH46: 1 | AI46: 1 | AJ46: 1 | AK46: 0 | AL46: 0 | AM46: 0 | AP46: Storage scaling factor | AQ46: 0 | AR46: 0 | AS46: 0 | AT46: 0 | AU46: 0 | AV46: 0 | AW46: 0 | AX46: 0 | AY46: 0 | AZ46: 1 | BA46: 0 | BB46: 0 | BC46: 0 | BD46: 0 | BE46: 1 | BF46: 0 | BG46: 0
B47: =+'Technology Specifications'!B31 -> Storage cost recovery at end of life (%) | C47: =+'Technology Specifications'!C31 -> 0 | D47: =+'Technology Specifications'!D31 -> 0 | E47: =+'Technology Specifications'!E31 -> 1 | F47: =+'Technology Specifications'!F31 -> 0 | G47: =+'Technology Specifications'!G31 -> 1 | H47: =+'Technology Specifications'!H31 -> 1 | I47: =+'Technology Specifications'!I31 -> 0 | J47: =+'Technology Specifications'!J31 -> 0 | K47: =+'Technology Specifications'!K31 -> 0 | L47: =+'Technology Specifications'!L31 -> 1 | M47: =+'Technology Specifications'!M31 -> 0.35 | N47: =+'Technology Specifications'!N31 -> 1 | O47: =+'Technology Specifications'!O31 -> 0 | P47: =+'Technology Specifications'!P31 -> 0 | Q47: =+'Technology Specifications'!Q31 -> 0 | R47: =+'Technology Specifications'!R31 -> 0 | S47: =+'Technology Specifications'!S31 -> 0 | V47: Storage cost recovery at end of life (%) | W47: 0 | X47: 0 | Y47: 1 | Z47: 0 | AA47: 1 | AB47: 1 | AC47: 0 | AD47: 0 | AE47: 0 | AF47: 1 | AG47: 0.35 | AH47: 1 | AI47: 0 | AJ47: 0 | AK47: 0 | AL47: 0 | AM47: 0 | AP47: Storage cost recovery at end of life (%) | AQ47: 0 | AR47: 0 | AS47: 0 | AT47: 0 | AU47: 0 | AV47: 0 | AW47: 0 | AX47: 0 | AY47: 0 | AZ47: 0 | BA47: 0 | BB47: 0 | BC47: 0 | BD47: 0 | BE47: 0 | BF47: 0 | BG47: 0
B48: =+'Technology Specifications'!B32 -> Discharging ($/kW-AC-out) | C48: =+'Technology Specifications'!C32 -> 0 | D48: =+'Technology Specifications'!D32 -> 0 | E48: =+'Technology Specifications'!E32 -> 464 | F48: =+'Technology Specifications'!F32 -> 464 | G48: =+'Technology Specifications'!G32 -> 1387 | H48: =+'Technology Specifications'!H32 -> 1068 | I48: =+'Technology Specifications'!I32 -> 1068 | J48: =+'Technology Specifications'!J32 -> 2543 | K48: =+'Technology Specifications'!K32 -> 1068 | L48: =+'Technology Specifications'!L32 -> 1612 | M48: =+'Technology Specifications'!M32 -> 759 | N48: =+'Technology Specifications'!N32 -> 759 | O48: =+'Technology Specifications'!O32 -> 1384 | P48: =+'Technology Specifications'!P32 -> 1670 | Q48: =+'Technology Specifications'!Q32 -> 246 | R48: =+'Technology Specifications'!R32 -> 0 | S48: =+'Technology Specifications'!S32 -> 0 | V48: Discharging ($/kW-AC-out) | W48: 0 | X48: 0 | Y48: 464 | Z48: 464 | AA48: 1387 | AB48: 1068 | AC48: 1068 | AD48: 2543 | AE48: 1068 | AF48: 821 | AG48: 759 | AH48: 759 | AI48: 1384 | AJ48: 1670 | AK48: 0 | AL48: 0 | AM48: 0 | AP48: Discharging ($/kW-AC-out) | AQ48: 0 | AR48: 0 | AS48: 0 | AT48: 0 | AU48: 0 | AV48: 0 | AW48: 0 | AX48: 0 | AY48: 0 | AZ48: 1 | BA48: 0 | BB48: 0 | BC48: 0 | BD48: 0 | BE48: 1 | BF48: 0 | BG48: 0
B49: =+'Technology Specifications'!B33 -> Discharging base capacity (kW) | C49: =+'Technology Specifications'!C33 -> 0 | D49: =+'Technology Specifications'!D33 -> 0 | E49: =+'Technology Specifications'!E33 -> 1 | F49: =+'Technology Specifications'!F33 -> 1 | G49: =+'Technology Specifications'!G33 -> 1 | H49: =+'Technology Specifications'!H33 -> 1 | I49: =+'Technology Specifications'!I33 -> 1 | J49: =+'Technology Specifications'!J33 -> 1 | K49: =+'Technology Specifications'!K33 -> 1 | L49: =+'Technology Specifications'!L33 -> 1 | M49: =+'Technology Specifications'!M33 -> 1 | N49: =+'Technology Specifications'!N33 -> 1 | O49: =+'Technology Specifications'!O33 -> 1 | P49: =+'Technology Specifications'!P33 -> 1 | Q49: =+'Technology Specifications'!Q33 -> 1 | R49: =+'Technology Specifications'!R33 -> 0 | S49: =+'Technology Specifications'!S33 -> 0 | V49: Discharging base capacity (kW) | W49: 0 | X49: 0 | Y49: 1 | Z49: 1 | AA49: 1 | AB49: 1 | AC49: 1 | AD49: 1 | AE49: 1 | AF49: 1 | AG49: 1 | AH49: 1 | AI49: 1 | AJ49: 1 | AK49: 0 | AL49: 0 | AM49: 0 | AP49: Discharging base capacity (kW) | AQ49: 0 | AR49: 0 | AS49: 0 | AT49: 0 | AU49: 0 | AV49: 0 | AW49: 0 | AX49: 0 | AY49: 0 | AZ49: 0 | BA49: 0 | BB49: 0 | BC49: 0 | BD49: 0 | BE49: 1 | BF49: 0 | BG49: 0
B50: =+'Technology Specifications'!B34 -> Discharging scaling factor | C50: =+'Technology Specifications'!C34 -> 0 | D50: =+'Technology Specifications'!D34 -> 0 | E50: =+'Technology Specifications'!E34 -> 1 | F50: =+'Technology Specifications'!F34 -> 1 | G50: =+'Technology Specifications'!G34 -> 1 | H50: =+'Technology Specifications'!H34 -> 1 | I50: =+'Technology Specifications'!I34 -> 1 | J50: =+'Technology Specifications'!J34 -> 1 | K50: =+'Technology Specifications'!K34 -> 1 | L50: =+'Technology Specifications'!L34 -> 1 | M50: =+'Technology Specifications'!M34 -> 1 | N50: =+'Technology Specifications'!N34 -> 1 | O50: =+'Technology Specifications'!O34 -> 1 | P50: =+'Technology Specifications'!P34 -> 1 | Q50: =+'Technology Specifications'!Q34 -> 1 | R50: =+'Technology Specifications'!R34 -> 0 | S50: =+'Technology Specifications'!S34 -> 0 | V50: Discharging scaling factor | W50: 0 | X50: 0 | Y50: 1 | Z50: 1 | AA50: 1 | AB50: 1 | AC50: 1 | AD50: 1 | AE50: 1 | AF50: 1 | AG50: 1 | AH50: 1 | AI50: 1 | AJ50: 1 | AK50: 0 | AL50: 0 | AM50: 0 | AP50: Discharging scaling factor | AQ50: 0 | AR50: 0 | AS50: 0 | AT50: 0 | AU50: 0 | AV50: 0 | AW50: 0 | AX50: 0 | AY50: 0 | AZ50: 0 | BA50: 0 | BB50: 0 | BC50: 0 | BD50: 0 | BE50: 1 | BF50: 0 | BG50: 0
B55: =+'Technology Specifications'!B39 -> O&M (labor, maintenance items) ($/kW_AC_in_y) | C55: =+'Technology Specifications'!C39 -> 0 | D55: =+'Technology Specifications'!D39 -> 0 | E55: =+'Technology Specifications'!E39 -> 12.8 | F55: =+'Technology Specifications'!F39 -> 12.8 | G55: =+'Technology Specifications'!G39 -> 12.8 | H55: =+'Technology Specifications'!H39 -> 12.8 | I55: =+'Technology Specifications'!I39 -> 0 | J55: =+'Technology Specifications'!J39 -> 0 | K55: =+'Technology Specifications'!K39 -> 0 | L55: =+'Technology Specifications'!L39 -> 0 | M55: =+'Technology Specifications'!M39 -> 13.54 | N55: =+'Technology Specifications'!N39 -> 13.54 | O55: =+'Technology Specifications'!O39 -> 0 | P55: =+'Technology Specifications'!P39 -> 0 | Q55: =+'Technology Specifications'!Q39 -> 0 | R55: =+'Technology Specifications'!R39 -> 0 | S55: =+'Technology Specifications'!S39 -> 0 | V55: O&M (labor, maintenance items) ($/kW_AC_in_y) | W55: 0 | X55: 0 | Y55: 12.8 | Z55: 12.8 | AA55: 12.8 | AB55: 12.8 | AC55: 0 | AD55: 0 | AE55: 0 | AF55: 0 | AG55: 13.54 | AH55: 13.54 | AI55: 0 | AJ55: 0 | AK55: 0 | AL55: 0 | AM55: 0 | AP55: O&M (labor, maintenance items) ($/kW_AC_in_y) | AQ55: 0 | AR55: 0 | AS55: =1-(E55=Y55) -> 0 | AT55: 0 | AU55: 0 | AV55: 0 | AW55: 0 | AX55: 0 | AY55: 0 | AZ55: 0 | BA55: 0 | BB55: 0 | BC55: 0 | BD55: 0 | BE55: 0 | BF55: 0 | BG55: 0
B56: =+'Technology Specifications'!B40 -> Property tax, insurance, licensing, permitting (% of cap cost) | C56: =+'Technology Specifications'!C40 -> 0 | D56: =+'Technology Specifications'!D40 -> 0 | E56: =+'Technology Specifications'!E40 -> 0.015 | F56: =+'Technology Specifications'!F40 -> 0.015 | G56: =+'Technology Specifications'!G40 -> 0.015 | H56: =+'Technology Specifications'!H40 -> 0.015 | I56: =+'Technology Specifications'!I40 -> 0 | J56: =+'Technology Specifications'!J40 -> 0 | K56: =+'Technology Specifications'!K40 -> 0 | L56: =+'Technology Specifications'!L40 -> 0 | M56: =+'Technology Specifications'!M40 -> 0.015 | N56: =+'Technology Specifications'!N40 -> 0.015 | O56: =+'Technology Specifications'!O40 -> 0 | P56: =+'Technology Specifications'!P40 -> 0 | Q56: =+'Technology Specifications'!Q40 -> 0 | R56: =+'Technology Specifications'!R40 -> 0 | S56: =+'Technology Specifications'!S40 -> 0 | V56: Property tax, insurance, licensing, permitting (% of cap cost) | W56: 0 | X56: 0 | Y56: 0.015 | Z56: 0.015 | AA56: 0.015 | AB56: 0.015 | AC56: 0 | AD56: 0 | AE56: 0 | AF56: 0 | AG56: 0.015 | AH56: 0.015 | AI56: 0 | AJ56: 0 | AK56: 0 | AL56: 0 | AM56: 0 | AP56: Property tax, insurance, licensing, permitting (% of cap cost) | AQ56: 0 | AR56: 0 | AS56: 0 | AT56: 0 | AU56: 0 | AV56: 0 | AW56: 0 | AX56: 0 | AY56: 0 | AZ56: 0 | BA56: 0 | BB56: 0 | BC56: 0 | BD56: 0 | BE56: 0 | BF56: 0 | BG56: 0
B57: =+'Technology Specifications'!B41 -> Variable | C57: =+'Technology Specifications'!C41 -> 0 | V57: Variable | W57: 0 | AP57: Variable | AQ57: 0
B58: =+'Technology Specifications'!B42 -> Other ($/kWh-AC-in) | C58: =+'Technology Specifications'!C42 -> 0 | D58: =+'Technology Specifications'!D42 -> 0 | E58: =+'Technology Specifications'!E42 -> 0.0013 | F58: =+'Technology Specifications'!F42 -> 0.0013 | G58: =+'Technology Specifications'!G42 -> 0.0013 | H58: =+'Technology Specifications'!H42 -> 0.0013 | I58: =+'Technology Specifications'!I42 -> 0 | J58: =+'Technology Specifications'!J42 -> 0 | K58: =+'Technology Specifications'!K42 -> 0 | L58: =+'Technology Specifications'!L42 -> 0 | M58: =+'Technology Specifications'!M42 -> 0 | N58: =+'Technology Specifications'!N42 -> 0 | O58: =+'Technology Specifications'!O42 -> 0 | P58: =+'Technology Specifications'!P42 -> 0 | Q58: =+'Technology Specifications'!Q42 -> 0 | R58: =+'Technology Specifications'!R42 -> 0 | S58: =+'Technology Specifications'!S42 -> 0 | V58: Other ($/kWh-AC-in) | W58: 0 | X58: 0 | Y58: 0.0013 | Z58: 0.0013 | AA58: 0.0013 | AB58: 0.0013 | AC58: 0 | AD58: 0 | AE58: 0 | AF58: 0 | AG58: 0 | AH58: 0 | AI58: 0 | AJ58: 0 | AK58: 0 | AL58: 0 | AM58: 0 | AP58: Other ($/kWh-AC-in) | AQ58: 0 | AR58: 0 | AS58: =1-(E58=Y58) -> 0 | AT58: 0 | AU58: 0 | AV58: 0 | AW58: 0 | AX58: 0 | AY58: 0 | AZ58: 0 | BA58: 0 | BB58: 0 | BC58: 0 | BD58: 0 | BE58: 0 | BF58: 0 | BG58: 0
B59: =+'Technology Specifications'!B43 -> Storage O&M | C59: =+'Technology Specifications'!C43 -> 0 | D59: =+'Technology Specifications'!D43 -> 0 | V59: Storage O&M | W59: 0 | X59: 0 | AP59: Storage O&M | AQ59: 0 | AR59: 0
B60: =+'Technology Specifications'!B44 -> Fixed | C60: =+'Technology Specifications'!C44 -> 0 | D60: =+'Technology Specifications'!D44 -> 0 | V60: Fixed | W60: 0 | X60: 0 | AP60: Fixed | AQ60: 0 | AR60: 0
B61: =+'Technology Specifications'!B45 -> Maintenance, property tax, insurance, licensing, permitting (% of cap cost) | C61: =+'Technology Specifications'!C45 -> 0 | D61: =+'Technology Specifications'!D45 -> 0 | E61: =+'Technology Specifications'!E45 -> 0.015 | F61: =+'Technology Specifications'!F45 -> 0.015 | G61: =+'Technology Specifications'!G45 -> 0.015 | H61: =+'Technology Specifications'!H45 -> 0.015 | I61: =+'Technology Specifications'!I45 -> 0 | J61: =+'Technology Specifications'!J45 -> 0.015 | K61: =+'Technology Specifications'!K45 -> 0.015 | L61: =+'Technology Specifications'!L45 -> 0.015 | M61: =+'Technology Specifications'!M45 -> 0.015 | N61: =+'Technology Specifications'!N45 -> 0.015 | O61: =+'Technology Specifications'!O45 -> 0.015 | P61: =+'Technology Specifications'!P45 -> 0.015 | Q61: =+'Technology Specifications'!Q45 -> 0.0424 | R61: =+'Technology Specifications'!R45 -> 0 | S61: =+'Technology Specifications'!S45 -> 0 | V61: Maintenance, property tax, insurance, licensing, permitting (% of cap cost) | W61: 0 | X61: 0 | Y61: 0.015 | Z61: 0.015 | AA61: 0.015 | AB61: 0.015 | AC61: 0 | AD61: 0.015 | AE61: 0.015 | AF61: 0.015 | AG61: 0.015 | AH61: 0.015 | AI61: 0.015 | AJ61: 0.015 | AK61: 0 | AL61: 0 | AM61: 0 | AP61: Maintenance, property tax, insurance, licensing, permitting (% of cap cost) | AQ61: 0 | AR61: 0 | AS61: =1-(E61=Y61) -> 0 | AT61: 0 | AU61: 0 | AV61: 0 | AW61: 0 | AX61: 0 | AY61: 0 | AZ61: 0 | BA61: 0 | BB61: 0 | BC61: 0 | BD61: 0 | BE61: 1 | BF61: 0 | BG61: 0
B62: =+'Technology Specifications'!B46 -> Discharging O&M | C62: =+'Technology Specifications'!C46 -> 0 | D62: =+'Technology Specifications'!D46 -> 0 | V62: Discharging O&M | W62: 0 | X62: 0 | AP62: Discharging O&M | AQ62: 0 | AR62: 0
... 70 more rows

Sheet CF Definitions
B7: Capacity factor coefficients | C7: Power generation | D7: Charging
B8: Energy storage systems f(round trip efficiency)
B9: C₀ | C9: -0.08798275335 | D9: 0.05650968255
B10: C₁ | C10: 0.8852204999 | D10: 1.088415824
B11: C₂ | C11: -1.514835989 | D11: -2.126836987
B12: C₃ | C12: 1.245046555 | D12: 1.55106839
B13: Flex power generators f(total var opex $/kWh)
B14: C₀ | C14: 0.6525821938
B15: C₁ | C15: -19.61988054
B16: Power generation min | C16: 0.02828701245
B32: References: | C32: =+Description!A38 -> 2

Sheet ViolinVisualization (hidden)
A1: LCOE min | B1: 0 | G1: # | H1: 1 | I1: =+H1+1 -> 2 | J1: =+I1+1 -> 3 | K1: 4 | L1: 5 | M1: 6 | N1: 7 | O1: 8 | P1: 9 | Q1: 10 | R1: 11 | S1: 12 | T1: 13 | U1: 14 | V1: 15
A2: LCOE max | B2: 1 | G2: Tech name | H2: =+'Technology Specifications'!E22 -> HDV-PEM|Salt | I2: =+'Technology Specifications'!F22 -> HDV-PEM|Pipes | J2: =+'Technology Specifications'!G22 -> Stat-PEM|Salt | K2: =+'Technology Specifications'!H22 -> H2-CC|Salt | L2: =+'Technology Specifications'!I22 -> NG-CC | M2: =+'Technology Specifications'!J22 -> NG-CC|CCS | N2: =+'Technology Specifications'!K22 -> Eth-CC | O2: =+'Technology Specifications'!L22 -> PHS | P2: =+'Technology Specifications'!M22 -> A-CAES|Salt | Q2: =+'Technology Specifications'!N22 -> D-CAES|Salt | R2: =+'Technology Specifications'!O22 -> VRB | S2: =+'Technology Specifications'!P22 -> P-TES | T2: =+'Technology Specifications'!Q22 -> Li-Ion | U2: =+'Technology Specifications'!R22 -> 0 | V2: =+'Technology Specifications'!S22 -> 0
A3: Step size | B3: =+(B2-B1)/200 -> 0.005 | G3: LCOE min | H3: =+MIN('Stat Analysis'!$AI$682:$AI$1681) -> 0.2787751744 | I3: =+MIN('Stat Analysis'!$AI$1682:$AI$2681) -> 0.46432958 | J3: =+MIN('Stat Analysis'!$AI$2682:$AI$3681) -> 0.3580103058 | K3: =+MIN('Stat Analysis'!$AI$3682:$AI$4681) -> 0.3186558824 | L3: =+MIN('Stat Analysis'!$AI$4682:$AI$5681) -> 0.05501026515 | M3: =+MIN('Stat Analysis'!$AI$5682:$AI$6681) -> 0.1602778005 | N3: =+MIN('Stat Analysis'!$AI$6682:$AI$7681) -> 0.4500414834 | O3: =+MIN('Stat Analysis'!$AI$7682:$AI$8681) -> 0.413013637 | P3: =+MIN('Stat Analysis'!$AI$8682:$AI$9681) -> 0.2737226155 | Q3: =+MIN('Stat Analysis'!$AI$9682:$AI$10681) -> 0.1875411963 | R3: =+MIN('Stat Analysis'!$AI$10682:$AI$11681) -> 0.5394352631 | S3: =+MIN('Stat Analysis'!$AI$11682:$AI$12681) -> 0.3046917957 | T3: =+MIN('Stat Analysis'!$AI$12682:$AI$13681) -> 1.077562556 | U3: =+MIN('Stat Analysis'!$AI$13682:$AI$14681) -> 0 | V3: =+MIN('Stat Analysis'!$AI$14682:$AI$15681) -> 0
A4: Gausian | B4: 0.1 | G4: LCOE ave | H4: =+AVERAGE('Stat Analysis'!$AI$682:$AI$1681) -> 0.3231597326 | I4: =+AVERAGE('Stat Analysis'!$AI$1682:$AI$2681) -> 0.612172828 | J4: =+AVERAGE('Stat Analysis'!$AI$2682:$AI$3681) -> 0.4048922985 | K4: =+AVERAGE('Stat Analysis'!$AI$3682:$AI$4681) -> 0.3628702287 | L4: =+AVERAGE('Stat Analysis'!$AI$4682:$AI$5681) -> 0.08272395031 | M4: =+AVERAGE('Stat Analysis'!$AI$5682:$AI$6681) -> 0.2580226305 | N4: =+AVERAGE('Stat Analysis'!$AI$6682:$AI$7681) -> 0.5268561039 | O4: =+AVERAGE('Stat Analysis'!$AI$7682:$AI$8681) -> 0.6178311364 | P4: =+AVERAGE('Stat Analysis'!$AI$8682:$AI$9681) -> 0.4033143159 | Q4: =+AVERAGE('Stat Analysis'!$AI$9682:$AI$10681) -> 0.2567928235 | R4: =+AVERAGE('Stat Analysis'!$AI$10682:$AI$11681) -> 0.8637095601 | S4: =+AVERAGE('Stat Analysis'!$AI$11682:$AI$12681) -> 0.4212959079 | T4: =+AVERAGE('Stat Analysis'!$AI$12682:$AI$13681) -> 1.771093956 | U4: =+AVERAGE('Stat Analysis'!$AI$13682:$AI$14681) ->  | V4: =+AVERAGE('Stat Analysis'!$AI$14682:$AI$15681) -> 
G5: LCOE max | H5: =+MAX('Stat Analysis'!$AI$682:$AI$1681) -> 0.3758095823 | I5: =+MAX('Stat Analysis'!$AI$1682:$AI$2681) -> 0.7894471372 | J5: =+MAX('Stat Analysis'!$AI$2682:$AI$3681) -> 0.4596381329 | K5: =+MAX('Stat Analysis'!$AI$3682:$AI$4681) -> 0.4147844839 | L5: =+MAX('Stat Analysis'!$AI$4682:$AI$5681) -> 0.1209187654 | M5: =+MAX('Stat Analysis'!$AI$5682:$AI$6681) -> 0.4990600747 | N5: =+MAX('Stat Analysis'!$AI$6682:$AI$7681) -> 0.5970929972 | O5: =+MAX('Stat Analysis'!$AI$7682:$AI$8681) -> 0.8365591083 | P5: =+MAX('Stat Analysis'!$AI$8682:$AI$9681) -> 0.5551535682 | Q5: =+MAX('Stat Analysis'!$AI$9682:$AI$10681) -> 0.3378156479 | R5: =+MAX('Stat Analysis'!$AI$10682:$AI$11681) -> 1.235524805 | S5: =+MAX('Stat Analysis'!$AI$11682:$AI$12681) -> 0.566140595 | T5: =+MAX('Stat Analysis'!$AI$12682:$AI$13681) -> 2.466592064 | U5: =+MAX('Stat Analysis'!$AI$13682:$AI$14681) -> 0 | V5: =+MAX('Stat Analysis'!$AI$14682:$AI$15681) -> 0
G6: LCOE max | H6: =+COUNT('Stat Analysis'!$AI$682:$AI$1681) -> 1000 | I6: =+COUNT('Stat Analysis'!$AI$1682:$AI$2681) -> 1000 | J6: =+COUNT('Stat Analysis'!$AI$2682:$AI$3681) -> 1000 | K6: =+COUNT('Stat Analysis'!$AI$3682:$AI$4681) -> 1000 | L6: =+COUNT('Stat Analysis'!$AI$4682:$AI$5681) -> 1000 | M6: =+COUNT('Stat Analysis'!$AI$5682:$AI$6681) -> 1000 | N6: =+COUNT('Stat Analysis'!$AI$6682:$AI$7681) -> 1000 | O6: =+COUNT('Stat Analysis'!$AI$7682:$AI$8681) -> 1000 | P6: =+COUNT('Stat Analysis'!$AI$8682:$AI$9681) -> 1000 | Q6: =+COUNT('Stat Analysis'!$AI$9682:$AI$10681) -> 1000 | R6: =+COUNT('Stat Analysis'!$AI$10682:$AI$11681) -> 1000 | S6: =+COUNT('Stat Analysis'!$AI$11682:$AI$12681) -> 1000 | T6: =+COUNT('Stat Analysis'!$AI$12682:$AI$13681) -> 1000 | U6: =+COUNT('Stat Analysis'!$AI$13682:$AI$14681) -> 0 | V6: =+COUNT('Stat Analysis'!$AI$14682:$AI$15681) -> 0
G7: 1%'ile | H7: =+PERCENTILE('Stat Analysis'!$AI$682:$AI$1681,0.01) -> 0.2876067344 | I7: =+PERCENTILE('Stat Analysis'!$AI$1682:$AI$2681,0.01) -> 0.4982501198 | J7: =+PERCENTILE('Stat Analysis'!$AI$2682:$AI$3681,0.01) -> 0.3669230761 | K7: =+PERCENTILE('Stat Analysis'!$AI$3682:$AI$4681,0.01) -> 0.3270864141 | L7: =+PERCENTILE('Stat Analysis'!$AI$4682:$AI$5681,0.01) -> 0.05815892188 | M7: =+PERCENTILE('Stat Analysis'!$AI$5682:$AI$6681,0.01) -> 0.1680076525 | N7: =+PERCENTILE('Stat Analysis'!$AI$6682:$AI$7681,0.01) -> 0.459643046 | O7: =+PERCENTILE('Stat Analysis'!$AI$7682:$AI$8681,0.01) -> 0.4527512819 | P7: =+PERCENTILE('Stat Analysis'!$AI$8682:$AI$9681,0.01) -> 0.3007152363 | Q7: =+PERCENTILE('Stat Analysis'!$AI$9682:$AI$10681,0.01) -> 0.2004995959 | R7: =+PERCENTILE('Stat Analysis'!$AI$10682:$AI$11681,0.01) -> 0.596589237 | S7: =+PERCENTILE('Stat Analysis'!$AI$11682:$AI$12681,0.01) -> 0.327102872 | T7: =+PERCENTILE('Stat Analysis'!$AI$12682:$AI$13681,0.01) -> 1.200800575 | U7: =+PERCENTILE('Stat Analysis'!$AI$13682:$AI$14681,0.01) ->  | V7: =+PERCENTILE('Stat Analysis'!$AI$14682:$AI$15681,0.01) -> 
G8: 99%'ile | H8: =+PERCENTILE('Stat Analysis'!$AI$682:$AI$1681,0.99) -> 0.363764651 | I8: =+PERCENTILE('Stat Analysis'!$AI$1682:$AI$2681,0.99) -> 0.7397534837 | J8: =+PERCENTILE('Stat Analysis'!$AI$2682:$AI$3681,0.99) -> 0.4488242259 | K8: =+PERCENTILE('Stat Analysis'!$AI$3682:$AI$4681,0.99) -> 0.4037257117 | L8: =+PERCENTILE('Stat Analysis'!$AI$4682:$AI$5681,0.99) -> 0.1116080302 | M8: =+PERCENTILE('Stat Analysis'!$AI$5682:$AI$6681,0.99) -> 0.4566719779 | N8: =+PERCENTILE('Stat Analysis'!$AI$6682:$AI$7681,0.99) -> 0.5821163581 | O8: =+PERCENTILE('Stat Analysis'!$AI$7682:$AI$8681,0.99) -> 0.7842646845 | P8: =+PERCENTILE('Stat Analysis'!$AI$8682:$AI$9681,0.99) -> 0.5184384902 | Q8: =+PERCENTILE('Stat Analysis'!$AI$9682:$AI$10681,0.99) -> 0.3180379999 | R8: =+PERCENTILE('Stat Analysis'!$AI$10682:$AI$11681,0.99) -> 1.147722895 | S8: =+PERCENTILE('Stat Analysis'!$AI$11682:$AI$12681,0.99) -> 0.5298502446 | T8: =+PERCENTILE('Stat Analysis'!$AI$12682:$AI$13681,0.99) -> 2.362075428 | U8: =+PERCENTILE('Stat Analysis'!$AI$13682:$AI$14681,0.99) ->  | V8: =+PERCENTILE('Stat Analysis'!$AI$14682:$AI$15681,0.99) -> 
G9: Start | H9: 652 | I9: =+H10+1 -> 1652 | J9: =+I10+1 -> 2652 | K9: 3652 | L9: 4652 | M9: 5652 | N9: 6652 | O9: 7652 | P9: 8652 | Q9: 9652 | R9: 10652 | S9: 11652 | T9: 12652 | U9: 13652 | V9: 14652
G10: End | H10: =+H9+999 -> 1651 | I10: =+I9+999 -> 2651 | J10: =+J9+999 -> 3651 | K10: 4651 | L10: 5651 | M10: 6651 | N10: 7651 | O10: 8651 | P10: 9651 | Q10: 10651 | R10: 11651 | S10: 12651 | T10: 13651 | U10: 14651 | V10: 15651
G11: Rankval | H11: =+IFERROR(H4,10000)+COLUMN()/1000000000 -> 0.3231597406 | I11: =+IFERROR(I4,10000)+COLUMN()/1000000000 -> 0.612172837 | J11: 0.4048923085 | K11: 0.3628702397 | L11: 0.08272396231 | M11: 0.2580226435 | N11: 0.5268561179 | O11: 0.6178311514 | P11: 0.4033143319 | Q11: 0.2567928405 | R11: 0.8637095781 | S11: 0.4212959269 | T11: 1.771093976 | U11: 10000 | V11: 10000
G12: Rank | H12: =+RANK(H11,$H$11:$V$11,1) -> 4 | I12: =+RANK(I11,$H$11:$V$11,1) -> 10 | J12: 7 | K12: 5 | L12: 1 | M12: 3 | N12: 9 | O12: 11 | P12: 6 | Q12: 2 | R12: 12 | S12: 8 | T12: 13 | U12: 14 | V12: 15
G13: MaxBucketCount | H13: =+MAX(H22:H222) -> 126 | I13: =+MAX(I22:I222) -> 40 | J13: 119 | K13: 126 | L13: 157 | M13: 47 | N13: 71 | O13: 32 | P13: 47 | Q13: 67 | R13: 21 | S13: 44 | T13: 0 | U13: 0 | V13: 0 | X13: =+MAX(X22:X222) -> 240 | Y13: =+MAX(Y22:Y222) -> 69 | Z13: 228.5 | AA13: 242.5 | AB13: 282.5 | AC13: 90 | AD13: 130.5 | AE13: 54 | AF13: 77 | AG13: 129 | AH13: 32 | AI13: 82.5 | AJ13: 0 | AK13: 0 | AL13: 0
G14: Elevation | H14: =+NTech-H12+1 -> 10 | I14: 4 | J14: 7 | K14: 9 | L14: 13 | M14: 11 | N14: 5 | O14: 3 | P14: 8 | Q14: 12 | R14: 2 | S14: 6 | T14: 1 | U14: 0 | V14: -1 | AO14: =+H14 -> 10 | AQ14: =+I14 -> 4 | AS14: =+J14 -> 7 | AU14: =+K14 -> 9 | AW14: =+L14 -> 13 | AY14: =+M14 -> 11 | BA14: =+N14 -> 5 | BC14: =+O14 -> 3 | BE14: =+P14 -> 8 | BG14: =+Q14 -> 12 | BI14: =+R14 -> 2 | BK14: =+S14 -> 6 | BM14: =+T14 -> 1 | BO14: =+U14 -> 0 | BQ14: =+V14 -> -1
G15: Label X | H15: =IFERROR(IF((H4*$B$2*201>201),201,H4*$B$2*201),NA()) -> 64.95510625 | I15: =IFERROR(IF((I4*$B$2*201>201),201,I4*$B$2*201),NA()) -> 123.0467384 | J15: 81.38335199 | K15: 72.93691597 | L15: 16.62751401 | M15: 51.86254872 | N15: 105.8980769 | O15: 124.1840584 | P15: 81.0661775 | Q15: 51.61535752 | R15: 173.6056216 | S15: 84.68047749 | T15: 201
BT18: ViolinOutlines
X19: Smoothing | BT19: =+H14 -> 10 | BV19: =+I14 -> 4 | BX19: =+J14 -> 7 | BZ19: =+K14 -> 9 | CB19: =+L14 -> 13 | CD19: =+M14 -> 11 | CF19: =+N14 -> 5 | CH19: =+O14 -> 3 | CJ19: =+P14 -> 8 | CL19: =+Q14 -> 12 | CN19: =+R14 -> 2 | CP19: =+S14 -> 6 | CR19: =+T14 -> 1 | CT19: =+U14 -> 0 | CV19: =+V14 -> -1
CX20: Highlighted
A21: X-Label | B21: X-labelX | C21: X-labelY | E21: LCOE | F21: LCOE | G21: LCOE | X21: =+H2 -> HDV-PEM|Salt | Y21: HDV-PEM|Pipes | Z21: Stat-PEM|Salt | AA21: H2-CC|Salt | AB21: NG-CC | AC21: NG-CC|CCS | AD21: Eth-CC | AE21: PHS | AF21: A-CAES|Salt | AG21: D-CAES|Salt | AH21: VRB | AI21: P-TES | AJ21: Li-Ion | AK21: 0 | AL21: 0 | AO21: =+X21 -> HDV-PEM|Salt | AQ21: =+Y21 -> HDV-PEM|Pipes | AS21: =+Z21 -> Stat-PEM|Salt | AU21: =+AA21 -> H2-CC|Salt | AW21: =+AB21 -> NG-CC | AY21: =+AC21 -> NG-CC|CCS | BA21: =+AD21 -> Eth-CC | BC21: =+AE21 -> PHS | BE21: =+AF21 -> A-CAES|Salt | BG21: =+AG21 -> D-CAES|Salt | BI21: =+AH21 -> VRB | BK21: =+AI21 -> P-TES | BM21: =+AJ21 -> Li-Ion | BO21: =+AK21 -> 0 | BQ21: =+AL21 -> 0 | BS21: X | BT21: =+X21 -> HDV-PEM|Salt | BV21: =+Y21 -> HDV-PEM|Pipes | BX21: =+Z21 -> Stat-PEM|Salt | BZ21: =+AA21 -> H2-CC|Salt | CB21: =+AB21 -> NG-CC | CD21: =+AC21 -> NG-CC|CCS | CF21: =+AD21 -> Eth-CC | CH21: =+AE21 -> PHS | CJ21: =+AF21 -> A-CAES|Salt | CL21: =+AG21 -> D-CAES|Salt | CN21: =+AH21 -> VRB | CP21: =+AI21 -> P-TES | CR21: =+AJ21 -> Li-Ion | CT21: =+AK21 -> 0 | CV21: =+AL21 -> 0
A22: 0 | B22: =+A22/1000*201 -> 0 | C22: 0 | D22: 1 | E22: 0 | F22: =+E23 -> 0.005 | G22: =+E22+$B$3/2 -> 0.0025 | H22: =COUNTIFS('Stat Analysis'!$AI$682:$AI$1681,">="&MAX($E22,H$7), 'Stat Analysis'!$AI$682:$AI$1681,"<"&MIN($F22,H$8)) -> 0 | I22: =COUNTIFS('Stat Analysis'!$AI$1682:$AI$2681,">="&MAX($E22,I$7), 'Stat Analysis'!$AI$1682:$AI$2681,"<"&MIN($F22,I$8)) -> 0 | J22: =COUNTIFS('Stat Analysis'!$AI$2682:$AI$3681,">="&MAX($E22,J$7), 'Stat Analysis'!$AI$2682:$AI$3681,"<"&MIN($F22,J$8)) -> 0 | K22: =COUNTIFS('Stat Analysis'!$AI$3682:$AI$4681,">="&MAX($E22,K$7), 'Stat Analysis'!$AI$3682:$AI$4681,"<"&MIN($F22,K$8)) -> 0 | L22: =COUNTIFS('Stat Analysis'!$AI$4682:$AI$5681,">="&MAX($E22,L$7), 'Stat Analysis'!$AI$4682:$AI$5681,"<"&MIN($F22,L$8)) -> 0 | M22: =COUNTIFS('Stat Analysis'!$AI$5682:$AI$6681,">="&MAX($E22,M$7), 'Stat Analysis'!$AI$5682:$AI$6681,"<"&MIN($F22,M$8)) -> 0 | N22: =COUNTIFS('Stat Analysis'!$AI$6682:$AI$7681,">="&MAX($E22,N$7), 'Stat Analysis'!$AI$6682:$AI$7681,"<"&MIN($F22,N$8)) -> 0 | O22: =COUNTIFS('Stat Analysis'!$AI$7682:$AI$8681,">="&MAX($E22,O$7), 'Stat Analysis'!$AI$7682:$AI$8681,"<"&MIN($F22,O$8)) -> 0 | P22: =COUNTIFS('Stat Analysis'!$AI$8682:$AI$9681,">="&MAX($E22,P$7), 'Stat Analysis'!$AI$8682:$AI$9681,"<"&MIN($F22,P$8)) -> 0 | Q22: =COUNTIFS('Stat Analysis'!$AI$9682:$AI$10681,">="&MAX($E22,Q$7), 'Stat Analysis'!$AI$9682:$AI$10681,"<"&MIN($F22,Q$8)) -> 0 | R22: =COUNTIFS('Stat Analysis'!$AI$10682:$AI$11681,">="&MAX($E22,R$7), 'Stat Analysis'!$AI$10682:$AI$11681,"<"&MIN($F22,R$8)) -> 0 | S22: =COUNTIFS('Stat Analysis'!$AI$11682:$AI$12681,">="&MAX($E22,S$7), 'Stat Analysis'!$AI$11682:$AI$12681,"<"&MIN($F22,S$8)) -> 0 | T22: =COUNTIFS('Stat Analysis'!$AI$12682:$AI$13681,">="&MAX($E22,T$7), 'Stat Analysis'!$AI$12682:$AI$13681,"<"&MIN($F22,T$8)) -> 0 | U22: =COUNTIFS('Stat Analysis'!$AI$13682:$AI$14681,">="&MAX($E22,U$7), 'Stat Analysis'!$AI$13682:$AI$14681,"<"&MIN($F22,U$8)) -> 0 | V22: =COUNTIFS('Stat Analysis'!$AI$14682:$AI$15681,">="&MAX($E22,V$7), 'Stat Analysis'!$AI$14682:$AI$15681,"<"&MIN($F22,V$8)) -> 0 | X22: =+H22+0.5*H23 -> 0 | Y22: =+I22+0.5*I23 -> 0 | Z22: 0 | AA22: 0 | AB22: 0 | AC22: 0 | AD22: 0 | AE22: 0 | AF22: 0 | AG22: 0 | AH22: 0 | AI22: 0 | AJ22: 0 | AK22: 0 | AL22: 0 | AN22: =+$AO$14-0.5*AO22 -> 10 | AO22: =IFERROR(X22/X$13,0) -> 0 | AP22: =-AO$14-0.5*AO22+AQ$14-0.5*AQ22 -> -6 | AQ22: =IFERROR(Y22/Y$13,0) -> 0 | AR22: =-AQ$14-0.5*AQ22+AS$14-0.5*AS22 -> 3 | AS22: =IFERROR(Z22/Z$13,0) -> 0 | AT22: =-AS$14-0.5*AS22+AU$14-0.5*AU22 -> 2 | AU22: =IFERROR(AA22/AA$13,0) -> 0 | AV22: =-AU$14-0.5*AU22+AW$14-0.5*AW22 -> 4 | AW22: =IFERROR(AB22/AB$13,0) -> 0 | AX22: =-AW$14-0.5*AW22+AY$14-0.5*AY22 -> -2 | AY22: =IFERROR(AC22/AC$13,0) -> 0 | AZ22: =-AY$14-0.5*AY22+BA$14-0.5*BA22 -> -6 | BA22: =IFERROR(AD22/AD$13,0) -> 0 | BB22: =-BA$14-0.5*BA22+BC$14-0.5*BC22 -> -2 | BC22: =IFERROR(AE22/AE$13,0) -> 0 | BD22: =-BC$14-0.5*BC22+BE$14-0.5*BE22 -> 5 | BE22: =IFERROR(AF22/AF$13,0) -> 0 | BF22: =-BE$14-0.5*BE22+BG$14-0.5*BG22 -> 4 | BG22: =IFERROR(AG22/AG$13,0) -> 0 | BH22: =-BG$14-0.5*BG22+BI$14-0.5*BI22 -> -10 | BI22: =IFERROR(AH22/AH$13,0) -> 0 | BJ22: =-BI$14-0.5*BI22+BK$14-0.5*BK22 -> 4 | BK22: =IFERROR(AI22/AI$13,0) -> 0 | BL22: =-BK$14-0.5*BK22+BM$14-0.5*BM22 -> -5 | BM22: =IFERROR(AJ22/AJ$13,0) -> 0 | BN22: =-BM$14-0.5*BM22+BO$14-0.5*BO22 -> -1 | BO22: =IFERROR(AK22/AK$13,0) -> 0 | BP22: =-BO$14-0.5*BO22+BQ$14-0.5*BQ22 -> -1 | BQ22: =IFERROR(AL22/AL$13,0) -> 0 | BS22: 1 | BT22: =+BT$19+IF(AO22=0,NA(),AO22)/2 ->  | BU22: =2*BT$19-BT22 ->  | BV22: =+BV$19+IF(AQ22=0,NA(),AQ22)/2 ->  | BW22: =2*BV$19-BV22 ->  | BX22: =+BX$19+IF(AS22=0,NA(),AS22)/2 ->  | BY22: =2*BX$19-BX22 ->  | BZ22: =+BZ$19+IF(AU22=0,NA(),AU22)/2 ->  | CA22: =2*BZ$19-BZ22 ->  | CB22: =+CB$19+IF(AW22=0,NA(),AW22)/2 ->  | CC22: =2*CB$19-CB22 ->  | CD22: =+CD$19+IF(AY22=0,NA(),AY22)/2 ->  | CE22: =2*CD$19-CD22 ->  | CF22: =+CF$19+IF(BA22=0,NA(),BA22)/2 ->  | CG22: =2*CF$19-CF22 ->  | CH22: =+CH$19+IF(BC22=0,NA(),BC22)/2 ->  | CI22: =2*CH$19-CH22 ->  | CJ22: =+CJ$19+IF(BE22=0,NA(),BE22)/2 ->  | CK22: =2*CJ$19-CJ22 ->  | CL22: =+CL$19+IF(BG22=0,NA(),BG22)/2 ->  | CM22: =2*CL$19-CL22 ->  | CN22: =+CN$19+IF(BI22=0,NA(),BI22)/2 ->  | CO22: =2*CN$19-CN22 ->  | CP22: =+CP$19+IF(BK22=0,NA(),BK22)/2 ->  | CQ22: =2*CP$19-CP22 ->  | CR22: =+CR$19+IF(BM22=0,NA(),BM22)/2 ->  | CS22: =2*CR$19-CR22 ->  | CT22: =+CT$19+IF(BO22=0,NA(),BO22)/2 ->  | CU22: =2*CT$19-CT22 ->  | CV22: =+CV$19+IF(BQ22=0,NA(),BQ22)/2 ->  | CW22: =2*CV$19-CV22 -> 
A23: =+A22+100 -> 100 | B23: =+A23/1000*201 -> 20.1 | C23: 0 | D23: =+D22+1 -> 2 | E23: =+E22+$B$3 -> 0.005 | F23: =+E24 -> 0.01 | G23: =+G22+$B$3 -> 0.0075 | H23: =COUNTIFS('Stat Analysis'!$AI$682:$AI$1681,">="&MAX($E23,H$7), 'Stat Analysis'!$AI$682:$AI$1681,"<"&MIN($F23,H$8)) -> 0 | I23: =COUNTIFS('Stat Analysis'!$AI$1682:$AI$2681,">="&MAX($E23,I$7), 'Stat Analysis'!$AI$1682:$AI$2681,"<"&MIN($F23,I$8)) -> 0 | J23: =COUNTIFS('Stat Analysis'!$AI$2682:$AI$3681,">="&MAX($E23,J$7), 'Stat Analysis'!$AI$2682:$AI$3681,"<"&MIN($F23,J$8)) -> 0 | K23: =COUNTIFS('Stat Analysis'!$AI$3682:$AI$4681,">="&MAX($E23,K$7), 'Stat Analysis'!$AI$3682:$AI$4681,"<"&MIN($F23,K$8)) -> 0 | L23: =COUNTIFS('Stat Analysis'!$AI$4682:$AI$5681,">="&MAX($E23,L$7), 'Stat Analysis'!$AI$4682:$AI$5681,"<"&MIN($F23,L$8)) -> 0 | M23: =COUNTIFS('Stat Analysis'!$AI$5682:$AI$6681,">="&MAX($E23,M$7), 'Stat Analysis'!$AI$5682:$AI$6681,"<"&MIN($F23,M$8)) -> 0 | N23: =COUNTIFS('Stat Analysis'!$AI$6682:$AI$7681,">="&MAX($E23,N$7), 'Stat Analysis'!$AI$6682:$AI$7681,"<"&MIN($F23,N$8)) -> 0 | O23: =COUNTIFS('Stat Analysis'!$AI$7682:$AI$8681,">="&MAX($E23,O$7), 'Stat Analysis'!$AI$7682:$AI$8681,"<"&MIN($F23,O$8)) -> 0 | P23: =COUNTIFS('Stat Analysis'!$AI$8682:$AI$9681,">="&MAX($E23,P$7), 'Stat Analysis'!$AI$8682:$AI$9681,"<"&MIN($F23,P$8)) -> 0 | Q23: =COUNTIFS('Stat Analysis'!$AI$9682:$AI$10681,">="&MAX($E23,Q$7), 'Stat Analysis'!$AI$9682:$AI$10681,"<"&MIN($F23,Q$8)) -> 0 | R23: =COUNTIFS('Stat Analysis'!$AI$10682:$AI$11681,">="&MAX($E23,R$7), 'Stat Analysis'!$AI$10682:$AI$11681,"<"&MIN($F23,R$8)) -> 0 | S23: =COUNTIFS('Stat Analysis'!$AI$11682:$AI$12681,">="&MAX($E23,S$7), 'Stat Analysis'!$AI$11682:$AI$12681,"<"&MIN($F23,S$8)) -> 0 | T23: =COUNTIFS('Stat Analysis'!$AI$12682:$AI$13681,">="&MAX($E23,T$7), 'Stat Analysis'!$AI$12682:$AI$13681,"<"&MIN($F23,T$8)) -> 0 | U23: =COUNTIFS('Stat Analysis'!$AI$13682:$AI$14681,">="&MAX($E23,U$7), 'Stat Analysis'!$AI$13682:$AI$14681,"<"&MIN($F23,U$8)) -> 0 | V23: =COUNTIFS('Stat Analysis'!$AI$14682:$AI$15681,">="&MAX($E23,V$7), 'Stat Analysis'!$AI$14682:$AI$15681,"<"&MIN($F23,V$8)) -> 0 | X23: =+H23+0.5*H22+0.5*H24 -> 0 | Y23: 0 | Z23: 0 | AA23: 0 | AB23: 0 | AC23: 0 | AD23: 0 | AE23: 0 | AF23: 0 | AG23: 0 | AH23: 0 | AI23: 0 | AJ23: 0 | AK23: 0 | AL23: 0 | AN23: =+$AO$14-0.5*AO23 -> 10 | AO23: =IFERROR(X23/X$13,0) -> 0 | AP23: =-AO$14-0.5*AO23+AQ$14-0.5*AQ23 -> -6 | AQ23: =IFERROR(Y23/Y$13,0) -> 0 | AR23: =-AQ$14-0.5*AQ23+AS$14-0.5*AS23 -> 3 | AS23: =IFERROR(Z23/Z$13,0) -> 0 | AT23: =-AS$14-0.5*AS23+AU$14-0.5*AU23 -> 2 | AU23: =IFERROR(AA23/AA$13,0) -> 0 | AV23: =-AU$14-0.5*AU23+AW$14-0.5*AW23 -> 4 | AW23: =IFERROR(AB23/AB$13,0) -> 0 | AX23: =-AW$14-0.5*AW23+AY$14-0.5*AY23 -> -2 | AY23: =IFERROR(AC23/AC$13,0) -> 0 | AZ23: =-AY$14-0.5*AY23+BA$14-0.5*BA23 -> -6 | BA23: =IFERROR(AD23/AD$13,0) -> 0 | BB23: =-BA$14-0.5*BA23+BC$14-0.5*BC23 -> -2 | BC23: =IFERROR(AE23/AE$13,0) -> 0 | BD23: =-BC$14-0.5*BC23+BE$14-0.5*BE23 -> 5 | BE23: =IFERROR(AF23/AF$13,0) -> 0 | BF23: =-BE$14-0.5*BE23+BG$14-0.5*BG23 -> 4 | BG23: =IFERROR(AG23/AG$13,0) -> 0 | BH23: =-BG$14-0.5*BG23+BI$14-0.5*BI23 -> -10 | BI23: =IFERROR(AH23/AH$13,0) -> 0 | BJ23: =-BI$14-0.5*BI23+BK$14-0.5*BK23 -> 4 | BK23: =IFERROR(AI23/AI$13,0) -> 0 | BL23: =-BK$14-0.5*BK23+BM$14-0.5*BM23 -> -5 | BM23: =IFERROR(AJ23/AJ$13,0) -> 0 | BN23: =-BM$14-0.5*BM23+BO$14-0.5*BO23 -> -1 | BO23: =IFERROR(AK23/AK$13,0) -> 0 | BP23: =-BO$14-0.5*BO23+BQ$14-0.5*BQ23 -> -1 | BQ23: =IFERROR(AL23/AL$13,0) -> 0 | BS23: =+BS22+1 -> 2 | BT23: =+BT$19+IF(AO23=0,NA(),AO23)/2 ->  | BU23: =2*BT$19-BT23 ->  | BV23: =+BV$19+IF(AQ23=0,NA(),AQ23)/2 ->  | BW23: =2*BV$19-BV23 ->  | BX23: =+BX$19+IF(AS23=0,NA(),AS23)/2 ->  | BY23: =2*BX$19-BX23 ->  | BZ23: =+BZ$19+IF(AU23=0,NA(),AU23)/2 ->  | CA23: =2*BZ$19-BZ23 ->  | CB23: =+CB$19+IF(AW23=0,NA(),AW23)/2 ->  | CC23: =2*CB$19-CB23 ->  | CD23: =+CD$19+IF(AY23=0,NA(),AY23)/2 ->  | CE23: =2*CD$19-CD23 ->  | CF23: =+CF$19+IF(BA23=0,NA(),BA23)/2 ->  | CG23: =2*CF$19-CF23 ->  | CH23: =+CH$19+IF(BC23=0,NA(),BC23)/2 ->  | CI23: =2*CH$19-CH23 ->  | CJ23: =+CJ$19+IF(BE23=0,NA(),BE23)/2 ->  | CK23: =2*CJ$19-CJ23 ->  | CL23: =+CL$19+IF(BG23=0,NA(),BG23)/2 ->  | CM23: =2*CL$19-CL23 ->  | CN23: =+CN$19+IF(BI23=0,NA(),BI23)/2 ->  | CO23: =2*CN$19-CN23 ->  | CP23: =+CP$19+IF(BK23=0,NA(),BK23)/2 ->  | CQ23: =2*CP$19-CP23 ->  | CR23: =+CR$19+IF(BM23=0,NA(),BM23)/2 ->  | CS23: =2*CR$19-CR23 ->  | CT23: =+CT$19+IF(BO23=0,NA(),BO23)/2 ->  | CU23: =2*CT$19-CT23 ->  | CV23: =+CV$19+IF(BQ23=0,NA(),BQ23)/2 ->  | CW23: =2*CV$19-CV23 -> 
A24: =+A23+100 -> 200 | B24: 40.2 | C24: 0 | D24: =+D23+1 -> 3 | E24: 0.01 | F24: =+E25 -> 0.015 | G24: 0.0125 | H24: =COUNTIFS('Stat Analysis'!$AI$682:$AI$1681,">="&MAX($E24,H$7), 'Stat Analysis'!$AI$682:$AI$1681,"<"&MIN($F24,H$8)) -> 0 | I24: =COUNTIFS('Stat Analysis'!$AI$1682:$AI$2681,">="&MAX($E24,I$7), 'Stat Analysis'!$AI$1682:$AI$2681,"<"&MIN($F24,I$8)) -> 0 | J24: =COUNTIFS('Stat Analysis'!$AI$2682:$AI$3681,">="&MAX($E24,J$7), 'Stat Analysis'!$AI$2682:$AI$3681,"<"&MIN($F24,J$8)) -> 0 | K24: =COUNTIFS('Stat Analysis'!$AI$3682:$AI$4681,">="&MAX($E24,K$7), 'Stat Analysis'!$AI$3682:$AI$4681,"<"&MIN($F24,K$8)) -> 0 | L24: =COUNTIFS('Stat Analysis'!$AI$4682:$AI$5681,">="&MAX($E24,L$7), 'Stat Analysis'!$AI$4682:$AI$5681,"<"&MIN($F24,L$8)) -> 0 | M24: =COUNTIFS('Stat Analysis'!$AI$5682:$AI$6681,">="&MAX($E24,M$7), 'Stat Analysis'!$AI$5682:$AI$6681,"<"&MIN($F24,M$8)) -> 0 | N24: =COUNTIFS('Stat Analysis'!$AI$6682:$AI$7681,">="&MAX($E24,N$7), 'Stat Analysis'!$AI$6682:$AI$7681,"<"&MIN($F24,N$8)) -> 0 | O24: =COUNTIFS('Stat Analysis'!$AI$7682:$AI$8681,">="&MAX($E24,O$7), 'Stat Analysis'!$AI$7682:$AI$8681,"<"&MIN($F24,O$8)) -> 0 | P24: =COUNTIFS('Stat Analysis'!$AI$8682:$AI$9681,">="&MAX($E24,P$7), 'Stat Analysis'!$AI$8682:$AI$9681,"<"&MIN($F24,P$8)) -> 0 | Q24: =COUNTIFS('Stat Analysis'!$AI$9682:$AI$10681,">="&MAX($E24,Q$7), 'Stat Analysis'!$AI$9682:$AI$10681,"<"&MIN($F24,Q$8)) -> 0 | R24: =COUNTIFS('Stat Analysis'!$AI$10682:$AI$11681,">="&MAX($E24,R$7), 'Stat Analysis'!$AI$10682:$AI$11681,"<"&MIN($F24,R$8)) -> 0 | S24: =COUNTIFS('Stat Analysis'!$AI$11682:$AI$12681,">="&MAX($E24,S$7), 'Stat Analysis'!$AI$11682:$AI$12681,"<"&MIN($F24,S$8)) -> 0 | T24: =COUNTIFS('Stat Analysis'!$AI$12682:$AI$13681,">="&MAX($E24,T$7), 'Stat Analysis'!$AI$12682:$AI$13681,"<"&MIN($F24,T$8)) -> 0 | U24: =COUNTIFS('Stat Analysis'!$AI$13682:$AI$14681,">="&MAX($E24,U$7), 'Stat Analysis'!$AI$13682:$AI$14681,"<"&MIN($F24,U$8)) -> 0 | V24: =COUNTIFS('Stat Analysis'!$AI$14682:$AI$15681,">="&MAX($E24,V$7), 'Stat Analysis'!$AI$14682:$AI$15681,"<"&MIN($F24,V$8)) -> 0 | X24: 0 | Y24: 0 | Z24: 0 | AA24: 0 | AB24: 0 | AC24: 0 | AD24: 0 | AE24: 0 | AF24: 0 | AG24: 0 | AH24: 0 | AI24: 0 | AJ24: 0 | AK24: 0 | AL24: 0 | AN24: 10 | AO24: =IFERROR(X24/X$13,0) -> 0 | AP24: =-AO$14-0.5*AO24+AQ$14-0.5*AQ24 -> -6 | AQ24: =IFERROR(Y24/Y$13,0) -> 0 | AR24: 3 | AS24: =IFERROR(Z24/Z$13,0) -> 0 | AT24: =-AS$14-0.5*AS24+AU$14-0.5*AU24 -> 2 | AU24: =IFERROR(AA24/AA$13,0) -> 0 | AV24: =-AU$14-0.5*AU24+AW$14-0.5*AW24 -> 4 | AW24: =IFERROR(AB24/AB$13,0) -> 0 | AX24: =-AW$14-0.5*AW24+AY$14-0.5*AY24 -> -2 | AY24: =IFERROR(AC24/AC$13,0) -> 0 | AZ24: =-AY$14-0.5*AY24+BA$14-0.5*BA24 -> -6 | BA24: =IFERROR(AD24/AD$13,0) -> 0 | BB24: =-BA$14-0.5*BA24+BC$14-0.5*BC24 -> -2 | BC24: =IFERROR(AE24/AE$13,0) -> 0 | BD24: =-BC$14-0.5*BC24+BE$14-0.5*BE24 -> 5 | BE24: =IFERROR(AF24/AF$13,0) -> 0 | BF24: =-BE$14-0.5*BE24+BG$14-0.5*BG24 -> 4 | BG24: =IFERROR(AG24/AG$13,0) -> 0 | BH24: =-BG$14-0.5*BG24+BI$14-0.5*BI24 -> -10 | BI24: =IFERROR(AH24/AH$13,0) -> 0 | BJ24: =-BI$14-0.5*BI24+BK$14-0.5*BK24 -> 4 | BK24: =IFERROR(AI24/AI$13,0) -> 0 | BL24: =-BK$14-0.5*BK24+BM$14-0.5*BM24 -> -5 | BM24: =IFERROR(AJ24/AJ$13,0) -> 0 | BN24: =-BM$14-0.5*BM24+BO$14-0.5*BO24 -> -1 | BO24: =IFERROR(AK24/AK$13,0) -> 0 | BP24: =-BO$14-0.5*BO24+BQ$14-0.5*BQ24 -> -1 | BQ24: =IFERROR(AL24/AL$13,0) -> 0 | BS24: =+BS23+1 -> 3 | BT24: =+BT$19+IF(AO24=0,NA(),AO24)/2 ->  | BU24: =2*BT$19-BT24 ->  | BV24: =+BV$19+IF(AQ24=0,NA(),AQ24)/2 ->  | BW24: =2*BV$19-BV24 ->  | BX24: =+BX$19+IF(AS24=0,NA(),AS24)/2 ->  | BY24: =2*BX$19-BX24 ->  | BZ24: =+BZ$19+IF(AU24=0,NA(),AU24)/2 ->  | CA24: =2*BZ$19-BZ24 ->  | CB24: =+CB$19+IF(AW24=0,NA(),AW24)/2 ->  | CC24: =2*CB$19-CB24 ->  | CD24: =+CD$19+IF(AY24=0,NA(),AY24)/2 ->  | CE24: =2*CD$19-CD24 ->  | CF24: =+CF$19+IF(BA24=0,NA(),BA24)/2 ->  | CG24: =2*CF$19-CF24 ->  | CH24: =+CH$19+IF(BC24=0,NA(),BC24)/2 ->  | CI24: =2*CH$19-CH24 ->  | CJ24: =+CJ$19+IF(BE24=0,NA(),BE24)/2 ->  | CK24: =2*CJ$19-CJ24 ->  | CL24: =+CL$19+IF(BG24=0,NA(),BG24)/2 ->  | CM24: =2*CL$19-CL24 ->  | CN24: =+CN$19+IF(BI24=0,NA(),BI24)/2 ->  | CO24: =2*CN$19-CN24 ->  | CP24: =+CP$19+IF(BK24=0,NA(),BK24)/2 ->  | CQ24: =2*CP$19-CP24 ->  | CR24: =+CR$19+IF(BM24=0,NA(),BM24)/2 ->  | CS24: =2*CR$19-CR24 ->  | CT24: =+CT$19+IF(BO24=0,NA(),BO24)/2 ->  | CU24: =2*CT$19-CT24 ->  | CV24: =+CV$19+IF(BQ24=0,NA(),BQ24)/2 ->  | CW24: =2*CV$19-CV24 -> 
A25: 300 | B25: 60.3 | C25: 0 | D25: =+D24+1 -> 4 | E25: 0.015 | F25: 0.02 | G25: 0.0175 | H25: =COUNTIFS('Stat Analysis'!$AI$682:$AI$1681,">="&MAX($E25,H$7), 'Stat Analysis'!$AI$682:$AI$1681,"<"&MIN($F25,H$8)) -> 0 | I25: =COUNTIFS('Stat Analysis'!$AI$1682:$AI$2681,">="&MAX($E25,I$7), 'Stat Analysis'!$AI$1682:$AI$2681,"<"&MIN($F25,I$8)) -> 0 | J25: =COUNTIFS('Stat Analysis'!$AI$2682:$AI$3681,">="&MAX($E25,J$7), 'Stat Analysis'!$AI$2682:$AI$3681,"<"&MIN($F25,J$8)) -> 0 | K25: =COUNTIFS('Stat Analysis'!$AI$3682:$AI$4681,">="&MAX($E25,K$7), 'Stat Analysis'!$AI$3682:$AI$4681,"<"&MIN($F25,K$8)) -> 0 | L25: =COUNTIFS('Stat Analysis'!$AI$4682:$AI$5681,">="&MAX($E25,L$7), 'Stat Analysis'!$AI$4682:$AI$5681,"<"&MIN($F25,L$8)) -> 0 | M25: =COUNTIFS('Stat Analysis'!$AI$5682:$AI$6681,">="&MAX($E25,M$7), 'Stat Analysis'!$AI$5682:$AI$6681,"<"&MIN($F25,M$8)) -> 0 | N25: =COUNTIFS('Stat Analysis'!$AI$6682:$AI$7681,">="&MAX($E25,N$7), 'Stat Analysis'!$AI$6682:$AI$7681,"<"&MIN($F25,N$8)) -> 0 | O25: =COUNTIFS('Stat Analysis'!$AI$7682:$AI$8681,">="&MAX($E25,O$7), 'Stat Analysis'!$AI$7682:$AI$8681,"<"&MIN($F25,O$8)) -> 0 | P25: =COUNTIFS('Stat Analysis'!$AI$8682:$AI$9681,">="&MAX($E25,P$7), 'Stat Analysis'!$AI$8682:$AI$9681,"<"&MIN($F25,P$8)) -> 0 | Q25: =COUNTIFS('Stat Analysis'!$AI$9682:$AI$10681,">="&MAX($E25,Q$7), 'Stat Analysis'!$AI$9682:$AI$10681,"<"&MIN($F25,Q$8)) -> 0 | R25: =COUNTIFS('Stat Analysis'!$AI$10682:$AI$11681,">="&MAX($E25,R$7), 'Stat Analysis'!$AI$10682:$AI$11681,"<"&MIN($F25,R$8)) -> 0 | S25: =COUNTIFS('Stat Analysis'!$AI$11682:$AI$12681,">="&MAX($E25,S$7), 'Stat Analysis'!$AI$11682:$AI$12681,"<"&MIN($F25,S$8)) -> 0 | T25: =COUNTIFS('Stat Analysis'!$AI$12682:$AI$13681,">="&MAX($E25,T$7), 'Stat Analysis'!$AI$12682:$AI$13681,"<"&MIN($F25,T$8)) -> 0 | U25: =COUNTIFS('Stat Analysis'!$AI$13682:$AI$14681,">="&MAX($E25,U$7), 'Stat Analysis'!$AI$13682:$AI$14681,"<"&MIN($F25,U$8)) -> 0 | V25: =COUNTIFS('Stat Analysis'!$AI$14682:$AI$15681,">="&MAX($E25,V$7), 'Stat Analysis'!$AI$14682:$AI$15681,"<"&MIN($F25,V$8)) -> 0 | X25: =+H25+0.5*H24+0.5*H26 -> 0 | Y25: =+I25+0.5*I24+0.5*I26 -> 0 | Z25: =+J25+0.5*J24+0.5*J26 -> 0 | AA25: =+K25+0.5*K24+0.5*K26 -> 0 | AB25: =+L25+0.5*L24+0.5*L26 -> 0 | AC25: =+M25+0.5*M24+0.5*M26 -> 0 | AD25: =+N25+0.5*N24+0.5*N26 -> 0 | AE25: =+O25+0.5*O24+0.5*O26 -> 0 | AF25: =+P25+0.5*P24+0.5*P26 -> 0 | AG25: =+Q25+0.5*Q24+0.5*Q26 -> 0 | AH25: =+R25+0.5*R24+0.5*R26 -> 0 | AI25: =+S25+0.5*S24+0.5*S26 -> 0 | AJ25: =+T25+0.5*T24+0.5*T26 -> 0 | AK25: =+U25+0.5*U24+0.5*U26 -> 0 | AL25: =+V25+0.5*V24+0.5*V26 -> 0 | AN25: 10 | AO25: 0 | AP25: -6 | AQ25: 0 | AR25: 3 | AS25: 0 | AT25: =-AS$14-0.5*AS25+AU$14-0.5*AU25 -> 2 | AU25: 0 | AV25: =-AU$14-0.5*AU25+AW$14-0.5*AW25 -> 4 | AW25: 0 | AX25: =-AW$14-0.5*AW25+AY$14-0.5*AY25 -> -2 | AY25: 0 | AZ25: =-AY$14-0.5*AY25+BA$14-0.5*BA25 -> -6 | BA25: 0 | BB25: =-BA$14-0.5*BA25+BC$14-0.5*BC25 -> -2 | BC25: 0 | BD25: =-BC$14-0.5*BC25+BE$14-0.5*BE25 -> 5 | BE25: 0 | BF25: =-BE$14-0.5*BE25+BG$14-0.5*BG25 -> 4 | BG25: 0 | BH25: =-BG$14-0.5*BG25+BI$14-0.5*BI25 -> -10 | BI25: 0 | BJ25: =-BI$14-0.5*BI25+BK$14-0.5*BK25 -> 4 | BK25: 0 | BL25: =-BK$14-0.5*BK25+BM$14-0.5*BM25 -> -5 | BM25: 0 | BN25: =-BM$14-0.5*BM25+BO$14-0.5*BO25 -> -1 | BO25: 0 | BP25: =-BO$14-0.5*BO25+BQ$14-0.5*BQ25 -> -1 | BQ25: 0 | BS25: =+BS24+1 -> 4
A26: 400 | B26: 80.4 | C26: 0 | D26: 5 | E26: 0.02 | F26: 0.025 | G26: 0.0225 | H26: =COUNTIFS('Stat Analysis'!$AI$682:$AI$1681,">="&MAX($E26,H$7), 'Stat Analysis'!$AI$682:$AI$1681,"<"&MIN($F26,H$8)) -> 0 | I26: =COUNTIFS('Stat Analysis'!$AI$1682:$AI$2681,">="&MAX($E26,I$7), 'Stat Analysis'!$AI$1682:$AI$2681,"<"&MIN($F26,I$8)) -> 0 | J26: =COUNTIFS('Stat Analysis'!$AI$2682:$AI$3681,">="&MAX($E26,J$7), 'Stat Analysis'!$AI$2682:$AI$3681,"<"&MIN($F26,J$8)) -> 0 | K26: =COUNTIFS('Stat Analysis'!$AI$3682:$AI$4681,">="&MAX($E26,K$7), 'Stat Analysis'!$AI$3682:$AI$4681,"<"&MIN($F26,K$8)) -> 0 | L26: =COUNTIFS('Stat Analysis'!$AI$4682:$AI$5681,">="&MAX($E26,L$7), 'Stat Analysis'!$AI$4682:$AI$5681,"<"&MIN($F26,L$8)) -> 0 | M26: =COUNTIFS('Stat Analysis'!$AI$5682:$AI$6681,">="&MAX($E26,M$7), 'Stat Analysis'!$AI$5682:$AI$6681,"<"&MIN($F26,M$8)) -> 0 | N26: =COUNTIFS('Stat Analysis'!$AI$6682:$AI$7681,">="&MAX($E26,N$7), 'Stat Analysis'!$AI$6682:$AI$7681,"<"&MIN($F26,N$8)) -> 0 | O26: =COUNTIFS('Stat Analysis'!$AI$7682:$AI$8681,">="&MAX($E26,O$7), 'Stat Analysis'!$AI$7682:$AI$8681,"<"&MIN($F26,O$8)) -> 0 | P26: =COUNTIFS('Stat Analysis'!$AI$8682:$AI$9681,">="&MAX($E26,P$7), 'Stat Analysis'!$AI$8682:$AI$9681,"<"&MIN($F26,P$8)) -> 0 | Q26: =COUNTIFS('Stat Analysis'!$AI$9682:$AI$10681,">="&MAX($E26,Q$7), 'Stat Analysis'!$AI$9682:$AI$10681,"<"&MIN($F26,Q$8)) -> 0 | R26: =COUNTIFS('Stat Analysis'!$AI$10682:$AI$11681,">="&MAX($E26,R$7), 'Stat Analysis'!$AI$10682:$AI$11681,"<"&MIN($F26,R$8)) -> 0 | S26: =COUNTIFS('Stat Analysis'!$AI$11682:$AI$12681,">="&MAX($E26,S$7), 'Stat Analysis'!$AI$11682:$AI$12681,"<"&MIN($F26,S$8)) -> 0 | T26: =COUNTIFS('Stat Analysis'!$AI$12682:$AI$13681,">="&MAX($E26,T$7), 'Stat Analysis'!$AI$12682:$AI$13681,"<"&MIN($F26,T$8)) -> 0 | U26: =COUNTIFS('Stat Analysis'!$AI$13682:$AI$14681,">="&MAX($E26,U$7), 'Stat Analysis'!$AI$13682:$AI$14681,"<"&MIN($F26,U$8)) -> 0 | V26: =COUNTIFS('Stat Analysis'!$AI$14682:$AI$15681,">="&MAX($E26,V$7), 'Stat Analysis'!$AI$14682:$AI$15681,"<"&MIN($F26,V$8)) -> 0 | X26: 0 | Y26: 0 | Z26: 0 | AA26: 0 | AB26: 0 | AC26: 0 | AD26: 0 | AE26: 0 | AF26: 0 | AG26: 0 | AH26: 0 | AI26: 0 | AJ26: 0 | AK26: 0 | AL26: 0 | AN26: 10 | AO26: 0 | AP26: -6 | AQ26: 0 | AR26: 3 | AS26: 0 | AT26: =-AS$14-0.5*AS26+AU$14-0.5*AU26 -> 2 | AU26: 0 | AV26: =-AU$14-0.5*AU26+AW$14-0.5*AW26 -> 4 | AW26: 0 | AX26: =-AW$14-0.5*AW26+AY$14-0.5*AY26 -> -2 | AY26: 0 | AZ26: =-AY$14-0.5*AY26+BA$14-0.5*BA26 -> -6 | BA26: 0 | BB26: =-BA$14-0.5*BA26+BC$14-0.5*BC26 -> -2 | BC26: 0 | BD26: =-BC$14-0.5*BC26+BE$14-0.5*BE26 -> 5 | BE26: 0 | BF26: =-BE$14-0.5*BE26+BG$14-0.5*BG26 -> 4 | BG26: 0 | BH26: =-BG$14-0.5*BG26+BI$14-0.5*BI26 -> -10 | BI26: 0 | BJ26: =-BI$14-0.5*BI26+BK$14-0.5*BK26 -> 4 | BK26: 0 | BL26: =-BK$14-0.5*BK26+BM$14-0.5*BM26 -> -5 | BM26: 0 | BN26: =-BM$14-0.5*BM26+BO$14-0.5*BO26 -> -1 | BO26: 0 | BP26: =-BO$14-0.5*BO26+BQ$14-0.5*BQ26 -> -1 | BQ26: 0 | BS26: 5
A27: 500 | B27: 100.5 | C27: 0 | D27: 6 | E27: 0.025 | F27: 0.03 | G27: 0.0275 | H27: =COUNTIFS('Stat Analysis'!$AI$682:$AI$1681,">="&MAX($E27,H$7), 'Stat Analysis'!$AI$682:$AI$1681,"<"&MIN($F27,H$8)) -> 0 | I27: =COUNTIFS('Stat Analysis'!$AI$1682:$AI$2681,">="&MAX($E27,I$7), 'Stat Analysis'!$AI$1682:$AI$2681,"<"&MIN($F27,I$8)) -> 0 | J27: =COUNTIFS('Stat Analysis'!$AI$2682:$AI$3681,">="&MAX($E27,J$7), 'Stat Analysis'!$AI$2682:$AI$3681,"<"&MIN($F27,J$8)) -> 0 | K27: =COUNTIFS('Stat Analysis'!$AI$3682:$AI$4681,">="&MAX($E27,K$7), 'Stat Analysis'!$AI$3682:$AI$4681,"<"&MIN($F27,K$8)) -> 0 | L27: =COUNTIFS('Stat Analysis'!$AI$4682:$AI$5681,">="&MAX($E27,L$7), 'Stat Analysis'!$AI$4682:$AI$5681,"<"&MIN($F27,L$8)) -> 0 | M27: =COUNTIFS('Stat Analysis'!$AI$5682:$AI$6681,">="&MAX($E27,M$7), 'Stat Analysis'!$AI$5682:$AI$6681,"<"&MIN($F27,M$8)) -> 0 | N27: =COUNTIFS('Stat Analysis'!$AI$6682:$AI$7681,">="&MAX($E27,N$7), 'Stat Analysis'!$AI$6682:$AI$7681,"<"&MIN($F27,N$8)) -> 0 | O27: =COUNTIFS('Stat Analysis'!$AI$7682:$AI$8681,">="&MAX($E27,O$7), 'Stat Analysis'!$AI$7682:$AI$8681,"<"&MIN($F27,O$8)) -> 0 | P27: =COUNTIFS('Stat Analysis'!$AI$8682:$AI$9681,">="&MAX($E27,P$7), 'Stat Analysis'!$AI$8682:$AI$9681,"<"&MIN($F27,P$8)) -> 0 | Q27: =COUNTIFS('Stat Analysis'!$AI$9682:$AI$10681,">="&MAX($E27,Q$7), 'Stat Analysis'!$AI$9682:$AI$10681,"<"&MIN($F27,Q$8)) -> 0 | R27: =COUNTIFS('Stat Analysis'!$AI$10682:$AI$11681,">="&MAX($E27,R$7), 'Stat Analysis'!$AI$10682:$AI$11681,"<"&MIN($F27,R$8)) -> 0 | S27: =COUNTIFS('Stat Analysis'!$AI$11682:$AI$12681,">="&MAX($E27,S$7), 'Stat Analysis'!$AI$11682:$AI$12681,"<"&MIN($F27,S$8)) -> 0 | T27: =COUNTIFS('Stat Analysis'!$AI$12682:$AI$13681,">="&MAX($E27,T$7), 'Stat Analysis'!$AI$12682:$AI$13681,"<"&MIN($F27,T$8)) -> 0 | U27: =COUNTIFS('Stat Analysis'!$AI$13682:$AI$14681,">="&MAX($E27,U$7), 'Stat Analysis'!$AI$13682:$AI$14681,"<"&MIN($F27,U$8)) -> 0 | V27: =COUNTIFS('Stat Analysis'!$AI$14682:$AI$15681,">="&MAX($E27,V$7), 'Stat Analysis'!$AI$14682:$AI$15681,"<"&MIN($F27,V$8)) -> 0 | X27: 0 | Y27: 0 | Z27: 0 | AA27: 0 | AB27: 0 | AC27: 0 | AD27: 0 | AE27: 0 | AF27: 0 | AG27: 0 | AH27: 0 | AI27: 0 | AJ27: 0 | AK27: 0 | AL27: 0 | AN27: 10 | AO27: 0 | AP27: -6 | AQ27: 0 | AR27: 3 | AS27: 0 | AT27: =-AS$14-0.5*AS27+AU$14-0.5*AU27 -> 2 | AU27: 0 | AV27: =-AU$14-0.5*AU27+AW$14-0.5*AW27 -> 4 | AW27: 0 | AX27: =-AW$14-0.5*AW27+AY$14-0.5*AY27 -> -2 | AY27: 0 | AZ27: =-AY$14-0.5*AY27+BA$14-0.5*BA27 -> -6 | BA27: 0 | BB27: =-BA$14-0.5*BA27+BC$14-0.5*BC27 -> -2 | BC27: 0 | BD27: =-BC$14-0.5*BC27+BE$14-0.5*BE27 -> 5 | BE27: 0 | BF27: =-BE$14-0.5*BE27+BG$14-0.5*BG27 -> 4 | BG27: 0 | BH27: =-BG$14-0.5*BG27+BI$14-0.5*BI27 -> -10 | BI27: 0 | BJ27: =-BI$14-0.5*BI27+BK$14-0.5*BK27 -> 4 | BK27: 0 | BL27: =-BK$14-0.5*BK27+BM$14-0.5*BM27 -> -5 | BM27: 0 | BN27: =-BM$14-0.5*BM27+BO$14-0.5*BO27 -> -1 | BO27: 0 | BP27: =-BO$14-0.5*BO27+BQ$14-0.5*BQ27 -> -1 | BQ27: 0 | BS27: 6
A28: 600 | B28: 120.6 | C28: 0 | D28: 7 | E28: 0.03 | F28: 0.035 | G28: 0.0325 | H28: =COUNTIFS('Stat Analysis'!$AI$682:$AI$1681,">="&MAX($E28,H$7), 'Stat Analysis'!$AI$682:$AI$1681,"<"&MIN($F28,H$8)) -> 0 | I28: =COUNTIFS('Stat Analysis'!$AI$1682:$AI$2681,">="&MAX($E28,I$7), 'Stat Analysis'!$AI$1682:$AI$2681,"<"&MIN($F28,I$8)) -> 0 | J28: =COUNTIFS('Stat Analysis'!$AI$2682:$AI$3681,">="&MAX($E28,J$7), 'Stat Analysis'!$AI$2682:$AI$3681,"<"&MIN($F28,J$8)) -> 0 | K28: =COUNTIFS('Stat Analysis'!$AI$3682:$AI$4681,">="&MAX($E28,K$7), 'Stat Analysis'!$AI$3682:$AI$4681,"<"&MIN($F28,K$8)) -> 0 | L28: =COUNTIFS('Stat Analysis'!$AI$4682:$AI$5681,">="&MAX($E28,L$7), 'Stat Analysis'!$AI$4682:$AI$5681,"<"&MIN($F28,L$8)) -> 0 | M28: =COUNTIFS('Stat Analysis'!$AI$5682:$AI$6681,">="&MAX($E28,M$7), 'Stat Analysis'!$AI$5682:$AI$6681,"<"&MIN($F28,M$8)) -> 0 | N28: =COUNTIFS('Stat Analysis'!$AI$6682:$AI$7681,">="&MAX($E28,N$7), 'Stat Analysis'!$AI$6682:$AI$7681,"<"&MIN($F28,N$8)) -> 0 | O28: =COUNTIFS('Stat Analysis'!$AI$7682:$AI$8681,">="&MAX($E28,O$7), 'Stat Analysis'!$AI$7682:$AI$8681,"<"&MIN($F28,O$8)) -> 0 | P28: =COUNTIFS('Stat Analysis'!$AI$8682:$AI$9681,">="&MAX($E28,P$7), 'Stat Analysis'!$AI$8682:$AI$9681,"<"&MIN($F28,P$8)) -> 0 | Q28: =COUNTIFS('Stat Analysis'!$AI$9682:$AI$10681,">="&MAX($E28,Q$7), 'Stat Analysis'!$AI$9682:$AI$10681,"<"&MIN($F28,Q$8)) -> 0 | R28: =COUNTIFS('Stat Analysis'!$AI$10682:$AI$11681,">="&MAX($E28,R$7), 'Stat Analysis'!$AI$10682:$AI$11681,"<"&MIN($F28,R$8)) -> 0 | S28: =COUNTIFS('Stat Analysis'!$AI$11682:$AI$12681,">="&MAX($E28,S$7), 'Stat Analysis'!$AI$11682:$AI$12681,"<"&MIN($F28,S$8)) -> 0 | T28: =COUNTIFS('Stat Analysis'!$AI$12682:$AI$13681,">="&MAX($E28,T$7), 'Stat Analysis'!$AI$12682:$AI$13681,"<"&MIN($F28,T$8)) -> 0 | U28: =COUNTIFS('Stat Analysis'!$AI$13682:$AI$14681,">="&MAX($E28,U$7), 'Stat Analysis'!$AI$13682:$AI$14681,"<"&MIN($F28,U$8)) -> 0 | V28: =COUNTIFS('Stat Analysis'!$AI$14682:$AI$15681,">="&MAX($E28,V$7), 'Stat Analysis'!$AI$14682:$AI$15681,"<"&MIN($F28,V$8)) -> 0 | X28: 0 | Y28: 0 | Z28: 0 | AA28: 0 | AB28: 0 | AC28: 0 | AD28: 0 | AE28: 0 | AF28: 0 | AG28: 0 | AH28: 0 | AI28: 0 | AJ28: 0 | AK28: 0 | AL28: 0 | AN28: 10 | AO28: 0 | AP28: -6 | AQ28: 0 | AR28: 3 | AS28: 0 | AT28: =-AS$14-0.5*AS28+AU$14-0.5*AU28 -> 2 | AU28: 0 | AV28: =-AU$14-0.5*AU28+AW$14-0.5*AW28 -> 4 | AW28: 0 | AX28: =-AW$14-0.5*AW28+AY$14-0.5*AY28 -> -2 | AY28: 0 | AZ28: =-AY$14-0.5*AY28+BA$14-0.5*BA28 -> -6 | BA28: 0 | BB28: =-BA$14-0.5*BA28+BC$14-0.5*BC28 -> -2 | BC28: 0 | BD28: =-BC$14-0.5*BC28+BE$14-0.5*BE28 -> 5 | BE28: 0 | BF28: =-BE$14-0.5*BE28+BG$14-0.5*BG28 -> 4 | BG28: 0 | BH28: =-BG$14-0.5*BG28+BI$14-0.5*BI28 -> -10 | BI28: 0 | BJ28: =-BI$14-0.5*BI28+BK$14-0.5*BK28 -> 4 | BK28: 0 | BL28: =-BK$14-0.5*BK28+BM$14-0.5*BM28 -> -5 | BM28: 0 | BN28: =-BM$14-0.5*BM28+BO$14-0.5*BO28 -> -1 | BO28: 0 | BP28: =-BO$14-0.5*BO28+BQ$14-0.5*BQ28 -> -1 | BQ28: 0 | BS28: 7
A29: 700 | B29: 140.7 | C29: 0 | D29: 8 | E29: 0.035 | F29: 0.04 | G29: 0.0375 | H29: =COUNTIFS('Stat Analysis'!$AI$682:$AI$1681,">="&MAX($E29,H$7), 'Stat Analysis'!$AI$682:$AI$1681,"<"&MIN($F29,H$8)) -> 0 | I29: =COUNTIFS('Stat Analysis'!$AI$1682:$AI$2681,">="&MAX($E29,I$7), 'Stat Analysis'!$AI$1682:$AI$2681,"<"&MIN($F29,I$8)) -> 0 | J29: =COUNTIFS('Stat Analysis'!$AI$2682:$AI$3681,">="&MAX($E29,J$7), 'Stat Analysis'!$AI$2682:$AI$3681,"<"&MIN($F29,J$8)) -> 0 | K29: =COUNTIFS('Stat Analysis'!$AI$3682:$AI$4681,">="&MAX($E29,K$7), 'Stat Analysis'!$AI$3682:$AI$4681,"<"&MIN($F29,K$8)) -> 0 | L29: =COUNTIFS('Stat Analysis'!$AI$4682:$AI$5681,">="&MAX($E29,L$7), 'Stat Analysis'!$AI$4682:$AI$5681,"<"&MIN($F29,L$8)) -> 0 | M29: =COUNTIFS('Stat Analysis'!$AI$5682:$AI$6681,">="&MAX($E29,M$7), 'Stat Analysis'!$AI$5682:$AI$6681,"<"&MIN($F29,M$8)) -> 0 | N29: =COUNTIFS('Stat Analysis'!$AI$6682:$AI$7681,">="&MAX($E29,N$7), 'Stat Analysis'!$AI$6682:$AI$7681,"<"&MIN($F29,N$8)) -> 0 | O29: =COUNTIFS('Stat Analysis'!$AI$7682:$AI$8681,">="&MAX($E29,O$7), 'Stat Analysis'!$AI$7682:$AI$8681,"<"&MIN($F29,O$8)) -> 0 | P29: =COUNTIFS('Stat Analysis'!$AI$8682:$AI$9681,">="&MAX($E29,P$7), 'Stat Analysis'!$AI$8682:$AI$9681,"<"&MIN($F29,P$8)) -> 0 | Q29: =COUNTIFS('Stat Analysis'!$AI$9682:$AI$10681,">="&MAX($E29,Q$7), 'Stat Analysis'!$AI$9682:$AI$10681,"<"&MIN($F29,Q$8)) -> 0 | R29: =COUNTIFS('Stat Analysis'!$AI$10682:$AI$11681,">="&MAX($E29,R$7), 'Stat Analysis'!$AI$10682:$AI$11681,"<"&MIN($F29,R$8)) -> 0 | S29: =COUNTIFS('Stat Analysis'!$AI$11682:$AI$12681,">="&MAX($E29,S$7), 'Stat Analysis'!$AI$11682:$AI$12681,"<"&MIN($F29,S$8)) -> 0 | T29: =COUNTIFS('Stat Analysis'!$AI$12682:$AI$13681,">="&MAX($E29,T$7), 'Stat Analysis'!$AI$12682:$AI$13681,"<"&MIN($F29,T$8)) -> 0 | U29: =COUNTIFS('Stat Analysis'!$AI$13682:$AI$14681,">="&MAX($E29,U$7), 'Stat Analysis'!$AI$13682:$AI$14681,"<"&MIN($F29,U$8)) -> 0 | V29: =COUNTIFS('Stat Analysis'!$AI$14682:$AI$15681,">="&MAX($E29,V$7), 'Stat Analysis'!$AI$14682:$AI$15681,"<"&MIN($F29,V$8)) -> 0 | X29: 0 | Y29: 0 | Z29: 0 | AA29: 0 | AB29: 0 | AC29: 0 | AD29: 0 | AE29: 0 | AF29: 0 | AG29: 0 | AH29: 0 | AI29: 0 | AJ29: 0 | AK29: 0 | AL29: 0 | AN29: 10 | AO29: 0 | AP29: -6 | AQ29: 0 | AR29: 3 | AS29: 0 | AT29: =-AS$14-0.5*AS29+AU$14-0.5*AU29 -> 2 | AU29: 0 | AV29: =-AU$14-0.5*AU29+AW$14-0.5*AW29 -> 4 | AW29: 0 | AX29: =-AW$14-0.5*AW29+AY$14-0.5*AY29 -> -2 | AY29: 0 | AZ29: =-AY$14-0.5*AY29+BA$14-0.5*BA29 -> -6 | BA29: 0 | BB29: =-BA$14-0.5*BA29+BC$14-0.5*BC29 -> -2 | BC29: 0 | BD29: =-BC$14-0.5*BC29+BE$14-0.5*BE29 -> 5 | BE29: 0 | BF29: =-BE$14-0.5*BE29+BG$14-0.5*BG29 -> 4 | BG29: 0 | BH29: =-BG$14-0.5*BG29+BI$14-0.5*BI29 -> -10 | BI29: 0 | BJ29: =-BI$14-0.5*BI29+BK$14-0.5*BK29 -> 4 | BK29: 0 | BL29: =-BK$14-0.5*BK29+BM$14-0.5*BM29 -> -5 | BM29: 0 | BN29: =-BM$14-0.5*BM29+BO$14-0.5*BO29 -> -1 | BO29: 0 | BP29: =-BO$14-0.5*BO29+BQ$14-0.5*BQ29 -> -1 | BQ29: 0 | BS29: 8
A30: 800 | B30: 160.8 | C30: 0 | D30: 9 | E30: 0.04 | F30: 0.045 | G30: 0.0425 | H30: =COUNTIFS('Stat Analysis'!$AI$682:$AI$1681,">="&MAX($E30,H$7), 'Stat Analysis'!$AI$682:$AI$1681,"<"&MIN($F30,H$8)) -> 0 | I30: =COUNTIFS('Stat Analysis'!$AI$1682:$AI$2681,">="&MAX($E30,I$7), 'Stat Analysis'!$AI$1682:$AI$2681,"<"&MIN($F30,I$8)) -> 0 | J30: =COUNTIFS('Stat Analysis'!$AI$2682:$AI$3681,">="&MAX($E30,J$7), 'Stat Analysis'!$AI$2682:$AI$3681,"<"&MIN($F30,J$8)) -> 0 | K30: =COUNTIFS('Stat Analysis'!$AI$3682:$AI$4681,">="&MAX($E30,K$7), 'Stat Analysis'!$AI$3682:$AI$4681,"<"&MIN($F30,K$8)) -> 0 | L30: =COUNTIFS('Stat Analysis'!$AI$4682:$AI$5681,">="&MAX($E30,L$7), 'Stat Analysis'!$AI$4682:$AI$5681,"<"&MIN($F30,L$8)) -> 0 | M30: =COUNTIFS('Stat Analysis'!$AI$5682:$AI$6681,">="&MAX($E30,M$7), 'Stat Analysis'!$AI$5682:$AI$6681,"<"&MIN($F30,M$8)) -> 0 | N30: =COUNTIFS('Stat Analysis'!$AI$6682:$AI$7681,">="&MAX($E30,N$7), 'Stat Analysis'!$AI$6682:$AI$7681,"<"&MIN($F30,N$8)) -> 0 | O30: =COUNTIFS('Stat Analysis'!$AI$7682:$AI$8681,">="&MAX($E30,O$7), 'Stat Analysis'!$AI$7682:$AI$8681,"<"&MIN($F30,O$8)) -> 0 | P30: =COUNTIFS('Stat Analysis'!$AI$8682:$AI$9681,">="&MAX($E30,P$7), 'Stat Analysis'!$AI$8682:$AI$9681,"<"&MIN($F30,P$8)) -> 0 | Q30: =COUNTIFS('Stat Analysis'!$AI$9682:$AI$10681,">="&MAX($E30,Q$7), 'Stat Analysis'!$AI$9682:$AI$10681,"<"&MIN($F30,Q$8)) -> 0 | R30: =COUNTIFS('Stat Analysis'!$AI$10682:$AI$11681,">="&MAX($E30,R$7), 'Stat Analysis'!$AI$10682:$AI$11681,"<"&MIN($F30,R$8)) -> 0 | S30: =COUNTIFS('Stat Analysis'!$AI$11682:$AI$12681,">="&MAX($E30,S$7), 'Stat Analysis'!$AI$11682:$AI$12681,"<"&MIN($F30,S$8)) -> 0 | T30: =COUNTIFS('Stat Analysis'!$AI$12682:$AI$13681,">="&MAX($E30,T$7), 'Stat Analysis'!$AI$12682:$AI$13681,"<"&MIN($F30,T$8)) -> 0 | U30: =COUNTIFS('Stat Analysis'!$AI$13682:$AI$14681,">="&MAX($E30,U$7), 'Stat Analysis'!$AI$13682:$AI$14681,"<"&MIN($F30,U$8)) -> 0 | V30: =COUNTIFS('Stat Analysis'!$AI$14682:$AI$15681,">="&MAX($E30,V$7), 'Stat Analysis'!$AI$14682:$AI$15681,"<"&MIN($F30,V$8)) -> 0 | X30: 0 | Y30: 0 | Z30: 0 | AA30: 0 | AB30: 0 | AC30: 0 | AD30: 0 | AE30: 0 | AF30: 0 | AG30: 0 | AH30: 0 | AI30: 0 | AJ30: 0 | AK30: 0 | AL30: 0 | AN30: 10 | AO30: 0 | AP30: -6 | AQ30: 0 | AR30: 3 | AS30: 0 | AT30: =-AS$14-0.5*AS30+AU$14-0.5*AU30 -> 2 | AU30: 0 | AV30: =-AU$14-0.5*AU30+AW$14-0.5*AW30 -> 4 | AW30: 0 | AX30: =-AW$14-0.5*AW30+AY$14-0.5*AY30 -> -2 | AY30: 0 | AZ30: =-AY$14-0.5*AY30+BA$14-0.5*BA30 -> -6 | BA30: 0 | BB30: =-BA$14-0.5*BA30+BC$14-0.5*BC30 -> -2 | BC30: 0 | BD30: =-BC$14-0.5*BC30+BE$14-0.5*BE30 -> 5 | BE30: 0 | BF30: =-BE$14-0.5*BE30+BG$14-0.5*BG30 -> 4 | BG30: 0 | BH30: =-BG$14-0.5*BG30+BI$14-0.5*BI30 -> -10 | BI30: 0 | BJ30: =-BI$14-0.5*BI30+BK$14-0.5*BK30 -> 4 | BK30: 0 | BL30: =-BK$14-0.5*BK30+BM$14-0.5*BM30 -> -5 | BM30: 0 | BN30: =-BM$14-0.5*BM30+BO$14-0.5*BO30 -> -1 | BO30: 0 | BP30: =-BO$14-0.5*BO30+BQ$14-0.5*BQ30 -> -1 | BQ30: 0 | BS30: 9
A31: 900 | B31: 180.9 | C31: 0 | D31: 10 | E31: 0.045 | F31: 0.05 | G31: 0.0475 | H31: =COUNTIFS('Stat Analysis'!$AI$682:$AI$1681,">="&MAX($E31,H$7), 'Stat Analysis'!$AI$682:$AI$1681,"<"&MIN($F31,H$8)) -> 0 | I31: =COUNTIFS('Stat Analysis'!$AI$1682:$AI$2681,">="&MAX($E31,I$7), 'Stat Analysis'!$AI$1682:$AI$2681,"<"&MIN($F31,I$8)) -> 0 | J31: =COUNTIFS('Stat Analysis'!$AI$2682:$AI$3681,">="&MAX($E31,J$7), 'Stat Analysis'!$AI$2682:$AI$3681,"<"&MIN($F31,J$8)) -> 0 | K31: =COUNTIFS('Stat Analysis'!$AI$3682:$AI$4681,">="&MAX($E31,K$7), 'Stat Analysis'!$AI$3682:$AI$4681,"<"&MIN($F31,K$8)) -> 0 | L31: =COUNTIFS('Stat Analysis'!$AI$4682:$AI$5681,">="&MAX($E31,L$7), 'Stat Analysis'!$AI$4682:$AI$5681,"<"&MIN($F31,L$8)) -> 0 | M31: =COUNTIFS('Stat Analysis'!$AI$5682:$AI$6681,">="&MAX($E31,M$7), 'Stat Analysis'!$AI$5682:$AI$6681,"<"&MIN($F31,M$8)) -> 0 | N31: =COUNTIFS('Stat Analysis'!$AI$6682:$AI$7681,">="&MAX($E31,N$7), 'Stat Analysis'!$AI$6682:$AI$7681,"<"&MIN($F31,N$8)) -> 0 | O31: =COUNTIFS('Stat Analysis'!$AI$7682:$AI$8681,">="&MAX($E31,O$7), 'Stat Analysis'!$AI$7682:$AI$8681,"<"&MIN($F31,O$8)) -> 0 | P31: =COUNTIFS('Stat Analysis'!$AI$8682:$AI$9681,">="&MAX($E31,P$7), 'Stat Analysis'!$AI$8682:$AI$9681,"<"&MIN($F31,P$8)) -> 0 | Q31: =COUNTIFS('Stat Analysis'!$AI$9682:$AI$10681,">="&MAX($E31,Q$7), 'Stat Analysis'!$AI$9682:$AI$10681,"<"&MIN($F31,Q$8)) -> 0 | R31: =COUNTIFS('Stat Analysis'!$AI$10682:$AI$11681,">="&MAX($E31,R$7), 'Stat Analysis'!$AI$10682:$AI$11681,"<"&MIN($F31,R$8)) -> 0 | S31: =COUNTIFS('Stat Analysis'!$AI$11682:$AI$12681,">="&MAX($E31,S$7), 'Stat Analysis'!$AI$11682:$AI$12681,"<"&MIN($F31,S$8)) -> 0 | T31: =COUNTIFS('Stat Analysis'!$AI$12682:$AI$13681,">="&MAX($E31,T$7), 'Stat Analysis'!$AI$12682:$AI$13681,"<"&MIN($F31,T$8)) -> 0 | U31: =COUNTIFS('Stat Analysis'!$AI$13682:$AI$14681,">="&MAX($E31,U$7), 'Stat Analysis'!$AI$13682:$AI$14681,"<"&MIN($F31,U$8)) -> 0 | V31: =COUNTIFS('Stat Analysis'!$AI$14682:$AI$15681,">="&MAX($E31,V$7), 'Stat Analysis'!$AI$14682:$AI$15681,"<"&MIN($F31,V$8)) -> 0 | X31: 0 | Y31: 0 | Z31: 0 | AA31: 0 | AB31: 0 | AC31: 0 | AD31: 0 | AE31: 0 | AF31: 0 | AG31: 0 | AH31: 0 | AI31: 0 | AJ31: 0 | AK31: 0 | AL31: 0 | AN31: 10 | AO31: 0 | AP31: -6 | AQ31: 0 | AR31: 3 | AS31: 0 | AT31: =-AS$14-0.5*AS31+AU$14-0.5*AU31 -> 2 | AU31: 0 | AV31: =-AU$14-0.5*AU31+AW$14-0.5*AW31 -> 4 | AW31: 0 | AX31: =-AW$14-0.5*AW31+AY$14-0.5*AY31 -> -2 | AY31: 0 | AZ31: =-AY$14-0.5*AY31+BA$14-0.5*BA31 -> -6 | BA31: 0 | BB31: =-BA$14-0.5*BA31+BC$14-0.5*BC31 -> -2 | BC31: 0 | BD31: =-BC$14-0.5*BC31+BE$14-0.5*BE31 -> 5 | BE31: 0 | BF31: =-BE$14-0.5*BE31+BG$14-0.5*BG31 -> 4 | BG31: 0 | BH31: =-BG$14-0.5*BG31+BI$14-0.5*BI31 -> -10 | BI31: 0 | BJ31: =-BI$14-0.5*BI31+BK$14-0.5*BK31 -> 4 | BK31: 0 | BL31: =-BK$14-0.5*BK31+BM$14-0.5*BM31 -> -5 | BM31: 0 | BN31: =-BM$14-0.5*BM31+BO$14-0.5*BO31 -> -1 | BO31: 0 | BP31: =-BO$14-0.5*BO31+BQ$14-0.5*BQ31 -> -1 | BQ31: 0 | BS31: 10
A32: 1000 | B32: 201 | C32: 0 | D32: 11 | E32: 0.05 | F32: 0.055 | G32: 0.0525 | H32: =COUNTIFS('Stat Analysis'!$AI$682:$AI$1681,">="&MAX($E32,H$7), 'Stat Analysis'!$AI$682:$AI$1681,"<"&MIN($F32,H$8)) -> 0 | I32: =COUNTIFS('Stat Analysis'!$AI$1682:$AI$2681,">="&MAX($E32,I$7), 'Stat Analysis'!$AI$1682:$AI$2681,"<"&MIN($F32,I$8)) -> 0 | J32: =COUNTIFS('Stat Analysis'!$AI$2682:$AI$3681,">="&MAX($E32,J$7), 'Stat Analysis'!$AI$2682:$AI$3681,"<"&MIN($F32,J$8)) -> 0 | K32: =COUNTIFS('Stat Analysis'!$AI$3682:$AI$4681,">="&MAX($E32,K$7), 'Stat Analysis'!$AI$3682:$AI$4681,"<"&MIN($F32,K$8)) -> 0 | L32: =COUNTIFS('Stat Analysis'!$AI$4682:$AI$5681,">="&MAX($E32,L$7), 'Stat Analysis'!$AI$4682:$AI$5681,"<"&MIN($F32,L$8)) -> 0 | M32: =COUNTIFS('Stat Analysis'!$AI$5682:$AI$6681,">="&MAX($E32,M$7), 'Stat Analysis'!$AI$5682:$AI$6681,"<"&MIN($F32,M$8)) -> 0 | N32: =COUNTIFS('Stat Analysis'!$AI$6682:$AI$7681,">="&MAX($E32,N$7), 'Stat Analysis'!$AI$6682:$AI$7681,"<"&MIN($F32,N$8)) -> 0 | O32: =COUNTIFS('Stat Analysis'!$AI$7682:$AI$8681,">="&MAX($E32,O$7), 'Stat Analysis'!$AI$7682:$AI$8681,"<"&MIN($F32,O$8)) -> 0 | P32: =COUNTIFS('Stat Analysis'!$AI$8682:$AI$9681,">="&MAX($E32,P$7), 'Stat Analysis'!$AI$8682:$AI$9681,"<"&MIN($F32,P$8)) -> 0 | Q32: =COUNTIFS('Stat Analysis'!$AI$9682:$AI$10681,">="&MAX($E32,Q$7), 'Stat Analysis'!$AI$9682:$AI$10681,"<"&MIN($F32,Q$8)) -> 0 | R32: =COUNTIFS('Stat Analysis'!$AI$10682:$AI$11681,">="&MAX($E32,R$7), 'Stat Analysis'!$AI$10682:$AI$11681,"<"&MIN($F32,R$8)) -> 0 | S32: =COUNTIFS('Stat Analysis'!$AI$11682:$AI$12681,">="&MAX($E32,S$7), 'Stat Analysis'!$AI$11682:$AI$12681,"<"&MIN($F32,S$8)) -> 0 | T32: =COUNTIFS('Stat Analysis'!$AI$12682:$AI$13681,">="&MAX($E32,T$7), 'Stat Analysis'!$AI$12682:$AI$13681,"<"&MIN($F32,T$8)) -> 0 | U32: =COUNTIFS('Stat Analysis'!$AI$13682:$AI$14681,">="&MAX($E32,U$7), 'Stat Analysis'!$AI$13682:$AI$14681,"<"&MIN($F32,U$8)) -> 0 | V32: =COUNTIFS('Stat Analysis'!$AI$14682:$AI$15681,">="&MAX($E32,V$7), 'Stat Analysis'!$AI$14682:$AI$15681,"<"&MIN($F32,V$8)) -> 0 | X32: 0 | Y32: 0 | Z32: 0 | AA32: 0 | AB32: 8.5 | AC32: 0 | AD32: 0 | AE32: 0 | AF32: 0 | AG32: 0 | AH32: 0 | AI32: 0 | AJ32: 0 | AK32: 0 | AL32: 0 | AN32: 10 | AO32: 0 | AP32: -6 | AQ32: 0 | AR32: 3 | AS32: 0 | AT32: =-AS$14-0.5*AS32+AU$14-0.5*AU32 -> 2 | AU32: 0 | AV32: =-AU$14-0.5*AU32+AW$14-0.5*AW32 -> 3.984955752 | AW32: 0.03008849558 | AX32: =-AW$14-0.5*AW32+AY$14-0.5*AY32 -> -2.015044248 | AY32: 0 | AZ32: =-AY$14-0.5*AY32+BA$14-0.5*BA32 -> -6 | BA32: 0 | BB32: =-BA$14-0.5*BA32+BC$14-0.5*BC32 -> -2 | BC32: 0 | BD32: =-BC$14-0.5*BC32+BE$14-0.5*BE32 -> 5 | BE32: 0 | BF32: =-BE$14-0.5*BE32+BG$14-0.5*BG32 -> 4 | BG32: 0 | BH32: =-BG$14-0.5*BG32+BI$14-0.5*BI32 -> -10 | BI32: 0 | BJ32: =-BI$14-0.5*BI32+BK$14-0.5*BK32 -> 4 | BK32: 0 | BL32: =-BK$14-0.5*BK32+BM$14-0.5*BM32 -> -5 | BM32: 0 | BN32: =-BM$14-0.5*BM32+BO$14-0.5*BO32 -> -1 | BO32: 0 | BP32: =-BO$14-0.5*BO32+BQ$14-0.5*BQ32 -> -1 | BQ32: 0 | BS32: 11 | CB32: 13.01504425 | CC32: 12.98495575
D33: 12 | E33: 0.055 | F33: 0.06 | G33: 0.0575 | H33: =COUNTIFS('Stat Analysis'!$AI$682:$AI$1681,">="&MAX($E33,H$7), 'Stat Analysis'!$AI$682:$AI$1681,"<"&MIN($F33,H$8)) -> 0 | I33: =COUNTIFS('Stat Analysis'!$AI$1682:$AI$2681,">="&MAX($E33,I$7), 'Stat Analysis'!$AI$1682:$AI$2681,"<"&MIN($F33,I$8)) -> 0 | J33: =COUNTIFS('Stat Analysis'!$AI$2682:$AI$3681,">="&MAX($E33,J$7), 'Stat Analysis'!$AI$2682:$AI$3681,"<"&MIN($F33,J$8)) -> 0 | K33: =COUNTIFS('Stat Analysis'!$AI$3682:$AI$4681,">="&MAX($E33,K$7), 'Stat Analysis'!$AI$3682:$AI$4681,"<"&MIN($F33,K$8)) -> 0 | L33: =COUNTIFS('Stat Analysis'!$AI$4682:$AI$5681,">="&MAX($E33,L$7), 'Stat Analysis'!$AI$4682:$AI$5681,"<"&MIN($F33,L$8)) -> 17 | M33: =COUNTIFS('Stat Analysis'!$AI$5682:$AI$6681,">="&MAX($E33,M$7), 'Stat Analysis'!$AI$5682:$AI$6681,"<"&MIN($F33,M$8)) -> 0 | N33: =COUNTIFS('Stat Analysis'!$AI$6682:$AI$7681,">="&MAX($E33,N$7), 'Stat Analysis'!$AI$6682:$AI$7681,"<"&MIN($F33,N$8)) -> 0 | O33: =COUNTIFS('Stat Analysis'!$AI$7682:$AI$8681,">="&MAX($E33,O$7), 'Stat Analysis'!$AI$7682:$AI$8681,"<"&MIN($F33,O$8)) -> 0 | P33: =COUNTIFS('Stat Analysis'!$AI$8682:$AI$9681,">="&MAX($E33,P$7), 'Stat Analysis'!$AI$8682:$AI$9681,"<"&MIN($F33,P$8)) -> 0 | Q33: =COUNTIFS('Stat Analysis'!$AI$9682:$AI$10681,">="&MAX($E33,Q$7), 'Stat Analysis'!$AI$9682:$AI$10681,"<"&MIN($F33,Q$8)) -> 0 | R33: =COUNTIFS('Stat Analysis'!$AI$10682:$AI$11681,">="&MAX($E33,R$7), 'Stat Analysis'!$AI$10682:$AI$11681,"<"&MIN($F33,R$8)) -> 0 | S33: =COUNTIFS('Stat Analysis'!$AI$11682:$AI$12681,">="&MAX($E33,S$7), 'Stat Analysis'!$AI$11682:$AI$12681,"<"&MIN($F33,S$8)) -> 0 | T33: =COUNTIFS('Stat Analysis'!$AI$12682:$AI$13681,">="&MAX($E33,T$7), 'Stat Analysis'!$AI$12682:$AI$13681,"<"&MIN($F33,T$8)) -> 0 | U33: =COUNTIFS('Stat Analysis'!$AI$13682:$AI$14681,">="&MAX($E33,U$7), 'Stat Analysis'!$AI$13682:$AI$14681,"<"&MIN($F33,U$8)) -> 0 | V33: =COUNTIFS('Stat Analysis'!$AI$14682:$AI$15681,">="&MAX($E33,V$7), 'Stat Analysis'!$AI$14682:$AI$15681,"<"&MIN($F33,V$8)) -> 0 | X33: 0 | Y33: 0 | Z33: 0 | AA33: 0 | AB33: 46.5 | AC33: 0 | AD33: 0 | AE33: 0 | AF33: 0 | AG33: 0 | AH33: 0 | AI33: 0 | AJ33: 0 | AK33: 0 | AL33: 0 | AN33: 10 | AO33: 0 | AP33: -6 | AQ33: 0 | AR33: 3 | AS33: 0 | AT33: =-AS$14-0.5*AS33+AU$14-0.5*AU33 -> 2 | AU33: 0 | AV33: =-AU$14-0.5*AU33+AW$14-0.5*AW33 -> 3.917699115 | AW33: 0.1646017699 | AX33: =-AW$14-0.5*AW33+AY$14-0.5*AY33 -> -2.082300885 | AY33: 0 | AZ33: =-AY$14-0.5*AY33+BA$14-0.5*BA33 -> -6 | BA33: 0 | BB33: =-BA$14-0.5*BA33+BC$14-0.5*BC33 -> -2 | BC33: 0 | BD33: =-BC$14-0.5*BC33+BE$14-0.5*BE33 -> 5 | BE33: 0 | BF33: =-BE$14-0.5*BE33+BG$14-0.5*BG33 -> 4 | BG33: 0 | BH33: =-BG$14-0.5*BG33+BI$14-0.5*BI33 -> -10 | BI33: 0 | BJ33: =-BI$14-0.5*BI33+BK$14-0.5*BK33 -> 4 | BK33: 0 | BL33: =-BK$14-0.5*BK33+BM$14-0.5*BM33 -> -5 | BM33: 0 | BN33: =-BM$14-0.5*BM33+BO$14-0.5*BO33 -> -1 | BO33: 0 | BP33: =-BO$14-0.5*BO33+BQ$14-0.5*BQ33 -> -1 | BQ33: 0 | BS33: 12 | CB33: 13.08230088 | CC33: 12.91769912
D34: 13 | E34: 0.06 | F34: 0.065 | G34: 0.0625 | H34: =COUNTIFS('Stat Analysis'!$AI$682:$AI$1681,">="&MAX($E34,H$7), 'Stat Analysis'!$AI$682:$AI$1681,"<"&MIN($F34,H$8)) -> 0 | I34: =COUNTIFS('Stat Analysis'!$AI$1682:$AI$2681,">="&MAX($E34,I$7), 'Stat Analysis'!$AI$1682:$AI$2681,"<"&MIN($F34,I$8)) -> 0 | J34: =COUNTIFS('Stat Analysis'!$AI$2682:$AI$3681,">="&MAX($E34,J$7), 'Stat Analysis'!$AI$2682:$AI$3681,"<"&MIN($F34,J$8)) -> 0 | K34: =COUNTIFS('Stat Analysis'!$AI$3682:$AI$4681,">="&MAX($E34,K$7), 'Stat Analysis'!$AI$3682:$AI$4681,"<"&MIN($F34,K$8)) -> 0 | L34: =COUNTIFS('Stat Analysis'!$AI$4682:$AI$5681,">="&MAX($E34,L$7), 'Stat Analysis'!$AI$4682:$AI$5681,"<"&MIN($F34,L$8)) -> 59 | M34: =COUNTIFS('Stat Analysis'!$AI$5682:$AI$6681,">="&MAX($E34,M$7), 'Stat Analysis'!$AI$5682:$AI$6681,"<"&MIN($F34,M$8)) -> 0 | N34: =COUNTIFS('Stat Analysis'!$AI$6682:$AI$7681,">="&MAX($E34,N$7), 'Stat Analysis'!$AI$6682:$AI$7681,"<"&MIN($F34,N$8)) -> 0 | O34: =COUNTIFS('Stat Analysis'!$AI$7682:$AI$8681,">="&MAX($E34,O$7), 'Stat Analysis'!$AI$7682:$AI$8681,"<"&MIN($F34,O$8)) -> 0 | P34: =COUNTIFS('Stat Analysis'!$AI$8682:$AI$9681,">="&MAX($E34,P$7), 'Stat Analysis'!$AI$8682:$AI$9681,"<"&MIN($F34,P$8)) -> 0 | Q34: =COUNTIFS('Stat Analysis'!$AI$9682:$AI$10681,">="&MAX($E34,Q$7), 'Stat Analysis'!$AI$9682:$AI$10681,"<"&MIN($F34,Q$8)) -> 0 | R34: =COUNTIFS('Stat Analysis'!$AI$10682:$AI$11681,">="&MAX($E34,R$7), 'Stat Analysis'!$AI$10682:$AI$11681,"<"&MIN($F34,R$8)) -> 0 | S34: =COUNTIFS('Stat Analysis'!$AI$11682:$AI$12681,">="&MAX($E34,S$7), 'Stat Analysis'!$AI$11682:$AI$12681,"<"&MIN($F34,S$8)) -> 0 | T34: =COUNTIFS('Stat Analysis'!$AI$12682:$AI$13681,">="&MAX($E34,T$7), 'Stat Analysis'!$AI$12682:$AI$13681,"<"&MIN($F34,T$8)) -> 0 | U34: =COUNTIFS('Stat Analysis'!$AI$13682:$AI$14681,">="&MAX($E34,U$7), 'Stat Analysis'!$AI$13682:$AI$14681,"<"&MIN($F34,U$8)) -> 0 | V34: =COUNTIFS('Stat Analysis'!$AI$14682:$AI$15681,">="&MAX($E34,V$7), 'Stat Analysis'!$AI$14682:$AI$15681,"<"&MIN($F34,V$8)) -> 0 | X34: 0 | Y34: 0 | Z34: 0 | AA34: 0 | AB34: 114 | AC34: 0 | AD34: 0 | AE34: 0 | AF34: 0 | AG34: 0 | AH34: 0 | AI34: 0 | AJ34: 0 | AK34: 0 | AL34: 0 | AN34: 10 | AO34: 0 | AP34: -6 | AQ34: 0 | AR34: 3 | AS34: 0 | AT34: =-AS$14-0.5*AS34+AU$14-0.5*AU34 -> 2 | AU34: 0 | AV34: =-AU$14-0.5*AU34+AW$14-0.5*AW34 -> 3.798230088 | AW34: 0.403539823 | AX34: =-AW$14-0.5*AW34+AY$14-0.5*AY34 -> -2.201769912 | AY34: 0 | AZ34: =-AY$14-0.5*AY34+BA$14-0.5*BA34 -> -6 | BA34: 0 | BB34: =-BA$14-0.5*BA34+BC$14-0.5*BC34 -> -2 | BC34: 0 | BD34: =-BC$14-0.5*BC34+BE$14-0.5*BE34 -> 5 | BE34: 0 | BF34: =-BE$14-0.5*BE34+BG$14-0.5*BG34 -> 4 | BG34: 0 | BH34: =-BG$14-0.5*BG34+BI$14-0.5*BI34 -> -10 | BI34: 0 | BJ34: =-BI$14-0.5*BI34+BK$14-0.5*BK34 -> 4 | BK34: 0 | BL34: =-BK$14-0.5*BK34+BM$14-0.5*BM34 -> -5 | BM34: 0 | BN34: =-BM$14-0.5*BM34+BO$14-0.5*BO34 -> -1 | BO34: 0 | BP34: =-BO$14-0.5*BO34+BQ$14-0.5*BQ34 -> -1 | BQ34: 0 | BS34: 13 | CB34: 13.20176991 | CC34: 12.79823009
D35: 14 | E35: 0.065 | F35: 0.07 | G35: 0.0675 | H35: =COUNTIFS('Stat Analysis'!$AI$682:$AI$1681,">="&MAX($E35,H$7), 'Stat Analysis'!$AI$682:$AI$1681,"<"&MIN($F35,H$8)) -> 0 | I35: =COUNTIFS('Stat Analysis'!$AI$1682:$AI$2681,">="&MAX($E35,I$7), 'Stat Analysis'!$AI$1682:$AI$2681,"<"&MIN($F35,I$8)) -> 0 | J35: =COUNTIFS('Stat Analysis'!$AI$2682:$AI$3681,">="&MAX($E35,J$7), 'Stat Analysis'!$AI$2682:$AI$3681,"<"&MIN($F35,J$8)) -> 0 | K35: =COUNTIFS('Stat Analysis'!$AI$3682:$AI$4681,">="&MAX($E35,K$7), 'Stat Analysis'!$AI$3682:$AI$4681,"<"&MIN($F35,K$8)) -> 0 | L35: =COUNTIFS('Stat Analysis'!$AI$4682:$AI$5681,">="&MAX($E35,L$7), 'Stat Analysis'!$AI$4682:$AI$5681,"<"&MIN($F35,L$8)) -> 93 | M35: =COUNTIFS('Stat Analysis'!$AI$5682:$AI$6681,">="&MAX($E35,M$7), 'Stat Analysis'!$AI$5682:$AI$6681,"<"&MIN($F35,M$8)) -> 0 | N35: =COUNTIFS('Stat Analysis'!$AI$6682:$AI$7681,">="&MAX($E35,N$7), 'Stat Analysis'!$AI$6682:$AI$7681,"<"&MIN($F35,N$8)) -> 0 | O35: =COUNTIFS('Stat Analysis'!$AI$7682:$AI$8681,">="&MAX($E35,O$7), 'Stat Analysis'!$AI$7682:$AI$8681,"<"&MIN($F35,O$8)) -> 0 | P35: =COUNTIFS('Stat Analysis'!$AI$8682:$AI$9681,">="&MAX($E35,P$7), 'Stat Analysis'!$AI$8682:$AI$9681,"<"&MIN($F35,P$8)) -> 0 | Q35: =COUNTIFS('Stat Analysis'!$AI$9682:$AI$10681,">="&MAX($E35,Q$7), 'Stat Analysis'!$AI$9682:$AI$10681,"<"&MIN($F35,Q$8)) -> 0 | R35: =COUNTIFS('Stat Analysis'!$AI$10682:$AI$11681,">="&MAX($E35,R$7), 'Stat Analysis'!$AI$10682:$AI$11681,"<"&MIN($F35,R$8)) -> 0 | S35: =COUNTIFS('Stat Analysis'!$AI$11682:$AI$12681,">="&MAX($E35,S$7), 'Stat Analysis'!$AI$11682:$AI$12681,"<"&MIN($F35,S$8)) -> 0 | T35: =COUNTIFS('Stat Analysis'!$AI$12682:$AI$13681,">="&MAX($E35,T$7), 'Stat Analysis'!$AI$12682:$AI$13681,"<"&MIN($F35,T$8)) -> 0 | U35: =COUNTIFS('Stat Analysis'!$AI$13682:$AI$14681,">="&MAX($E35,U$7), 'Stat Analysis'!$AI$13682:$AI$14681,"<"&MIN($F35,U$8)) -> 0 | V35: =COUNTIFS('Stat Analysis'!$AI$14682:$AI$15681,">="&MAX($E35,V$7), 'Stat Analysis'!$AI$14682:$AI$15681,"<"&MIN($F35,V$8)) -> 0 | X35: 0 | Y35: 0 | Z35: 0 | AA35: 0 | AB35: 183.5 | AC35: 0 | AD35: 0 | AE35: 0 | AF35: 0 | AG35: 0 | AH35: 0 | AI35: 0 | AJ35: 0 | AK35: 0 | AL35: 0 | AN35: 10 | AO35: 0 | AP35: -6 | AQ35: 0 | AR35: 3 | AS35: 0 | AT35: =-AS$14-0.5*AS35+AU$14-0.5*AU35 -> 2 | AU35: 0 | AV35: =-AU$14-0.5*AU35+AW$14-0.5*AW35 -> 3.675221239 | AW35: 0.6495575221 | AX35: =-AW$14-0.5*AW35+AY$14-0.5*AY35 -> -2.324778761 | AY35: 0 | AZ35: =-AY$14-0.5*AY35+BA$14-0.5*BA35 -> -6 | BA35: 0 | BB35: =-BA$14-0.5*BA35+BC$14-0.5*BC35 -> -2 | BC35: 0 | BD35: =-BC$14-0.5*BC35+BE$14-0.5*BE35 -> 5 | BE35: 0 | BF35: =-BE$14-0.5*BE35+BG$14-0.5*BG35 -> 4 | BG35: 0 | BH35: =-BG$14-0.5*BG35+BI$14-0.5*BI35 -> -10 | BI35: 0 | BJ35: =-BI$14-0.5*BI35+BK$14-0.5*BK35 -> 4 | BK35: 0 | BL35: =-BK$14-0.5*BK35+BM$14-0.5*BM35 -> -5 | BM35: 0 | BN35: =-BM$14-0.5*BM35+BO$14-0.5*BO35 -> -1 | BO35: 0 | BP35: =-BO$14-0.5*BO35+BQ$14-0.5*BQ35 -> -1 | BQ35: 0 | BS35: 14 | CB35: 13.32477876 | CC35: 12.67522124
A36: VgridX | B36: VgridY | D36: 15 | E36: 0.07 | F36: 0.075 | G36: 0.0725 | H36: =COUNTIFS('Stat Analysis'!$AI$682:$AI$1681,">="&MAX($E36,H$7), 'Stat Analysis'!$AI$682:$AI$1681,"<"&MIN($F36,H$8)) -> 0 | I36: =COUNTIFS('Stat Analysis'!$AI$1682:$AI$2681,">="&MAX($E36,I$7), 'Stat Analysis'!$AI$1682:$AI$2681,"<"&MIN($F36,I$8)) -> 0 | J36: =COUNTIFS('Stat Analysis'!$AI$2682:$AI$3681,">="&MAX($E36,J$7), 'Stat Analysis'!$AI$2682:$AI$3681,"<"&MIN($F36,J$8)) -> 0 | K36: =COUNTIFS('Stat Analysis'!$AI$3682:$AI$4681,">="&MAX($E36,K$7), 'Stat Analysis'!$AI$3682:$AI$4681,"<"&MIN($F36,K$8)) -> 0 | L36: =COUNTIFS('Stat Analysis'!$AI$4682:$AI$5681,">="&MAX($E36,L$7), 'Stat Analysis'!$AI$4682:$AI$5681,"<"&MIN($F36,L$8)) -> 122 | M36: =COUNTIFS('Stat Analysis'!$AI$5682:$AI$6681,">="&MAX($E36,M$7), 'Stat Analysis'!$AI$5682:$AI$6681,"<"&MIN($F36,M$8)) -> 0 | N36: =COUNTIFS('Stat Analysis'!$AI$6682:$AI$7681,">="&MAX($E36,N$7), 'Stat Analysis'!$AI$6682:$AI$7681,"<"&MIN($F36,N$8)) -> 0 | O36: =COUNTIFS('Stat Analysis'!$AI$7682:$AI$8681,">="&MAX($E36,O$7), 'Stat Analysis'!$AI$7682:$AI$8681,"<"&MIN($F36,O$8)) -> 0 | P36: =COUNTIFS('Stat Analysis'!$AI$8682:$AI$9681,">="&MAX($E36,P$7), 'Stat Analysis'!$AI$8682:$AI$9681,"<"&MIN($F36,P$8)) -> 0 | Q36: =COUNTIFS('Stat Analysis'!$AI$9682:$AI$10681,">="&MAX($E36,Q$7), 'Stat Analysis'!$AI$9682:$AI$10681,"<"&MIN($F36,Q$8)) -> 0 | R36: =COUNTIFS('Stat Analysis'!$AI$10682:$AI$11681,">="&MAX($E36,R$7), 'Stat Analysis'!$AI$10682:$AI$11681,"<"&MIN($F36,R$8)) -> 0 | S36: =COUNTIFS('Stat Analysis'!$AI$11682:$AI$12681,">="&MAX($E36,S$7), 'Stat Analysis'!$AI$11682:$AI$12681,"<"&MIN($F36,S$8)) -> 0 | T36: =COUNTIFS('Stat Analysis'!$AI$12682:$AI$13681,">="&MAX($E36,T$7), 'Stat Analysis'!$AI$12682:$AI$13681,"<"&MIN($F36,T$8)) -> 0 | U36: =COUNTIFS('Stat Analysis'!$AI$13682:$AI$14681,">="&MAX($E36,U$7), 'Stat Analysis'!$AI$13682:$AI$14681,"<"&MIN($F36,U$8)) -> 0 | V36: =COUNTIFS('Stat Analysis'!$AI$14682:$AI$15681,">="&MAX($E36,V$7), 'Stat Analysis'!$AI$14682:$AI$15681,"<"&MIN($F36,V$8)) -> 0 | X36: 0 | Y36: 0 | Z36: 0 | AA36: 0 | AB36: 247 | AC36: 0 | AD36: 0 | AE36: 0 | AF36: 0 | AG36: 0 | AH36: 0 | AI36: 0 | AJ36: 0 | AK36: 0 | AL36: 0 | AN36: 10 | AO36: 0 | AP36: -6 | AQ36: 0 | AR36: 3 | AS36: 0 | AT36: =-AS$14-0.5*AS36+AU$14-0.5*AU36 -> 2 | AU36: 0 | AV36: =-AU$14-0.5*AU36+AW$14-0.5*AW36 -> 3.562831858 | AW36: 0.8743362832 | AX36: =-AW$14-0.5*AW36+AY$14-0.5*AY36 -> -2.437168142 | AY36: 0 | AZ36: =-AY$14-0.5*AY36+BA$14-0.5*BA36 -> -6 | BA36: 0 | BB36: =-BA$14-0.5*BA36+BC$14-0.5*BC36 -> -2 | BC36: 0 | BD36: =-BC$14-0.5*BC36+BE$14-0.5*BE36 -> 5 | BE36: 0 | BF36: =-BE$14-0.5*BE36+BG$14-0.5*BG36 -> 4 | BG36: 0 | BH36: =-BG$14-0.5*BG36+BI$14-0.5*BI36 -> -10 | BI36: 0 | BJ36: =-BI$14-0.5*BI36+BK$14-0.5*BK36 -> 4 | BK36: 0 | BL36: =-BK$14-0.5*BK36+BM$14-0.5*BM36 -> -5 | BM36: 0 | BN36: =-BM$14-0.5*BM36+BO$14-0.5*BO36 -> -1 | BO36: 0 | BP36: =-BO$14-0.5*BO36+BQ$14-0.5*BQ36 -> -1 | BQ36: 0 | BS36: 15 | CB36: 13.43716814 | CC36: 12.56283186
D37: 16 | E37: 0.075 | F37: 0.08 | G37: 0.0775 | H37: =COUNTIFS('Stat Analysis'!$AI$682:$AI$1681,">="&MAX($E37,H$7), 'Stat Analysis'!$AI$682:$AI$1681,"<"&MIN($F37,H$8)) -> 0 | I37: =COUNTIFS('Stat Analysis'!$AI$1682:$AI$2681,">="&MAX($E37,I$7), 'Stat Analysis'!$AI$1682:$AI$2681,"<"&MIN($F37,I$8)) -> 0 | J37: =COUNTIFS('Stat Analysis'!$AI$2682:$AI$3681,">="&MAX($E37,J$7), 'Stat Analysis'!$AI$2682:$AI$3681,"<"&MIN($F37,J$8)) -> 0 | K37: =COUNTIFS('Stat Analysis'!$AI$3682:$AI$4681,">="&MAX($E37,K$7), 'Stat Analysis'!$AI$3682:$AI$4681,"<"&MIN($F37,K$8)) -> 0 | L37: =COUNTIFS('Stat Analysis'!$AI$4682:$AI$5681,">="&MAX($E37,L$7), 'Stat Analysis'!$AI$4682:$AI$5681,"<"&MIN($F37,L$8)) -> 157 | M37: =COUNTIFS('Stat Analysis'!$AI$5682:$AI$6681,">="&MAX($E37,M$7), 'Stat Analysis'!$AI$5682:$AI$6681,"<"&MIN($F37,M$8)) -> 0 | N37: =COUNTIFS('Stat Analysis'!$AI$6682:$AI$7681,">="&MAX($E37,N$7), 'Stat Analysis'!$AI$6682:$AI$7681,"<"&MIN($F37,N$8)) -> 0 | O37: =COUNTIFS('Stat Analysis'!$AI$7682:$AI$8681,">="&MAX($E37,O$7), 'Stat Analysis'!$AI$7682:$AI$8681,"<"&MIN($F37,O$8)) -> 0 | P37: =COUNTIFS('Stat Analysis'!$AI$8682:$AI$9681,">="&MAX($E37,P$7), 'Stat Analysis'!$AI$8682:$AI$9681,"<"&MIN($F37,P$8)) -> 0 | Q37: =COUNTIFS('Stat Analysis'!$AI$9682:$AI$10681,">="&MAX($E37,Q$7), 'Stat Analysis'!$AI$9682:$AI$10681,"<"&MIN($F37,Q$8)) -> 0 | R37: =COUNTIFS('Stat Analysis'!$AI$10682:$AI$11681,">="&MAX($E37,R$7), 'Stat Analysis'!$AI$10682:$AI$11681,"<"&MIN($F37,R$8)) -> 0 | S37: =COUNTIFS('Stat Analysis'!$AI$11682:$AI$12681,">="&MAX($E37,S$7), 'Stat Analysis'!$AI$11682:$AI$12681,"<"&MIN($F37,S$8)) -> 0 | T37: =COUNTIFS('Stat Analysis'!$AI$12682:$AI$13681,">="&MAX($E37,T$7), 'Stat Analysis'!$AI$12682:$AI$13681,"<"&MIN($F37,T$8)) -> 0 | U37: =COUNTIFS('Stat Analysis'!$AI$13682:$AI$14681,">="&MAX($E37,U$7), 'Stat Analysis'!$AI$13682:$AI$14681,"<"&MIN($F37,U$8)) -> 0 | V37: =COUNTIFS('Stat Analysis'!$AI$14682:$AI$15681,">="&MAX($E37,V$7), 'Stat Analysis'!$AI$14682:$AI$15681,"<"&MIN($F37,V$8)) -> 0 | X37: 0 | Y37: 0 | Z37: 0 | AA37: 0 | AB37: 282.5 | AC37: 0 | AD37: 0 | AE37: 0 | AF37: 0 | AG37: 0 | AH37: 0 | AI37: 0 | AJ37: 0 | AK37: 0 | AL37: 0 | AN37: 10 | AO37: 0 | AP37: -6 | AQ37: 0 | AR37: 3 | AS37: 0 | AT37: =-AS$14-0.5*AS37+AU$14-0.5*AU37 -> 2 | AU37: 0 | AV37: =-AU$14-0.5*AU37+AW$14-0.5*AW37 -> 3.5 | AW37: 1 | AX37: =-AW$14-0.5*AW37+AY$14-0.5*AY37 -> -2.5 | AY37: 0 | AZ37: =-AY$14-0.5*AY37+BA$14-0.5*BA37 -> -6 | BA37: 0 | BB37: =-BA$14-0.5*BA37+BC$14-0.5*BC37 -> -2 | BC37: 0 | BD37: =-BC$14-0.5*BC37+BE$14-0.5*BE37 -> 5 | BE37: 0 | BF37: =-BE$14-0.5*BE37+BG$14-0.5*BG37 -> 4 | BG37: 0 | BH37: =-BG$14-0.5*BG37+BI$14-0.5*BI37 -> -10 | BI37: 0 | BJ37: =-BI$14-0.5*BI37+BK$14-0.5*BK37 -> 4 | BK37: 0 | BL37: =-BK$14-0.5*BK37+BM$14-0.5*BM37 -> -5 | BM37: 0 | BN37: =-BM$14-0.5*BM37+BO$14-0.5*BO37 -> -1 | BO37: 0 | BP37: =-BO$14-0.5*BO37+BQ$14-0.5*BQ37 -> -1 | BQ37: 0 | BS37: 16 | CB37: 13.5 | CC37: 12.5
D38: 17 | E38: 0.08 | F38: 0.085 | G38: 0.0825 | H38: =COUNTIFS('Stat Analysis'!$AI$682:$AI$1681,">="&MAX($E38,H$7), 'Stat Analysis'!$AI$682:$AI$1681,"<"&MIN($F38,H$8)) -> 0 | I38: =COUNTIFS('Stat Analysis'!$AI$1682:$AI$2681,">="&MAX($E38,I$7), 'Stat Analysis'!$AI$1682:$AI$2681,"<"&MIN($F38,I$8)) -> 0 | J38: =COUNTIFS('Stat Analysis'!$AI$2682:$AI$3681,">="&MAX($E38,J$7), 'Stat Analysis'!$AI$2682:$AI$3681,"<"&MIN($F38,J$8)) -> 0 | K38: =COUNTIFS('Stat Analysis'!$AI$3682:$AI$4681,">="&MAX($E38,K$7), 'Stat Analysis'!$AI$3682:$AI$4681,"<"&MIN($F38,K$8)) -> 0 | L38: =COUNTIFS('Stat Analysis'!$AI$4682:$AI$5681,">="&MAX($E38,L$7), 'Stat Analysis'!$AI$4682:$AI$5681,"<"&MIN($F38,L$8)) -> 129 | M38: =COUNTIFS('Stat Analysis'!$AI$5682:$AI$6681,">="&MAX($E38,M$7), 'Stat Analysis'!$AI$5682:$AI$6681,"<"&MIN($F38,M$8)) -> 0 | N38: =COUNTIFS('Stat Analysis'!$AI$6682:$AI$7681,">="&MAX($E38,N$7), 'Stat Analysis'!$AI$6682:$AI$7681,"<"&MIN($F38,N$8)) -> 0 | O38: =COUNTIFS('Stat Analysis'!$AI$7682:$AI$8681,">="&MAX($E38,O$7), 'Stat Analysis'!$AI$7682:$AI$8681,"<"&MIN($F38,O$8)) -> 0 | P38: =COUNTIFS('Stat Analysis'!$AI$8682:$AI$9681,">="&MAX($E38,P$7), 'Stat Analysis'!$AI$8682:$AI$9681,"<"&MIN($F38,P$8)) -> 0 | Q38: =COUNTIFS('Stat Analysis'!$AI$9682:$AI$10681,">="&MAX($E38,Q$7), 'Stat Analysis'!$AI$9682:$AI$10681,"<"&MIN($F38,Q$8)) -> 0 | R38: =COUNTIFS('Stat Analysis'!$AI$10682:$AI$11681,">="&MAX($E38,R$7), 'Stat Analysis'!$AI$10682:$AI$11681,"<"&MIN($F38,R$8)) -> 0 | S38: =COUNTIFS('Stat Analysis'!$AI$11682:$AI$12681,">="&MAX($E38,S$7), 'Stat Analysis'!$AI$11682:$AI$12681,"<"&MIN($F38,S$8)) -> 0 | T38: =COUNTIFS('Stat Analysis'!$AI$12682:$AI$13681,">="&MAX($E38,T$7), 'Stat Analysis'!$AI$12682:$AI$13681,"<"&MIN($F38,T$8)) -> 0 | U38: =COUNTIFS('Stat Analysis'!$AI$13682:$AI$14681,">="&MAX($E38,U$7), 'Stat Analysis'!$AI$13682:$AI$14681,"<"&MIN($F38,U$8)) -> 0 | V38: =COUNTIFS('Stat Analysis'!$AI$14682:$AI$15681,">="&MAX($E38,V$7), 'Stat Analysis'!$AI$14682:$AI$15681,"<"&MIN($F38,V$8)) -> 0 | X38: 0 | Y38: 0 | Z38: 0 | AA38: 0 | AB38: 262 | AC38: 0 | AD38: 0 | AE38: 0 | AF38: 0 | AG38: 0 | AH38: 0 | AI38: 0 | AJ38: 0 | AK38: 0 | AL38: 0 | AN38: 10 | AO38: 0 | AP38: -6 | AQ38: 0 | AR38: 3 | AS38: 0 | AT38: =-AS$14-0.5*AS38+AU$14-0.5*AU38 -> 2 | AU38: 0 | AV38: =-AU$14-0.5*AU38+AW$14-0.5*AW38 -> 3.536283186 | AW38: 0.9274336283 | AX38: =-AW$14-0.5*AW38+AY$14-0.5*AY38 -> -2.463716814 | AY38: 0 | AZ38: =-AY$14-0.5*AY38+BA$14-0.5*BA38 -> -6 | BA38: 0 | BB38: =-BA$14-0.5*BA38+BC$14-0.5*BC38 -> -2 | BC38: 0 | BD38: =-BC$14-0.5*BC38+BE$14-0.5*BE38 -> 5 | BE38: 0 | BF38: =-BE$14-0.5*BE38+BG$14-0.5*BG38 -> 4 | BG38: 0 | BH38: =-BG$14-0.5*BG38+BI$14-0.5*BI38 -> -10 | BI38: 0 | BJ38: =-BI$14-0.5*BI38+BK$14-0.5*BK38 -> 4 | BK38: 0 | BL38: =-BK$14-0.5*BK38+BM$14-0.5*BM38 -> -5 | BM38: 0 | BN38: =-BM$14-0.5*BM38+BO$14-0.5*BO38 -> -1 | BO38: 0 | BP38: =-BO$14-0.5*BO38+BQ$14-0.5*BQ38 -> -1 | BQ38: 0 | BS38: 17 | CB38: 13.46371681 | CC38: 12.53628319
D39: 18 | E39: 0.085 | F39: 0.09 | G39: 0.0875 | H39: =COUNTIFS('Stat Analysis'!$AI$682:$AI$1681,">="&MAX($E39,H$7), 'Stat Analysis'!$AI$682:$AI$1681,"<"&MIN($F39,H$8)) -> 0 | I39: =COUNTIFS('Stat Analysis'!$AI$1682:$AI$2681,">="&MAX($E39,I$7), 'Stat Analysis'!$AI$1682:$AI$2681,"<"&MIN($F39,I$8)) -> 0 | J39: =COUNTIFS('Stat Analysis'!$AI$2682:$AI$3681,">="&MAX($E39,J$7), 'Stat Analysis'!$AI$2682:$AI$3681,"<"&MIN($F39,J$8)) -> 0 | K39: =COUNTIFS('Stat Analysis'!$AI$3682:$AI$4681,">="&MAX($E39,K$7), 'Stat Analysis'!$AI$3682:$AI$4681,"<"&MIN($F39,K$8)) -> 0 | L39: =COUNTIFS('Stat Analysis'!$AI$4682:$AI$5681,">="&MAX($E39,L$7), 'Stat Analysis'!$AI$4682:$AI$5681,"<"&MIN($F39,L$8)) -> 109 | M39: =COUNTIFS('Stat Analysis'!$AI$5682:$AI$6681,">="&MAX($E39,M$7), 'Stat Analysis'!$AI$5682:$AI$6681,"<"&MIN($F39,M$8)) -> 0 | N39: =COUNTIFS('Stat Analysis'!$AI$6682:$AI$7681,">="&MAX($E39,N$7), 'Stat Analysis'!$AI$6682:$AI$7681,"<"&MIN($F39,N$8)) -> 0 | O39: =COUNTIFS('Stat Analysis'!$AI$7682:$AI$8681,">="&MAX($E39,O$7), 'Stat Analysis'!$AI$7682:$AI$8681,"<"&MIN($F39,O$8)) -> 0 | P39: =COUNTIFS('Stat Analysis'!$AI$8682:$AI$9681,">="&MAX($E39,P$7), 'Stat Analysis'!$AI$8682:$AI$9681,"<"&MIN($F39,P$8)) -> 0 | Q39: =COUNTIFS('Stat Analysis'!$AI$9682:$AI$10681,">="&MAX($E39,Q$7), 'Stat Analysis'!$AI$9682:$AI$10681,"<"&MIN($F39,Q$8)) -> 0 | R39: =COUNTIFS('Stat Analysis'!$AI$10682:$AI$11681,">="&MAX($E39,R$7), 'Stat Analysis'!$AI$10682:$AI$11681,"<"&MIN($F39,R$8)) -> 0 | S39: =COUNTIFS('Stat Analysis'!$AI$11682:$AI$12681,">="&MAX($E39,S$7), 'Stat Analysis'!$AI$11682:$AI$12681,"<"&MIN($F39,S$8)) -> 0 | T39: =COUNTIFS('Stat Analysis'!$AI$12682:$AI$13681,">="&MAX($E39,T$7), 'Stat Analysis'!$AI$12682:$AI$13681,"<"&MIN($F39,T$8)) -> 0 | U39: =COUNTIFS('Stat Analysis'!$AI$13682:$AI$14681,">="&MAX($E39,U$7), 'Stat Analysis'!$AI$13682:$AI$14681,"<"&MIN($F39,U$8)) -> 0 | V39: =COUNTIFS('Stat Analysis'!$AI$14682:$AI$15681,">="&MAX($E39,V$7), 'Stat Analysis'!$AI$14682:$AI$15681,"<"&MIN($F39,V$8)) -> 0 | X39: 0 | Y39: 0 | Z39: 0 | AA39: 0 | AB39: 235.5 | AC39: 0 | AD39: 0 | AE39: 0 | AF39: 0 | AG39: 0 | AH39: 0 | AI39: 0 | AJ39: 0 | AK39: 0 | AL39: 0 | AN39: 10 | AO39: 0 | AP39: -6 | AQ39: 0 | AR39: 3 | AS39: 0 | AT39: =-AS$14-0.5*AS39+AU$14-0.5*AU39 -> 2 | AU39: 0 | AV39: =-AU$14-0.5*AU39+AW$14-0.5*AW39 -> 3.583185841 | AW39: 0.8336283186 | AX39: =-AW$14-0.5*AW39+AY$14-0.5*AY39 -> -2.416814159 | AY39: 0 | AZ39: =-AY$14-0.5*AY39+BA$14-0.5*BA39 -> -6 | BA39: 0 | BB39: =-BA$14-0.5*BA39+BC$14-0.5*BC39 -> -2 | BC39: 0 | BD39: =-BC$14-0.5*BC39+BE$14-0.5*BE39 -> 5 | BE39: 0 | BF39: =-BE$14-0.5*BE39+BG$14-0.5*BG39 -> 4 | BG39: 0 | BH39: =-BG$14-0.5*BG39+BI$14-0.5*BI39 -> -10 | BI39: 0 | BJ39: =-BI$14-0.5*BI39+BK$14-0.5*BK39 -> 4 | BK39: 0 | BL39: =-BK$14-0.5*BK39+BM$14-0.5*BM39 -> -5 | BM39: 0 | BN39: =-BM$14-0.5*BM39+BO$14-0.5*BO39 -> -1 | BO39: 0 | BP39: =-BO$14-0.5*BO39+BQ$14-0.5*BQ39 -> -1 | BQ39: 0 | BS39: 18 | CB39: 13.41681416 | CC39: 12.58318584
A40: =+$B$23 -> 20.1 | B40: =+B37 -> 0 | D40: 19 | E40: 0.09 | F40: 0.095 | G40: 0.0925 | H40: =COUNTIFS('Stat Analysis'!$AI$682:$AI$1681,">="&MAX($E40,H$7), 'Stat Analysis'!$AI$682:$AI$1681,"<"&MIN($F40,H$8)) -> 0 | I40: =COUNTIFS('Stat Analysis'!$AI$1682:$AI$2681,">="&MAX($E40,I$7), 'Stat Analysis'!$AI$1682:$AI$2681,"<"&MIN($F40,I$8)) -> 0 | J40: =COUNTIFS('Stat Analysis'!$AI$2682:$AI$3681,">="&MAX($E40,J$7), 'Stat Analysis'!$AI$2682:$AI$3681,"<"&MIN($F40,J$8)) -> 0 | K40: =COUNTIFS('Stat Analysis'!$AI$3682:$AI$4681,">="&MAX($E40,K$7), 'Stat Analysis'!$AI$3682:$AI$4681,"<"&MIN($F40,K$8)) -> 0 | L40: =COUNTIFS('Stat Analysis'!$AI$4682:$AI$5681,">="&MAX($E40,L$7), 'Stat Analysis'!$AI$4682:$AI$5681,"<"&MIN($F40,L$8)) -> 124 | M40: =COUNTIFS('Stat Analysis'!$AI$5682:$AI$6681,">="&MAX($E40,M$7), 'Stat Analysis'!$AI$5682:$AI$6681,"<"&MIN($F40,M$8)) -> 0 | N40: =COUNTIFS('Stat Analysis'!$AI$6682:$AI$7681,">="&MAX($E40,N$7), 'Stat Analysis'!$AI$6682:$AI$7681,"<"&MIN($F40,N$8)) -> 0 | O40: =COUNTIFS('Stat Analysis'!$AI$7682:$AI$8681,">="&MAX($E40,O$7), 'Stat Analysis'!$AI$7682:$AI$8681,"<"&MIN($F40,O$8)) -> 0 | P40: =COUNTIFS('Stat Analysis'!$AI$8682:$AI$9681,">="&MAX($E40,P$7), 'Stat Analysis'!$AI$8682:$AI$9681,"<"&MIN($F40,P$8)) -> 0 | Q40: =COUNTIFS('Stat Analysis'!$AI$9682:$AI$10681,">="&MAX($E40,Q$7), 'Stat Analysis'!$AI$9682:$AI$10681,"<"&MIN($F40,Q$8)) -> 0 | R40: =COUNTIFS('Stat Analysis'!$AI$10682:$AI$11681,">="&MAX($E40,R$7), 'Stat Analysis'!$AI$10682:$AI$11681,"<"&MIN($F40,R$8)) -> 0 | S40: =COUNTIFS('Stat Analysis'!$AI$11682:$AI$12681,">="&MAX($E40,S$7), 'Stat Analysis'!$AI$11682:$AI$12681,"<"&MIN($F40,S$8)) -> 0 | T40: =COUNTIFS('Stat Analysis'!$AI$12682:$AI$13681,">="&MAX($E40,T$7), 'Stat Analysis'!$AI$12682:$AI$13681,"<"&MIN($F40,T$8)) -> 0 | U40: =COUNTIFS('Stat Analysis'!$AI$13682:$AI$14681,">="&MAX($E40,U$7), 'Stat Analysis'!$AI$13682:$AI$14681,"<"&MIN($F40,U$8)) -> 0 | V40: =COUNTIFS('Stat Analysis'!$AI$14682:$AI$15681,">="&MAX($E40,V$7), 'Stat Analysis'!$AI$14682:$AI$15681,"<"&MIN($F40,V$8)) -> 0 | X40: 0 | Y40: 0 | Z40: 0 | AA40: 0 | AB40: 209 | AC40: 0 | AD40: 0 | AE40: 0 | AF40: 0 | AG40: 0 | AH40: 0 | AI40: 0 | AJ40: 0 | AK40: 0 | AL40: 0 | AN40: 10 | AO40: 0 | AP40: -6 | AQ40: 0 | AR40: 3 | AS40: 0 | AT40: =-AS$14-0.5*AS40+AU$14-0.5*AU40 -> 2 | AU40: 0 | AV40: =-AU$14-0.5*AU40+AW$14-0.5*AW40 -> 3.630088496 | AW40: 0.7398230088 | AX40: =-AW$14-0.5*AW40+AY$14-0.5*AY40 -> -2.369911504 | AY40: 0 | AZ40: =-AY$14-0.5*AY40+BA$14-0.5*BA40 -> -6 | BA40: 0 | BB40: =-BA$14-0.5*BA40+BC$14-0.5*BC40 -> -2 | BC40: 0 | BD40: =-BC$14-0.5*BC40+BE$14-0.5*BE40 -> 5 | BE40: 0 | BF40: =-BE$14-0.5*BE40+BG$14-0.5*BG40 -> 4 | BG40: 0 | BH40: =-BG$14-0.5*BG40+BI$14-0.5*BI40 -> -10 | BI40: 0 | BJ40: =-BI$14-0.5*BI40+BK$14-0.5*BK40 -> 4 | BK40: 0 | BL40: =-BK$14-0.5*BK40+BM$14-0.5*BM40 -> -5 | BM40: 0 | BN40: =-BM$14-0.5*BM40+BO$14-0.5*BO40 -> -1 | BO40: 0 | BP40: =-BO$14-0.5*BO40+BQ$14-0.5*BQ40 -> -1 | BQ40: 0 | BS40: 19 | CB40: 13.3699115 | CC40: 12.6300885
A41: =+$B$23 -> 20.1 | B41: =NTech+1 -> 14 | D41: 20 | E41: 0.095 | F41: 0.1 | G41: 0.0975 | H41: =COUNTIFS('Stat Analysis'!$AI$682:$AI$1681,">="&MAX($E41,H$7), 'Stat Analysis'!$AI$682:$AI$1681,"<"&MIN($F41,H$8)) -> 0 | I41: =COUNTIFS('Stat Analysis'!$AI$1682:$AI$2681,">="&MAX($E41,I$7), 'Stat Analysis'!$AI$1682:$AI$2681,"<"&MIN($F41,I$8)) -> 0 | J41: =COUNTIFS('Stat Analysis'!$AI$2682:$AI$3681,">="&MAX($E41,J$7), 'Stat Analysis'!$AI$2682:$AI$3681,"<"&MIN($F41,J$8)) -> 0 | K41: =COUNTIFS('Stat Analysis'!$AI$3682:$AI$4681,">="&MAX($E41,K$7), 'Stat Analysis'!$AI$3682:$AI$4681,"<"&MIN($F41,K$8)) -> 0 | L41: =COUNTIFS('Stat Analysis'!$AI$4682:$AI$5681,">="&MAX($E41,L$7), 'Stat Analysis'!$AI$4682:$AI$5681,"<"&MIN($F41,L$8)) -> 61 | M41: =COUNTIFS('Stat Analysis'!$AI$5682:$AI$6681,">="&MAX($E41,M$7), 'Stat Analysis'!$AI$5682:$AI$6681,"<"&MIN($F41,M$8)) -> 0 | N41: =COUNTIFS('Stat Analysis'!$AI$6682:$AI$7681,">="&MAX($E41,N$7), 'Stat Analysis'!$AI$6682:$AI$7681,"<"&MIN($F41,N$8)) -> 0 | O41: =COUNTIFS('Stat Analysis'!$AI$7682:$AI$8681,">="&MAX($E41,O$7), 'Stat Analysis'!$AI$7682:$AI$8681,"<"&MIN($F41,O$8)) -> 0 | P41: =COUNTIFS('Stat Analysis'!$AI$8682:$AI$9681,">="&MAX($E41,P$7), 'Stat Analysis'!$AI$8682:$AI$9681,"<"&MIN($F41,P$8)) -> 0 | Q41: =COUNTIFS('Stat Analysis'!$AI$9682:$AI$10681,">="&MAX($E41,Q$7), 'Stat Analysis'!$AI$9682:$AI$10681,"<"&MIN($F41,Q$8)) -> 0 | R41: =COUNTIFS('Stat Analysis'!$AI$10682:$AI$11681,">="&MAX($E41,R$7), 'Stat Analysis'!$AI$10682:$AI$11681,"<"&MIN($F41,R$8)) -> 0 | S41: =COUNTIFS('Stat Analysis'!$AI$11682:$AI$12681,">="&MAX($E41,S$7), 'Stat Analysis'!$AI$11682:$AI$12681,"<"&MIN($F41,S$8)) -> 0 | T41: =COUNTIFS('Stat Analysis'!$AI$12682:$AI$13681,">="&MAX($E41,T$7), 'Stat Analysis'!$AI$12682:$AI$13681,"<"&MIN($F41,T$8)) -> 0 | U41: =COUNTIFS('Stat Analysis'!$AI$13682:$AI$14681,">="&MAX($E41,U$7), 'Stat Analysis'!$AI$13682:$AI$14681,"<"&MIN($F41,U$8)) -> 0 | V41: =COUNTIFS('Stat Analysis'!$AI$14682:$AI$15681,">="&MAX($E41,V$7), 'Stat Analysis'!$AI$14682:$AI$15681,"<"&MIN($F41,V$8)) -> 0 | X41: 0 | Y41: 0 | Z41: 0 | AA41: 0 | AB41: 155 | AC41: 0 | AD41: 0 | AE41: 0 | AF41: 0 | AG41: 0 | AH41: 0 | AI41: 0 | AJ41: 0 | AK41: 0 | AL41: 0 | AN41: 10 | AO41: 0 | AP41: -6 | AQ41: 0 | AR41: 3 | AS41: 0 | AT41: =-AS$14-0.5*AS41+AU$14-0.5*AU41 -> 2 | AU41: 0 | AV41: =-AU$14-0.5*AU41+AW$14-0.5*AW41 -> 3.725663717 | AW41: 0.5486725664 | AX41: =-AW$14-0.5*AW41+AY$14-0.5*AY41 -> -2.274336283 | AY41: 0 | AZ41: =-AY$14-0.5*AY41+BA$14-0.5*BA41 -> -6 | BA41: 0 | BB41: =-BA$14-0.5*BA41+BC$14-0.5*BC41 -> -2 | BC41: 0 | BD41: =-BC$14-0.5*BC41+BE$14-0.5*BE41 -> 5 | BE41: 0 | BF41: =-BE$14-0.5*BE41+BG$14-0.5*BG41 -> 4 | BG41: 0 | BH41: =-BG$14-0.5*BG41+BI$14-0.5*BI41 -> -10 | BI41: 0 | BJ41: =-BI$14-0.5*BI41+BK$14-0.5*BK41 -> 4 | BK41: 0 | BL41: =-BK$14-0.5*BK41+BM$14-0.5*BM41 -> -5 | BM41: 0 | BN41: =-BM$14-0.5*BM41+BO$14-0.5*BO41 -> -1 | BO41: 0 | BP41: =-BO$14-0.5*BO41+BQ$14-0.5*BQ41 -> -1 | BQ41: 0 | BS41: 20 | CB41: 13.27433628 | CC41: 12.72566372
D42: 21 | E42: 0.1 | F42: 0.105 | G42: 0.1025 | H42: =COUNTIFS('Stat Analysis'!$AI$682:$AI$1681,">="&MAX($E42,H$7), 'Stat Analysis'!$AI$682:$AI$1681,"<"&MIN($F42,H$8)) -> 0 | I42: =COUNTIFS('Stat Analysis'!$AI$1682:$AI$2681,">="&MAX($E42,I$7), 'Stat Analysis'!$AI$1682:$AI$2681,"<"&MIN($F42,I$8)) -> 0 | J42: =COUNTIFS('Stat Analysis'!$AI$2682:$AI$3681,">="&MAX($E42,J$7), 'Stat Analysis'!$AI$2682:$AI$3681,"<"&MIN($F42,J$8)) -> 0 | K42: =COUNTIFS('Stat Analysis'!$AI$3682:$AI$4681,">="&MAX($E42,K$7), 'Stat Analysis'!$AI$3682:$AI$4681,"<"&MIN($F42,K$8)) -> 0 | L42: =COUNTIFS('Stat Analysis'!$AI$4682:$AI$5681,">="&MAX($E42,L$7), 'Stat Analysis'!$AI$4682:$AI$5681,"<"&MIN($F42,L$8)) -> 64 | M42: =COUNTIFS('Stat Analysis'!$AI$5682:$AI$6681,">="&MAX($E42,M$7), 'Stat Analysis'!$AI$5682:$AI$6681,"<"&MIN($F42,M$8)) -> 0 | N42: =COUNTIFS('Stat Analysis'!$AI$6682:$AI$7681,">="&MAX($E42,N$7), 'Stat Analysis'!$AI$6682:$AI$7681,"<"&MIN($F42,N$8)) -> 0 | O42: =COUNTIFS('Stat Analysis'!$AI$7682:$AI$8681,">="&MAX($E42,O$7), 'Stat Analysis'!$AI$7682:$AI$8681,"<"&MIN($F42,O$8)) -> 0 | P42: =COUNTIFS('Stat Analysis'!$AI$8682:$AI$9681,">="&MAX($E42,P$7), 'Stat Analysis'!$AI$8682:$AI$9681,"<"&MIN($F42,P$8)) -> 0 | Q42: =COUNTIFS('Stat Analysis'!$AI$9682:$AI$10681,">="&MAX($E42,Q$7), 'Stat Analysis'!$AI$9682:$AI$10681,"<"&MIN($F42,Q$8)) -> 0 | R42: =COUNTIFS('Stat Analysis'!$AI$10682:$AI$11681,">="&MAX($E42,R$7), 'Stat Analysis'!$AI$10682:$AI$11681,"<"&MIN($F42,R$8)) -> 0 | S42: =COUNTIFS('Stat Analysis'!$AI$11682:$AI$12681,">="&MAX($E42,S$7), 'Stat Analysis'!$AI$11682:$AI$12681,"<"&MIN($F42,S$8)) -> 0 | T42: =COUNTIFS('Stat Analysis'!$AI$12682:$AI$13681,">="&MAX($E42,T$7), 'Stat Analysis'!$AI$12682:$AI$13681,"<"&MIN($F42,T$8)) -> 0 | U42: =COUNTIFS('Stat Analysis'!$AI$13682:$AI$14681,">="&MAX($E42,U$7), 'Stat Analysis'!$AI$13682:$AI$14681,"<"&MIN($F42,U$8)) -> 0 | V42: =COUNTIFS('Stat Analysis'!$AI$14682:$AI$15681,">="&MAX($E42,V$7), 'Stat Analysis'!$AI$14682:$AI$15681,"<"&MIN($F42,V$8)) -> 0 | X42: 0 | Y42: 0 | Z42: 0 | AA42: 0 | AB42: 115.5 | AC42: 0 | AD42: 0 | AE42: 0 | AF42: 0 | AG42: 0 | AH42: 0 | AI42: 0 | AJ42: 0 | AK42: 0 | AL42: 0 | AN42: 10 | AO42: 0 | AP42: -6 | AQ42: 0 | AR42: 3 | AS42: 0 | AT42: =-AS$14-0.5*AS42+AU$14-0.5*AU42 -> 2 | AU42: 0 | AV42: =-AU$14-0.5*AU42+AW$14-0.5*AW42 -> 3.795575221 | AW42: 0.4088495575 | AX42: =-AW$14-0.5*AW42+AY$14-0.5*AY42 -> -2.204424779 | AY42: 0 | AZ42: =-AY$14-0.5*AY42+BA$14-0.5*BA42 -> -6 | BA42: 0 | BB42: =-BA$14-0.5*BA42+BC$14-0.5*BC42 -> -2 | BC42: 0 | BD42: =-BC$14-0.5*BC42+BE$14-0.5*BE42 -> 5 | BE42: 0 | BF42: =-BE$14-0.5*BE42+BG$14-0.5*BG42 -> 4 | BG42: 0 | BH42: =-BG$14-0.5*BG42+BI$14-0.5*BI42 -> -10 | BI42: 0 | BJ42: =-BI$14-0.5*BI42+BK$14-0.5*BK42 -> 4 | BK42: 0 | BL42: =-BK$14-0.5*BK42+BM$14-0.5*BM42 -> -5 | BM42: 0 | BN42: =-BM$14-0.5*BM42+BO$14-0.5*BO42 -> -1 | BO42: 0 | BP42: =-BO$14-0.5*BO42+BQ$14-0.5*BQ42 -> -1 | BQ42: 0 | BS42: 21 | CB42: 13.20442478 | CC42: 12.79557522
A43: =+A40+$B$23 -> 40.2 | B43: =+B40 -> 0 | D43: 22 | E43: 0.105 | F43: 0.11 | G43: 0.1075 | H43: =COUNTIFS('Stat Analysis'!$AI$682:$AI$1681,">="&MAX($E43,H$7), 'Stat Analysis'!$AI$682:$AI$1681,"<"&MIN($F43,H$8)) -> 0 | I43: =COUNTIFS('Stat Analysis'!$AI$1682:$AI$2681,">="&MAX($E43,I$7), 'Stat Analysis'!$AI$1682:$AI$2681,"<"&MIN($F43,I$8)) -> 0 | J43: =COUNTIFS('Stat Analysis'!$AI$2682:$AI$3681,">="&MAX($E43,J$7), 'Stat Analysis'!$AI$2682:$AI$3681,"<"&MIN($F43,J$8)) -> 0 | K43: =COUNTIFS('Stat Analysis'!$AI$3682:$AI$4681,">="&MAX($E43,K$7), 'Stat Analysis'!$AI$3682:$AI$4681,"<"&MIN($F43,K$8)) -> 0 | L43: =COUNTIFS('Stat Analysis'!$AI$4682:$AI$5681,">="&MAX($E43,L$7), 'Stat Analysis'!$AI$4682:$AI$5681,"<"&MIN($F43,L$8)) -> 42 | M43: =COUNTIFS('Stat Analysis'!$AI$5682:$AI$6681,">="&MAX($E43,M$7), 'Stat Analysis'!$AI$5682:$AI$6681,"<"&MIN($F43,M$8)) -> 0 | N43: =COUNTIFS('Stat Analysis'!$AI$6682:$AI$7681,">="&MAX($E43,N$7), 'Stat Analysis'!$AI$6682:$AI$7681,"<"&MIN($F43,N$8)) -> 0 | O43: =COUNTIFS('Stat Analysis'!$AI$7682:$AI$8681,">="&MAX($E43,O$7), 'Stat Analysis'!$AI$7682:$AI$8681,"<"&MIN($F43,O$8)) -> 0 | P43: =COUNTIFS('Stat Analysis'!$AI$8682:$AI$9681,">="&MAX($E43,P$7), 'Stat Analysis'!$AI$8682:$AI$9681,"<"&MIN($F43,P$8)) -> 0 | Q43: =COUNTIFS('Stat Analysis'!$AI$9682:$AI$10681,">="&MAX($E43,Q$7), 'Stat Analysis'!$AI$9682:$AI$10681,"<"&MIN($F43,Q$8)) -> 0 | R43: =COUNTIFS('Stat Analysis'!$AI$10682:$AI$11681,">="&MAX($E43,R$7), 'Stat Analysis'!$AI$10682:$AI$11681,"<"&MIN($F43,R$8)) -> 0 | S43: =COUNTIFS('Stat Analysis'!$AI$11682:$AI$12681,">="&MAX($E43,S$7), 'Stat Analysis'!$AI$11682:$AI$12681,"<"&MIN($F43,S$8)) -> 0 | T43: =COUNTIFS('Stat Analysis'!$AI$12682:$AI$13681,">="&MAX($E43,T$7), 'Stat Analysis'!$AI$12682:$AI$13681,"<"&MIN($F43,T$8)) -> 0 | U43: =COUNTIFS('Stat Analysis'!$AI$13682:$AI$14681,">="&MAX($E43,U$7), 'Stat Analysis'!$AI$13682:$AI$14681,"<"&MIN($F43,U$8)) -> 0 | V43: =COUNTIFS('Stat Analysis'!$AI$14682:$AI$15681,">="&MAX($E43,V$7), 'Stat Analysis'!$AI$14682:$AI$15681,"<"&MIN($F43,V$8)) -> 0 | X43: 0 | Y43: 0 | Z43: 0 | AA43: 0 | AB43: 75.5 | AC43: 0 | AD43: 0 | AE43: 0 | AF43: 0 | AG43: 0 | AH43: 0 | AI43: 0 | AJ43: 0 | AK43: 0 | AL43: 0 | AN43: 10 | AO43: 0 | AP43: -6 | AQ43: 0 | AR43: 3 | AS43: 0 | AT43: =-AS$14-0.5*AS43+AU$14-0.5*AU43 -> 2 | AU43: 0 | AV43: =-AU$14-0.5*AU43+AW$14-0.5*AW43 -> 3.866371681 | AW43: 0.2672566372 | AX43: =-AW$14-0.5*AW43+AY$14-0.5*AY43 -> -2.133628319 | AY43: 0 | AZ43: =-AY$14-0.5*AY43+BA$14-0.5*BA43 -> -6 | BA43: 0 | BB43: =-BA$14-0.5*BA43+BC$14-0.5*BC43 -> -2 | BC43: 0 | BD43: =-BC$14-0.5*BC43+BE$14-0.5*BE43 -> 5 | BE43: 0 | BF43: =-BE$14-0.5*BE43+BG$14-0.5*BG43 -> 4 | BG43: 0 | BH43: =-BG$14-0.5*BG43+BI$14-0.5*BI43 -> -10 | BI43: 0 | BJ43: =-BI$14-0.5*BI43+BK$14-0.5*BK43 -> 4 | BK43: 0 | BL43: =-BK$14-0.5*BK43+BM$14-0.5*BM43 -> -5 | BM43: 0 | BN43: =-BM$14-0.5*BM43+BO$14-0.5*BO43 -> -1 | BO43: 0 | BP43: =-BO$14-0.5*BO43+BQ$14-0.5*BQ43 -> -1 | BQ43: 0 | BS43: 22 | CB43: 13.13362832 | CC43: 12.86637168
A44: 40.2 | B44: 14 | D44: 23 | E44: 0.11 | F44: 0.115 | G44: 0.1125 | H44: =COUNTIFS('Stat Analysis'!$AI$682:$AI$1681,">="&MAX($E44,H$7), 'Stat Analysis'!$AI$682:$AI$1681,"<"&MIN($F44,H$8)) -> 0 | I44: =COUNTIFS('Stat Analysis'!$AI$1682:$AI$2681,">="&MAX($E44,I$7), 'Stat Analysis'!$AI$1682:$AI$2681,"<"&MIN($F44,I$8)) -> 0 | J44: =COUNTIFS('Stat Analysis'!$AI$2682:$AI$3681,">="&MAX($E44,J$7), 'Stat Analysis'!$AI$2682:$AI$3681,"<"&MIN($F44,J$8)) -> 0 | K44: =COUNTIFS('Stat Analysis'!$AI$3682:$AI$4681,">="&MAX($E44,K$7), 'Stat Analysis'!$AI$3682:$AI$4681,"<"&MIN($F44,K$8)) -> 0 | L44: =COUNTIFS('Stat Analysis'!$AI$4682:$AI$5681,">="&MAX($E44,L$7), 'Stat Analysis'!$AI$4682:$AI$5681,"<"&MIN($F44,L$8)) -> 3 | M44: =COUNTIFS('Stat Analysis'!$AI$5682:$AI$6681,">="&MAX($E44,M$7), 'Stat Analysis'!$AI$5682:$AI$6681,"<"&MIN($F44,M$8)) -> 0 | N44: =COUNTIFS('Stat Analysis'!$AI$6682:$AI$7681,">="&MAX($E44,N$7), 'Stat Analysis'!$AI$6682:$AI$7681,"<"&MIN($F44,N$8)) -> 0 | O44: =COUNTIFS('Stat Analysis'!$AI$7682:$AI$8681,">="&MAX($E44,O$7), 'Stat Analysis'!$AI$7682:$AI$8681,"<"&MIN($F44,O$8)) -> 0 | P44: =COUNTIFS('Stat Analysis'!$AI$8682:$AI$9681,">="&MAX($E44,P$7), 'Stat Analysis'!$AI$8682:$AI$9681,"<"&MIN($F44,P$8)) -> 0 | Q44: =COUNTIFS('Stat Analysis'!$AI$9682:$AI$10681,">="&MAX($E44,Q$7), 'Stat Analysis'!$AI$9682:$AI$10681,"<"&MIN($F44,Q$8)) -> 0 | R44: =COUNTIFS('Stat Analysis'!$AI$10682:$AI$11681,">="&MAX($E44,R$7), 'Stat Analysis'!$AI$10682:$AI$11681,"<"&MIN($F44,R$8)) -> 0 | S44: =COUNTIFS('Stat Analysis'!$AI$11682:$AI$12681,">="&MAX($E44,S$7), 'Stat Analysis'!$AI$11682:$AI$12681,"<"&MIN($F44,S$8)) -> 0 | T44: =COUNTIFS('Stat Analysis'!$AI$12682:$AI$13681,">="&MAX($E44,T$7), 'Stat Analysis'!$AI$12682:$AI$13681,"<"&MIN($F44,T$8)) -> 0 | U44: =COUNTIFS('Stat Analysis'!$AI$13682:$AI$14681,">="&MAX($E44,U$7), 'Stat Analysis'!$AI$13682:$AI$14681,"<"&MIN($F44,U$8)) -> 0 | V44: =COUNTIFS('Stat Analysis'!$AI$14682:$AI$15681,">="&MAX($E44,V$7), 'Stat Analysis'!$AI$14682:$AI$15681,"<"&MIN($F44,V$8)) -> 0 | X44: 0 | Y44: 0 | Z44: 0 | AA44: 0 | AB44: 24 | AC44: 0 | AD44: 0 | AE44: 0 | AF44: 0 | AG44: 0 | AH44: 0 | AI44: 0 | AJ44: 0 | AK44: 0 | AL44: 0 | AN44: 10 | AO44: 0 | AP44: -6 | AQ44: 0 | AR44: 3 | AS44: 0 | AT44: =-AS$14-0.5*AS44+AU$14-0.5*AU44 -> 2 | AU44: 0 | AV44: =-AU$14-0.5*AU44+AW$14-0.5*AW44 -> 3.957522124 | AW44: 0.08495575221 | AX44: =-AW$14-0.5*AW44+AY$14-0.5*AY44 -> -2.042477876 | AY44: 0 | AZ44: =-AY$14-0.5*AY44+BA$14-0.5*BA44 -> -6 | BA44: 0 | BB44: =-BA$14-0.5*BA44+BC$14-0.5*BC44 -> -2 | BC44: 0 | BD44: =-BC$14-0.5*BC44+BE$14-0.5*BE44 -> 5 | BE44: 0 | BF44: =-BE$14-0.5*BE44+BG$14-0.5*BG44 -> 4 | BG44: 0 | BH44: =-BG$14-0.5*BG44+BI$14-0.5*BI44 -> -10 | BI44: 0 | BJ44: =-BI$14-0.5*BI44+BK$14-0.5*BK44 -> 4 | BK44: 0 | BL44: =-BK$14-0.5*BK44+BM$14-0.5*BM44 -> -5 | BM44: 0 | BN44: =-BM$14-0.5*BM44+BO$14-0.5*BO44 -> -1 | BO44: 0 | BP44: =-BO$14-0.5*BO44+BQ$14-0.5*BQ44 -> -1 | BQ44: 0 | BS44: 23 | CB44: 13.04247788 | CC44: 12.95752212
D45: 24 | E45: 0.115 | F45: 0.12 | G45: 0.1175 | H45: =COUNTIFS('Stat Analysis'!$AI$682:$AI$1681,">="&MAX($E45,H$7), 'Stat Analysis'!$AI$682:$AI$1681,"<"&MIN($F45,H$8)) -> 0 | I45: =COUNTIFS('Stat Analysis'!$AI$1682:$AI$2681,">="&MAX($E45,I$7), 'Stat Analysis'!$AI$1682:$AI$2681,"<"&MIN($F45,I$8)) -> 0 | J45: =COUNTIFS('Stat Analysis'!$AI$2682:$AI$3681,">="&MAX($E45,J$7), 'Stat Analysis'!$AI$2682:$AI$3681,"<"&MIN($F45,J$8)) -> 0 | K45: =COUNTIFS('Stat Analysis'!$AI$3682:$AI$4681,">="&MAX($E45,K$7), 'Stat Analysis'!$AI$3682:$AI$4681,"<"&MIN($F45,K$8)) -> 0 | L45: =COUNTIFS('Stat Analysis'!$AI$4682:$AI$5681,">="&MAX($E45,L$7), 'Stat Analysis'!$AI$4682:$AI$5681,"<"&MIN($F45,L$8)) -> 0 | M45: =COUNTIFS('Stat Analysis'!$AI$5682:$AI$6681,">="&MAX($E45,M$7), 'Stat Analysis'!$AI$5682:$AI$6681,"<"&MIN($F45,M$8)) -> 0 | N45: =COUNTIFS('Stat Analysis'!$AI$6682:$AI$7681,">="&MAX($E45,N$7), 'Stat Analysis'!$AI$6682:$AI$7681,"<"&MIN($F45,N$8)) -> 0 | O45: =COUNTIFS('Stat Analysis'!$AI$7682:$AI$8681,">="&MAX($E45,O$7), 'Stat Analysis'!$AI$7682:$AI$8681,"<"&MIN($F45,O$8)) -> 0 | P45: =COUNTIFS('Stat Analysis'!$AI$8682:$AI$9681,">="&MAX($E45,P$7), 'Stat Analysis'!$AI$8682:$AI$9681,"<"&MIN($F45,P$8)) -> 0 | Q45: =COUNTIFS('Stat Analysis'!$AI$9682:$AI$10681,">="&MAX($E45,Q$7), 'Stat Analysis'!$AI$9682:$AI$10681,"<"&MIN($F45,Q$8)) -> 0 | R45: =COUNTIFS('Stat Analysis'!$AI$10682:$AI$11681,">="&MAX($E45,R$7), 'Stat Analysis'!$AI$10682:$AI$11681,"<"&MIN($F45,R$8)) -> 0 | S45: =COUNTIFS('Stat Analysis'!$AI$11682:$AI$12681,">="&MAX($E45,S$7), 'Stat Analysis'!$AI$11682:$AI$12681,"<"&MIN($F45,S$8)) -> 0 | T45: =COUNTIFS('Stat Analysis'!$AI$12682:$AI$13681,">="&MAX($E45,T$7), 'Stat Analysis'!$AI$12682:$AI$13681,"<"&MIN($F45,T$8)) -> 0 | U45: =COUNTIFS('Stat Analysis'!$AI$13682:$AI$14681,">="&MAX($E45,U$7), 'Stat Analysis'!$AI$13682:$AI$14681,"<"&MIN($F45,U$8)) -> 0 | V45: =COUNTIFS('Stat Analysis'!$AI$14682:$AI$15681,">="&MAX($E45,V$7), 'Stat Analysis'!$AI$14682:$AI$15681,"<"&MIN($F45,V$8)) -> 0 | X45: 0 | Y45: 0 | Z45: 0 | AA45: 0 | AB45: 1.5 | AC45: 0 | AD45: 0 | AE45: 0 | AF45: 0 | AG45: 0 | AH45: 0 | AI45: 0 | AJ45: 0 | AK45: 0 | AL45: 0 | AN45: 10 | AO45: 0 | AP45: -6 | AQ45: 0 | AR45: 3 | AS45: 0 | AT45: =-AS$14-0.5*AS45+AU$14-0.5*AU45 -> 2 | AU45: 0 | AV45: =-AU$14-0.5*AU45+AW$14-0.5*AW45 -> 3.997345133 | AW45: 0.005309734513 | AX45: =-AW$14-0.5*AW45+AY$14-0.5*AY45 -> -2.002654867 | AY45: 0 | AZ45: =-AY$14-0.5*AY45+BA$14-0.5*BA45 -> -6 | BA45: 0 | BB45: =-BA$14-0.5*BA45+BC$14-0.5*BC45 -> -2 | BC45: 0 | BD45: =-BC$14-0.5*BC45+BE$14-0.5*BE45 -> 5 | BE45: 0 | BF45: =-BE$14-0.5*BE45+BG$14-0.5*BG45 -> 4 | BG45: 0 | BH45: =-BG$14-0.5*BG45+BI$14-0.5*BI45 -> -10 | BI45: 0 | BJ45: =-BI$14-0.5*BI45+BK$14-0.5*BK45 -> 4 | BK45: 0 | BL45: =-BK$14-0.5*BK45+BM$14-0.5*BM45 -> -5 | BM45: 0 | BN45: =-BM$14-0.5*BM45+BO$14-0.5*BO45 -> -1 | BO45: 0 | BP45: =-BO$14-0.5*BO45+BQ$14-0.5*BQ45 -> -1 | BQ45: 0 | BS45: 24 | CB45: 13.00265487 | CC45: 12.99734513
A46: =+A43+$B$23 -> 60.3 | B46: =+B43 -> 0 | D46: 25 | E46: 0.12 | F46: 0.125 | G46: 0.1225 | H46: =COUNTIFS('Stat Analysis'!$AI$682:$AI$1681,">="&MAX($E46,H$7), 'Stat Analysis'!$AI$682:$AI$1681,"<"&MIN($F46,H$8)) -> 0 | I46: =COUNTIFS('Stat Analysis'!$AI$1682:$AI$2681,">="&MAX($E46,I$7), 'Stat Analysis'!$AI$1682:$AI$2681,"<"&MIN($F46,I$8)) -> 0 | J46: =COUNTIFS('Stat Analysis'!$AI$2682:$AI$3681,">="&MAX($E46,J$7), 'Stat Analysis'!$AI$2682:$AI$3681,"<"&MIN($F46,J$8)) -> 0 | K46: =COUNTIFS('Stat Analysis'!$AI$3682:$AI$4681,">="&MAX($E46,K$7), 'Stat Analysis'!$AI$3682:$AI$4681,"<"&MIN($F46,K$8)) -> 0 | L46: =COUNTIFS('Stat Analysis'!$AI$4682:$AI$5681,">="&MAX($E46,L$7), 'Stat Analysis'!$AI$4682:$AI$5681,"<"&MIN($F46,L$8)) -> 0 | M46: =COUNTIFS('Stat Analysis'!$AI$5682:$AI$6681,">="&MAX($E46,M$7), 'Stat Analysis'!$AI$5682:$AI$6681,"<"&MIN($F46,M$8)) -> 0 | N46: =COUNTIFS('Stat Analysis'!$AI$6682:$AI$7681,">="&MAX($E46,N$7), 'Stat Analysis'!$AI$6682:$AI$7681,"<"&MIN($F46,N$8)) -> 0 | O46: =COUNTIFS('Stat Analysis'!$AI$7682:$AI$8681,">="&MAX($E46,O$7), 'Stat Analysis'!$AI$7682:$AI$8681,"<"&MIN($F46,O$8)) -> 0 | P46: =COUNTIFS('Stat Analysis'!$AI$8682:$AI$9681,">="&MAX($E46,P$7), 'Stat Analysis'!$AI$8682:$AI$9681,"<"&MIN($F46,P$8)) -> 0 | Q46: =COUNTIFS('Stat Analysis'!$AI$9682:$AI$10681,">="&MAX($E46,Q$7), 'Stat Analysis'!$AI$9682:$AI$10681,"<"&MIN($F46,Q$8)) -> 0 | R46: =COUNTIFS('Stat Analysis'!$AI$10682:$AI$11681,">="&MAX($E46,R$7), 'Stat Analysis'!$AI$10682:$AI$11681,"<"&MIN($F46,R$8)) -> 0 | S46: =COUNTIFS('Stat Analysis'!$AI$11682:$AI$12681,">="&MAX($E46,S$7), 'Stat Analysis'!$AI$11682:$AI$12681,"<"&MIN($F46,S$8)) -> 0 | T46: =COUNTIFS('Stat Analysis'!$AI$12682:$AI$13681,">="&MAX($E46,T$7), 'Stat Analysis'!$AI$12682:$AI$13681,"<"&MIN($F46,T$8)) -> 0 | U46: =COUNTIFS('Stat Analysis'!$AI$13682:$AI$14681,">="&MAX($E46,U$7), 'Stat Analysis'!$AI$13682:$AI$14681,"<"&MIN($F46,U$8)) -> 0 | V46: =COUNTIFS('Stat Analysis'!$AI$14682:$AI$15681,">="&MAX($E46,V$7), 'Stat Analysis'!$AI$14682:$AI$15681,"<"&MIN($F46,V$8)) -> 0 | X46: 0 | Y46: 0 | Z46: 0 | AA46: 0 | AB46: 0 | AC46: 0 | AD46: 0 | AE46: 0 | AF46: 0 | AG46: 0 | AH46: 0 | AI46: 0 | AJ46: 0 | AK46: 0 | AL46: 0 | AN46: 10 | AO46: 0 | AP46: -6 | AQ46: 0 | AR46: 3 | AS46: 0 | AT46: =-AS$14-0.5*AS46+AU$14-0.5*AU46 -> 2 | AU46: 0 | AV46: =-AU$14-0.5*AU46+AW$14-0.5*AW46 -> 4 | AW46: 0 | AX46: =-AW$14-0.5*AW46+AY$14-0.5*AY46 -> -2 | AY46: 0 | AZ46: =-AY$14-0.5*AY46+BA$14-0.5*BA46 -> -6 | BA46: 0 | BB46: =-BA$14-0.5*BA46+BC$14-0.5*BC46 -> -2 | BC46: 0 | BD46: =-BC$14-0.5*BC46+BE$14-0.5*BE46 -> 5 | BE46: 0 | BF46: =-BE$14-0.5*BE46+BG$14-0.5*BG46 -> 4 | BG46: 0 | BH46: =-BG$14-0.5*BG46+BI$14-0.5*BI46 -> -10 | BI46: 0 | BJ46: =-BI$14-0.5*BI46+BK$14-0.5*BK46 -> 4 | BK46: 0 | BL46: =-BK$14-0.5*BK46+BM$14-0.5*BM46 -> -5 | BM46: 0 | BN46: =-BM$14-0.5*BM46+BO$14-0.5*BO46 -> -1 | BO46: 0 | BP46: =-BO$14-0.5*BO46+BQ$14-0.5*BQ46 -> -1 | BQ46: 0 | BS46: 25
A47: 60.3 | B47: 14 | D47: 26 | E47: 0.125 | F47: 0.13 | G47: 0.1275 | H47: =COUNTIFS('Stat Analysis'!$AI$682:$AI$1681,">="&MAX($E47,H$7), 'Stat Analysis'!$AI$682:$AI$1681,"<"&MIN($F47,H$8)) -> 0 | I47: =COUNTIFS('Stat Analysis'!$AI$1682:$AI$2681,">="&MAX($E47,I$7), 'Stat Analysis'!$AI$1682:$AI$2681,"<"&MIN($F47,I$8)) -> 0 | J47: =COUNTIFS('Stat Analysis'!$AI$2682:$AI$3681,">="&MAX($E47,J$7), 'Stat Analysis'!$AI$2682:$AI$3681,"<"&MIN($F47,J$8)) -> 0 | K47: =COUNTIFS('Stat Analysis'!$AI$3682:$AI$4681,">="&MAX($E47,K$7), 'Stat Analysis'!$AI$3682:$AI$4681,"<"&MIN($F47,K$8)) -> 0 | L47: =COUNTIFS('Stat Analysis'!$AI$4682:$AI$5681,">="&MAX($E47,L$7), 'Stat Analysis'!$AI$4682:$AI$5681,"<"&MIN($F47,L$8)) -> 0 | M47: =COUNTIFS('Stat Analysis'!$AI$5682:$AI$6681,">="&MAX($E47,M$7), 'Stat Analysis'!$AI$5682:$AI$6681,"<"&MIN($F47,M$8)) -> 0 | N47: =COUNTIFS('Stat Analysis'!$AI$6682:$AI$7681,">="&MAX($E47,N$7), 'Stat Analysis'!$AI$6682:$AI$7681,"<"&MIN($F47,N$8)) -> 0 | O47: =COUNTIFS('Stat Analysis'!$AI$7682:$AI$8681,">="&MAX($E47,O$7), 'Stat Analysis'!$AI$7682:$AI$8681,"<"&MIN($F47,O$8)) -> 0 | P47: =COUNTIFS('Stat Analysis'!$AI$8682:$AI$9681,">="&MAX($E47,P$7), 'Stat Analysis'!$AI$8682:$AI$9681,"<"&MIN($F47,P$8)) -> 0 | Q47: =COUNTIFS('Stat Analysis'!$AI$9682:$AI$10681,">="&MAX($E47,Q$7), 'Stat Analysis'!$AI$9682:$AI$10681,"<"&MIN($F47,Q$8)) -> 0 | R47: =COUNTIFS('Stat Analysis'!$AI$10682:$AI$11681,">="&MAX($E47,R$7), 'Stat Analysis'!$AI$10682:$AI$11681,"<"&MIN($F47,R$8)) -> 0 | S47: =COUNTIFS('Stat Analysis'!$AI$11682:$AI$12681,">="&MAX($E47,S$7), 'Stat Analysis'!$AI$11682:$AI$12681,"<"&MIN($F47,S$8)) -> 0 | T47: =COUNTIFS('Stat Analysis'!$AI$12682:$AI$13681,">="&MAX($E47,T$7), 'Stat Analysis'!$AI$12682:$AI$13681,"<"&MIN($F47,T$8)) -> 0 | U47: =COUNTIFS('Stat Analysis'!$AI$13682:$AI$14681,">="&MAX($E47,U$7), 'Stat Analysis'!$AI$13682:$AI$14681,"<"&MIN($F47,U$8)) -> 0 | V47: =COUNTIFS('Stat Analysis'!$AI$14682:$AI$15681,">="&MAX($E47,V$7), 'Stat Analysis'!$AI$14682:$AI$15681,"<"&MIN($F47,V$8)) -> 0 | X47: 0 | Y47: 0 | Z47: 0 | AA47: 0 | AB47: 0 | AC47: 0 | AD47: 0 | AE47: 0 | AF47: 0 | AG47: 0 | AH47: 0 | AI47: 0 | AJ47: 0 | AK47: 0 | AL47: 0 | AN47: 10 | AO47: 0 | AP47: -6 | AQ47: 0 | AR47: 3 | AS47: 0 | AT47: =-AS$14-0.5*AS47+AU$14-0.5*AU47 -> 2 | AU47: 0 | AV47: =-AU$14-0.5*AU47+AW$14-0.5*AW47 -> 4 | AW47: 0 | AX47: =-AW$14-0.5*AW47+AY$14-0.5*AY47 -> -2 | AY47: 0 | AZ47: =-AY$14-0.5*AY47+BA$14-0.5*BA47 -> -6 | BA47: 0 | BB47: =-BA$14-0.5*BA47+BC$14-0.5*BC47 -> -2 | BC47: 0 | BD47: =-BC$14-0.5*BC47+BE$14-0.5*BE47 -> 5 | BE47: 0 | BF47: =-BE$14-0.5*BE47+BG$14-0.5*BG47 -> 4 | BG47: 0 | BH47: =-BG$14-0.5*BG47+BI$14-0.5*BI47 -> -10 | BI47: 0 | BJ47: =-BI$14-0.5*BI47+BK$14-0.5*BK47 -> 4 | BK47: 0 | BL47: =-BK$14-0.5*BK47+BM$14-0.5*BM47 -> -5 | BM47: 0 | BN47: =-BM$14-0.5*BM47+BO$14-0.5*BO47 -> -1 | BO47: 0 | BP47: =-BO$14-0.5*BO47+BQ$14-0.5*BQ47 -> -1 | BQ47: 0 | BS47: 26
D48: 27 | E48: 0.13 | F48: 0.135 | G48: 0.1325 | H48: =COUNTIFS('Stat Analysis'!$AI$682:$AI$1681,">="&MAX($E48,H$7), 'Stat Analysis'!$AI$682:$AI$1681,"<"&MIN($F48,H$8)) -> 0 | I48: =COUNTIFS('Stat Analysis'!$AI$1682:$AI$2681,">="&MAX($E48,I$7), 'Stat Analysis'!$AI$1682:$AI$2681,"<"&MIN($F48,I$8)) -> 0 | J48: =COUNTIFS('Stat Analysis'!$AI$2682:$AI$3681,">="&MAX($E48,J$7), 'Stat Analysis'!$AI$2682:$AI$3681,"<"&MIN($F48,J$8)) -> 0 | K48: =COUNTIFS('Stat Analysis'!$AI$3682:$AI$4681,">="&MAX($E48,K$7), 'Stat Analysis'!$AI$3682:$AI$4681,"<"&MIN($F48,K$8)) -> 0 | L48: =COUNTIFS('Stat Analysis'!$AI$4682:$AI$5681,">="&MAX($E48,L$7), 'Stat Analysis'!$AI$4682:$AI$5681,"<"&MIN($F48,L$8)) -> 0 | M48: =COUNTIFS('Stat Analysis'!$AI$5682:$AI$6681,">="&MAX($E48,M$7), 'Stat Analysis'!$AI$5682:$AI$6681,"<"&MIN($F48,M$8)) -> 0 | N48: =COUNTIFS('Stat Analysis'!$AI$6682:$AI$7681,">="&MAX($E48,N$7), 'Stat Analysis'!$AI$6682:$AI$7681,"<"&MIN($F48,N$8)) -> 0 | O48: =COUNTIFS('Stat Analysis'!$AI$7682:$AI$8681,">="&MAX($E48,O$7), 'Stat Analysis'!$AI$7682:$AI$8681,"<"&MIN($F48,O$8)) -> 0 | P48: =COUNTIFS('Stat Analysis'!$AI$8682:$AI$9681,">="&MAX($E48,P$7), 'Stat Analysis'!$AI$8682:$AI$9681,"<"&MIN($F48,P$8)) -> 0 | Q48: =COUNTIFS('Stat Analysis'!$AI$9682:$AI$10681,">="&MAX($E48,Q$7), 'Stat Analysis'!$AI$9682:$AI$10681,"<"&MIN($F48,Q$8)) -> 0 | R48: =COUNTIFS('Stat Analysis'!$AI$10682:$AI$11681,">="&MAX($E48,R$7), 'Stat Analysis'!$AI$10682:$AI$11681,"<"&MIN($F48,R$8)) -> 0 | S48: =COUNTIFS('Stat Analysis'!$AI$11682:$AI$12681,">="&MAX($E48,S$7), 'Stat Analysis'!$AI$11682:$AI$12681,"<"&MIN($F48,S$8)) -> 0 | T48: =COUNTIFS('Stat Analysis'!$AI$12682:$AI$13681,">="&MAX($E48,T$7), 'Stat Analysis'!$AI$12682:$AI$13681,"<"&MIN($F48,T$8)) -> 0 | U48: =COUNTIFS('Stat Analysis'!$AI$13682:$AI$14681,">="&MAX($E48,U$7), 'Stat Analysis'!$AI$13682:$AI$14681,"<"&MIN($F48,U$8)) -> 0 | V48: =COUNTIFS('Stat Analysis'!$AI$14682:$AI$15681,">="&MAX($E48,V$7), 'Stat Analysis'!$AI$14682:$AI$15681,"<"&MIN($F48,V$8)) -> 0 | X48: 0 | Y48: 0 | Z48: 0 | AA48: 0 | AB48: 0 | AC48: 0 | AD48: 0 | AE48: 0 | AF48: 0 | AG48: 0 | AH48: 0 | AI48: 0 | AJ48: 0 | AK48: 0 | AL48: 0 | AN48: 10 | AO48: 0 | AP48: -6 | AQ48: 0 | AR48: 3 | AS48: 0 | AT48: =-AS$14-0.5*AS48+AU$14-0.5*AU48 -> 2 | AU48: 0 | AV48: =-AU$14-0.5*AU48+AW$14-0.5*AW48 -> 4 | AW48: 0 | AX48: =-AW$14-0.5*AW48+AY$14-0.5*AY48 -> -2 | AY48: 0 | AZ48: =-AY$14-0.5*AY48+BA$14-0.5*BA48 -> -6 | BA48: 0 | BB48: =-BA$14-0.5*BA48+BC$14-0.5*BC48 -> -2 | BC48: 0 | BD48: =-BC$14-0.5*BC48+BE$14-0.5*BE48 -> 5 | BE48: 0 | BF48: =-BE$14-0.5*BE48+BG$14-0.5*BG48 -> 4 | BG48: 0 | BH48: =-BG$14-0.5*BG48+BI$14-0.5*BI48 -> -10 | BI48: 0 | BJ48: =-BI$14-0.5*BI48+BK$14-0.5*BK48 -> 4 | BK48: 0 | BL48: =-BK$14-0.5*BK48+BM$14-0.5*BM48 -> -5 | BM48: 0 | BN48: =-BM$14-0.5*BM48+BO$14-0.5*BO48 -> -1 | BO48: 0 | BP48: =-BO$14-0.5*BO48+BQ$14-0.5*BQ48 -> -1 | BQ48: 0 | BS48: 27
A49: =+A46+$B$23 -> 80.4 | B49: =+B46 -> 0 | D49: 28 | E49: 0.135 | F49: 0.14 | G49: 0.1375 | H49: =COUNTIFS('Stat Analysis'!$AI$682:$AI$1681,">="&MAX($E49,H$7), 'Stat Analysis'!$AI$682:$AI$1681,"<"&MIN($F49,H$8)) -> 0 | I49: =COUNTIFS('Stat Analysis'!$AI$1682:$AI$2681,">="&MAX($E49,I$7), 'Stat Analysis'!$AI$1682:$AI$2681,"<"&MIN($F49,I$8)) -> 0 | J49: =COUNTIFS('Stat Analysis'!$AI$2682:$AI$3681,">="&MAX($E49,J$7), 'Stat Analysis'!$AI$2682:$AI$3681,"<"&MIN($F49,J$8)) -> 0 | K49: =COUNTIFS('Stat Analysis'!$AI$3682:$AI$4681,">="&MAX($E49,K$7), 'Stat Analysis'!$AI$3682:$AI$4681,"<"&MIN($F49,K$8)) -> 0 | L49: =COUNTIFS('Stat Analysis'!$AI$4682:$AI$5681,">="&MAX($E49,L$7), 'Stat Analysis'!$AI$4682:$AI$5681,"<"&MIN($F49,L$8)) -> 0 | M49: =COUNTIFS('Stat Analysis'!$AI$5682:$AI$6681,">="&MAX($E49,M$7), 'Stat Analysis'!$AI$5682:$AI$6681,"<"&MIN($F49,M$8)) -> 0 | N49: =COUNTIFS('Stat Analysis'!$AI$6682:$AI$7681,">="&MAX($E49,N$7), 'Stat Analysis'!$AI$6682:$AI$7681,"<"&MIN($F49,N$8)) -> 0 | O49: =COUNTIFS('Stat Analysis'!$AI$7682:$AI$8681,">="&MAX($E49,O$7), 'Stat Analysis'!$AI$7682:$AI$8681,"<"&MIN($F49,O$8)) -> 0 | P49: =COUNTIFS('Stat Analysis'!$AI$8682:$AI$9681,">="&MAX($E49,P$7), 'Stat Analysis'!$AI$8682:$AI$9681,"<"&MIN($F49,P$8)) -> 0 | Q49: =COUNTIFS('Stat Analysis'!$AI$9682:$AI$10681,">="&MAX($E49,Q$7), 'Stat Analysis'!$AI$9682:$AI$10681,"<"&MIN($F49,Q$8)) -> 0 | R49: =COUNTIFS('Stat Analysis'!$AI$10682:$AI$11681,">="&MAX($E49,R$7), 'Stat Analysis'!$AI$10682:$AI$11681,"<"&MIN($F49,R$8)) -> 0 | S49: =COUNTIFS('Stat Analysis'!$AI$11682:$AI$12681,">="&MAX($E49,S$7), 'Stat Analysis'!$AI$11682:$AI$12681,"<"&MIN($F49,S$8)) -> 0 | T49: =COUNTIFS('Stat Analysis'!$AI$12682:$AI$13681,">="&MAX($E49,T$7), 'Stat Analysis'!$AI$12682:$AI$13681,"<"&MIN($F49,T$8)) -> 0 | U49: =COUNTIFS('Stat Analysis'!$AI$13682:$AI$14681,">="&MAX($E49,U$7), 'Stat Analysis'!$AI$13682:$AI$14681,"<"&MIN($F49,U$8)) -> 0 | V49: =COUNTIFS('Stat Analysis'!$AI$14682:$AI$15681,">="&MAX($E49,V$7), 'Stat Analysis'!$AI$14682:$AI$15681,"<"&MIN($F49,V$8)) -> 0 | X49: 0 | Y49: 0 | Z49: 0 | AA49: 0 | AB49: 0 | AC49: 0 | AD49: 0 | AE49: 0 | AF49: 0 | AG49: 0 | AH49: 0 | AI49: 0 | AJ49: 0 | AK49: 0 | AL49: 0 | AN49: 10 | AO49: 0 | AP49: -6 | AQ49: 0 | AR49: 3 | AS49: 0 | AT49: =-AS$14-0.5*AS49+AU$14-0.5*AU49 -> 2 | AU49: 0 | AV49: =-AU$14-0.5*AU49+AW$14-0.5*AW49 -> 4 | AW49: 0 | AX49: =-AW$14-0.5*AW49+AY$14-0.5*AY49 -> -2 | AY49: 0 | AZ49: =-AY$14-0.5*AY49+BA$14-0.5*BA49 -> -6 | BA49: 0 | BB49: =-BA$14-0.5*BA49+BC$14-0.5*BC49 -> -2 | BC49: 0 | BD49: =-BC$14-0.5*BC49+BE$14-0.5*BE49 -> 5 | BE49: 0 | BF49: =-BE$14-0.5*BE49+BG$14-0.5*BG49 -> 4 | BG49: 0 | BH49: =-BG$14-0.5*BG49+BI$14-0.5*BI49 -> -10 | BI49: 0 | BJ49: =-BI$14-0.5*BI49+BK$14-0.5*BK49 -> 4 | BK49: 0 | BL49: =-BK$14-0.5*BK49+BM$14-0.5*BM49 -> -5 | BM49: 0 | BN49: =-BM$14-0.5*BM49+BO$14-0.5*BO49 -> -1 | BO49: 0 | BP49: =-BO$14-0.5*BO49+BQ$14-0.5*BQ49 -> -1 | BQ49: 0 | BS49: 28
A50: 80.4 | B50: 14 | D50: 29 | E50: 0.14 | F50: 0.145 | G50: 0.1425 | H50: =COUNTIFS('Stat Analysis'!$AI$682:$AI$1681,">="&MAX($E50,H$7), 'Stat Analysis'!$AI$682:$AI$1681,"<"&MIN($F50,H$8)) -> 0 | I50: =COUNTIFS('Stat Analysis'!$AI$1682:$AI$2681,">="&MAX($E50,I$7), 'Stat Analysis'!$AI$1682:$AI$2681,"<"&MIN($F50,I$8)) -> 0 | J50: =COUNTIFS('Stat Analysis'!$AI$2682:$AI$3681,">="&MAX($E50,J$7), 'Stat Analysis'!$AI$2682:$AI$3681,"<"&MIN($F50,J$8)) -> 0 | K50: =COUNTIFS('Stat Analysis'!$AI$3682:$AI$4681,">="&MAX($E50,K$7), 'Stat Analysis'!$AI$3682:$AI$4681,"<"&MIN($F50,K$8)) -> 0 | L50: =COUNTIFS('Stat Analysis'!$AI$4682:$AI$5681,">="&MAX($E50,L$7), 'Stat Analysis'!$AI$4682:$AI$5681,"<"&MIN($F50,L$8)) -> 0 | M50: =COUNTIFS('Stat Analysis'!$AI$5682:$AI$6681,">="&MAX($E50,M$7), 'Stat Analysis'!$AI$5682:$AI$6681,"<"&MIN($F50,M$8)) -> 0 | N50: =COUNTIFS('Stat Analysis'!$AI$6682:$AI$7681,">="&MAX($E50,N$7), 'Stat Analysis'!$AI$6682:$AI$7681,"<"&MIN($F50,N$8)) -> 0 | O50: =COUNTIFS('Stat Analysis'!$AI$7682:$AI$8681,">="&MAX($E50,O$7), 'Stat Analysis'!$AI$7682:$AI$8681,"<"&MIN($F50,O$8)) -> 0 | P50: =COUNTIFS('Stat Analysis'!$AI$8682:$AI$9681,">="&MAX($E50,P$7), 'Stat Analysis'!$AI$8682:$AI$9681,"<"&MIN($F50,P$8)) -> 0 | Q50: =COUNTIFS('Stat Analysis'!$AI$9682:$AI$10681,">="&MAX($E50,Q$7), 'Stat Analysis'!$AI$9682:$AI$10681,"<"&MIN($F50,Q$8)) -> 0 | R50: =COUNTIFS('Stat Analysis'!$AI$10682:$AI$11681,">="&MAX($E50,R$7), 'Stat Analysis'!$AI$10682:$AI$11681,"<"&MIN($F50,R$8)) -> 0 | S50: =COUNTIFS('Stat Analysis'!$AI$11682:$AI$12681,">="&MAX($E50,S$7), 'Stat Analysis'!$AI$11682:$AI$12681,"<"&MIN($F50,S$8)) -> 0 | T50: =COUNTIFS('Stat Analysis'!$AI$12682:$AI$13681,">="&MAX($E50,T$7), 'Stat Analysis'!$AI$12682:$AI$13681,"<"&MIN($F50,T$8)) -> 0 | U50: =COUNTIFS('Stat Analysis'!$AI$13682:$AI$14681,">="&MAX($E50,U$7), 'Stat Analysis'!$AI$13682:$AI$14681,"<"&MIN($F50,U$8)) -> 0 | V50: =COUNTIFS('Stat Analysis'!$AI$14682:$AI$15681,">="&MAX($E50,V$7), 'Stat Analysis'!$AI$14682:$AI$15681,"<"&MIN($F50,V$8)) -> 0 | X50: 0 | Y50: 0 | Z50: 0 | AA50: 0 | AB50: 0 | AC50: 0 | AD50: 0 | AE50: 0 | AF50: 0 | AG50: 0 | AH50: 0 | AI50: 0 | AJ50: 0 | AK50: 0 | AL50: 0 | AN50: 10 | AO50: 0 | AP50: -6 | AQ50: 0 | AR50: 3 | AS50: 0 | AT50: =-AS$14-0.5*AS50+AU$14-0.5*AU50 -> 2 | AU50: 0 | AV50: =-AU$14-0.5*AU50+AW$14-0.5*AW50 -> 4 | AW50: 0 | AX50: =-AW$14-0.5*AW50+AY$14-0.5*AY50 -> -2 | AY50: 0 | AZ50: =-AY$14-0.5*AY50+BA$14-0.5*BA50 -> -6 | BA50: 0 | BB50: =-BA$14-0.5*BA50+BC$14-0.5*BC50 -> -2 | BC50: 0 | BD50: =-BC$14-0.5*BC50+BE$14-0.5*BE50 -> 5 | BE50: 0 | BF50: =-BE$14-0.5*BE50+BG$14-0.5*BG50 -> 4 | BG50: 0 | BH50: =-BG$14-0.5*BG50+BI$14-0.5*BI50 -> -10 | BI50: 0 | BJ50: =-BI$14-0.5*BI50+BK$14-0.5*BK50 -> 4 | BK50: 0 | BL50: =-BK$14-0.5*BK50+BM$14-0.5*BM50 -> -5 | BM50: 0 | BN50: =-BM$14-0.5*BM50+BO$14-0.5*BO50 -> -1 | BO50: 0 | BP50: =-BO$14-0.5*BO50+BQ$14-0.5*BQ50 -> -1 | BQ50: 0 | BS50: 29
D51: 30 | E51: 0.145 | F51: 0.15 | G51: 0.1475 | H51: =COUNTIFS('Stat Analysis'!$AI$682:$AI$1681,">="&MAX($E51,H$7), 'Stat Analysis'!$AI$682:$AI$1681,"<"&MIN($F51,H$8)) -> 0 | I51: =COUNTIFS('Stat Analysis'!$AI$1682:$AI$2681,">="&MAX($E51,I$7), 'Stat Analysis'!$AI$1682:$AI$2681,"<"&MIN($F51,I$8)) -> 0 | J51: =COUNTIFS('Stat Analysis'!$AI$2682:$AI$3681,">="&MAX($E51,J$7), 'Stat Analysis'!$AI$2682:$AI$3681,"<"&MIN($F51,J$8)) -> 0 | K51: =COUNTIFS('Stat Analysis'!$AI$3682:$AI$4681,">="&MAX($E51,K$7), 'Stat Analysis'!$AI$3682:$AI$4681,"<"&MIN($F51,K$8)) -> 0 | L51: =COUNTIFS('Stat Analysis'!$AI$4682:$AI$5681,">="&MAX($E51,L$7), 'Stat Analysis'!$AI$4682:$AI$5681,"<"&MIN($F51,L$8)) -> 0 | M51: =COUNTIFS('Stat Analysis'!$AI$5682:$AI$6681,">="&MAX($E51,M$7), 'Stat Analysis'!$AI$5682:$AI$6681,"<"&MIN($F51,M$8)) -> 0 | N51: =COUNTIFS('Stat Analysis'!$AI$6682:$AI$7681,">="&MAX($E51,N$7), 'Stat Analysis'!$AI$6682:$AI$7681,"<"&MIN($F51,N$8)) -> 0 | O51: =COUNTIFS('Stat Analysis'!$AI$7682:$AI$8681,">="&MAX($E51,O$7), 'Stat Analysis'!$AI$7682:$AI$8681,"<"&MIN($F51,O$8)) -> 0 | P51: =COUNTIFS('Stat Analysis'!$AI$8682:$AI$9681,">="&MAX($E51,P$7), 'Stat Analysis'!$AI$8682:$AI$9681,"<"&MIN($F51,P$8)) -> 0 | Q51: =COUNTIFS('Stat Analysis'!$AI$9682:$AI$10681,">="&MAX($E51,Q$7), 'Stat Analysis'!$AI$9682:$AI$10681,"<"&MIN($F51,Q$8)) -> 0 | R51: =COUNTIFS('Stat Analysis'!$AI$10682:$AI$11681,">="&MAX($E51,R$7), 'Stat Analysis'!$AI$10682:$AI$11681,"<"&MIN($F51,R$8)) -> 0 | S51: =COUNTIFS('Stat Analysis'!$AI$11682:$AI$12681,">="&MAX($E51,S$7), 'Stat Analysis'!$AI$11682:$AI$12681,"<"&MIN($F51,S$8)) -> 0 | T51: =COUNTIFS('Stat Analysis'!$AI$12682:$AI$13681,">="&MAX($E51,T$7), 'Stat Analysis'!$AI$12682:$AI$13681,"<"&MIN($F51,T$8)) -> 0 | U51: =COUNTIFS('Stat Analysis'!$AI$13682:$AI$14681,">="&MAX($E51,U$7), 'Stat Analysis'!$AI$13682:$AI$14681,"<"&MIN($F51,U$8)) -> 0 | V51: =COUNTIFS('Stat Analysis'!$AI$14682:$AI$15681,">="&MAX($E51,V$7), 'Stat Analysis'!$AI$14682:$AI$15681,"<"&MIN($F51,V$8)) -> 0 | X51: 0 | Y51: 0 | Z51: 0 | AA51: 0 | AB51: 0 | AC51: 0 | AD51: 0 | AE51: 0 | AF51: 0 | AG51: 0 | AH51: 0 | AI51: 0 | AJ51: 0 | AK51: 0 | AL51: 0 | AN51: 10 | AO51: 0 | AP51: -6 | AQ51: 0 | AR51: 3 | AS51: 0 | AT51: =-AS$14-0.5*AS51+AU$14-0.5*AU51 -> 2 | AU51: 0 | AV51: =-AU$14-0.5*AU51+AW$14-0.5*AW51 -> 4 | AW51: 0 | AX51: =-AW$14-0.5*AW51+AY$14-0.5*AY51 -> -2 | AY51: 0 | AZ51: =-AY$14-0.5*AY51+BA$14-0.5*BA51 -> -6 | BA51: 0 | BB51: =-BA$14-0.5*BA51+BC$14-0.5*BC51 -> -2 | BC51: 0 | BD51: =-BC$14-0.5*BC51+BE$14-0.5*BE51 -> 5 | BE51: 0 | BF51: =-BE$14-0.5*BE51+BG$14-0.5*BG51 -> 4 | BG51: 0 | BH51: =-BG$14-0.5*BG51+BI$14-0.5*BI51 -> -10 | BI51: 0 | BJ51: =-BI$14-0.5*BI51+BK$14-0.5*BK51 -> 4 | BK51: 0 | BL51: =-BK$14-0.5*BK51+BM$14-0.5*BM51 -> -5 | BM51: 0 | BN51: =-BM$14-0.5*BM51+BO$14-0.5*BO51 -> -1 | BO51: 0 | BP51: =-BO$14-0.5*BO51+BQ$14-0.5*BQ51 -> -1 | BQ51: 0 | BS51: 30
A52: =+A49+$B$23 -> 100.5 | B52: =+B49 -> 0 | D52: 31 | E52: 0.15 | F52: 0.155 | G52: 0.1525 | H52: =COUNTIFS('Stat Analysis'!$AI$682:$AI$1681,">="&MAX($E52,H$7), 'Stat Analysis'!$AI$682:$AI$1681,"<"&MIN($F52,H$8)) -> 0 | I52: =COUNTIFS('Stat Analysis'!$AI$1682:$AI$2681,">="&MAX($E52,I$7), 'Stat Analysis'!$AI$1682:$AI$2681,"<"&MIN($F52,I$8)) -> 0 | J52: =COUNTIFS('Stat Analysis'!$AI$2682:$AI$3681,">="&MAX($E52,J$7), 'Stat Analysis'!$AI$2682:$AI$3681,"<"&MIN($F52,J$8)) -> 0 | K52: =COUNTIFS('Stat Analysis'!$AI$3682:$AI$4681,">="&MAX($E52,K$7), 'Stat Analysis'!$AI$3682:$AI$4681,"<"&MIN($F52,K$8)) -> 0 | L52: =COUNTIFS('Stat Analysis'!$AI$4682:$AI$5681,">="&MAX($E52,L$7), 'Stat Analysis'!$AI$4682:$AI$5681,"<"&MIN($F52,L$8)) -> 0 | M52: =COUNTIFS('Stat Analysis'!$AI$5682:$AI$6681,">="&MAX($E52,M$7), 'Stat Analysis'!$AI$5682:$AI$6681,"<"&MIN($F52,M$8)) -> 0 | N52: =COUNTIFS('Stat Analysis'!$AI$6682:$AI$7681,">="&MAX($E52,N$7), 'Stat Analysis'!$AI$6682:$AI$7681,"<"&MIN($F52,N$8)) -> 0 | O52: =COUNTIFS('Stat Analysis'!$AI$7682:$AI$8681,">="&MAX($E52,O$7), 'Stat Analysis'!$AI$7682:$AI$8681,"<"&MIN($F52,O$8)) -> 0 | P52: =COUNTIFS('Stat Analysis'!$AI$8682:$AI$9681,">="&MAX($E52,P$7), 'Stat Analysis'!$AI$8682:$AI$9681,"<"&MIN($F52,P$8)) -> 0 | Q52: =COUNTIFS('Stat Analysis'!$AI$9682:$AI$10681,">="&MAX($E52,Q$7), 'Stat Analysis'!$AI$9682:$AI$10681,"<"&MIN($F52,Q$8)) -> 0 | R52: =COUNTIFS('Stat Analysis'!$AI$10682:$AI$11681,">="&MAX($E52,R$7), 'Stat Analysis'!$AI$10682:$AI$11681,"<"&MIN($F52,R$8)) -> 0 | S52: =COUNTIFS('Stat Analysis'!$AI$11682:$AI$12681,">="&MAX($E52,S$7), 'Stat Analysis'!$AI$11682:$AI$12681,"<"&MIN($F52,S$8)) -> 0 | T52: =COUNTIFS('Stat Analysis'!$AI$12682:$AI$13681,">="&MAX($E52,T$7), 'Stat Analysis'!$AI$12682:$AI$13681,"<"&MIN($F52,T$8)) -> 0 | U52: =COUNTIFS('Stat Analysis'!$AI$13682:$AI$14681,">="&MAX($E52,U$7), 'Stat Analysis'!$AI$13682:$AI$14681,"<"&MIN($F52,U$8)) -> 0 | V52: =COUNTIFS('Stat Analysis'!$AI$14682:$AI$15681,">="&MAX($E52,V$7), 'Stat Analysis'!$AI$14682:$AI$15681,"<"&MIN($F52,V$8)) -> 0 | X52: 0 | Y52: 0 | Z52: 0 | AA52: 0 | AB52: 0 | AC52: 0 | AD52: 0 | AE52: 0 | AF52: 0 | AG52: 0 | AH52: 0 | AI52: 0 | AJ52: 0 | AK52: 0 | AL52: 0 | AN52: 10 | AO52: 0 | AP52: -6 | AQ52: 0 | AR52: 3 | AS52: 0 | AT52: =-AS$14-0.5*AS52+AU$14-0.5*AU52 -> 2 | AU52: 0 | AV52: =-AU$14-0.5*AU52+AW$14-0.5*AW52 -> 4 | AW52: 0 | AX52: =-AW$14-0.5*AW52+AY$14-0.5*AY52 -> -2 | AY52: 0 | AZ52: =-AY$14-0.5*AY52+BA$14-0.5*BA52 -> -6 | BA52: 0 | BB52: =-BA$14-0.5*BA52+BC$14-0.5*BC52 -> -2 | BC52: 0 | BD52: =-BC$14-0.5*BC52+BE$14-0.5*BE52 -> 5 | BE52: 0 | BF52: =-BE$14-0.5*BE52+BG$14-0.5*BG52 -> 4 | BG52: 0 | BH52: =-BG$14-0.5*BG52+BI$14-0.5*BI52 -> -10 | BI52: 0 | BJ52: =-BI$14-0.5*BI52+BK$14-0.5*BK52 -> 4 | BK52: 0 | BL52: =-BK$14-0.5*BK52+BM$14-0.5*BM52 -> -5 | BM52: 0 | BN52: =-BM$14-0.5*BM52+BO$14-0.5*BO52 -> -1 | BO52: 0 | BP52: =-BO$14-0.5*BO52+BQ$14-0.5*BQ52 -> -1 | BQ52: 0 | BS52: 31
A53: 100.5 | B53: 14 | D53: 32 | E53: 0.155 | F53: 0.16 | G53: 0.1575 | H53: =COUNTIFS('Stat Analysis'!$AI$682:$AI$1681,">="&MAX($E53,H$7), 'Stat Analysis'!$AI$682:$AI$1681,"<"&MIN($F53,H$8)) -> 0 | I53: =COUNTIFS('Stat Analysis'!$AI$1682:$AI$2681,">="&MAX($E53,I$7), 'Stat Analysis'!$AI$1682:$AI$2681,"<"&MIN($F53,I$8)) -> 0 | J53: =COUNTIFS('Stat Analysis'!$AI$2682:$AI$3681,">="&MAX($E53,J$7), 'Stat Analysis'!$AI$2682:$AI$3681,"<"&MIN($F53,J$8)) -> 0 | K53: =COUNTIFS('Stat Analysis'!$AI$3682:$AI$4681,">="&MAX($E53,K$7), 'Stat Analysis'!$AI$3682:$AI$4681,"<"&MIN($F53,K$8)) -> 0 | L53: =COUNTIFS('Stat Analysis'!$AI$4682:$AI$5681,">="&MAX($E53,L$7), 'Stat Analysis'!$AI$4682:$AI$5681,"<"&MIN($F53,L$8)) -> 0 | M53: =COUNTIFS('Stat Analysis'!$AI$5682:$AI$6681,">="&MAX($E53,M$7), 'Stat Analysis'!$AI$5682:$AI$6681,"<"&MIN($F53,M$8)) -> 0 | N53: =COUNTIFS('Stat Analysis'!$AI$6682:$AI$7681,">="&MAX($E53,N$7), 'Stat Analysis'!$AI$6682:$AI$7681,"<"&MIN($F53,N$8)) -> 0 | O53: =COUNTIFS('Stat Analysis'!$AI$7682:$AI$8681,">="&MAX($E53,O$7), 'Stat Analysis'!$AI$7682:$AI$8681,"<"&MIN($F53,O$8)) -> 0 | P53: =COUNTIFS('Stat Analysis'!$AI$8682:$AI$9681,">="&MAX($E53,P$7), 'Stat Analysis'!$AI$8682:$AI$9681,"<"&MIN($F53,P$8)) -> 0 | Q53: =COUNTIFS('Stat Analysis'!$AI$9682:$AI$10681,">="&MAX($E53,Q$7), 'Stat Analysis'!$AI$9682:$AI$10681,"<"&MIN($F53,Q$8)) -> 0 | R53: =COUNTIFS('Stat Analysis'!$AI$10682:$AI$11681,">="&MAX($E53,R$7), 'Stat Analysis'!$AI$10682:$AI$11681,"<"&MIN($F53,R$8)) -> 0 | S53: =COUNTIFS('Stat Analysis'!$AI$11682:$AI$12681,">="&MAX($E53,S$7), 'Stat Analysis'!$AI$11682:$AI$12681,"<"&MIN($F53,S$8)) -> 0 | T53: =COUNTIFS('Stat Analysis'!$AI$12682:$AI$13681,">="&MAX($E53,T$7), 'Stat Analysis'!$AI$12682:$AI$13681,"<"&MIN($F53,T$8)) -> 0 | U53: =COUNTIFS('Stat Analysis'!$AI$13682:$AI$14681,">="&MAX($E53,U$7), 'Stat Analysis'!$AI$13682:$AI$14681,"<"&MIN($F53,U$8)) -> 0 | V53: =COUNTIFS('Stat Analysis'!$AI$14682:$AI$15681,">="&MAX($E53,V$7), 'Stat Analysis'!$AI$14682:$AI$15681,"<"&MIN($F53,V$8)) -> 0 | X53: 0 | Y53: 0 | Z53: 0 | AA53: 0 | AB53: 0 | AC53: 0 | AD53: 0 | AE53: 0 | AF53: 0 | AG53: 0 | AH53: 0 | AI53: 0 | AJ53: 0 | AK53: 0 | AL53: 0 | AN53: 10 | AO53: 0 | AP53: -6 | AQ53: 0 | AR53: 3 | AS53: 0 | AT53: =-AS$14-0.5*AS53+AU$14-0.5*AU53 -> 2 | AU53: 0 | AV53: =-AU$14-0.5*AU53+AW$14-0.5*AW53 -> 4 | AW53: 0 | AX53: =-AW$14-0.5*AW53+AY$14-0.5*AY53 -> -2 | AY53: 0 | AZ53: =-AY$14-0.5*AY53+BA$14-0.5*BA53 -> -6 | BA53: 0 | BB53: =-BA$14-0.5*BA53+BC$14-0.5*BC53 -> -2 | BC53: 0 | BD53: =-BC$14-0.5*BC53+BE$14-0.5*BE53 -> 5 | BE53: 0 | BF53: =-BE$14-0.5*BE53+BG$14-0.5*BG53 -> 4 | BG53: 0 | BH53: =-BG$14-0.5*BG53+BI$14-0.5*BI53 -> -10 | BI53: 0 | BJ53: =-BI$14-0.5*BI53+BK$14-0.5*BK53 -> 4 | BK53: 0 | BL53: =-BK$14-0.5*BK53+BM$14-0.5*BM53 -> -5 | BM53: 0 | BN53: =-BM$14-0.5*BM53+BO$14-0.5*BO53 -> -1 | BO53: 0 | BP53: =-BO$14-0.5*BO53+BQ$14-0.5*BQ53 -> -1 | BQ53: 0 | BS53: 32
D54: 33 | E54: 0.16 | F54: 0.165 | G54: 0.1625 | H54: =COUNTIFS('Stat Analysis'!$AI$682:$AI$1681,">="&MAX($E54,H$7), 'Stat Analysis'!$AI$682:$AI$1681,"<"&MIN($F54,H$8)) -> 0 | I54: =COUNTIFS('Stat Analysis'!$AI$1682:$AI$2681,">="&MAX($E54,I$7), 'Stat Analysis'!$AI$1682:$AI$2681,"<"&MIN($F54,I$8)) -> 0 | J54: =COUNTIFS('Stat Analysis'!$AI$2682:$AI$3681,">="&MAX($E54,J$7), 'Stat Analysis'!$AI$2682:$AI$3681,"<"&MIN($F54,J$8)) -> 0 | K54: =COUNTIFS('Stat Analysis'!$AI$3682:$AI$4681,">="&MAX($E54,K$7), 'Stat Analysis'!$AI$3682:$AI$4681,"<"&MIN($F54,K$8)) -> 0 | L54: =COUNTIFS('Stat Analysis'!$AI$4682:$AI$5681,">="&MAX($E54,L$7), 'Stat Analysis'!$AI$4682:$AI$5681,"<"&MIN($F54,L$8)) -> 0 | M54: =COUNTIFS('Stat Analysis'!$AI$5682:$AI$6681,">="&MAX($E54,M$7), 'Stat Analysis'!$AI$5682:$AI$6681,"<"&MIN($F54,M$8)) -> 0 | N54: =COUNTIFS('Stat Analysis'!$AI$6682:$AI$7681,">="&MAX($E54,N$7), 'Stat Analysis'!$AI$6682:$AI$7681,"<"&MIN($F54,N$8)) -> 0 | O54: =COUNTIFS('Stat Analysis'!$AI$7682:$AI$8681,">="&MAX($E54,O$7), 'Stat Analysis'!$AI$7682:$AI$8681,"<"&MIN($F54,O$8)) -> 0 | P54: =COUNTIFS('Stat Analysis'!$AI$8682:$AI$9681,">="&MAX($E54,P$7), 'Stat Analysis'!$AI$8682:$AI$9681,"<"&MIN($F54,P$8)) -> 0 | Q54: =COUNTIFS('Stat Analysis'!$AI$9682:$AI$10681,">="&MAX($E54,Q$7), 'Stat Analysis'!$AI$9682:$AI$10681,"<"&MIN($F54,Q$8)) -> 0 | R54: =COUNTIFS('Stat Analysis'!$AI$10682:$AI$11681,">="&MAX($E54,R$7), 'Stat Analysis'!$AI$10682:$AI$11681,"<"&MIN($F54,R$8)) -> 0 | S54: =COUNTIFS('Stat Analysis'!$AI$11682:$AI$12681,">="&MAX($E54,S$7), 'Stat Analysis'!$AI$11682:$AI$12681,"<"&MIN($F54,S$8)) -> 0 | T54: =COUNTIFS('Stat Analysis'!$AI$12682:$AI$13681,">="&MAX($E54,T$7), 'Stat Analysis'!$AI$12682:$AI$13681,"<"&MIN($F54,T$8)) -> 0 | U54: =COUNTIFS('Stat Analysis'!$AI$13682:$AI$14681,">="&MAX($E54,U$7), 'Stat Analysis'!$AI$13682:$AI$14681,"<"&MIN($F54,U$8)) -> 0 | V54: =COUNTIFS('Stat Analysis'!$AI$14682:$AI$15681,">="&MAX($E54,V$7), 'Stat Analysis'!$AI$14682:$AI$15681,"<"&MIN($F54,V$8)) -> 0 | X54: 0 | Y54: 0 | Z54: 0 | AA54: 0 | AB54: 0 | AC54: 2 | AD54: 0 | AE54: 0 | AF54: 0 | AG54: 0 | AH54: 0 | AI54: 0 | AJ54: 0 | AK54: 0 | AL54: 0 | AN54: 10 | AO54: 0 | AP54: -6 | AQ54: 0 | AR54: 3 | AS54: 0 | AT54: =-AS$14-0.5*AS54+AU$14-0.5*AU54 -> 2 | AU54: 0 | AV54: =-AU$14-0.5*AU54+AW$14-0.5*AW54 -> 4 | AW54: 0 | AX54: =-AW$14-0.5*AW54+AY$14-0.5*AY54 -> -2.011111111 | AY54: 0.02222222222 | AZ54: =-AY$14-0.5*AY54+BA$14-0.5*BA54 -> -6.011111111 | BA54: 0 | BB54: =-BA$14-0.5*BA54+BC$14-0.5*BC54 -> -2 | BC54: 0 | BD54: =-BC$14-0.5*BC54+BE$14-0.5*BE54 -> 5 | BE54: 0 | BF54: =-BE$14-0.5*BE54+BG$14-0.5*BG54 -> 4 | BG54: 0 | BH54: =-BG$14-0.5*BG54+BI$14-0.5*BI54 -> -10 | BI54: 0 | BJ54: =-BI$14-0.5*BI54+BK$14-0.5*BK54 -> 4 | BK54: 0 | BL54: =-BK$14-0.5*BK54+BM$14-0.5*BM54 -> -5 | BM54: 0 | BN54: =-BM$14-0.5*BM54+BO$14-0.5*BO54 -> -1 | BO54: 0 | BP54: =-BO$14-0.5*BO54+BQ$14-0.5*BQ54 -> -1 | BQ54: 0 | BS54: 33 | CD54: 11.01111111 | CE54: 10.98888889
A55: =+A52+$B$23 -> 120.6 | B55: =+B52 -> 0 | D55: 34 | E55: 0.165 | F55: 0.17 | G55: =+G54+$B$3 -> 0.1675 | H55: =COUNTIFS('Stat Analysis'!$AI$682:$AI$1681,">="&MAX($E55,H$7), 'Stat Analysis'!$AI$682:$AI$1681,"<"&MIN($F55,H$8)) -> 0 | I55: =COUNTIFS('Stat Analysis'!$AI$1682:$AI$2681,">="&MAX($E55,I$7), 'Stat Analysis'!$AI$1682:$AI$2681,"<"&MIN($F55,I$8)) -> 0 | J55: =COUNTIFS('Stat Analysis'!$AI$2682:$AI$3681,">="&MAX($E55,J$7), 'Stat Analysis'!$AI$2682:$AI$3681,"<"&MIN($F55,J$8)) -> 0 | K55: =COUNTIFS('Stat Analysis'!$AI$3682:$AI$4681,">="&MAX($E55,K$7), 'Stat Analysis'!$AI$3682:$AI$4681,"<"&MIN($F55,K$8)) -> 0 | L55: =COUNTIFS('Stat Analysis'!$AI$4682:$AI$5681,">="&MAX($E55,L$7), 'Stat Analysis'!$AI$4682:$AI$5681,"<"&MIN($F55,L$8)) -> 0 | M55: =COUNTIFS('Stat Analysis'!$AI$5682:$AI$6681,">="&MAX($E55,M$7), 'Stat Analysis'!$AI$5682:$AI$6681,"<"&MIN($F55,M$8)) -> 4 | N55: =COUNTIFS('Stat Analysis'!$AI$6682:$AI$7681,">="&MAX($E55,N$7), 'Stat Analysis'!$AI$6682:$AI$7681,"<"&MIN($F55,N$8)) -> 0 | O55: =COUNTIFS('Stat Analysis'!$AI$7682:$AI$8681,">="&MAX($E55,O$7), 'Stat Analysis'!$AI$7682:$AI$8681,"<"&MIN($F55,O$8)) -> 0 | P55: =COUNTIFS('Stat Analysis'!$AI$8682:$AI$9681,">="&MAX($E55,P$7), 'Stat Analysis'!$AI$8682:$AI$9681,"<"&MIN($F55,P$8)) -> 0 | Q55: =COUNTIFS('Stat Analysis'!$AI$9682:$AI$10681,">="&MAX($E55,Q$7), 'Stat Analysis'!$AI$9682:$AI$10681,"<"&MIN($F55,Q$8)) -> 0 | R55: =COUNTIFS('Stat Analysis'!$AI$10682:$AI$11681,">="&MAX($E55,R$7), 'Stat Analysis'!$AI$10682:$AI$11681,"<"&MIN($F55,R$8)) -> 0 | S55: =COUNTIFS('Stat Analysis'!$AI$11682:$AI$12681,">="&MAX($E55,S$7), 'Stat Analysis'!$AI$11682:$AI$12681,"<"&MIN($F55,S$8)) -> 0 | T55: =COUNTIFS('Stat Analysis'!$AI$12682:$AI$13681,">="&MAX($E55,T$7), 'Stat Analysis'!$AI$12682:$AI$13681,"<"&MIN($F55,T$8)) -> 0 | U55: =COUNTIFS('Stat Analysis'!$AI$13682:$AI$14681,">="&MAX($E55,U$7), 'Stat Analysis'!$AI$13682:$AI$14681,"<"&MIN($F55,U$8)) -> 0 | V55: =COUNTIFS('Stat Analysis'!$AI$14682:$AI$15681,">="&MAX($E55,V$7), 'Stat Analysis'!$AI$14682:$AI$15681,"<"&MIN($F55,V$8)) -> 0 | X55: 0 | Y55: 0 | Z55: 0 | AA55: 0 | AB55: 0 | AC55: 10 | AD55: 0 | AE55: 0 | AF55: 0 | AG55: 0 | AH55: 0 | AI55: 0 | AJ55: 0 | AK55: 0 | AL55: 0 | AN55: 10 | AO55: 0 | AP55: -6 | AQ55: 0 | AR55: 3 | AS55: 0 | AT55: =-AS$14-0.5*AS55+AU$14-0.5*AU55 -> 2 | AU55: 0 | AV55: =-AU$14-0.5*AU55+AW$14-0.5*AW55 -> 4 | AW55: 0 | AX55: =-AW$14-0.5*AW55+AY$14-0.5*AY55 -> -2.055555556 | AY55: 0.1111111111 | AZ55: =-AY$14-0.5*AY55+BA$14-0.5*BA55 -> -6.055555556 | BA55: 0 | BB55: =-BA$14-0.5*BA55+BC$14-0.5*BC55 -> -2 | BC55: 0 | BD55: =-BC$14-0.5*BC55+BE$14-0.5*BE55 -> 5 | BE55: 0 | BF55: =-BE$14-0.5*BE55+BG$14-0.5*BG55 -> 4 | BG55: 0 | BH55: =-BG$14-0.5*BG55+BI$14-0.5*BI55 -> -10 | BI55: 0 | BJ55: =-BI$14-0.5*BI55+BK$14-0.5*BK55 -> 4 | BK55: 0 | BL55: =-BK$14-0.5*BK55+BM$14-0.5*BM55 -> -5 | BM55: 0 | BN55: =-BM$14-0.5*BM55+BO$14-0.5*BO55 -> -1 | BO55: 0 | BP55: =-BO$14-0.5*BO55+BQ$14-0.5*BQ55 -> -1 | BQ55: 0 | BS55: 34 | CD55: 11.05555556 | CE55: 10.94444444
A56: 120.6 | B56: 14 | D56: 35 | E56: 0.17 | F56: 0.175 | G56: 0.1725 | H56: =COUNTIFS('Stat Analysis'!$AI$682:$AI$1681,">="&MAX($E56,H$7), 'Stat Analysis'!$AI$682:$AI$1681,"<"&MIN($F56,H$8)) -> 0 | I56: =COUNTIFS('Stat Analysis'!$AI$1682:$AI$2681,">="&MAX($E56,I$7), 'Stat Analysis'!$AI$1682:$AI$2681,"<"&MIN($F56,I$8)) -> 0 | J56: =COUNTIFS('Stat Analysis'!$AI$2682:$AI$3681,">="&MAX($E56,J$7), 'Stat Analysis'!$AI$2682:$AI$3681,"<"&MIN($F56,J$8)) -> 0 | K56: =COUNTIFS('Stat Analysis'!$AI$3682:$AI$4681,">="&MAX($E56,K$7), 'Stat Analysis'!$AI$3682:$AI$4681,"<"&MIN($F56,K$8)) -> 0 | L56: =COUNTIFS('Stat Analysis'!$AI$4682:$AI$5681,">="&MAX($E56,L$7), 'Stat Analysis'!$AI$4682:$AI$5681,"<"&MIN($F56,L$8)) -> 0 | M56: =COUNTIFS('Stat Analysis'!$AI$5682:$AI$6681,">="&MAX($E56,M$7), 'Stat Analysis'!$AI$5682:$AI$6681,"<"&MIN($F56,M$8)) -> 12 | N56: =COUNTIFS('Stat Analysis'!$AI$6682:$AI$7681,">="&MAX($E56,N$7), 'Stat Analysis'!$AI$6682:$AI$7681,"<"&MIN($F56,N$8)) -> 0 | O56: =COUNTIFS('Stat Analysis'!$AI$7682:$AI$8681,">="&MAX($E56,O$7), 'Stat Analysis'!$AI$7682:$AI$8681,"<"&MIN($F56,O$8)) -> 0 | P56: =COUNTIFS('Stat Analysis'!$AI$8682:$AI$9681,">="&MAX($E56,P$7), 'Stat Analysis'!$AI$8682:$AI$9681,"<"&MIN($F56,P$8)) -> 0 | Q56: =COUNTIFS('Stat Analysis'!$AI$9682:$AI$10681,">="&MAX($E56,Q$7), 'Stat Analysis'!$AI$9682:$AI$10681,"<"&MIN($F56,Q$8)) -> 0 | R56: =COUNTIFS('Stat Analysis'!$AI$10682:$AI$11681,">="&MAX($E56,R$7), 'Stat Analysis'!$AI$10682:$AI$11681,"<"&MIN($F56,R$8)) -> 0 | S56: =COUNTIFS('Stat Analysis'!$AI$11682:$AI$12681,">="&MAX($E56,S$7), 'Stat Analysis'!$AI$11682:$AI$12681,"<"&MIN($F56,S$8)) -> 0 | T56: =COUNTIFS('Stat Analysis'!$AI$12682:$AI$13681,">="&MAX($E56,T$7), 'Stat Analysis'!$AI$12682:$AI$13681,"<"&MIN($F56,T$8)) -> 0 | U56: =COUNTIFS('Stat Analysis'!$AI$13682:$AI$14681,">="&MAX($E56,U$7), 'Stat Analysis'!$AI$13682:$AI$14681,"<"&MIN($F56,U$8)) -> 0 | V56: =COUNTIFS('Stat Analysis'!$AI$14682:$AI$15681,">="&MAX($E56,V$7), 'Stat Analysis'!$AI$14682:$AI$15681,"<"&MIN($F56,V$8)) -> 0 | X56: 0 | Y56: 0 | Z56: 0 | AA56: 0 | AB56: 0 | AC56: 21.5 | AD56: 0 | AE56: 0 | AF56: 0 | AG56: 0 | AH56: 0 | AI56: 0 | AJ56: 0 | AK56: 0 | AL56: 0 | AN56: 10 | AO56: 0 | AP56: -6 | AQ56: 0 | AR56: 3 | AS56: 0 | AT56: =-AS$14-0.5*AS56+AU$14-0.5*AU56 -> 2 | AU56: 0 | AV56: =-AU$14-0.5*AU56+AW$14-0.5*AW56 -> 4 | AW56: 0 | AX56: =-AW$14-0.5*AW56+AY$14-0.5*AY56 -> -2.119444444 | AY56: 0.2388888889 | AZ56: =-AY$14-0.5*AY56+BA$14-0.5*BA56 -> -6.119444444 | BA56: 0 | BB56: =-BA$14-0.5*BA56+BC$14-0.5*BC56 -> -2 | BC56: 0 | BD56: =-BC$14-0.5*BC56+BE$14-0.5*BE56 -> 5 | BE56: 0 | BF56: =-BE$14-0.5*BE56+BG$14-0.5*BG56 -> 4 | BG56: 0 | BH56: =-BG$14-0.5*BG56+BI$14-0.5*BI56 -> -10 | BI56: 0 | BJ56: =-BI$14-0.5*BI56+BK$14-0.5*BK56 -> 4 | BK56: 0 | BL56: =-BK$14-0.5*BK56+BM$14-0.5*BM56 -> -5 | BM56: 0 | BN56: =-BM$14-0.5*BM56+BO$14-0.5*BO56 -> -1 | BO56: 0 | BP56: =-BO$14-0.5*BO56+BQ$14-0.5*BQ56 -> -1 | BQ56: 0 | BS56: 35 | CD56: 11.11944444 | CE56: 10.88055556
D57: 36 | E57: 0.175 | F57: 0.18 | G57: 0.1775 | H57: =COUNTIFS('Stat Analysis'!$AI$682:$AI$1681,">="&MAX($E57,H$7), 'Stat Analysis'!$AI$682:$AI$1681,"<"&MIN($F57,H$8)) -> 0 | I57: =COUNTIFS('Stat Analysis'!$AI$1682:$AI$2681,">="&MAX($E57,I$7), 'Stat Analysis'!$AI$1682:$AI$2681,"<"&MIN($F57,I$8)) -> 0 | J57: =COUNTIFS('Stat Analysis'!$AI$2682:$AI$3681,">="&MAX($E57,J$7), 'Stat Analysis'!$AI$2682:$AI$3681,"<"&MIN($F57,J$8)) -> 0 | K57: =COUNTIFS('Stat Analysis'!$AI$3682:$AI$4681,">="&MAX($E57,K$7), 'Stat Analysis'!$AI$3682:$AI$4681,"<"&MIN($F57,K$8)) -> 0 | L57: =COUNTIFS('Stat Analysis'!$AI$4682:$AI$5681,">="&MAX($E57,L$7), 'Stat Analysis'!$AI$4682:$AI$5681,"<"&MIN($F57,L$8)) -> 0 | M57: =COUNTIFS('Stat Analysis'!$AI$5682:$AI$6681,">="&MAX($E57,M$7), 'Stat Analysis'!$AI$5682:$AI$6681,"<"&MIN($F57,M$8)) -> 15 | N57: =COUNTIFS('Stat Analysis'!$AI$6682:$AI$7681,">="&MAX($E57,N$7), 'Stat Analysis'!$AI$6682:$AI$7681,"<"&MIN($F57,N$8)) -> 0 | O57: =COUNTIFS('Stat Analysis'!$AI$7682:$AI$8681,">="&MAX($E57,O$7), 'Stat Analysis'!$AI$7682:$AI$8681,"<"&MIN($F57,O$8)) -> 0 | P57: =COUNTIFS('Stat Analysis'!$AI$8682:$AI$9681,">="&MAX($E57,P$7), 'Stat Analysis'!$AI$8682:$AI$9681,"<"&MIN($F57,P$8)) -> 0 | Q57: =COUNTIFS('Stat Analysis'!$AI$9682:$AI$10681,">="&MAX($E57,Q$7), 'Stat Analysis'!$AI$9682:$AI$10681,"<"&MIN($F57,Q$8)) -> 0 | R57: =COUNTIFS('Stat Analysis'!$AI$10682:$AI$11681,">="&MAX($E57,R$7), 'Stat Analysis'!$AI$10682:$AI$11681,"<"&MIN($F57,R$8)) -> 0 | S57: =COUNTIFS('Stat Analysis'!$AI$11682:$AI$12681,">="&MAX($E57,S$7), 'Stat Analysis'!$AI$11682:$AI$12681,"<"&MIN($F57,S$8)) -> 0 | T57: =COUNTIFS('Stat Analysis'!$AI$12682:$AI$13681,">="&MAX($E57,T$7), 'Stat Analysis'!$AI$12682:$AI$13681,"<"&MIN($F57,T$8)) -> 0 | U57: =COUNTIFS('Stat Analysis'!$AI$13682:$AI$14681,">="&MAX($E57,U$7), 'Stat Analysis'!$AI$13682:$AI$14681,"<"&MIN($F57,U$8)) -> 0 | V57: =COUNTIFS('Stat Analysis'!$AI$14682:$AI$15681,">="&MAX($E57,V$7), 'Stat Analysis'!$AI$14682:$AI$15681,"<"&MIN($F57,V$8)) -> 0 | X57: 0 | Y57: 0 | Z57: 0 | AA57: 0 | AB57: 0 | AC57: 28.5 | AD57: 0 | AE57: 0 | AF57: 0 | AG57: 0 | AH57: 0 | AI57: 0 | AJ57: 0 | AK57: 0 | AL57: 0 | AN57: 10 | AO57: 0 | AP57: -6 | AQ57: 0 | AR57: 3 | AS57: 0 | AT57: =-AS$14-0.5*AS57+AU$14-0.5*AU57 -> 2 | AU57: 0 | AV57: =-AU$14-0.5*AU57+AW$14-0.5*AW57 -> 4 | AW57: 0 | AX57: =-AW$14-0.5*AW57+AY$14-0.5*AY57 -> -2.158333333 | AY57: 0.3166666667 | AZ57: =-AY$14-0.5*AY57+BA$14-0.5*BA57 -> -6.158333333 | BA57: 0 | BB57: =-BA$14-0.5*BA57+BC$14-0.5*BC57 -> -2 | BC57: 0 | BD57: =-BC$14-0.5*BC57+BE$14-0.5*BE57 -> 5 | BE57: 0 | BF57: =-BE$14-0.5*BE57+BG$14-0.5*BG57 -> 4 | BG57: 0 | BH57: =-BG$14-0.5*BG57+BI$14-0.5*BI57 -> -10 | BI57: 0 | BJ57: =-BI$14-0.5*BI57+BK$14-0.5*BK57 -> 4 | BK57: 0 | BL57: =-BK$14-0.5*BK57+BM$14-0.5*BM57 -> -5 | BM57: 0 | BN57: =-BM$14-0.5*BM57+BO$14-0.5*BO57 -> -1 | BO57: 0 | BP57: =-BO$14-0.5*BO57+BQ$14-0.5*BQ57 -> -1 | BQ57: 0 | BS57: 36 | CD57: 11.15833333 | CE57: 10.84166667
A58: =+A55+$B$23 -> 140.7 | B58: =+B55 -> 0 | D58: 37 | E58: 0.18 | F58: 0.185 | G58: 0.1825 | H58: =COUNTIFS('Stat Analysis'!$AI$682:$AI$1681,">="&MAX($E58,H$7), 'Stat Analysis'!$AI$682:$AI$1681,"<"&MIN($F58,H$8)) -> 0 | I58: =COUNTIFS('Stat Analysis'!$AI$1682:$AI$2681,">="&MAX($E58,I$7), 'Stat Analysis'!$AI$1682:$AI$2681,"<"&MIN($F58,I$8)) -> 0 | J58: =COUNTIFS('Stat Analysis'!$AI$2682:$AI$3681,">="&MAX($E58,J$7), 'Stat Analysis'!$AI$2682:$AI$3681,"<"&MIN($F58,J$8)) -> 0 | K58: =COUNTIFS('Stat Analysis'!$AI$3682:$AI$4681,">="&MAX($E58,K$7), 'Stat Analysis'!$AI$3682:$AI$4681,"<"&MIN($F58,K$8)) -> 0 | L58: =COUNTIFS('Stat Analysis'!$AI$4682:$AI$5681,">="&MAX($E58,L$7), 'Stat Analysis'!$AI$4682:$AI$5681,"<"&MIN($F58,L$8)) -> 0 | M58: =COUNTIFS('Stat Analysis'!$AI$5682:$AI$6681,">="&MAX($E58,M$7), 'Stat Analysis'!$AI$5682:$AI$6681,"<"&MIN($F58,M$8)) -> 15 | N58: =COUNTIFS('Stat Analysis'!$AI$6682:$AI$7681,">="&MAX($E58,N$7), 'Stat Analysis'!$AI$6682:$AI$7681,"<"&MIN($F58,N$8)) -> 0 | O58: =COUNTIFS('Stat Analysis'!$AI$7682:$AI$8681,">="&MAX($E58,O$7), 'Stat Analysis'!$AI$7682:$AI$8681,"<"&MIN($F58,O$8)) -> 0 | P58: =COUNTIFS('Stat Analysis'!$AI$8682:$AI$9681,">="&MAX($E58,P$7), 'Stat Analysis'!$AI$8682:$AI$9681,"<"&MIN($F58,P$8)) -> 0 | Q58: =COUNTIFS('Stat Analysis'!$AI$9682:$AI$10681,">="&MAX($E58,Q$7), 'Stat Analysis'!$AI$9682:$AI$10681,"<"&MIN($F58,Q$8)) -> 0 | R58: =COUNTIFS('Stat Analysis'!$AI$10682:$AI$11681,">="&MAX($E58,R$7), 'Stat Analysis'!$AI$10682:$AI$11681,"<"&MIN($F58,R$8)) -> 0 | S58: =COUNTIFS('Stat Analysis'!$AI$11682:$AI$12681,">="&MAX($E58,S$7), 'Stat Analysis'!$AI$11682:$AI$12681,"<"&MIN($F58,S$8)) -> 0 | T58: =COUNTIFS('Stat Analysis'!$AI$12682:$AI$13681,">="&MAX($E58,T$7), 'Stat Analysis'!$AI$12682:$AI$13681,"<"&MIN($F58,T$8)) -> 0 | U58: =COUNTIFS('Stat Analysis'!$AI$13682:$AI$14681,">="&MAX($E58,U$7), 'Stat Analysis'!$AI$13682:$AI$14681,"<"&MIN($F58,U$8)) -> 0 | V58: =COUNTIFS('Stat Analysis'!$AI$14682:$AI$15681,">="&MAX($E58,V$7), 'Stat Analysis'!$AI$14682:$AI$15681,"<"&MIN($F58,V$8)) -> 0 | X58: 0 | Y58: 0 | Z58: 0 | AA58: 0 | AB58: 0 | AC58: 34 | AD58: 0 | AE58: 0 | AF58: 0 | AG58: 0 | AH58: 0 | AI58: 0 | AJ58: 0 | AK58: 0 | AL58: 0 | AN58: 10 | AO58: 0 | AP58: -6 | AQ58: 0 | AR58: 3 | AS58: 0 | AT58: =-AS$14-0.5*AS58+AU$14-0.5*AU58 -> 2 | AU58: 0 | AV58: =-AU$14-0.5*AU58+AW$14-0.5*AW58 -> 4 | AW58: 0 | AX58: =-AW$14-0.5*AW58+AY$14-0.5*AY58 -> -2.188888889 | AY58: 0.3777777778 | AZ58: =-AY$14-0.5*AY58+BA$14-0.5*BA58 -> -6.188888889 | BA58: 0 | BB58: =-BA$14-0.5*BA58+BC$14-0.5*BC58 -> -2 | BC58: 0 | BD58: =-BC$14-0.5*BC58+BE$14-0.5*BE58 -> 5 | BE58: 0 | BF58: =-BE$14-0.5*BE58+BG$14-0.5*BG58 -> 4 | BG58: 0 | BH58: =-BG$14-0.5*BG58+BI$14-0.5*BI58 -> -10 | BI58: 0 | BJ58: =-BI$14-0.5*BI58+BK$14-0.5*BK58 -> 4 | BK58: 0 | BL58: =-BK$14-0.5*BK58+BM$14-0.5*BM58 -> -5 | BM58: 0 | BN58: =-BM$14-0.5*BM58+BO$14-0.5*BO58 -> -1 | BO58: 0 | BP58: =-BO$14-0.5*BO58+BQ$14-0.5*BQ58 -> -1 | BQ58: 0 | BS58: 37 | CD58: 11.18888889 | CE58: 10.81111111
A59: 140.7 | B59: 14 | D59: 38 | E59: 0.185 | F59: 0.19 | G59: 0.1875 | H59: =COUNTIFS('Stat Analysis'!$AI$682:$AI$1681,">="&MAX($E59,H$7), 'Stat Analysis'!$AI$682:$AI$1681,"<"&MIN($F59,H$8)) -> 0 | I59: =COUNTIFS('Stat Analysis'!$AI$1682:$AI$2681,">="&MAX($E59,I$7), 'Stat Analysis'!$AI$1682:$AI$2681,"<"&MIN($F59,I$8)) -> 0 | J59: =COUNTIFS('Stat Analysis'!$AI$2682:$AI$3681,">="&MAX($E59,J$7), 'Stat Analysis'!$AI$2682:$AI$3681,"<"&MIN($F59,J$8)) -> 0 | K59: =COUNTIFS('Stat Analysis'!$AI$3682:$AI$4681,">="&MAX($E59,K$7), 'Stat Analysis'!$AI$3682:$AI$4681,"<"&MIN($F59,K$8)) -> 0 | L59: =COUNTIFS('Stat Analysis'!$AI$4682:$AI$5681,">="&MAX($E59,L$7), 'Stat Analysis'!$AI$4682:$AI$5681,"<"&MIN($F59,L$8)) -> 0 | M59: =COUNTIFS('Stat Analysis'!$AI$5682:$AI$6681,">="&MAX($E59,M$7), 'Stat Analysis'!$AI$5682:$AI$6681,"<"&MIN($F59,M$8)) -> 23 | N59: =COUNTIFS('Stat Analysis'!$AI$6682:$AI$7681,">="&MAX($E59,N$7), 'Stat Analysis'!$AI$6682:$AI$7681,"<"&MIN($F59,N$8)) -> 0 | O59: =COUNTIFS('Stat Analysis'!$AI$7682:$AI$8681,">="&MAX($E59,O$7), 'Stat Analysis'!$AI$7682:$AI$8681,"<"&MIN($F59,O$8)) -> 0 | P59: =COUNTIFS('Stat Analysis'!$AI$8682:$AI$9681,">="&MAX($E59,P$7), 'Stat Analysis'!$AI$8682:$AI$9681,"<"&MIN($F59,P$8)) -> 0 | Q59: =COUNTIFS('Stat Analysis'!$AI$9682:$AI$10681,">="&MAX($E59,Q$7), 'Stat Analysis'!$AI$9682:$AI$10681,"<"&MIN($F59,Q$8)) -> 0 | R59: =COUNTIFS('Stat Analysis'!$AI$10682:$AI$11681,">="&MAX($E59,R$7), 'Stat Analysis'!$AI$10682:$AI$11681,"<"&MIN($F59,R$8)) -> 0 | S59: =COUNTIFS('Stat Analysis'!$AI$11682:$AI$12681,">="&MAX($E59,S$7), 'Stat Analysis'!$AI$11682:$AI$12681,"<"&MIN($F59,S$8)) -> 0 | T59: =COUNTIFS('Stat Analysis'!$AI$12682:$AI$13681,">="&MAX($E59,T$7), 'Stat Analysis'!$AI$12682:$AI$13681,"<"&MIN($F59,T$8)) -> 0 | U59: =COUNTIFS('Stat Analysis'!$AI$13682:$AI$14681,">="&MAX($E59,U$7), 'Stat Analysis'!$AI$13682:$AI$14681,"<"&MIN($F59,U$8)) -> 0 | V59: =COUNTIFS('Stat Analysis'!$AI$14682:$AI$15681,">="&MAX($E59,V$7), 'Stat Analysis'!$AI$14682:$AI$15681,"<"&MIN($F59,V$8)) -> 0 | X59: 0 | Y59: 0 | Z59: 0 | AA59: 0 | AB59: 0 | AC59: 46 | AD59: 0 | AE59: 0 | AF59: 0 | AG59: 0 | AH59: 0 | AI59: 0 | AJ59: 0 | AK59: 0 | AL59: 0 | AN59: 10 | AO59: 0 | AP59: -6 | AQ59: 0 | AR59: 3 | AS59: 0 | AT59: =-AS$14-0.5*AS59+AU$14-0.5*AU59 -> 2 | AU59: 0 | AV59: =-AU$14-0.5*AU59+AW$14-0.5*AW59 -> 4 | AW59: 0 | AX59: =-AW$14-0.5*AW59+AY$14-0.5*AY59 -> -2.255555556 | AY59: 0.5111111111 | AZ59: =-AY$14-0.5*AY59+BA$14-0.5*BA59 -> -6.255555556 | BA59: 0 | BB59: =-BA$14-0.5*BA59+BC$14-0.5*BC59 -> -2 | BC59: 0 | BD59: =-BC$14-0.5*BC59+BE$14-0.5*BE59 -> 5 | BE59: 0 | BF59: =-BE$14-0.5*BE59+BG$14-0.5*BG59 -> 4 | BG59: 0 | BH59: =-BG$14-0.5*BG59+BI$14-0.5*BI59 -> -10 | BI59: 0 | BJ59: =-BI$14-0.5*BI59+BK$14-0.5*BK59 -> 4 | BK59: 0 | BL59: =-BK$14-0.5*BK59+BM$14-0.5*BM59 -> -5 | BM59: 0 | BN59: =-BM$14-0.5*BM59+BO$14-0.5*BO59 -> -1 | BO59: 0 | BP59: =-BO$14-0.5*BO59+BQ$14-0.5*BQ59 -> -1 | BQ59: 0 | BS59: 38 | CD59: 11.25555556 | CE59: 10.74444444
D60: 39 | E60: 0.19 | F60: 0.195 | G60: 0.1925 | H60: =COUNTIFS('Stat Analysis'!$AI$682:$AI$1681,">="&MAX($E60,H$7), 'Stat Analysis'!$AI$682:$AI$1681,"<"&MIN($F60,H$8)) -> 0 | I60: =COUNTIFS('Stat Analysis'!$AI$1682:$AI$2681,">="&MAX($E60,I$7), 'Stat Analysis'!$AI$1682:$AI$2681,"<"&MIN($F60,I$8)) -> 0 | J60: =COUNTIFS('Stat Analysis'!$AI$2682:$AI$3681,">="&MAX($E60,J$7), 'Stat Analysis'!$AI$2682:$AI$3681,"<"&MIN($F60,J$8)) -> 0 | K60: =COUNTIFS('Stat Analysis'!$AI$3682:$AI$4681,">="&MAX($E60,K$7), 'Stat Analysis'!$AI$3682:$AI$4681,"<"&MIN($F60,K$8)) -> 0 | L60: =COUNTIFS('Stat Analysis'!$AI$4682:$AI$5681,">="&MAX($E60,L$7), 'Stat Analysis'!$AI$4682:$AI$5681,"<"&MIN($F60,L$8)) -> 0 | M60: =COUNTIFS('Stat Analysis'!$AI$5682:$AI$6681,">="&MAX($E60,M$7), 'Stat Analysis'!$AI$5682:$AI$6681,"<"&MIN($F60,M$8)) -> 31 | N60: =COUNTIFS('Stat Analysis'!$AI$6682:$AI$7681,">="&MAX($E60,N$7), 'Stat Analysis'!$AI$6682:$AI$7681,"<"&MIN($F60,N$8)) -> 0 | O60: =COUNTIFS('Stat Analysis'!$AI$7682:$AI$8681,">="&MAX($E60,O$7), 'Stat Analysis'!$AI$7682:$AI$8681,"<"&MIN($F60,O$8)) -> 0 | P60: =COUNTIFS('Stat Analysis'!$AI$8682:$AI$9681,">="&MAX($E60,P$7), 'Stat Analysis'!$AI$8682:$AI$9681,"<"&MIN($F60,P$8)) -> 0 | Q60: =COUNTIFS('Stat Analysis'!$AI$9682:$AI$10681,">="&MAX($E60,Q$7), 'Stat Analysis'!$AI$9682:$AI$10681,"<"&MIN($F60,Q$8)) -> 0 | R60: =COUNTIFS('Stat Analysis'!$AI$10682:$AI$11681,">="&MAX($E60,R$7), 'Stat Analysis'!$AI$10682:$AI$11681,"<"&MIN($F60,R$8)) -> 0 | S60: =COUNTIFS('Stat Analysis'!$AI$11682:$AI$12681,">="&MAX($E60,S$7), 'Stat Analysis'!$AI$11682:$AI$12681,"<"&MIN($F60,S$8)) -> 0 | T60: =COUNTIFS('Stat Analysis'!$AI$12682:$AI$13681,">="&MAX($E60,T$7), 'Stat Analysis'!$AI$12682:$AI$13681,"<"&MIN($F60,T$8)) -> 0 | U60: =COUNTIFS('Stat Analysis'!$AI$13682:$AI$14681,">="&MAX($E60,U$7), 'Stat Analysis'!$AI$13682:$AI$14681,"<"&MIN($F60,U$8)) -> 0 | V60: =COUNTIFS('Stat Analysis'!$AI$14682:$AI$15681,">="&MAX($E60,V$7), 'Stat Analysis'!$AI$14682:$AI$15681,"<"&MIN($F60,V$8)) -> 0 | X60: 0 | Y60: 0 | Z60: 0 | AA60: 0 | AB60: 0 | AC60: 59.5 | AD60: 0 | AE60: 0 | AF60: 0 | AG60: 0 | AH60: 0 | AI60: 0 | AJ60: 0 | AK60: 0 | AL60: 0 | AN60: 10 | AO60: 0 | AP60: -6 | AQ60: 0 | AR60: 3 | AS60: 0 | AT60: =-AS$14-0.5*AS60+AU$14-0.5*AU60 -> 2 | AU60: 0 | AV60: =-AU$14-0.5*AU60+AW$14-0.5*AW60 -> 4 | AW60: 0 | AX60: =-AW$14-0.5*AW60+AY$14-0.5*AY60 -> -2.330555556 | AY60: 0.6611111111 | AZ60: =-AY$14-0.5*AY60+BA$14-0.5*BA60 -> -6.330555556 | BA60: 0 | BB60: =-BA$14-0.5*BA60+BC$14-0.5*BC60 -> -2 | BC60: 0 | BD60: =-BC$14-0.5*BC60+BE$14-0.5*BE60 -> 5 | BE60: 0 | BF60: =-BE$14-0.5*BE60+BG$14-0.5*BG60 -> 4 | BG60: 0 | BH60: =-BG$14-0.5*BG60+BI$14-0.5*BI60 -> -10 | BI60: 0 | BJ60: =-BI$14-0.5*BI60+BK$14-0.5*BK60 -> 4 | BK60: 0 | BL60: =-BK$14-0.5*BK60+BM$14-0.5*BM60 -> -5 | BM60: 0 | BN60: =-BM$14-0.5*BM60+BO$14-0.5*BO60 -> -1 | BO60: 0 | BP60: =-BO$14-0.5*BO60+BQ$14-0.5*BQ60 -> -1 | BQ60: 0 | BS60: 39 | CD60: 11.33055556 | CE60: 10.66944444
A61: =+A58+$B$23 -> 160.8 | B61: =+B58 -> 0 | D61: 40 | E61: 0.195 | F61: 0.2 | G61: 0.1975 | H61: =COUNTIFS('Stat Analysis'!$AI$682:$AI$1681,">="&MAX($E61,H$7), 'Stat Analysis'!$AI$682:$AI$1681,"<"&MIN($F61,H$8)) -> 0 | I61: =COUNTIFS('Stat Analysis'!$AI$1682:$AI$2681,">="&MAX($E61,I$7), 'Stat Analysis'!$AI$1682:$AI$2681,"<"&MIN($F61,I$8)) -> 0 | J61: =COUNTIFS('Stat Analysis'!$AI$2682:$AI$3681,">="&MAX($E61,J$7), 'Stat Analysis'!$AI$2682:$AI$3681,"<"&MIN($F61,J$8)) -> 0 | K61: =COUNTIFS('Stat Analysis'!$AI$3682:$AI$4681,">="&MAX($E61,K$7), 'Stat Analysis'!$AI$3682:$AI$4681,"<"&MIN($F61,K$8)) -> 0 | L61: =COUNTIFS('Stat Analysis'!$AI$4682:$AI$5681,">="&MAX($E61,L$7), 'Stat Analysis'!$AI$4682:$AI$5681,"<"&MIN($F61,L$8)) -> 0 | M61: =COUNTIFS('Stat Analysis'!$AI$5682:$AI$6681,">="&MAX($E61,M$7), 'Stat Analysis'!$AI$5682:$AI$6681,"<"&MIN($F61,M$8)) -> 34 | N61: =COUNTIFS('Stat Analysis'!$AI$6682:$AI$7681,">="&MAX($E61,N$7), 'Stat Analysis'!$AI$6682:$AI$7681,"<"&MIN($F61,N$8)) -> 0 | O61: =COUNTIFS('Stat Analysis'!$AI$7682:$AI$8681,">="&MAX($E61,O$7), 'Stat Analysis'!$AI$7682:$AI$8681,"<"&MIN($F61,O$8)) -> 0 | P61: =COUNTIFS('Stat Analysis'!$AI$8682:$AI$9681,">="&MAX($E61,P$7), 'Stat Analysis'!$AI$8682:$AI$9681,"<"&MIN($F61,P$8)) -> 0 | Q61: =COUNTIFS('Stat Analysis'!$AI$9682:$AI$10681,">="&MAX($E61,Q$7), 'Stat Analysis'!$AI$9682:$AI$10681,"<"&MIN($F61,Q$8)) -> 0 | R61: =COUNTIFS('Stat Analysis'!$AI$10682:$AI$11681,">="&MAX($E61,R$7), 'Stat Analysis'!$AI$10682:$AI$11681,"<"&MIN($F61,R$8)) -> 0 | S61: =COUNTIFS('Stat Analysis'!$AI$11682:$AI$12681,">="&MAX($E61,S$7), 'Stat Analysis'!$AI$11682:$AI$12681,"<"&MIN($F61,S$8)) -> 0 | T61: =COUNTIFS('Stat Analysis'!$AI$12682:$AI$13681,">="&MAX($E61,T$7), 'Stat Analysis'!$AI$12682:$AI$13681,"<"&MIN($F61,T$8)) -> 0 | U61: =COUNTIFS('Stat Analysis'!$AI$13682:$AI$14681,">="&MAX($E61,U$7), 'Stat Analysis'!$AI$13682:$AI$14681,"<"&MIN($F61,U$8)) -> 0 | V61: =COUNTIFS('Stat Analysis'!$AI$14682:$AI$15681,">="&MAX($E61,V$7), 'Stat Analysis'!$AI$14682:$AI$15681,"<"&MIN($F61,V$8)) -> 0 | X61: 0 | Y61: 0 | Z61: 0 | AA61: 0 | AB61: 0 | AC61: 69 | AD61: 0 | AE61: 0 | AF61: 0 | AG61: 10.5 | AH61: 0 | AI61: 0 | AJ61: 0 | AK61: 0 | AL61: 0 | AN61: 10 | AO61: 0 | AP61: -6 | AQ61: 0 | AR61: 3 | AS61: 0 | AT61: =-AS$14-0.5*AS61+AU$14-0.5*AU61 -> 2 | AU61: 0 | AV61: =-AU$14-0.5*AU61+AW$14-0.5*AW61 -> 4 | AW61: 0 | AX61: =-AW$14-0.5*AW61+AY$14-0.5*AY61 -> -2.383333333 | AY61: 0.7666666667 | AZ61: =-AY$14-0.5*AY61+BA$14-0.5*BA61 -> -6.383333333 | BA61: 0 | BB61: =-BA$14-0.5*BA61+BC$14-0.5*BC61 -> -2 | BC61: 0 | BD61: =-BC$14-0.5*BC61+BE$14-0.5*BE61 -> 5 | BE61: 0 | BF61: =-BE$14-0.5*BE61+BG$14-0.5*BG61 -> 3.959302326 | BG61: 0.08139534884 | BH61: =-BG$14-0.5*BG61+BI$14-0.5*BI61 -> -10.04069767 | BI61: 0 | BJ61: =-BI$14-0.5*BI61+BK$14-0.5*BK61 -> 4 | BK61: 0 | BL61: =-BK$14-0.5*BK61+BM$14-0.5*BM61 -> -5 | BM61: 0 | BN61: =-BM$14-0.5*BM61+BO$14-0.5*BO61 -> -1 | BO61: 0 | BP61: =-BO$14-0.5*BO61+BQ$14-0.5*BQ61 -> -1 | BQ61: 0 | BS61: 40 | CD61: 11.38333333 | CE61: 10.61666667 | CL61: 12.04069767 | CM61: 11.95930233
A62: 160.8 | B62: 14 | D62: 41 | E62: 0.2 | F62: 0.205 | G62: 0.2025 | H62: =COUNTIFS('Stat Analysis'!$AI$682:$AI$1681,">="&MAX($E62,H$7), 'Stat Analysis'!$AI$682:$AI$1681,"<"&MIN($F62,H$8)) -> 0 | I62: =COUNTIFS('Stat Analysis'!$AI$1682:$AI$2681,">="&MAX($E62,I$7), 'Stat Analysis'!$AI$1682:$AI$2681,"<"&MIN($F62,I$8)) -> 0 | J62: =COUNTIFS('Stat Analysis'!$AI$2682:$AI$3681,">="&MAX($E62,J$7), 'Stat Analysis'!$AI$2682:$AI$3681,"<"&MIN($F62,J$8)) -> 0 | K62: =COUNTIFS('Stat Analysis'!$AI$3682:$AI$4681,">="&MAX($E62,K$7), 'Stat Analysis'!$AI$3682:$AI$4681,"<"&MIN($F62,K$8)) -> 0 | L62: =COUNTIFS('Stat Analysis'!$AI$4682:$AI$5681,">="&MAX($E62,L$7), 'Stat Analysis'!$AI$4682:$AI$5681,"<"&MIN($F62,L$8)) -> 0 | M62: =COUNTIFS('Stat Analysis'!$AI$5682:$AI$6681,">="&MAX($E62,M$7), 'Stat Analysis'!$AI$5682:$AI$6681,"<"&MIN($F62,M$8)) -> 39 | N62: =COUNTIFS('Stat Analysis'!$AI$6682:$AI$7681,">="&MAX($E62,N$7), 'Stat Analysis'!$AI$6682:$AI$7681,"<"&MIN($F62,N$8)) -> 0 | O62: =COUNTIFS('Stat Analysis'!$AI$7682:$AI$8681,">="&MAX($E62,O$7), 'Stat Analysis'!$AI$7682:$AI$8681,"<"&MIN($F62,O$8)) -> 0 | P62: =COUNTIFS('Stat Analysis'!$AI$8682:$AI$9681,">="&MAX($E62,P$7), 'Stat Analysis'!$AI$8682:$AI$9681,"<"&MIN($F62,P$8)) -> 0 | Q62: =COUNTIFS('Stat Analysis'!$AI$9682:$AI$10681,">="&MAX($E62,Q$7), 'Stat Analysis'!$AI$9682:$AI$10681,"<"&MIN($F62,Q$8)) -> 21 | R62: =COUNTIFS('Stat Analysis'!$AI$10682:$AI$11681,">="&MAX($E62,R$7), 'Stat Analysis'!$AI$10682:$AI$11681,"<"&MIN($F62,R$8)) -> 0 | S62: =COUNTIFS('Stat Analysis'!$AI$11682:$AI$12681,">="&MAX($E62,S$7), 'Stat Analysis'!$AI$11682:$AI$12681,"<"&MIN($F62,S$8)) -> 0 | T62: =COUNTIFS('Stat Analysis'!$AI$12682:$AI$13681,">="&MAX($E62,T$7), 'Stat Analysis'!$AI$12682:$AI$13681,"<"&MIN($F62,T$8)) -> 0 | U62: =COUNTIFS('Stat Analysis'!$AI$13682:$AI$14681,">="&MAX($E62,U$7), 'Stat Analysis'!$AI$13682:$AI$14681,"<"&MIN($F62,U$8)) -> 0 | V62: =COUNTIFS('Stat Analysis'!$AI$14682:$AI$15681,">="&MAX($E62,V$7), 'Stat Analysis'!$AI$14682:$AI$15681,"<"&MIN($F62,V$8)) -> 0 | X62: 0 | Y62: 0 | Z62: 0 | AA62: 0 | AB62: 0 | AC62: 73 | AD62: 0 | AE62: 0 | AF62: 0 | AG62: 27.5 | AH62: 0 | AI62: 0 | AJ62: 0 | AK62: 0 | AL62: 0 | AN62: 10 | AO62: 0 | AP62: -6 | AQ62: 0 | AR62: 3 | AS62: 0 | AT62: =-AS$14-0.5*AS62+AU$14-0.5*AU62 -> 2 | AU62: 0 | AV62: =-AU$14-0.5*AU62+AW$14-0.5*AW62 -> 4 | AW62: 0 | AX62: =-AW$14-0.5*AW62+AY$14-0.5*AY62 -> -2.405555556 | AY62: 0.8111111111 | AZ62: =-AY$14-0.5*AY62+BA$14-0.5*BA62 -> -6.405555556 | BA62: 0 | BB62: =-BA$14-0.5*BA62+BC$14-0.5*BC62 -> -2 | BC62: 0 | BD62: =-BC$14-0.5*BC62+BE$14-0.5*BE62 -> 5 | BE62: 0 | BF62: =-BE$14-0.5*BE62+BG$14-0.5*BG62 -> 3.893410853 | BG62: 0.2131782946 | BH62: =-BG$14-0.5*BG62+BI$14-0.5*BI62 -> -10.10658915 | BI62: 0 | BJ62: =-BI$14-0.5*BI62+BK$14-0.5*BK62 -> 4 | BK62: 0 | BL62: =-BK$14-0.5*BK62+BM$14-0.5*BM62 -> -5 | BM62: 0 | BN62: =-BM$14-0.5*BM62+BO$14-0.5*BO62 -> -1 | BO62: 0 | BP62: =-BO$14-0.5*BO62+BQ$14-0.5*BQ62 -> -1 | BQ62: 0 | BS62: 41 | CD62: 11.40555556 | CE62: 10.59444444 | CL62: 12.10658915 | CM62: 11.89341085
... 77 more rows

Sheet Interface
C5: Overall Financial Performance Metrics | D5: Most likely value | G5: 5%'ile | H5: 95%'ile | I5: Plot | O5: =+C5&" Scenario History" -> Overall Financial Performance Metrics Scenario History
C6: Leveraged, after-tax, nominal IRR | D6: =IF(ISERROR(G0!D225),"Margin is too low",(G0!D225)) -> 0.1025 | G6: =+S!J26 -> -0.08327500445 | H6: =+S!J27 -> 0.6726688123 | O6: =+C6 -> Leveraged, after-tax, nominal IRR | P6: 0.1 | Q6: =D6 -> 0.1025
C7: Profitability index | D7: =+G0!D226 -> 1.921308616 | G7: =+S!K26 -> -36.99864259 | H7: =+S!K27 -> 48.95948784 | O7: Profitability index | P7: 1.464556639 | Q7: 1.921308616
C8: Investor payback period | D8: =IF(ISERROR(G0!D231),"Margin is too low",(G0!D231)) -> 8 | G8: =+S!L26 -> 3 | H8: =+S!L27 -> 21 | O8: Investor payback period | P8: 6 | Q8: 8
C9: First year of positive EBITD | D9: =IF(ISERROR(G0!D232),"Margin is too low",(G0!D232)) -> 2 | G9: =+S!M26 -> 2 | H9: =+S!M27 -> 3 | O9: First year of positive EBITD | P9: 2 | Q9: 2
C10: ="After-tax, nominal NPV @ "&D164*100&"% discount" -> After-tax, nominal NPV @ 10.25% discount | D10: =G0!D227 -> 0 | G10: =+S!N26 -> -86256876.86 | H10: =+S!N27 -> 90332802.63 | O10: After-tax, nominal NPV @ 10.25% discount | P10: 0 | Q10: 0
C11: ="Estimated break-even leveraged price ("&D82&"$/"&RetailUnit&")" -> Estimated break-even leveraged price (2016$/kWh) | D11: =+'G9'!G244 -> 0.3313230466 | G11: =+S!O26 -> 14.10543848 | H11: =+S!O27 -> 60.93595017 | O11: Estimated break-even leveraged price (2016$/kWh) | P11: 2.4 | Q11: 0.3313230466
C13: Chart Selector & Description
C15: =+G0!G462 -> Investor cash flow + previous year investor cash flow. | E15: ="Analyzed system "&'Technology Specifications'!B5 -> Analyzed system HDV-PEM|Salt
I21: Plot | J21: Multiple scenarios? | K21: ="Real levelized contribution ($/"&RetailUnit&")" -> Real levelized contribution ($/kWh) | O21: Multi-Scenario Inputs
O22: Enter how many scenarios to model | P22: 3
O23: Select scenario to analyze | P23: 2
C24: ="Scenario being analyzed: "&OFFSET(O26,0,$P$23) -> Scenario being analyzed: Without incentives
O25: Scenario being analyzed (yellow background) | P25: 1 | Q25: 2 | R25: 3 | S25: 4 | T25: 5 | U25: 6 | V25: 7 | W25: 8 | X25: 9 | Y25: 10 | Z25: 11 | AA25: 12 | AB25: 13 | AC25: 14 | AD25: 15 | AE25: 16 | AF25: 17 | AG25: 18 | AH25: 19 | AI25: 20 | AJ25: 21 | AK25: 22 | AL25: 23 | AM25: 24 | AN25: 25 | AO25: 26 | AP25: 27 | AQ25: 28 | AR25: 29 | AS25: 30 | AT25: 31 | AU25: 32 | AV25: 33 | AW25: 34 | AX25: 35 | AY25: 36 | AZ25: 37 | BA25: 38 | BB25: 39 | BC25: 40 | BD25: 41 | BE25: 42 | BF25: 43 | BG25: 44 | BH25: 45 | BI25: 46 | BJ25: 47 | BK25: 48 | BL25: 49 | BM25: 50 | BN25: 51 | BO25: 52 | BP25: 53 | BQ25: 54 | BR25: 55 | BS25: 56 | BT25: 57 | BU25: 58 | BV25: 59 | BW25: 60 | BX25: 61 | BY25: 62 | BZ25: 63 | CA25: 64 | CB25: 65 | CC25: 66 | CD25: 67 | CE25: 68 | CF25: 69 | CG25: 70 | CH25: 71 | CI25: 72 | CJ25: 73 | CK25: 74 | CL25: 75 | CM25: 76 | CN25: 77 | CO25: 78 | CP25: 79 | CQ25: 80 | CR25: 81 | CS25: 82 | CT25: 83 | CU25: 84 | CV25: 85 | CW25: 86 | CX25: 87 | CY25: 88 | CZ25: 89 | DA25: 90 | DB25: 91 | DC25: 92 | DD25: 93 | DE25: 94 | DF25: 95 | DG25: 96 | DH25: 97 | DI25: 98 | DJ25: 99 | DK25: 100 | DL25: 101 | DM25: 102 | DN25: 103 | DO25: 104 | DP25: 105 | DQ25: 106 | DR25: 107 | DS25: 108 | DT25: 109 | DU25: 110 | DV25: 111 | DW25: 112 | DX25: 113 | DY25: 114 | DZ25: 115 | EA25: 116 | EB25: 117 | EC25: 118 | ED25: 119 | EE25: 120 | EF25: 121 | EG25: 122 | EH25: 123 | EI25: 124 | EJ25: 125 | EK25: 126 | EL25: 127 | EM25: 128 | EN25: 129 | EO25: 130 | EP25: 131 | EQ25: 132 | ER25: 133 | ES25: 134 | ET25: 135 | EU25: 136 | EV25: 137 | EW25: 138 | EX25: 139 | EY25: 140 | EZ25: 141 | FA25: 142 | FB25: 143 | FC25: 144 | FD25: 145 | FE25: 146 | FF25: 147 | FG25: 148 | FH25: 149 | FI25: 150 | FJ25: 151 | FK25: 152 | FL25: 153 | FM25: 154 | FN25: 155 | FO25: 156 | FP25: 157 | FQ25: 158 | FR25: 159 | FS25: 160 | FT25: 161 | FU25: 162 | FV25: 163 | FW25: 164 | FX25: 165 | FY25: 166 | FZ25: 167 | GA25: 168 | GB25: 169 | GC25: 170 | GD25: 171 | GE25: 172 | GF25: 173 | GG25: 174 | GH25: 175 | GI25: 176 | GJ25: 177 | GK25: 178 | GL25: 179 | GM25: 180 | GN25: 181 | GO25: 182 | GP25: 183 | GQ25: 184 | GR25: 185 | GS25: 186 | GT25: 187 | GU25: 188 | GV25: 189 | GW25: 190 | GX25: 191 | GY25: 192 | GZ25: 193 | HA25: 194 | HB25: 195 | HC25: 196 | HD25: 197 | HE25: 198 | HF25: 199 | HG25: 200 | HH25: 201 | HI25: 202 | HJ25: 203 | HK25: 204 | HL25: 205 | HM25: 206 | HN25: 207 | HO25: 208 | HP25: 209 | HQ25: 210 | HR25: 211 | HS25: 212 | HT25: 213 | HU25: 214 | HV25: 215 | HW25: 216 | HX25: 217 | HY25: 218 | HZ25: 219 | IA25: 220 | IB25: 221 | IC25: 222 | ID25: 223 | IE25: 224 | IF25: 225 | IG25: 226 | IH25: 227 | II25: 228 | IJ25: 229 | IK25: 230 | IL25: 231 | IM25: 232 | IN25: 233 | IO25: 234 | IP25: 235 | IQ25: 236 | IR25: 237 | IS25: 238 | IT25: 239 | IU25: 240 | IV25: 241 | IW25: 242 | IX25: 243 | IY25: 244 | IZ25: 245 | JA25: 246 | JB25: 247 | JC25: 248 | JD25: 249 | JE25: 250 | JF25: 251 | JG25: 252 | JH25: 253 | JI25: 254 | JJ25: 255 | JK25: 256 | JL25: 257 | JM25: 258 | JN25: 259 | JO25: 260 | JP25: 261 | JQ25: 262 | JR25: 263 | JS25: 264 | JT25: 265 | JU25: 266 | JV25: 267 | JW25: 268 | JX25: 269 | JY25: 270 | JZ25: 271 | KA25: 272 | KB25: 273 | KC25: 274 | KD25: 275 | KE25: 276 | KF25: 277 | KG25: 278 | KH25: 279 | KI25: 280 | KJ25: 281 | KK25: 282 | KL25: 283 | KM25: 284 | KN25: 285 | KO25: 286 | KP25: 287 | KQ25: 288 | KR25: 289 | KS25: 290 | KT25: 291 | KU25: 292 | KV25: 293 | KW25: 294 | KX25: 295 | KY25: 296 | KZ25: 297 | LA25: 298 | LB25: 299 | LC25: 300
C26: Installation(s) Information | D26: Most likely value | G26: %less | H26: %more | O26: Installation name | P26: With incentives | Q26: Without incentives
C27: ="Capacity ("&RetailUnit&"/"&TimeCapacity&")" -> Capacity (kWh/hour) | D27: =+'Stat Analysis'!AN7 -> 100000 | G27: 0 | H27: 0 | O27: =+C27 -> Capacity (kWh/hour)
C28: Commodity, retail units, capacity timeframe | D28: electricity | E28: kWh | F28: hour
C29: Total of Itemized Equipment Cost | D29: =+SUM(D30:E39) -> 222491410.9
C30: =REPLACE(F30,1,1,UPPER(LEFT(F30))) -> Charging cap | D30: =+'Stat Analysis'!AR7 -> 176091410.9 | F30: charging cap | G30: 0 | H30: 0 | K30: =+G0!DC282 -> 0.0762575169 | O30: Charging cap | P30: 4100000 | Q30: 4100000
C31: =REPLACE(F31,1,1,UPPER(LEFT(F31))) -> Storage cap | D31: =+'Stat Analysis'!AT7 -> 0 | F31: storage cap | G31: 0 | H31: 0 | K31: =+G0!DC283 -> 0 | O31: Storage cap
C32: Discharging cap | D32: =+'Stat Analysis'!AV7 -> 46400000 | F32: discharging cap | G32: 0 | H32: 0 | K32: =+G0!DC284 -> 0.02009381813 | O32: Discharging cap
C33: Capital_item 4 | F33: capital_item 4 | G33: 0 | H33: 0 | K33: =+G0!DC285 -> 0 | O33: Capital_item 4
C34: Capital_item 5 | F34: capital_item 5 | G34: 0 | H34: 0 | K34: =+G0!DC286 -> 0 | O34: Capital_item 5
C35: Capital_item 6 | F35: capital_item 6 | G35: 0 | H35: 0 | K35: =+G0!DC287 -> 0 | O35: Capital_item 6
C36: Capital_item 7 | F36: capital_item 7 | G36: 0 | H36: 0 | K36: =+G0!DC288 -> 0 | O36: Capital_item 7
C37: Capital_item 8 | F37: capital_item 8 | G37: 0 | H37: 0 | K37: =+G0!DC289 -> 0 | O37: Capital_item 8
C38: Capital_item 9 | F38: capital_item 9 | G38: 0 | H38: 0 | K38: =+G0!DC290 -> 0 | O38: Capital_item 9
C39: Capital_item 10 | F39: capital_item 10 | G39: 0 | H39: 0 | K39: =+G0!DC291 -> 0 | O39: Capital_item 10
C40: Non-depreciable assets | D40: =+'Stat Analysis'!AU7 -> 17819629.11 | G40: 0 | H40: 0 | K40: =+G0!DC293 -> 0.007716904882 | O40: Non-depreciable assets
C41: Installation cost | D41: 0 | G41: 0 | H41: 0 | K41: =+G0!DC292 -> 0 | O41: Installation cost
C42: End of project sale of non-depreciable assets | D42: =+D40*(1+D161)^(InstallTime/12+EquipmentLife) -> 31937312.28 | G42: 0 | H42: 0 | K42: =+G0!DC249 -> 0.007716904882 | O42: End of project sale of non-depreciable assets
C43: Total annual maintenance | G43: 0 | H43: 0 | K43: =+G0!DC269 -> 0 | O43: Total annual maintenance
C44: Maintenance escalation (% annually) | D44: 0.019 | G44: 0 | H44: 0 | O44: Maintenance escalation (% annually)
C46: Feedstock Use | O46: Feedstock Use
C47: =REPLACE(E47&" ("&F47&"/"&RetailUnit&")",1,1,UPPER(LEFT(E47&" ("&F47&"/"&RetailUnit&")"))) -> Electricity (kWh/kWh) | D47: ='Stat Analysis'!BB7 -> 2.860644268 | E47: electricity | F47: kWh | G47: 0 | H47: 0 | K47: =+G0!DC259 -> 0.05721288535 | O47: Electricity (kWh/kWh)
C48: Natural gas (MMBTU/kWh) | D48: ='Stat Analysis'!U7 -> 0 | E48: natural gas | F48: MMBTU | G48: 0 | H48: 0 | K48: =+G0!DC260 -> 0 | O48: Natural gas (MMBTU/kWh)
C49: Ethanol (gal/kWh) | D49: =+'Stat Analysis'!V7 -> 0 | E49: ethanol | F49: gal | G49: 0 | H49: 0 | K49: =+G0!DC261 -> 0 | O49: Ethanol (gal/kWh)
C50: CO₂ sequestration (m.tonnes/kWh) | D50: =+'Stat Analysis'!W7 -> 0 | E50: CO₂ sequestration | F50: m.tonnes | G50: 0 | H50: 0 | K50: =+G0!DC262 -> 0 | O50: CO₂ sequestration (m.tonnes/kWh)
